Workbook

Sheet Front page

Sheet Guide
B8: Context & Purpose
B9: What is the NHS Mental Health Dashboard? The NHS Mental Health Dashboard (formerly the Five Year Forward View Dashboard), first published in October 2016, is a response to the recommendation in the Five Year Forward View for Mental Health that NHS England create a tool “that will identify metrics for monitoring key performance and outcomes data and that will allow us to hold national and local bodies to account for implementing this strategy.” A key purpose of the Dashboard is to enable NHS England and the Five Year Forward View Programme Board to monitor progress on its commitments to transform mental health services. Additionally, by making the data publicly available, we are ensuring that commissioners can use it as a tool to inform their work and that service users and their families and carers can see how local services are performing. Understanding financial data in the NHS Mental Health Dashboard The Dashboard includes an unprecedented level of information on the amount of money being invested in mental health services across England. As well as publishing overall spend on mental health, it also includes programme level spend at CCG, STP, regional and national level. This includes spend data on: • Children and young people’s (CYP) mental health services • CYP eating disorder services • Specialist community perinatal mental health services • Early intervention in psychosis services • IAPT services • A&E liaison services • Crisis resolution home treatment services It is important to note that some CCGs have had difficulties extracting costs for specific services that they commission because of block contract arrangements. As a consequence, although the total mental health spend by CCG is accurate, it may be under or overstated at the individual programme levels listed above. NHS England continues to work closely with CCGs to support them to improve the quality of information they are able to provide on their expenditure. Nevertheless, it is advised that this information is used with caution. Calculating the Mental Health Investment Standard NHS England has committed to increasing the proportion of NHS spending on mental health and has developed the ‘Mental Health Investment Standard’ (MHIS) to track whether this is being delivered. In simple terms, achievement of the MHIS compares the growth of CCG spend on mental health with the growth of a CCG’s programme allocation. CCGs must continue to increase investment in mental health services, in line with the Mental Health Investment Standard (MHIS). For 2019/20 the standard requires CCGs to increase spend by at least their overall programme allocation growth plus an additional percentage increment to reflect the additional mental health funding included in CCG allocations for 2019/20. In order to deliver the service expansions planned for 2019/20, CCGs (other than by local exception requiring prior agreement with NHS England) also needed to increase the share of their total mental health expenditure that is spent with mental health providers. The MHIS is calculated at CCG level and nationally. The MHIS calculation will be met based on final outturn for 2019/20, subject to the MHIS review that will be conducted later in the calendar year. The MHIS calculation does not include planned or actual spend on learning disabilities and dementia, which is included in the total mental health spend presented here. Specialised commissioning spend is not included in the mental health investment standard compliance calculation. Data availability and quality Whilst every effort has been made to ensure that the data in the Dashboard has been properly quality assured, some of the data used is classed as experimental, whilst other information, particularly financial data, is necessarily revised and improved over time. Data is correct at the time of publishing, however, caution is advised when seeking to draw comparisons between data in different iterations of the Dashboard.
B24: Sheet description
B25: Metadata: | D25: This sheet contains information about the data used for each indicator. In particular, it includes a description of the indicators; information on the numerators and denominators (where applicable); any caveats around the data and the methodology; the indicator reporting period (quarter or year) as well as information and links to the data sources.
B27: Dashboard: | D27: This sheet shows the value; the change; the annual objective; the trend and performance against the national median for each indicator. A detailed description of each column is provided in the "Dashboard" section below
B29: Dashboard
B30: To begin, select one of the four geographies (England, Region, STP or CCG) from the first drop-down list at the top of the page. If you have selected "England" there is no further action required. For all other geographies, please select one of the seven regions (North East and Yorkshire, North West, London, Midlands, East of England, South West of England and South East of England) from the second drop-down list. Similar to the first drop-down, if you have selected "Region" there is no further action required. Lastly, for CCGs or STPs, select one of the 106 CCGs or 42 STPs listed by region and alphabetically in the last drop-down list.
B40: The dashboard is automatically populated with the data relevant to the selected geography or organisation.
B41: A key/description for each column is also available in the Dashboard tab by clicking on the column headings.
B42: A description of each column in the Dashboard can be found below:
B43: Code: | D43: This is a unique code for each indicator, used across this spreadsheet. You can use this code to search for the indicator you are interested in by using the filter in column B of the Metadata tab.
B45: Indicator: | D45: This column shows the short description of each indicator. For a more detailed description please see the Metadata tab. National measures only: Certain indicator data are only available at a national (England) and in some cases regional level only, hence a few indicators are marked as national measures only. When a CCG is selected from the drop-down list, the values for these measures are greyed out.
B48: Latest reporting period: | D48: This column shows for each indicator the latest reporting period that the dashboard includes data for. For indicators updated in the latest dashboard iteration this field is in bold and italics
B50: Indicator value: | D50: The value of the indicator in the latest reporting period and in brackets the annual objective for each indicator (where applicable), as set out in the Five Year Forward View for Mental Health implementation plan. Where there is an annual objective, a red dot signifies that the value is below the objective; a green dot that it's meeting the objective. N/A signifies that data is either suppressed (counts of less than 5) or not available at that level
B55: Standard met/on track: | D55: This column shows the indicator value compared to the National Standard, if the indicator value meets (or exceeds) the National Standard target the icon will be green if the indicator value does not meet the National standard target the icon will be red
B59: Trend: | D59: The sparklines give an indication of trend over a specified time period (usually the last 6 quarters or last 3 years depending on the indicator reporting period and the data availability exceptions to this are indicators ES(i) and CR (i.a) as these show a trend before and after an intervention). NB: Where there are only a limited number of data points in the sparkline graphs then apparent changes may appear distorted and care should be taken when interpreting.
B62: Better is..: | D62: This column indicates whether a high or a low value is considered better for the particular measure. An upward arrow p indicates that higher values are better, while a downward arrow q that lower values are better. N/A denotes Not Applicable and is shown when an indicator needs to be considered alongside other measures to interpret the figures and hence a higher or a lower value is not necessarily indication of better performance.
B65: 12 Month % Change | D65: The proportion of change for the organisation selected since the figure it reported 12 months earlier. Where the indicator is reported as a percentage, the change in % will be reported as the percentage point difference. Depending on the “Better is” column for each individual indicator, the value will appear in red or green to denote if this is a better or worse change to 12 months ago. If there is no data available for the indicator or it is an inappropriate measure e.g. MHF (iii) MH Investment standard achieved), the cells will be greyed out.
B66: 24 Month % Change | D66: The proportion of change for the organisation selected since the figure it reported 24 months earlier. Where the indicator is reported as a percentage, the change in % will be reported as the percentage point difference. Depending on the “Better is” column for each individual indicator, the value will appear in red or green to denote if this is a better or worse change to 24 months ago. If there is no data available for the indicator or it is an inappropriate measure e.g. MHF (iii) MH Investment standard achieved), the cells will be greyed out.
B67: Range: | D67: The spine chart shows the relative performance of the organisation against the relevant comparator group (either all CCGs or all STPs) for the latest period. An organisation value towards the right of the scale indicates a higher value for that measure and towards the left indicates a lower value. Please refer to the "Better is..." column in order to interpret if the organisation's position shows “better” or "worse" performance. Percentiles are based on national data. The spine chart is only available at CCG and STP level and only applicable to a set of indicators. When the organisation value is blank or suppressed (*) it is not showing on the chart. NB: Not all indicators presented with spine charts have been normalised, so interpretation needs to be undertaken with caution. Please use the trend to add context where available.
B79: Printing
B80: The "Dashboard" and "Guide" tabs are designed to print on A3 paper in portrait orientation and the "Metadata" tab in landscape orientation. Go to the File Ribbon and select Print. If you are happy with the print preview then click print otherwise select page setup to adjust scaling.
B82: Updates
B83: The dashboard will be updated quarterly.
B85: Version Control
B86: 2016-10-27 | C86: October 2016 publication | D86: First version
B87: 2017-01-30 | C87: January 2017 publication | D87: Refreshed data for all indicators bolded and italicised in the "Latest reporting period" column. Added STP functionality. Added two new indicators, IAPT (i_b) and IAPT(ii_b). Revised the definition and calculation for indicators SP (ii_a) and SP(ii_b).
B88: 2017-05-02 | C88: May 2017 publication | D88: Refreshed data for all indicators bolded and italicised in the "Latest reporting period" column. Revised the definition and calculation for indicator IAPT (i_b). Replaced previously reported experimental measure CYP (ii) Number of new CYP under 18 receiving treatment in NHS funded community services with Number of CYP receiving at least two contacts in NHS funded community services. See the Metadata tab for the definition of updated indicator
B89: 2017-07-28 | C89: July 2017 publication | D89: Refreshed data for all indicators bolded and italicised in the "Latest reporting period" column. Revised finance indicators to no longer refer to plan data but to year end outturn data.
B90: 2017-11-10 | C90: November 2017 publication | D90: Refreshed data for all indicators bolded and italicised in the "Latest reporting period" column. Indicators updated, amended and removed.
B91: 2018-01-31 | C91: National Summary (Q1&Q2 2017/18) | D91: Provided a summary front sheet giving a national view of a 6 month period (Q1 and Q2 2017/18).
B92: 2018-02-07 | C92: February 2018 publication | D92: Time period of publication changed from quarterly to cover a 6 month period (Q1 and Q2 2017/18). Refreshed data for all indicators bolded and italicised in the "Latest reporting period" column. Indicators updated, amended and removed.
B93: 2018-07-06 | C93: August 2018 publications | D93: Two publications provided to cover Q3 and Q4. Refreshed data for all indicators bolded and italicised in the "Latest reporting period" column.
B94: 2018-11-20 | C94: January 2019 Publication | D94: Restructured dashboard to use the new CCG, STP and regional structures for 2018/19 (see below). Refreshed data for all indicators bolded and italicised in the "Latest reporting period" column. Indicators updated, amended and removed. New indicators EIP(i.a), CR (iii.a), CR(iii.b) and CR(iii.c) added.
B95: 2019-01-17 | C95: February 2019 publication | D95: Refreshed data for all indicators bolded and italicised in the "Latest reporting period" column.
B96: 2019-01-17 | C96: February 2019 publication | D96: National standards added to dashboard IAPT Access standard attainment adjusted to be based on trajectory from 2017/18 to 2018/19 standard – see metadata for details.
B97: 2019-04-18 | C97: May 2019 publication | D97: Refreshed data for all indicators bolded and italicised in the "Latest reporting period" column.
B98: 2019-06-25 | C98: August 2019 publication | D98: Refreshed data for all indicators bolded and italicised in the "Latest reporting period" column. Added sparklines for finance data where three data points are available. New Crisis and A&E Liaison indicators and Physical Health checks for people with Serious Mental Illness added.
B99: 2019-10-17 | C99: December 2019 publication | D99: Restructured dashboard to use the new CCG and regional structures for 2019/20 (see below). Refreshed data for all indicators bolded and italicised in the "Latest report period" column. Q3 Out of Area placement data adjusted CR(i.b, i.c, i.d) The calculation methodology for this indicator has been updated to ensure that all teams carry equal weight in national, region and STP calculations. As a result values may differ slightly to those issued in previous dashboards. AC(i) and AC(ii) STP data adjusted.
B100: 2019-12-13 | C100: February 2020 publication | D100: Added new EIP indicator - EIP (i_b). Refreshed data for all indicators bolded and italicised in the "Latest reporting period" column.
B101: 2020-03-24 | C101: May 2020 publication | D101: Changed data source for EIP indicator - EIP (i) to MHSDS. Refreshed data for all indicators bolded and italicised in the "Latest reporting period" column.
B102: 2020-05-19 | C102: May 2020 publication | D102: AC(i) standard is 13% in 2017/18 - rag rating has been updated in Dashboard and standard has been updated in Metadata (previously 7%). Reporting period has also been updated from 'TBC' to 'Annually' in Metadata.
B103: 2020-06-30 | C103: August 2020 publication | D103: Added three new Perinatal Indicators. Adjusted method for aggregating EIP(i) to STP/Region level. Refreshed data for all indicators bolded and italicised in the "Latest reporting period" column
B104: 2020-10-01 | C104: December 2020 publication | D104: Restructured dashboard for new CCG organisational structure. Added new measures: CYP(i.c), IAPT(iii.c). Refreshed data for all indicators bolded and italicised in the "Latest reporting period" column. Removed CYP(iv.a) and CYP(iv.b). Updated CYP(i.b) for Kernow CCG, Cornwall and the Isles of Scilly Health & Social Care Partnership (STP), South West England and England.
B105: 2021-01-01 | C105: March 2021 publication | D105: Added new measures: AC(i.a) and CYP(i.a). Refreshed data for all indicators bolded and italicised in the "Latest reporting period" column. Updated the spine chart methodology to more accurately reflect the range of the data.
B106: 2021-04-12 | C106: May 2021 re-publication of Q4 2019/20 | D106: Perinatal access indicators PMH (i.a) and PMH (i.b) refreshed to reflect the resubmitted data for 2019/20. Refreshed data for all indicators bolded and italicised in the "Latest reporting period" column.
B107: 2021-04-30 | C107: March 2021 re-publication of Q2 2020/21 | D107: Refreshed Q2 2020/21 Dashboard with values for CYP (iii.a) and CYP (iii.b) at STP and CCG level.
B108: 2021-05-01 | C108: May 2021 publication | D108: Added new measure: Proportion of discharges from hospital followed up within 72 hours (SP (iii.c). Refreshed data for all indicators bolded and italicised in the "Latest reporting period" column. Refreshed number of CCGs meeting MHIS following the 2019/20 audit review for MHF (iii). Change in spine chart methodology - they no longer show "better" performance to the right of the scale, they now show the relative position of an organisation compared to all other organisations and England at that level. Added spine charts for set of indicators: CYP (ii.a), CYP (ii.b), IAPT (iii.c).
B109: 2021-08-01 | C109: August 2021 publication | D109: Added new measure for CYP Crisis Long Term Plan ambition: Proportion of coverage of 24/7 crisis provision for CYP which combines crisis assessment, brief response and intensive home treatment functions. Removed indicator HJ (iii) as the target for % of population of England with access to liaison and diversion services - All ages was met at 100%. Refreshed data for all indicators bolded and italicised in the "Latest reporting period" column. Refreshed all financial indicators to show actual spend for 2020/21 and MHF (ii.b) to show actual rather than planned spend.
B110: 2021-10-01 | C110: November 2021 publication | D110: Restructured dashboard for new CCG organisational structure. Indicators CR (i.a-i.d) have been changed and updated to reflect the latest annual survey, these data are not comparable to the previously reported indicators for CR (i.a-i.d). Added new measures: CR (vii.a) and CR (vii.b). IAPT (i.a) and PHSMI (i) are now reported as a number rather than proportion. CYP (i.c) and (i.d) are no longer reported, in line with the Long Term Plan (LTP). Refreshed data for all indicators bolded and italicised in the "Latest reporting period" column. New columns added to Dashboard to show % change for each relevant indicator, the two columns show comparison to the previous 12 months and 24 months respectively (percentage point change for % based indicators).
B111: 2022-02-21 | C111: February 2021 re-publication of Q1 2021/2 | D111: Refreshed Q1 2020/21 Dashboard with amended values for Crisis metrics: CR(i.b), CR(i.c) and CR(i.d) to discount nil returns from STPs.
B113: For details of all mergers and organisational changes please refer to the following website:
B114: https://digital.nhs.uk/services/organisation-data-service/change-summary-reconfiguration-2021-ccg-mergers
B116: Contacts
B117: If you have comments or issues related to this Dashboard then please contact england.MH-Dashboard@nhs.net

Sheet Metadata
B8: Code | C8: Indicator name | D8: Description | E8: Standard (if applicable) | F8: Numerator | G8: Denominator | H8: Further information and data quality | I8: Reporting period | J8: Data source | K8: Link to published data source (where available)
B9: Children and Young People (CYP) Mental Health
B10: CYP(i.a) | C10: No. of CYP (0-18) accessing support by NHS funded community services and school or college based Mental Health Support Teams (receiving at least one contact) | D10: Number of CYP (0-18) accessing support by NHS funded community services and school or college based Mental Health Support Teams (receiving at least one contact). | E10: N/A | F10: N/A | G10: N/A | H10: This is the new headline metric for measuring CYPMH, that is the number of <18s receiving at least one contact. Data for 18-25 year olds will be monitored separately to track improvements in their needs being met by appropriate services. | I10: Rolling 12 months | J10: Mental Health Services Dataset | K10: MHSDS NHS Digital Publication (Indicator MHS95)
B11: CYP(ii.a) | C11: % of CYP with eating disorders (ED) seen within 1 week (urgent) | D11: The proportion of Children and Young People (CYP) with Eating Disorders (urgent cases) that wait 1 week or less from referral to start of NICE-approved treatment. | E11: 95% by 2021/22 | F11: The number of CYP with a suspected ED (urgent cases) that started treatment within 1 week of referral in the reporting period. | G11: The number of CYP with a suspected ED (urgent cases) that started treatment in the reporting period. | H11: Regions do not add up to the England total, partly due to rounding and partly due to a number of people with unknown CCGs | I11: Quarter (regional and national data) Rolling 12 months (CCG and STP level) | J11: SDCS | K11: NHS England: CYP Eating Disorder Waiting Times
B12: CYP(ii.b) | C12: % of CYP with eating disorders (ED) seen within 4 weeks (routine) | D12: The proportion of Children and Young People with Eating Disorders (routine cases) that wait 4 weeks or less from referral to start of NICE-approved treatment. | E12: 95% by 2021/22 | F12: The number of CYP with suspected ED (routine cases) that started treatment within 4 weeks of referral in the reporting period. | G12: The number of CYP with a suspected ED (routine cases) that started treatment in the reporting period. | H12: As for CYP (ii.a). | I12: Quarter (regional and national data) Rolling 12 months (CCG and STP level) | J12: SDCS | K12: NHS England: CYP Eating Disorder Waiting Times
B13: CYP(iii.a) | C13: Total number of bed days for CYP under 18s in CYPMHS tier 4 wards | D13: The number of bed days in Children and Young People’s Mental Health Services (CYPMHS) wards for patients aged 0-17 in the reporting period. | E13: N/A | F13: N/A | G13: N/A | H13: Please note that the England total includes patients who have been admitted to CYPMHS Tier 4 wards, but are not assigned to an English CCG. This means that the sum of the regional totals may not equal the England total. This indicator includes medium secure and deaf inpatient children (from 2017/18). All values of less than 5 have been suppressed and replaced with N/A in this output. | I13: Quarter | J13: Provider Specialised Mental Health template submissions (NHS England) | K13: N/A
B14: CYP(iii.b) | C14: Number of admissions of CYP under 18 in CYPMHS tier 4 wards | D14: The number of admissions in Children and Young People’s Mental Health Services (CYPMHS) wards for patients aged 0-17 in the reporting period | E14: N/A | F14: N/A | G14: N/A | H14: As for CYP (iii.a). | I14: Quarter | J14: Provider Specialised Mental Health template Provider submissions (NHS England) | K14: N/A
B15: CYP(iv.a) | C15: Bed days of CYP under 18 in adult in-patient wards | D15: A count of bed days for people aged 0-17 who were in an adult ward each month. Individuals are allocated to a CCG based on the person's CCG at the end of the month. Three months data is then aggregated to produce the quarterly figure. (MHSDS measure: MHS24a-c) | E15: N/A | F15: N/A | G15: N/A | H15: NHS Digital are working closely with providers to encourage reporting and check data quality. As a result of data quality issues Q2 and Q3 data for 2017/18 were republished as a supplementary file in July 2018. NHS Digital investigated any provider for which there were more than 5 children on adult wards or more than 100 bed days on adult wards within a single month and requested data quality feedback. These parameters for investigation were selected to ensure any large data quality issues are examined whilst avoiding excessive burden on providers in investigation of smaller values. Further information can be found in the data quality section of the associated monthly MHSDS publications. These statistics are classified as experimental and should be used with caution. Experimental statistics are new official statistics undergoing evaluation. Except for England, all values of less than 5 have been suppressed and replaced with a N/A in this output. All unsuppressed sub-national values have been rounded to the nearest 5. | I15: Quarter | J15: MHSDS | K15: MHSDS NHS Digital Publication
B16: CYP(iv.b) | C16: Number of CYP under 18 in adult in-patient wards | D16: The number of children and young people aged 0-17 admitted in adult in-patient wards in the reporting period. This is a count of people, aged 0-17, who were on an adult ward at any point during the quarter. To avoid counting individuals more than once, the CCG is allocated based on the data submitted for the latest month in the quarter that person spent time in an adult ward. | E16: N/A | F16: N/A | G16: N/A | H16: As for CYP (iv.a). | I16: Quarter | J16: MHSDS | K16: MHSDS NHS Digital Publication
B17: CYP(vii) | C17: CYP Crisis Long Term Plan ambition | D17: Proportion of full or partial coverage of crisis provision for CYP which combines crisis assessment, brief response and intensive home treatment functions. This data reflects a snapshot in time of services in place as of Q1 2021/22. This data is being used as a proxy for implementation by year end of 2020/21. | E17: 35% for 2020/21 | F17: Total number of CCGs that meet the criteria. | G17: Total number of CCGs that responded to the survey. | H17: The NHS LTP committed that all children and young people experiencing a mental health crisis will be able to access crisis care 24 hours a day, seven days a week by 2023/24, with a single point of access through NHS 111. The Long Term Plan Mental Health Implementation Plan set out a national trajectory to achieve 100% coverage of comprehensive crisis services in line with the LTP ambition: 2019/20: 30%, 2020/21: 35%, 2021/22: 57%, 2022/23: 79%, 2023/24: 100%. The crisis services developed in line with the LTP ambition should be comprehensive, meaning they should, as a minimum, offer the functions and hours of operation below to CYP ages 0-17 years (up to 17 years and 364 days): 1. Single point of access including through 111 to crisis support, advice and triage 2. Crisis assessment within the emergency department and in community settings 3. Crisis assessment and brief response within the emergency department and in community settings, with CYP offered brief interventions 4. Intensive Home Treatment service aimed at CYP who might otherwise require inpatient care, or intensive support that exceeds the normal capability of a generic children and young people’s mental health community team Hours of operation: • Functions 1, 2 and 3 –the single point of access, crisis assessment and brief response must operate 24/7 • Function 4 –the intensive home treatment function should be available 7 days per week across locally determined extended hours (Extended hours are classed as hours outside of standard hours of operation : Monday to Friday, 9am to 5pm). Methodology: measurement towards 20/21 LTP trajectory Progress towards the target of 35% comprehensive coverage for 2020/21 has been calculated using data provided by ICSs in the Q1 2021/22 PMO quarterly template. Compliance against each component of a comprehensive offer has been calculated to give an overall score of full or partial coverage. Data quality and completeness: • This data reflects a snapshot in time of services in place as of Q1 2021/22. • This data is being used as a proxy for implementation by year end of 2020/21. • This is the first time the PMO template has been used to calculate coverage. • When reading the 20/21 national % it should also be noted that we also acknowledge that services are still developing in line with the LTP trajectories, and therefore will not yet have a fully comprehensive crisis offer for CYP. | I17: Year | J17: Urgent and Emergency Mental Health Care and Intensive Home Treatment for Children and Young People National Survey Report 2019/20 | K17: N/A
B18: CYP(v) | C18: CYP Mental Health CCG spend - excluding learning disabilities and eating disorders | D18: 2021/22 spend by CCGs for CYP MH (excluding learning disabilities and eating disorders). | E18: N/A | F18: N/A | G18: N/A | I18: Year | J18: NHS England Finance financial template returns | K18: N/A
B19: CYP(vi) | C19: CYP Mental Health CCG spend - eating disorders | D19: 2021/22 spend by CCGs for CYP MH eating disorders | E19: N/A | F19: N/A | G19: N/A | H19: There is 1 CCG showing zero in their spend for CYP Eating Disorders services. | I19: Year | J19: NHS England Finance financial template returns | K19: N/A
B20: Perinatal Mental Health
B21: PMH(i.a) | C21: Number of women with at least one attended contact (F2F or video) with a specialist community perinatal mental health service | D21: Number of women with at least one attended contact (F2F or video) with a specialist community perinatal mental health service. | E21: Additional 66,000 women per year by 2023/24 | F21: N/A | G21: N/A | H21: The Long Term Plan committed that at least 66,000 women with moderate to severe or complex perinatal mental health needs will have access to specialist community care, from pre-conception to 24 months after birth, with increased availability of evidence-based psychological therapies. The number of women in contact with specialist community perinatal mental health services includes women who had at least one attended contact (F2F or video). All other consultation mediums are excluded, such as telephone, SMS or email. Women are only counted once nationally in the reporting period, even if receiving multiple episodes of care. The overall national figure may be lower than the sum of the CCG figures, as a woman may access services in more than one CCG area at different times in the year, and would be counted against each CCG. | I21: Rolling 12 months | J21: MHSDS | K21: MHSDS NHS Digital Publication (Indicator MHS91)
B22: PMH(i.b) | C22: Number of women in contact with specialist community perinatal mental health services as a proportion of total births (ONS 2016) | D22: Number of women in contact with specialist community perinatal mental health services as a proportion of total births (ONS 2016). | E22: N/A | F22: Number of women with at least one attended contact with a specialist community perinatal mental health service. | G22: Total number of live births for the baseline year (2016) | H22: This is a broad measure to allow for assessment of progress at a CCG level. There is no formal standard, however the expectation is those in contact with services will be at least 4.5% of 2016 ONS births in 2019/20, at least 7.1 % in 2020/21, and 8.6% in 2021/22. It is recognised that this measure does not take into account multiple births to individual women. | I22: Rolling 12 months | J22: Numerator: MHSDS Denominator: ONS 2016 birth data accessed through NOMIS (official labour market statistics) | K22: ONS Birth Data by CCG
B23: PMH(ii) | C23: Perinatal Mental Health CCG spend | D23: 2021/22 spend by CCGs on community specialist perinatal mental health services. | E23: N/A | F23: N/A | G23: N/A | I23: Year | J23: NHS England Finance financial template returns | K23: N/A
B24: Adult mental health: common mental health problems
B25: IAPT(i.a) | C25: Improving Access to Psychological Therapies access: Number of people entering treatment during reporting period | D25: The number of people that enter NHS funded treatment with IAPT Services in the reporting period. | E25: Individual Rolling Quarter CCG targets | F25: First Treatment | G25: N/A | H25: Quarterly targets for 2021/22 have been set for IAPT Access, at National level these are: Q1:394,431, Q2: 402,290, Q3: 410,149, Q4: 418,008. | I25: Rolling Quarter | J25: IAPT dataset | K25: NHS Digital: IAPT quarterly reports
B26: IAPT(i.b) | C26: IAPT % of all referrals that are for older people 65+ | D26: The proportion of referrals for those aged 65 and over of all referrals. | E26: N/A | F26: The number of referrals for those aged 65 and over. | G26: All referrals | H26: Please note: NHS Digital does not publish a pre-calculated referral proportion therefore these data are calculated from NHS Digital published numerator and denominator data rounded to the nearest five. | I26: Quarter | J26: IAPT dataset | K26: NHS Digital: IAPT quarterly reports
B27: IAPT(ii.a) | C27: IAPT recovery rate: % of people that attended at least 2 treatment contacts and are moving to recovery | D27: The proportion of people who have attended at least two treatment contacts and are moving to recovery (defined as those who at initial assessment achieved "caseness” and at final session did not) in the reporting period (Column name in the IAPT quarterly report: Recovery Rate). | E27: 0.5 | F27: The number of people moving to Recovery. 'Recovery' column in the IAPT quarterly report. | G27: The number of people who completed treatment 'FinishedCourseTreatment' column minus those who were not at caseness prior to treatment 'NotCaseness' column | H27: Please note: NHS Digital publishes a pre-calculated recovery rate using unrounded data that is used at England, STP and CCG level. The IAPT quarterly report does not include a regional aggregation so the regional proportions have been calculated by NHS England as follows: The sum of all the STPs within each region for the Recovery column in the IAPT quarterly report/ the sum of all the STPs within each region for the FinishedCourseTreatment Column minus the NotCaseness column. | I27: Quarter | J27: IAPT dataset | K27: NHS Digital: IAPT quarterly reports
B28: IAPT(ii.b) | C28: IAPT recovery rate for Black, Asian or Minority Ethnic groups (terminology currently under review) | D28: The proportion of people with a Black, Asian or minority ethnicity who have attended at least two treatment contacts and are moving to recovery (defined as those who at initial assessment achieved "caseness” and at final session did not) in the reporting period. (Column name in the IAPT quarterly report: Recovery Rate for variable type: 'BME' terminology currently under review. | E28: 0.5 | F28: The number of people moving to Recovery. 'Recovery' column in the IAPT quarterly report for Black, Asian or Minority Ethnic groups only (terminology currently under review). | G28: The number of people who completed treatment 'FinishedCourseTreatment' column minus those who were not at caseness prior to treatment 'NotCaseness' column - for 'BME' groups only (terminology currently under review). | H28: Please note: NHS Digital publishes a pre-calculated recovery rate using unrounded data that is used at England, STP and CCG level. The IAPT quarterly report does not include a regional aggregation so the regional proportions have been calculated by NHS England as follows: The sum of all the STPs within each region for the Recovery column in the IAPT quarterly report/ the sum of all the STPs within each region for the FinishedCourseTreatment column minus the NotCaseness column, all for Black, Asian or Minority Ethnic groups only (terminology currently under review). | I28: Quarter | J28: IAPT dataset | K28: NHS Digital: IAPT quarterly reports
B29: IAPT(iii.a) | C29: IAPT % of people receiving first treatment appointment within 6 weeks of referral | D29: The proportion of people who finished treatment in the reporting period who had their first treatment appointment within 6 weeks of referral. | E29: 0.75 | F29: FirstTreatment6WeeksFinishedCourse. | G29: FinishedCourseTreatment | H29: Please note: NHS Digital publishes a pre-calculated proportion using unrounded data. The IAPT quarterly report does not include a regional aggregation. The regional proportions have been calculated by NHS England by using the numerator and denominator outlined here, aggregating the STP level figures. | I29: Quarter | J29: IAPT dataset | K29: NHS Digital: IAPT quarterly reports
B30: IAPT(iii.b) | C30: IAPT % of people receiving first treatment appointment within 18 weeks of referral | D30: The proportion of people who finished treatment in the reporting period who had their first treatment appointment within 18 weeks of referral. | E30: 0.95 | F30: FirstTreatment18WeeksFinishedCourse. | G30: FinishedCourseTreatment | H30: Please note: NHS Digital publishes a pre-calculated proportion using unrounded data. The IAPT quarterly report does not include a regional aggregation. The regional proportions have been calculated by NHS England by using the numerator and denominator outlined here, aggregating the STP level figures. | I30: Quarter | J30: IAPT dataset | K30: NHS Digital: IAPT quarterly reports
B31: IAPT(iii.c) | C31: IAPT % of in-treatment pathway waits over 90 days | D31: The proportion of people who waited over 90 days between first and second treatment appointment (where the second treatment appointment occurred within the month) in the reporting period. | E31: N/A | F31: FirstToSecondTreatementOver90days. | G31: SecondTreatment | H31: The primary purpose of this indicator is to measure the number of people who have waited more than 90 days between first and second appointments. There should be no in treatment pathway waits (where the person has an early appointment but is then put on an ‘internal’ waiting list before a full course of treatment starts). There should be appropriate measures taken to reduce the numbers of people who have waited over 90 days for a second appointment. Please note this measure is not published in the quarterly NHS Digital files. Data for each month is available in the monthly activity files - please follow the link in column K. | I31: Quarter | J31: IAPT dataset | K31: Published measure available in monthly IAPT files
B32: IAPT(iv) | C32: IAPT CCG spend | D32: 2021/22 spend by CCGs for Improving Access to Psychological Therapies services. | E32: N/A | F32: N/A | G32: N/A | I32: Year | J32: NHS England Finance financial template returns | K32: N/A
B33: Early intervention in psychosis (EIP)
B34: EIP(i) | C34: % of people who started treatment within 2 weeks of referral - All ages | D34: Proportion of referrals into a service with suspected First Episode Psychosis (FEP) who received their first treatment appointment within 2 weeks of referral in the reporting period. | E34: 0.6 | F34: Referrals into a service with a suspected FEP which entered treatment in the reporting period who waited two weeks or less to enter treatment. | G34: Referrals into a service with a suspected FEP which entered treatment in the reporting period | H34: Referrals entering treatment are those who have had a first contact with an Early Intervention for Psychosis team and have been assigned to a care coordinator. This is the number of referrals with a 'clock stop' for waiting times in the reporting period. This measure is broken down to show those who waited two weeks or less to enter treatment and those that waited more than two weeks. The standard increases from 50% in 2017/18 to 60% in 2020/21. Please note that from Quarter 3 2019/20 performance against this standard is measured through the Mental Health Services Dataset (MHSDS). Prior to this a temporary, manual aggregate collection was in place while data coverage and completeness for the patient level MHSDS improved. The data quality of the MHSDS data collection is now considered robust and therefore the temporary aggregate collection has been retired. NHS Digital publishes this percentage at CCG and National level only. Data published in this dashboard at STP and Regional geographies, are calculated by NHS England using patient level data to avoid rounding error. | I34: Quarter | J34: MHSDS | K34: NHS Digital: MHSDS Access and Waiting Times
B35: EIP(i.a) | C35: % of services graded at level 2 | D35: Proportion of services graded at level 2 in the annual EIP self-assessment of specialist EIP provision in line with NICE recommendations. | E35: 1 | F35: The number of EIP services graded at level 2 in the 2020/21 reporting period. | G35: The number of EIP services in the 2020/21 reporting period | H35: In implementing the five year forward view for mental health NHS England set out a trajectory for delivery of the EIP standard. The standard is ‘two-pronged’ and both conditions must be met for the standard to be deemed to have been achieved: 1. a maximum wait of two weeks from referral to start of treatment; and 2. treatment delivered in accordance with NICE guidelines and quality standards for psychosis and schizophrenia – either in children and young people CG155 (2013) and QS102 or in adults CG178 (2014) and QS80. This indicator measures delivery of the second part of the standard. The trajectory for 2019/20 was for all services to be graded at level 2. | I35: Annual | J35: National Clinical Audit of Psychosis | K35: N/A
B36: EIP (i.b) | C36: % of services graded at level 3 or above | D36: Proportion of services graded at level 3 or above in the annual assessment of specialist EIP provision in line with NICE recommendations. | E36: 0.5 | F36: The number of EIP services graded at level 3 or above in the 2020/21 reporting period. | G36: The number of EIP services in the 2020/21 reporting period | H36: In implementing the five year forward view for mental health NHS England set out a trajectory for delivery of the EIP standard. The standard is ‘two-pronged’ and both conditions must be met for the standard to be deemed to have been achieved: 1. A maximum wait of two weeks from referral to start of treatment; and 2. Treatment delivered in accordance with NICE guidelines and quality standards for psychosis and schizophrenia – either in children and young people CG155 (2013) and QS102 or in adults CG178 (2014) and QS80. This indicator measures delivery of the second part of the standard. The trajectory for 2020/21 was for 60% of services to be graded at level 3 or above by the end of the year. | I36: Annual | J36: National Clinical Audit of Psychosis | K36: N/A
B37: EIP(ii) | C37: EIP CCG spend | D37: 2021/22 spend by CCGs for EIP teams and services. | E37: N/A | F37: N/A | G37: N/A | H37: There is 1 CCG showing zero in their spend for Early Intervention in Psychosis services. | I37: Year | J37: NHS England Finance financial template returns | K37: N/A
B38: Employment Support
B39: ES(i) | C39: Number of people accessing Individual Placement Support (IPS) services | D39: The number of secondary mental health service users who accessed an IPS service during 2020/21 for the purposes of receiving employment support. | E39: LTP target for 2021/22: 32,000 to be assessed in Q4 | F39: N/A | G39: N/A | H39: From Q1 21/22, quarterly data from the MHSDS is used to monitor delivery against the target. The data is not complete and work is underway to ensure that all activity is captured in the MHSDS. Data relates only to IPS services (not generic employment support services) In the Q4 2020/21 version of the dashboard year end data from an NHS England IPS stocktake was included, which the MHSDS data isn’t directly comparable to. STP allocation is from the geographical location of the service. Data was collected at aggregate service level, not individual service user record level. | I39: Cumulative financial year to date by quarter | J39: MHSDS | K39: N/A
B40: Physical health checks for people with severe mental illness (SMI)
B41: PHSMI(i) | C41: Number of physical health checks for people with severe mental illness (SMI) delivered in any setting (in 18/19, it was in a primary care setting only) | D41: The number of people on the General Practice (GP) SMI register receiving a full physical health check in any setting in the preceding 12 months (for 18/19, it was in a primary care setting only). | E41: N/A | F41: N/A | G41: N/A | H41: The count of the number of people on the General Practice (GP) SMI register at the end of the reporting period that have had a full physical health check in the preceding 12 months. A full physical health check includes 6 components: a measurement of weight, a blood pressure and pulse check, a blood lipid including cholesterol test, a blood glucose test, an assessment of alcohol consumption, an assessment of smoking status. In order to demonstrate data completeness the percentage of CCGs to have supplied data, and a comparison of the reported denominator with an expected denominator calculated from published QOF mental health register information is included in the publication. The incompleteness of the data should be considered when interpreting results. Information is also published to demonstrate performance against the individual parts of the full check. | I41: Quarterly | J41: NHS England | K41: NHS England: Physical Health Checks for people with Severe Mental Illness
B42: Crisis and acute care and use of the Mental Health Act (MHA)
B43: CR(i.a) | C43: % Crisis services which are open access, including for self-referral | D43: % of teams serving the CCG which are open access. This means patients can self refer (either directly to CRHTT or via an alternative single point of access) and referrals are also accepted from families & friends, members of the public and any system partner who may need to access specialist urgent & emergency mental health support including police, ambulance, NHS111, GPs, A&E, voluntary sector. | E43: N/A | F43: Number of teams serving the region which are open access. | G43: Number of teams serving the Region | I43: Annually | J43: National survey | K43: N/A
B44: CR(i.b) | C44: % Adult crisis services operating 24/7 including face to face response | E44: N/A | F44: Number of teams serving the region which are operating 24/7 Adult crisis services including face to face response. | G44: Number of teams serving the Region | I44: Annually | J44: National survey | K44: N/A
B45: CR(i.c) | C45: % Adult home treatment service staffed in line with recommended levels | D45: This is the staffing reported via 2020/21 national survey of crisis resolution and home treatment teams. It includes the full staffing mix e.g. medical / nursing / social workers / psychologists / admin / peer support /other. | E45: N/A | F45: Number of teams in line with recommended Staffing levels reported via national survey. | G45: Number of teams serving the Region | I45: Annually | J45: National survey | K45: N/A
B46: CR(i.d) | C46: % Adult crisis services that respond to older adults | E46: N/A | F46: Number of teams serving the region that respond to older adults. | G46: Number of teams serving the Region | I46: Annually | J46: National survey | K46: N/A
C47: Number of Referrals for age 18+ year-olds to NHS community-based crisis and acute services (non-inpatient)
B48: CR(ii) | C48: Adult community crisis care spend | D48: 2021/22 spend for crisis resolution home treatment teams. | E48: N/A | F48: N/A | G48: N/A | H48: Some CCGs have had difficulties extracting costs for specific services that they commission because of block or integrated contract arrangements. As a result there are some CCGs that show zero spend for mental health programmes, which is being reported as N/A in this dashboard. 2 CCGs returned zero in their planned spend for crisis resolution home treatment teams. | I48: Year | J48: NHS England Finance financial template returns | K48: N/A
B49: CR(iii.a) | C49: Total number of inappropriate Out of Area bed days | D49: The total number of days in which patients have been placed out of area due to unavailable beds in their usual network. | E49: Zero | F49: N/A | G49: N/A | H49: An Out of Area Placement is when a person with assessed acute mental health needs who requires adult mental health acute inpatient care is admitted to a unit that does not form part of their usual local network of services. By this we mean an inpatient unit that does not usually admit people living in the catchment of the person’s local community mental health service, and where the person cannot be visited regularly by their care co-ordinator to ensure continuity of care and effective discharge planning. An 'Inappropriate' out of area placement is one that is solely or primarily necessitated because of the unavailability of a local acute bed will not meet the criteria for being appropriate. Data is currently being collected through the Clinical Audit Platform. This will be until the data becomes aligned and available through the MHSDS extract which is the chosen mechanism for the long term collection of this data. | I49: Quarter | J49: Out of Area Placements in Mental Health - Clinical Audit Platform (CAP) NHS Digital | K49: NHS Digital Publications: Out of Area Placements
B50: CR(iii.b) | C50: Number of inappropriate Mental Health Out of Area Placements started in the period | D50: The total number of patients who have started a placement out of area due to unavailable beds in their usual network. | E50: Zero | F50: N/A | G50: N/A | I50: Quarter | J50: Out of Area Placements in Mental Health - Clinical Audit Platform (CAP) NHS Digital | K50: NHS Digital Publications: Out of Area Placements
B51: CR(iv.a) | C51: Number of detentions under the Mental Health Act | D51: The number of detentions under the Mental Health Act 1983 (includes All Providers). | E51: N/A | F51: N/A | G51: N/A | H51: This is the fourth annual MHA report by NHS Digital using Mental Health Services Data Set (MHSDS) data as the official source of MHA statistics. In 2016-17, the data were sourced from the Mental Health Services Data Set for the first time (data on uses of the Act in acute settings were collected via the MHA Acute collection in 2016-17 and 2017-18, and then from the Emergency Care Data Set (ECDS) from 2019-20 onwards). Because this is a relatively new data collection there were significant data quality and completeness issues especially in the first annual MHA report for 2016/17. While this data seems to indicate an increase since 2016/17, this is likely to be due to improvements in MHSDS data completeness. Further analysis and improved data quality is required to improve reporting of detentions on admission and following admission in ECDS. The count of detentions does not include uses of Sections 4, 5(2) & 5(4) or 135 & 136. | I51: Year | J51: Mental Health Act Statistics, NHS Digital | K51: NHS Digital Publications: Mental Health Act Statistics
B52: CR(iv.b) | C52: Standardised rate of detentions for people detained under the MHA from a White British ethnicity | D52: Standardised rate of detentions under the Mental Health Act 1983 per 100,000 population for people from a White British ethnicity. | E52: N/A | F52: The number of people with a valid ethnicity code of "Asian or Asian British", "Black or Black British", "Mixed" and all other non "White British" ethnic groups that have been detained under the mental health act (terminology currently under review). | G52: The total number of detentions under the mental health act | H52: As for CR(iv.a). Detentions data are incomplete in 2020-21 so the counts and rates shown are lower than the true figures. However, broad comparisons between groups are valid. Population figures are from the 2011 Census as ONS mid-year estimates do not include updates for ethnicity. | I52: Year | J52: Mental Health Act Statistics, NHS Digital | K52: NHS Digital Publications: Mental Health Act Statistics
B53: CR(iv.c) | C53: Standardised rate of detentions for people detained under the MHA from a Black or Black British ethnicity | D53: Standardised rate of detentions under the Mental Health Act 1983 per 100,000 population for people from a Black or Black British ethnicity. | E53: N/A | H53: As for CR(iv.b). | I53: Year | J53: Mental Health Act Statistics, NHS Digital | K53: NHS Digital Publications: Mental Health Act Statistics
B54: CR(iv.d) | C54: Number of Section 136 Place of Safety orders to hospital | D54: The number of Section 136 Place of Safety orders (All Providers). | E54: N/A | H54: The figures for Place of Safety orders only include those where the ‘place of safety’ was a hospital. Sources: MHSDS/MHA Acute (2016-17 to 2017-18), MHSDS/ECDS (2018-19, to 2020-21) - NHS Digital. | I54: Year | J54: Mental Health Act Statistics, NHS Digital | K54: NHS Digital Publications: Mental Health Act Statistics
B55: CR(v.a) | C55: Number of section 136 detentions taken to police cells as a place of safety | D55: The number of section 136 detentions taken to police cells as a place of safety in England. | E55: N/A | F55: N/A | G55: N/A | H55: This data was due to be published on 28th October 2021, however this has been delayed until 18th November 2021 and will therefore be updated in the Q2 iteration of the dashboard. | I55: Year | J55: Home Office | K55: Use of Section 136 of the Mental Health Act 1983 in 2019-20
B56: CR(v.b) | C56: Number of section 136 detentions taken to police cells as a place of safety that are under 18 | D56: The number of section 136 detentions taken to police cells as a place of safety in England that are under 18. | E56: N/A | F56: N/A | G56: N/A | H56: This data was due to be published on 28th October 2021, however this has been delayed until 18th November 2021 and will therefore be updated in the Q2 iteration of the dashboard. | I56: Year | J56: Home Office | K56: Use of Section 136 of the Mental Health Act 1983 in 2019-20
B57: CR(vii.a) | C57: Adults in acute mental health beds Length of Stay rate (over 60 days) | D57: Rate per 100,000 population of people in adult acute mental health beds with a length of stay over 60 days. | E57: 8 | F57: Number of people for a given organisation discharged from an adult acute inpatient bed with a hospital spell over 60 days (calculated from the point of admission to the point of discharge). | G57: ONS population data (for 18-64 year-olds) | I57: Rolling Quarter | J57: MHSDS | K57: MHSDS NHS Digital Publication
B58: CR(vii.b) | C58: Older Adults in acute mental health beds Length of Stay rate (over 90 days) | D58: Rate per 100,000 population of people in adult acute mental health beds with a length of stay over 90 days. | E58: 10.75 | F58: Number of people for a given organisation discharged from an older adult acute inpatient bed with a hospital spell over 90 days (calculated from the point of admission to the point of discharge). | G58: ONS population data (for people aged 65+) | I58: Rolling Quarter | J58: MHSDS | K58: MHSDS NHS Digital Publication
B59: Acute hospital mental health liaison
B60: AC(i) | C60: % of acute hospitals meeting the ‘core 24’ service standard | D60: The proportion of acute hospitals meeting all three core 24 criteria. | E60: 50% by the end of 2020/21 (20% in 2018/19) | F60: The number of acute hospitals meeting all three core 24 criteria. | G60: The total number of acute hospitals with complete data | H60: The baseline for this indicator was set in 2015 at 7%. It is intended that further collections will be undertaken to provide an annual view of progress on this indicator. A liaison service is considered to be operating at the Core 24 model if: 1. The team is commissioned to operate as an on-site, distinct service on a 24/7 basis; 2. The team is commissioned to deliver care in line with the recommended response times following referral (1 hour for emergency department referrals, 24 hours for urgent ward referrals); 3. The team is resourced in line with or close to the recommended liaison mental health staffing levels and skill-mix to operate effectively and sustainably on a 24/7 rota. Data available at STP, Regional and National level. This data will be updated following the Sixth national survey, expected to take place by the end of 2021/22. | I60: Annually | J60: Fifth Survey of Liaison Psychiatry in England | K60: N/A
B61: AC(i.a) | C61: % of teams that are open/available 24/7 | D61: The proportion of acute hospital liaison team that are open / available 24/7. | E61: N/A | F61: N/A | G61: N/A | H61: This data will be updated following the Sixth national survey, expected to take place by the end of 2021/22. | I61: Annually | J61: Fifth Survey of Liaison Psychiatry in England | K61: N/A
B62: AC(ii) | C62: Mental health liaison staffing levels | D62: This is the total WTE staffing reported via the national mental health liaison survey. | E62: N/A | F62: N/A | G62: N/A | H62: Data available at STP, Regional and National level. This data will be updated following the Sixth national survey, expected to take place by the end of 2021/22. | I62: Annually | J62: Fifth Survey of Liaison Psychiatry in England | K62: N/A
B63: AC(iii) | C63: A&E and Ward Liaison mental health spend | D63: 2021/22 spend for A&E and Ward Liaison mental health services. | E63: N/A | F63: N/A | G63: N/A | I63: Year | J63: NHS England Finance financial template returns | K63: N/A
B64: Health & Justice
B65: HJ(i) | C65: Number of mental health secure transfers within 2 weeks of acceptance under the MHA- Age:18+ | D65: The number of mental health secure transfers for patients aged 18 and over within 2 weeks of acceptance under the MHA. | E65: N/A | F65: N/A | G65: N/A | I65: Quarter | J65: Health and Justice Indicators of Performance (HJIP) | K65: N/A
B66: HJ(ii.c) | C66: Number of patient assessments, for MH issues, during the reporting period | D66: The number of initial MH assessments completed, during the reporting period. | E66: N/A | F66: The number of initial MH assessments completed, during the reporting period. | I66: Quarter | J66: Health and Justice Indicators of Performance (HJIP) | K66: N/A
B67: HJ(ii.d) | C67: Number of patient treatments for MH issues, during the reporting period | D67: The number of episodes of structured treatment activity delivered (excluding initial assessments), during the reporting period. | E67: N/A | F67: The number of episodes of structured treatment activity delivered (excluding initial assessments), during the reporting period. | I67: Quarter | J67: Health and Justice Indicators of Performance (HJIP) | K67: N/A
B68: Suicide prevention
B69: SP(i) | C69: Suicide: age-standardised death rate per 100,000 population - Age:10+ | D69: The rolling three year aggregate age-standardised mortality rate from suicide and injury of undetermined intent per 100,000 population. | E69: N/A | F69: Number of deaths from suicide in the reporting period. In England and Wales, suicide is defined as deaths given an underlying cause of intentional self-harm or injury/poisoning of undetermined intent. Deaths were selected using the final underlying cause of death. International Classification of Diseases (ICD) codes used: •Intentional self-harm (X60-X84 ) •Injury/poisoning of undetermined intent (Y10-Y34) Numbers exclude injury/poisoning of undetermined intent for persons aged 10-14. Numbers exclude Y33.9 where the coroner's verdict was pending in England and Wales for the years 2001-2006. From 2007 onwards, deaths which were previously coded to Y33.9 are coded to U50.9. | G69: The resident population divided by 100,000 | H69: Figures are for suicides of persons aged 10 years and over. This same age band was used as a lower limit for the underlying population dataset used to calculate rates. The rates are standardised 100,000 population to the 2013 European Standard Population. Age-standardised rates are used to allow comparison between populations which may contain different proportions of people of different ages. | I69: Rolling three year aggregate | J69: Office for National Statistics | K69: ONS CCG level age standardised suicide rates
K70: ONS STP level age standardised suicide rates
B71: SP(ii.a) | C71: Hospital admissions for self-harm: age standardised rate per 100,000 - Age: 10-24 | D71: Directly standardised rate of finished admission episodes for self-harm per 100,000 population aged 10-24 years. | E71: N/A | F71: Number of finished admission episodes in children aged between 10 and 24 years for intentional self-harm in the reporting period. Self-harm is defined as intentional self-harm, using the International Classification of Diseases (ICD) external cause codes X60-X84 which include: •Intentional self poisoning (X60 to X69 inclusive); •Intentional self harm by hanging, drowning or jumping (X70, X71 and X80); • Intentional self harm by firearm/explosive (X72 to X75 inclusive); • Intentional self harm using other implement (X78 and X79) • Intentional self harm other (X76, X77 and X81 to X84). This definition does not include events of undetermined intent. | G71: Numbers of patients registered at a GP Practice aged between 10 to 24 divided by 100,000. | H71: Directly standardised rate per 100,000 population calculated using the revised European Standard Population 2013 (2013 ESP). For more information on the methodology please see ONS publication below: | I71: Quarter | J71: Numerator: Hospital Episode Statistics (HES), NHS Digital Denominator: Number of patients registered at a GP practice, NHS Digital | K71: Numerator: NHS Digital: HES
H72: Revised European Standard Population 2013 | K72: Denominator: NHS Digital: GP registered population
B73: SP(ii.b) | C73: Hospital admissions for self-harm: age standardised rate per 100,000 - Age:25+ | D73: Directly standardised rate of finished admission episodes for self-harm per 100,000 population aged 25+. | E73: N/A | F73: Number of finished admission episodes in adults aged 25 and over for intentional self-harm in the reporting period. See SP(ii.a) for self-harm definition. | G73: Numbers of patients registered at a GP Practice aged 25 and over divided by 100,000. | H73: Directly standardised rate per 100,000 population calculated using the revised European Standard Population 2013 (2013 ESP). For more information on the methodology please see ONS publication below: | I73: Quarter | J73: Numerator: Hospital Episode Statistics (HES), NHS Digital | K73: Numerator: NHS Digital: HES
H74: Revised European Standard Population 2013 | J74: Denominator: Number of patients registered at a GP practice, NHS Digital | K74: Denominator: NHS Digital: GP registered population
B75: SP(iii.c) | C75: Proportion of discharges from hospital followed up within 72 hours | D75: The rolling three month number of patients discharged from adult acute beds that were eligible for 72 hour follow up in the reporting period as a proportion of all adult acute bed discharges. | E75: N/A | F75: Number of discharges from adult acute beds eligible for 72 hour follow up in the reporting period. | G75: Total number of discharges from adult acute beds followed up within 72 hours in the reporting period. | H75: This measure is not published by NHS Digital quarterly so has been calculated, with numbers rounded to the nearest percentage point. The national proportion includes activity for records with an unknown CCG. | I75: Quarter | J75: MHSDS | K75: MHSDS NHS Digital Publication
B76: Meeting commitment to increase mental health funding
B77: MHF(i) | C77: CCG spend on MH as a % of CCG allocations | D77: Mental health spend (including learning disabilities and dementia) as a proportion of overall CCG allocation in the relevant year. | E77: N/A | F77: Total CCG mental health spend (including learning disabilities and dementia). | G77: Total CCG allocation (excludes primary care co-commissioning and administration specific allocations) | H77: This indicator shows for the relevant financial year, the CCG spend on mental health as a percentage of their overall allocations. For all financial years, the overall allocation excludes primary care co-commissioning and administration specific allocations. | I77: Year | J77: NHS England Finance financial template returns | K77: N/A
B78: MHF(ii.a) and MHF (ii.b) | C78: Total mental health spend by financial year | D78: Total mental health spend by financial year (including learning disabilities and dementia). | E78: N/A | F78: N/A | G78: N/A | H78: The total national NHS spend on mental health services is made up of both CCG and specialised commissioning spend. It does not include MH spend in primary care or on central non-commissioning. Spend on specialised commissioning covers a number of specialised mental health services that are delivered nationally and regionally by NHS England. The funding for these services is held separately from CCG budgets, which is why it’s shown separately and is only reported at a national level. This is currently unavailable in Q1 2021/22. | I78: Year | J78: CCG spend: NHS England Finance financial template returns Specialised commissioning spend: Specialised Commissioning hub templates | K78: N/A
B79: MHF(iii) | C79: Mental Health Investment Standard achieved? | D79: This measure shows whether the MH investment standard was achieved in the relevant financial year by CCG and nationally. | E79: N/A | F79: Annual increase in CCG mental health spend. | G79: Annual overall increase in total CCG allocation | H79: CCGs must continue to increase investment in mental health services, in line with the Mental Health Investment Standard (MHIS). The MHIS calculation does not include planned or actual spend on learning disabilities and dementia, which is included in the total mental health spend presented here. Specialised commissioning spend is also not included in the mental health investment standard compliance calculation. | I79: Year | J79: NHS England Finance financial template returns | K79: N/A

Sheet Dashboard
O3: =TypeSelector -> 1
O5: =LEFT(Selected_Org_Name,3) -> Eng
O6: =CCGName -> England
O7: =IF(TypeSelector=3,"Select STP","Select CCG") -> Select CCG
O8: ="Overview for "&Selected_Org_Name -> Overview for England
O10: =OFFSET('LKP - Organisation codes'!$A$2,MATCH(Selected_Org_Name,'LKP - Organisation codes'!Org_list,0),) -> EN
D12: Click on the column headings below for a brief description of each column - see Guide for further information
B13: Code | C13: Indicator* - Please see the Metadata tab for further details on the indicators | D13: Reporting period | E13: Indicator value | F13: Standard met | G13: Trend ** | H13: Better is… | I13: 12 Month % change **** | J13: 24 Month % change **** | K13: Range ***
B14: Children and Young people (CYP) Mental Health | D14: ='Calc - Sparklines'!D11 -> 0 | E14: =IFERROR(IF('Calc - Sparklines'!T11="","",'Calc - Sparklines'!T11),"N/A") -> 0 | G14: ='Calc - Sparklines'!X11 -> N/A
B15: CYP(i.a) | C15: No of CYP accessing support by NHS funded community services (at least one contact) + (rolling 12 months) | D15: ='Calc - Sparklines'!D12 -> Q1 2021/22 | E15: =IFERROR(IF('Calc - Sparklines'!T12="","",'Calc - Sparklines'!T12),"N/A") -> 605012 | F15: N/A | G15: ='Calc - Sparklines'!X12 -> N/A | H15: ▲ | I15: ='Calc - Sparklines'!AH12 ->  | J15: ='Calc - Sparklines'!AI12 ->  | K15: N/A
B16: CYP(ii.a) | C16: % of CYP with eating disorders seen within 1 week (urgent) + | D16: ='Calc - Sparklines'!D13 -> Q1 2021/22 | E16: =IFERROR(IF('Calc - Sparklines'!T13="","",'Calc - Sparklines'!T13),"N/A") -> 0.6103 | F16: =E16 -> 0.6103 | G16: ='Calc - Sparklines'!X13 ->  | H16: ▲ | I16: ='Calc - Sparklines'!AH13 -> -0.2677487805 | J16: ='Calc - Sparklines'!AI13 -> -0.1664295597 | K16: =IF($O$3=1,"Chart available at STP and CCG level", IF($O$3=2,"Chart available at STP and CCG level", IF($O$3=3,"", IF($O$3=4,IF(E16>0,E16,"#N/A"),"")))) -> Chart available at STP and CCG level
B17: CYP(ii.b) | C17: % of CYP with eating disorders seen within 4 weeks (routine) + | D17: ='Calc - Sparklines'!D14 -> Q1 2021/22 | E17: =IFERROR(IF('Calc - Sparklines'!T14="","",'Calc - Sparklines'!T14),"N/A") -> 0.7265 | F17: =E17 -> 0.7265 | G17: ='Calc - Sparklines'!X14 ->  | H17: ▲ | I17: ='Calc - Sparklines'!AH14 -> -0.1413544915 | J17: ='Calc - Sparklines'!AI14 -> -0.1078004513 | K17: =IF($O$3=1,"Chart available at STP and CCG level", IF($O$3=2,"Chart available at STP and CCG level", IF($O$3=3,"", IF($O$3=4,IF(E17>0,E17,"#N/A"),"")))) -> Chart available at STP and CCG level
B18: CYP(iii.a) | C18: Number of bed days for CYP under 18 in Child and Adolescent Mental Health Services tier 4 wards ⱡ ⱡ | D18: ='Calc - Sparklines'!D15 -> Q1 2021/22 | E18: =IFERROR(IF('Calc - Sparklines'!T15="","",'Calc - Sparklines'!T15),"N/A") -> 84426 | F18: N/A | G18: ='Calc - Sparklines'!X15 ->  | H18: N/A | I18: ='Calc - Sparklines'!AH15 -> 0.0134200797 | J18: ='Calc - Sparklines'!AI15 -> -0.2721582827 | K18: N/A
B19: CYP(iii.b) | C19: Number of admissions of CYP under 18 in Child and Adolescent Mental Health Services tier 4 wards ⱡ ⱡ | D19: ='Calc - Sparklines'!D16 -> Q1 2021/22 | E19: =IFERROR(IF('Calc - Sparklines'!T16="","",'Calc - Sparklines'!T16),"N/A") -> 758 | F19: N/A | G19: ='Calc - Sparklines'!X16 ->  | H19: N/A | I19: ='Calc - Sparklines'!AH16 -> -0.123699422 | J19: ='Calc - Sparklines'!AI16 -> -0.3033088235 | K19: N/A
B20: CYP(iv.a) | C20: Bed days of CYP under 18 in adult in-patient wards <> | D20: ='Calc - Sparklines'!D17 -> Q1 2021/22 | E20: =IFERROR(IF('Calc - Sparklines'!T17="","",'Calc - Sparklines'!T17),"N/A") -> 1826 | F20: N/A | G20: ='Calc - Sparklines'!X17 ->  | H20: ▼ | I20: ='Calc - Sparklines'!AH17 ->  | J20: ='Calc - Sparklines'!AI17 ->  | K20: N/A
B21: CYP(iv.b) | C21: Number of CYP under 18 in adult in-patient wards | D21: ='Calc - Sparklines'!D18 -> Q1 2021/22 | E21: =IFERROR(IF('Calc - Sparklines'!T18="","",'Calc - Sparklines'!T18),"N/A") -> 96 | F21: N/A | G21: ='Calc - Sparklines'!X18 ->  | H21: ▼ | I21: ='Calc - Sparklines'!AH18 ->  | J21: ='Calc - Sparklines'!AI18 ->  | K21: N/A
B22: CYP(vii) | C22: CYP Crisis Long Term Plan ambition <><> | D22: ='Calc - Sparklines'!D19 -> 2020/21 | E22: =IFERROR(IF('Calc - Sparklines'!T19="","",'Calc - Sparklines'!T19),"N/A") -> 0.67 | F22: =E22 -> 0.67 | G22: ='Calc - Sparklines'!X19 -> N/A | H22: ▲ | I22: ='Calc - Sparklines'!AH19 ->  | J22: ='Calc - Sparklines'!AI19 ->  | K22: =IF($O$3=1,"N/A", IF($O$3=2,"National measure only", IF($O$3=3,"National measure only", IF($O$3=4,"National measure only","")))) -> N/A
B23: CYP(v) | C23: CYP Mental Health CCG spend - excluding learning disabilities and eating disorders | D23: ='Calc - Sparklines'!D20 -> 2021/22 planned | E23: =IFERROR(IF('Calc - Sparklines'!T20="","",'Calc - Sparklines'!T20),"N/A") -> 929248180.3 | F23: N/A | G23: ='Calc - Sparklines'!X20 -> N/A | H23: N/A | I23: Only relevant for actual spend | K23: N/A
B24: CYP(vi) | C24: CYP Mental Health CCG spend - eating disorders | D24: ='Calc - Sparklines'!D21 -> 2021/22 planned | E24: =IFERROR(IF('Calc - Sparklines'!T21="","",'Calc - Sparklines'!T21),"N/A") -> 67806015.93 | F24: N/A | G24: ='Calc - Sparklines'!X21 -> N/A | H24: N/A | I24: Only relevant for actual spend | K24: N/A
B25: Perinatal Mental Health | D25: ='Calc - Sparklines'!D26 -> 0 | E25: =IFERROR(IF('Calc - Sparklines'!T26="","",'Calc - Sparklines'!T26),"N/A") -> N/A | G25: ='Calc - Sparklines'!X26 -> N/A
B26: PMH(i.a) | C26: Number of women accessing specialist community perinatal mental health services (rolling 12 months) | D26: ='Calc - Sparklines'!D23 -> Q1 2021/22 | E26: =IFERROR(IF('Calc - Sparklines'!T23="","",'Calc - Sparklines'!T23),"N/A") -> 35997 | F26: N/A | G26: ='Calc - Sparklines'!X23 ->  | H26: ▲ | I26: ='Calc - Sparklines'!AH23 -> 0.2035507707 | J26: ='Calc - Sparklines'!AI23 ->  | K26: N/A
B27: PMH(i.b) | C27: Number of women accessing specialist community perinatal mental health services as a proportion of live births (2016 ONS) (rolling 12 months) | D27: ='Calc - Sparklines'!D24 -> Q1 2021/22 | E27: =IFERROR(IF('Calc - Sparklines'!T24="","",'Calc - Sparklines'!T24),"N/A") -> 0.054 | F27: N/A | G27: ='Calc - Sparklines'!X24 ->  | H27: ▲ | I27: ='Calc - Sparklines'!AH24 -> 0.009 | J27: ='Calc - Sparklines'!AI24 ->  | K27: =IF($O$3=1,"Chart available at STP and CCG level", IF($O$3=2,"Chart available at STP and CCG level", IF($O$3=3,"", IF($O$3=4,"","")))) -> Chart available at STP and CCG level
B28: PMH(ii) | C28: Specialist Community Perinatal Mental Health CCG spend | D28: ='Calc - Sparklines'!D25 -> 2021/22 planned | E28: =IFERROR(IF('Calc - Sparklines'!T25="","",'Calc - Sparklines'!T25),"N/A") -> 124878246.9 | F28: N/A | G28: ='Calc - Sparklines'!X25 -> N/A | H28: N/A | I28: Only relevant for actual spend | K28: N/A
B29: Adult mental health: common mental health problems (Improving Access to Psychological Therapies services)
B30: IAPT(i.a) | C30: IAPT access: number of people entering NHS funded treatment during reporting period ++ | D30: ='Calc - Sparklines'!D27 -> Q1 2021/22 | E30: =IFERROR(IF('Calc - Sparklines'!T27="","",'Calc - Sparklines'!T27),"N/A") -> 316573 | F30: =E30 -> 316573 | G30: ='Calc - Sparklines'!X27 ->  | H30: ▲ | I30: ='Calc - Sparklines'!AH27 -> 0.5982723454 | J30: ='Calc - Sparklines'!AI27 -> 0.09320676009 | K30: N/A | O30: =SUMIFS('IAPT(i_a) Targets'!AH:AH,'IAPT(i_a) Targets'!C:C,Selected_Org_Code) -> 394430.9688
B31: IAPT(i.b) | C31: IAPT % of all referrals that are for older people 65+ ++ | D31: ='Calc - Sparklines'!D28 -> Q1 2021/22 | E31: =IFERROR(IF('Calc - Sparklines'!T28="","",'Calc - Sparklines'!T28),"N/A") -> 0.05198046979 | F31: N/A | G31: ='Calc - Sparklines'!X28 ->  | H31: ▲ | I31: ='Calc - Sparklines'!AH28 -> 0.0006279837363 | J31: ='Calc - Sparklines'!AI28 -> -0.01194594529 | K31: =IF($O$3=1,"Chart available at STP and CCG level", IF($O$3=2,"Chart available at STP and CCG level", IF($O$3=3,"", IF($O$3=4,"","")))) -> Chart available at STP and CCG level
B32: IAPT(ii.a) | C32: IAPT recovery rate: % of people that attended at least 2 treatment contacts and are moving to recovery ++ | D32: ='Calc - Sparklines'!D29 -> Q1 2021/22 | E32: =IFERROR(IF('Calc - Sparklines'!T29="","",'Calc - Sparklines'!T29),"N/A") -> 0.507 | F32: =E32 -> 0.507 | G32: ='Calc - Sparklines'!X29 ->  | H32: ▲ | I32: ='Calc - Sparklines'!AH29 -> 0.01122538757 | J32: ='Calc - Sparklines'!AI29 -> -0.01453659821 | K32: =IF($O$3=1,"Chart available at STP and CCG level", IF($O$3=2,"Chart available at STP and CCG level", IF($O$3=3,"", IF($O$3=4,"","")))) -> Chart available at STP and CCG level
B33: IAPT(ii.b) | C33: IAPT recovery rate for Black, Asian or Minority Ethnic groups (terminology under review) ++ | D33: ='Calc - Sparklines'!D30 -> Q1 2021/22 | E33: =IFERROR(IF('Calc - Sparklines'!T30="","",'Calc - Sparklines'!T30),"N/A") -> 0.5 | F33: =E33 -> 0.5 | G33: ='Calc - Sparklines'!X30 ->  | H33: ▲ | I33: ='Calc - Sparklines'!AH30 -> 0.025 | J33: ='Calc - Sparklines'!AI30 -> 0.005 | K33: =IF($O$3=1,"Chart available at STP and CCG level", IF($O$3=2,"Chart available at STP and CCG level", IF($O$3=3,"", IF($O$3=4,"","")))) -> Chart available at STP and CCG level
B34: IAPT(iii.a) | C34: IAPT % of people receiving first treatment appointment within 6 weeks of referral ++ | D34: ='Calc - Sparklines'!D31 -> Q1 2021/22 | E34: =IFERROR(IF('Calc - Sparklines'!T31="","",'Calc - Sparklines'!T31),"N/A") -> 0.926 | F34: =E34 -> 0.926 | G34: ='Calc - Sparklines'!X31 ->  | H34: ▲ | I34: ='Calc - Sparklines'!AH31 -> 0.06026979065 | J34: ='Calc - Sparklines'!AI31 -> 0.05029504395 | K34: =IF($O$3=1,"Chart available at STP and CCG level", IF($O$3=2,"Chart available at STP and CCG level", IF($O$3=3,"", IF($O$3=4,"","")))) -> Chart available at STP and CCG level
B35: IAPT(iii.b) | C35: IAPT % of people receiving first treatment appointment within 18 weeks of referral ++ | D35: ='Calc - Sparklines'!D32 -> Q1 2021/22 | E35: =IFERROR(IF('Calc - Sparklines'!T32="","",'Calc - Sparklines'!T32),"N/A") -> 0.988 | F35: =E35 -> 0.988 | G35: ='Calc - Sparklines'!X32 ->  | H35: ▲ | I35: ='Calc - Sparklines'!AH32 -> 0.01364193726 | J35: ='Calc - Sparklines'!AI32 -> 0.001738861084 | K35: =IF($O$3=1,"Chart available at STP and CCG level", IF($O$3=2,"Chart available at STP and CCG level", IF($O$3=3,"", IF($O$3=4,"","")))) -> Chart available at STP and CCG level
B36: IAPT(iii.c) | C36: IAPT % of in-treatment pathway waits over 90 days ++ | D36: ='Calc - Sparklines'!D33 -> Q1 2021/22 | E36: =IFERROR(IF('Calc - Sparklines'!T33="","",'Calc - Sparklines'!T33),"N/A") -> 0.1323342396 | F36: N/A | G36: ='Calc - Sparklines'!X33 ->  | H36: ▼ | I36: ='Calc - Sparklines'!AH33 -> -0.1039810299 | J36: ='Calc - Sparklines'!AI33 -> -0.06011121022 | K36: =IF($O$3=1,"Chart available at STP and CCG level", IF($O$3=2,"Chart available at STP and CCG level", IF($O$3=3,"", IF($O$3=4,IF(E36>0,E36,"#N/A"),"")))) -> Chart available at STP and CCG level
B37: IAPT(iv) | C37: IAPT CCG spend | D37: ='Calc - Sparklines'!D34 -> 2021/22 planned | E37: =IFERROR(IF('Calc - Sparklines'!T34="","",'Calc - Sparklines'!T34),"N/A") -> 744117920.7 | F37: N/A | G37: ='Calc - Sparklines'!X34 -> N/A | H37: N/A | I37: Only relevant for actual spend | K37: N/A
B38: Early intervention in psychosis (EIP)
B39: EIP(i) | C39: % of people who started treatment within 2 weeks of referral - All ages +++ | D39: ='Calc - Sparklines'!D36 -> Q1 2021/22 | E39: =IFERROR(IF('Calc - Sparklines'!T36="","",'Calc - Sparklines'!T36),"N/A") -> 0.6522603 | F39: =E39 -> 0.6522603 | G39: ='Calc - Sparklines'!X36 ->  | H39: ▲ | I39: ='Calc - Sparklines'!AH36 -> -0.0781237 | J39: ='Calc - Sparklines'!AI36 ->  | K39: =IF($O$3=1,"Chart available at STP and CCG level", IF($O$3=2,"Chart available at STP and CCG level", IF($O$3=3,IF(E39>0,E39,"#N/A"), IF($O$3=4,IF(E39>0,E39,"#N/A"),"")))) -> Chart available at STP and CCG level
B40: EIP(i.a) | C40: % of CCG commissioned EIP services meeting NICE level 2 ++ | D40: ='Calc - Sparklines'!D37 -> 2020/21 | E40: =IFERROR(IF('Calc - Sparklines'!T37="","",'Calc - Sparklines'!T37),"N/A") -> 0.8979591837 | F40: =E40 -> 0.8979591837 | G40: ='Calc - Sparklines'!X37 ->  | H40: ▲ | I40: ='Calc - Sparklines'!AH37 -> -0.05308976738 | J40: ='Calc - Sparklines'!AI37 -> 0.06675918367 | K40: =IF($O$3=1,"Chart available at STP and CCG level", IF($O$3=2,"Chart available at STP and CCG level", IF($O$3=3,IF(E40>0,E40,"#N/A"), IF($O$3=4,IF(E40>0,E40,"#N/A"),"")))) -> Chart available at STP and CCG level
B41: EIP(i.b) | C41: % of CCG commissioned EIP services meeting NICE level 3 or above ++ | D41: ='Calc - Sparklines'!D38 -> 2020/21 | E41: =IFERROR(IF('Calc - Sparklines'!T38="","",'Calc - Sparklines'!T38),"N/A") -> 0.2925170068 | F41: =E41 -> 0.2925170068 | G41: ='Calc - Sparklines'!X38 ->  | H41: ▲ | I41: ='Calc - Sparklines'!AH38 -> 0.01978973408 | J41: ='Calc - Sparklines'!AI38 -> 0.1107170068 | K41: =IF($O$3=1,"Chart available at STP and CCG level", IF($O$3=2,"Chart available at STP and CCG level", IF($O$3=3,IF(E41>0,E41,"#N/A"), IF($O$3=4,IF(E41>0,E41,"#N/A"),"")))) -> Chart available at STP and CCG level
B42: EIP(ii) | C42: EIP CCG spend | D42: ='Calc - Sparklines'!D39 -> 2021/22 planned | E42: =IFERROR(IF('Calc - Sparklines'!T39="","",'Calc - Sparklines'!T39),"N/A") -> 209111851.8 | F42: N/A | G42: ='Calc - Sparklines'!X39 -> N/A | H42: N/A | I42: Only relevant for actual spend | K42: N/A
B43: Employment support
B44: ES(i) | C44: Number of people accessing Individual Placement Support services | D44: ='Calc - Sparklines'!D41 -> Q1 2021/22 | E44: =IFERROR(IF('Calc - Sparklines'!T41="","",'Calc - Sparklines'!T41),"N/A") -> 7300 | F44: =E44 -> 7300 | G44: ='Calc - Sparklines'!X41 ->  | H44: ▲ | I44: ='Calc - Sparklines'!AH41 -> 0.9810040706 | J44: ='Calc - Sparklines'!AI41 -> 1.570422535 | K44: N/A | O44: =SUMIFS('ES(i)_Target'!P:P,'ES(i)_Target'!C:C,Selected_Org_Code) -> 8000
B45: Physical Health Checks (SMI)
B46: PHSMI(i) | C46: Number of people on GP SMI register receiving full physical health check in primary care setting ++++ | D46: ='Calc - Sparklines'!D43 -> Q1 2021/22 | E46: =IFERROR(IF('Calc - Sparklines'!T43="","",'Calc - Sparklines'!T43),"N/A") -> 140885 | F46: N/A | G46: ='Calc - Sparklines'!X43 ->  | H46: ▲ | I46: ='Calc - Sparklines'!AH43 -> 0.1640502355 | J46: ='Calc - Sparklines'!AI43 -> 0.2746313218 | K46: N/A
B47: Crisis and acute care and use of the Mental Health Act (MHA)
B48: CR(i.a) | C48: % Crisis services which are open access, including for self-referral | D48: ='Calc - Sparklines'!D45 -> 2020/21 | E48: =IFERROR(IF('Calc - Sparklines'!T45="","",'Calc - Sparklines'!T45),"N/A") -> 1 | F48: N/A | G48: ='Calc - Sparklines'!X45 -> N/A | H48: ▲ | I48: ='Calc - Sparklines'!AH45 ->  | J48: ='Calc - Sparklines'!AI45 ->  | K48: =IF($O$3=1,"N/A", IF($O$3=2,"N/A", IF($O$3=3,"National and Regional measure only", IF($O$3=4,"National and Regional measure only","")))) -> N/A
B49: CR(i.b) | C49: % Adult crisis services operating 24/7 including face to face response ³ | D49: ='Calc - Sparklines'!D46 -> 2020/21 | E49: =IFERROR(IF('Calc - Sparklines'!T46="","",'Calc - Sparklines'!T46),"N/A") -> 0.9756097561 | F49: N/A | G49: ='Calc - Sparklines'!X46 -> N/A | H49: ▲ | I49: ='Calc - Sparklines'!AH46 ->  | J49: ='Calc - Sparklines'!AI46 ->  | K49: =IF($O$3=1,"N/A", IF($O$3=2,"N/A", IF($O$3=3,"National and Regional measure only", IF($O$3=4,"National and Regional measure only")))) -> N/A
B50: CR(i.c) | C50: % Adult home treatment service staffed in line with recommended levels ³ | D50: ='Calc - Sparklines'!D47 -> 2020/21 | E50: =IFERROR(IF('Calc - Sparklines'!T47="","",'Calc - Sparklines'!T47),"N/A") -> 0.85 | F50: N/A | G50: ='Calc - Sparklines'!X47 -> N/A | H50: ▲ | I50: ='Calc - Sparklines'!AH47 ->  | J50: ='Calc - Sparklines'!AI47 ->  | K50: =IF($O$3=1,"N/A", IF($O$3=2,"N/A", IF($O$3=3,"National and Regional measure only", IF($O$3=4,"National and Regional measure only")))) -> N/A
B51: CR(i.d) | C51: % Adult crisis services that respond to older adults ³ | D51: ='Calc - Sparklines'!D48 -> 2020/21 | E51: =IFERROR(IF('Calc - Sparklines'!T48="","",'Calc - Sparklines'!T48),"N/A") -> 0.9268292683 | F51: N/A | G51: ='Calc - Sparklines'!X48 -> N/A | H51: ▲ | I51: ='Calc - Sparklines'!AH48 ->  | J51: ='Calc - Sparklines'!AI48 ->  | K51: =IF($O$3=1,"N/A", IF($O$3=2,"N/A", IF($O$3=3,"National and Regional measure only", IF($O$3=4,"National and Regional measure only")))) -> N/A
B52: CR(ii) | C52: Adult Community crisis care spend | D52: ='Calc - Sparklines'!D49 -> 2021/22 planned | E52: =IFERROR(IF('Calc - Sparklines'!T49="","",'Calc - Sparklines'!T49),"N/A") -> 625160281.8 | F52: N/A | G52: ='Calc - Sparklines'!X49 -> N/A | H52: N/A | I52: Only relevant for actual spend | K52: N/A
B53: CR(iii.a) | C53: Total number of inappropriate Out of Area bed days | D53: ='Calc - Sparklines'!D50 -> Q1 2021/22 | E53: =IFERROR(IF('Calc - Sparklines'!T50="","",'Calc - Sparklines'!T50),"N/A") -> 58455 | F53: N/A | G53: ='Calc - Sparklines'!X50 ->  | H53: ▼ | I53: ='Calc - Sparklines'!AH50 -> 0.3750882145 | J53: ='Calc - Sparklines'!AI50 -> -0.1807288017 | K53: N/A
B54: CR(iii.b) | C54: Number of inappropriate Mental Health Out of Area Placements started in the period | D54: ='Calc - Sparklines'!D51 -> Q1 2021/22 | E54: =IFERROR(IF('Calc - Sparklines'!T51="","",'Calc - Sparklines'!T51),"N/A") -> 1270 | F54: N/A | G54: ='Calc - Sparklines'!X51 ->  | H54: ▼ | I54: ='Calc - Sparklines'!AH51 -> 0.1705069124 | J54: ='Calc - Sparklines'!AI51 -> -0.3385416667 | K54: N/A
B55: CR(iv.a) | C55: Number of detentions under the Mental Health Act | D55: ='Calc - Sparklines'!D52 -> 2020/21 | E55: =IFERROR(IF('Calc - Sparklines'!T52="","",'Calc - Sparklines'!T52),"N/A") -> 53239 | F55: N/A | G55: ='Calc - Sparklines'!X52 ->  | H55: ▼ | I55: ='Calc - Sparklines'!AH52 -> 0.04609671271 | J55: ='Calc - Sparklines'!AI52 -> 0.06503560855 | K55: =IF($O$3=1,"N/A", IF($O$3=2,"National measure only", IF($O$3=3,"National measure only", IF($O$3=4,"National measure only","")))) -> N/A
B56: CR(iv.b) | C56: Standardised rate of detentions for people detained under the MHA from a White British ethnicity | D56: ='Calc - Sparklines'!D53 -> 2020/21 | E56: =IFERROR(IF('Calc - Sparklines'!T53="","",'Calc - Sparklines'!T53),"N/A") -> 71.6 | F56: N/A | G56: ='Calc - Sparklines'!X53 ->  | H56: ▼ | I56: ='Calc - Sparklines'!AH53 -> 0.01560283688 | J56: ='Calc - Sparklines'!AI53 -> 0.02139800285 | K56: N/A
B57: CR(iv.c) | C57: Standardised rate of detentions for people detained under the MHA from a Black or Black British ethnicity | D57: ='Calc - Sparklines'!D54 -> 2020/21 | E57: =IFERROR(IF('Calc - Sparklines'!T54="","",'Calc - Sparklines'!T54),"N/A") -> 343.5 | F57: N/A | G57: ='Calc - Sparklines'!X54 ->  | H57: ▼ | I57: ='Calc - Sparklines'!AH54 -> 0.06776499845 | J57: ='Calc - Sparklines'!AI54 -> 0.1196219035 | K57: N/A
B58: CR(iv.d) | C58: Number of Section 136 Place of Safety orders to hospital | D58: ='Calc - Sparklines'!D55 -> 2020/21 | E58: =IFERROR(IF('Calc - Sparklines'!T55="","",'Calc - Sparklines'!T55),"N/A") -> 20153 | F58: N/A | G58: ='Calc - Sparklines'!X55 ->  | H58: ▼ | I58: ='Calc - Sparklines'!AH55 -> 0.0797214037 | J58: ='Calc - Sparklines'!AI55 -> 0.1004149831 | K58: N/A
B59: CR(v.a) | C59: Number of Section 136 detentions taken to police cells as a place of safety | D59: ='Calc - Sparklines'!D56 -> 2019/20 | E59: =IFERROR(IF('Calc - Sparklines'!T56="","",'Calc - Sparklines'!T56),"N/A") -> 128 | F59: N/A | G59: ='Calc - Sparklines'!X56 ->  | H59: ▼ | I59: ='Calc - Sparklines'!AH56 -> -0.9274376417 | J59: ='Calc - Sparklines'!AI56 ->  | K59: N/A
B60: CR(v.b) | C60: Number of Section 136 detentions taken to police cells as a place of safety that are under 18 | D60: ='Calc - Sparklines'!D57 -> 2019/20 | E60: =IFERROR(IF('Calc - Sparklines'!T57="","",'Calc - Sparklines'!T57),"N/A") -> 3 | F60: N/A | G60: ='Calc - Sparklines'!X57 ->  | H60: ▼ | I60: ='Calc - Sparklines'!AH57 -> -0.9142857143 | J60: ='Calc - Sparklines'!AI57 ->  | K60: N/A
B61: CR(vii.a) | C61: Adults in acute mental health beds Length of Stay rate (over 60 days) | D61: ='Calc - Sparklines'!D58 -> Q1 2021/22 | E61: =IFERROR(IF('Calc - Sparklines'!T58="","",'Calc - Sparklines'!T58),"N/A") -> 8.6 | F61: =E61 -> 8.6 | G61: ='Calc - Sparklines'!X58 ->  | H61: ▼ | I61: ='Calc - Sparklines'!AH58 ->  | J61: ='Calc - Sparklines'!AI58 ->  | K61: =IF($O$3=1,"Chart available at STP and CCG level", IF($O$3=2,"Chart available at STP and CCG level", IF($O$3=3,IF(E61>0,E61,"#N/A"), IF($O$3=4,IF(E61>0,E61,"#N/A"),"")))) -> Chart available at STP and CCG level
B62: CR(vii.b) | C62: Older Adults in acute mental health beds Length of Stay rate (over 90 days) | D62: ='Calc - Sparklines'!D59 -> Q1 2021/22 | E62: =IFERROR(IF('Calc - Sparklines'!T59="","",'Calc - Sparklines'!T59),"N/A") -> 9.1 | F62: =E62 -> 9.1 | G62: ='Calc - Sparklines'!X59 ->  | H62: ▼ | I62: ='Calc - Sparklines'!AH59 ->  | J62: ='Calc - Sparklines'!AI59 ->  | K62: =IF($O$3=1,"Chart available at STP and CCG level", IF($O$3=2,"Chart available at STP and CCG level", IF($O$3=3,IF(E62>0,E62,"#N/A"), IF($O$3=4,IF(E62>0,E62,"#N/A"),"")))) -> Chart available at STP and CCG level
B63: Acute hospital mental health liaison
B64: AC(i) | C64: % of acute hospitals meeting the ‘core 24’ service standard | D64: ='Calc - Sparklines'!D61 -> 2018/19 | E64: =IFERROR(IF('Calc - Sparklines'!T61="","",'Calc - Sparklines'!T61),"N/A") -> 0.3529411765 | F64: =E64 -> 0.3529411765 | G64: ='Calc - Sparklines'!X61 ->  | H64: ▲ | I64: ='Calc - Sparklines'!AH61 -> 0.02151260504 | J64: ='Calc - Sparklines'!AI61 ->  | K64: =IF($O$3=1,"Chart available at STP level only", IF($O$3=2,"Chart available at STP level only", IF($O$3=3,"", IF($O$3=4,"National, Regional and STP Measure only","")))) -> Chart available at STP level only
B65: AC(i.a) | C65: % of teams that are that are open/available 24/7 | D65: ='Calc - Sparklines'!D62 -> 2018/19 | E65: =IFERROR(IF('Calc - Sparklines'!T62="","",'Calc - Sparklines'!T62),"N/A") -> 0.7764705882 | F65: N/A | G65: ='Calc - Sparklines'!X62 -> N/A | H65: ▲ | I65: ='Calc - Sparklines'!AH62 ->  | J65: ='Calc - Sparklines'!AI62 ->  | K65: =IF($O$3=1,"Chart available at STP level only", IF($O$3=2,"Chart available at STP level only", IF($O$3=3,"", IF($O$3=4,"National, Regional and STP Measure only","")))) -> Chart available at STP level only
B66: AC(ii) | C66: Mental health liaison staffing levels | D66: ='Calc - Sparklines'!D63 -> 2018/19 | E66: =IFERROR(IF('Calc - Sparklines'!T63="","",'Calc - Sparklines'!T63),"N/A") -> 2463.96 | F66: N/A | G66: ='Calc - Sparklines'!X63 ->  | H66: ▲ | I66: ='Calc - Sparklines'!AH63 -> 0.06359669002 | J66: ='Calc - Sparklines'!AI63 -> 0.361755278 | K66: =IF($O$3=1,"Chart available at STP level only", IF($O$3=2,"Chart available at STP level only", IF($O$3=3,"", IF($O$3=4,"National, Regional and STP Measure only","")))) -> Chart available at STP level only
B67: AC(iii) | C67: A&E and Ward Liaison mental health spend | D67: ='Calc - Sparklines'!D64 -> 2021/22 planned | E67: =IFERROR(IF('Calc - Sparklines'!T64="","",'Calc - Sparklines'!T64),"N/A") -> 262813233.6 | F67: N/A | G67: ='Calc - Sparklines'!X64 -> N/A | H67: N/A | I67: Only relevant for actual spend | K67: N/A
B68: Health & Justice
B69: HJ(i) | C69: Number of mental health secure transfers within 2 weeks of acceptance under the MHA- Age:18+ # | D69: ='Calc - Sparklines'!D66 -> Q1 2021/22 | E69: =IFERROR(IF('Calc - Sparklines'!T66="","",'Calc - Sparklines'!T66),"N/A") -> 24 | F69: N/A | G69: ='Calc - Sparklines'!X66 ->  | H69: N/A | I69: ='Calc - Sparklines'!AH66 -> 3.8 | J69: ='Calc - Sparklines'!AI66 -> -0.7142857143 | K69: =IF($O$3=1,"N/A", IF($O$3=2,"National measure only", IF($O$3=3,"National measure only", IF($O$3=4,"National measure only","")))) -> N/A
B70: HJ(ii.c) | C70: Number of patient assessments in the adult prison estate, for MH issues, during the reporting period # | D70: ='Calc - Sparklines'!D67 -> Q1 2021/22 | E70: =IFERROR(IF('Calc - Sparklines'!T67="","",'Calc - Sparklines'!T67),"N/A") -> 7134 | F70: N/A | G70: ='Calc - Sparklines'!X67 ->  | H70: ▲ | I70: ='Calc - Sparklines'!AH67 -> 2.961132704 | J70: ='Calc - Sparklines'!AI67 -> -0.5725584182 | K70: =IF($O$3=1,"N/A", IF($O$3=2,"National measure only", IF($O$3=3,"National measure only", IF($O$3=4,"National measure only","")))) -> N/A
B71: HJ(ii.d) | C71: Number of patient treatments in the adult prison estate, for MH issues, during the reporting period # | D71: ='Calc - Sparklines'!D68 -> Q1 2021/22 | E71: =IFERROR(IF('Calc - Sparklines'!T68="","",'Calc - Sparklines'!T68),"N/A") -> 32931 | F71: N/A | G71: ='Calc - Sparklines'!X68 ->  | H71: ▲ | I71: ='Calc - Sparklines'!AH68 -> 1.771036688 | J71: ='Calc - Sparklines'!AI68 -> -0.4558388552 | K71: =IF($O$3=1,"N/A", IF($O$3=2,"National measure only", IF($O$3=3,"National measure only", IF($O$3=4,"National measure only","")))) -> N/A
B72: Suicide prevention
B73: SP(i) | C73: Suicide: age-standardised death rate per 100,000 population - Age:10+ | D73: ='Calc - Sparklines'!D70 -> 2017/2019 | E73: =IFERROR(IF('Calc - Sparklines'!T70="","",'Calc - Sparklines'!T70),"N/A") -> 10.1 | F73: N/A | G73: ='Calc - Sparklines'!X70 ->  | H73: ▼ | I73: ='Calc - Sparklines'!AH70 -> 0.05208333333 | J73: ='Calc - Sparklines'!AI70 -> 0.05525551731 | K73: =IF($O$3=1,"Chart available at STP and CCG level", IF($O$3=2,"Chart available at STP and CCG level", IF($O$3=3,"", IF($O$3=4,"","")))) -> Chart available at STP and CCG level
B74: SP(ii.a) | C74: Hospital admissions for self-harm: age standardised rate per 100,000 - Age: 10-24 | D74: ='Calc - Sparklines'!D71 -> Q1 2021/22 | E74: =IFERROR(IF('Calc - Sparklines'!T71="","",'Calc - Sparklines'!T71),"N/A") -> 115.1298039 | F74: N/A | G74: ='Calc - Sparklines'!X71 ->  | H74: ▼ | I74: ='Calc - Sparklines'!AH71 -> 0.3631709221 | J74: ='Calc - Sparklines'!AI71 -> 0.04947968957 | K74: =IF($O$3=1,"Chart available at STP and CCG level", IF($O$3=2,"Chart available at STP and CCG level", IF($O$3=3,"", IF($O$3=4,"","")))) -> Chart available at STP and CCG level
B75: SP(ii.b) | C75: Hospital admissions for self-harm: age standardised rate per 100,000 - Age:25+ | D75: ='Calc - Sparklines'!D72 -> Q1 2021/22 | E75: =IFERROR(IF('Calc - Sparklines'!T72="","",'Calc - Sparklines'!T72),"N/A") -> 32.10221675 | F75: N/A | G75: ='Calc - Sparklines'!X72 ->  | H75: ▼ | I75: ='Calc - Sparklines'!AH72 -> -0.1115861673 | J75: ='Calc - Sparklines'!AI72 -> -0.1928557368 | K75: =IF($O$3=1,"Chart available at STP and CCG level", IF($O$3=2,"Chart available at STP and CCG level", IF($O$3=3,"", IF($O$3=4,"","")))) -> Chart available at STP and CCG level
B76: SP(iii.c) | C76: Proportion of discharges from hospital followed up within 72 hours ## | D76: ='Calc - Sparklines'!D73 -> Q1 2021/22 | E76: =IFERROR(IF('Calc - Sparklines'!T73="","",'Calc - Sparklines'!T73),"N/A") -> 0.7554863813 | F76: N/A | G76: ='Calc - Sparklines'!X73 ->  | H76: ▲ | I76: ='Calc - Sparklines'!AH73 -> -0.003155338182 | J76: ='Calc - Sparklines'!AI73 ->  | K76: =IF($O$3=1,"Chart available at STP and CCG level", IF($O$3=2,"Chart available at STP and CCG level", IF($O$3=3,"", IF($O$3=4,"","")))) -> Chart available at STP and CCG level
B77: Meeting commitment to increase mental health funding
B78: MHF(i) | C78: CCG spend on MH as a % of CCG base allocations | D78: ='Calc - Sparklines'!D75 -> 2021/22 planned | E78: =IFERROR(IF('Calc - Sparklines'!T75="","",'Calc - Sparklines'!T75),"N/A") -> 0.1475515508 | F78: N/A | G78: ='Calc - Sparklines'!X75 -> N/A | H78: ▲ | I78: Only relevant for actual spend | K78: N/A
B79: MHF(ii.a) | C79: Mental health actual spend in 2020/21 ^ | D79: ='Calc - Sparklines'!D76 -> 2020/21 | E79: =IFERROR(IF('Calc - Sparklines'!T76="","",'Calc - Sparklines'!T76),"N/A") -> 1.20928306e+10 | F79: N/A | G79: ='Calc - Sparklines'!X76 ->  | H79: ▲ | I79: ='Calc - Sparklines'!AH76 -> 0.07322226591 | J79: ='Calc - Sparklines'!AI76 -> 0.1452630342 | K79: N/A
B80: MHF(ii.b) | C80: Mental health planned spend in 2021/22 ^ | D80: ='Calc - Sparklines'!D77 -> 2021/22 planned | E80: =IFERROR(IF('Calc - Sparklines'!T77="","",'Calc - Sparklines'!T77),"N/A") -> 1.2550109e+10 | F80: N/A | G80: ='Calc - Sparklines'!X77 -> N/A | H80: ▲ | I80: Only relevant for actual spend | K80: N/A
B81: MHF(iii) | C81: MH investment standard achieved? ^^ | D81: ='Calc - Sparklines'!D78 -> 2021/22 planned | E81: =IFERROR(IF('Calc - Sparklines'!T78="","",'Calc - Sparklines'!T78),"N/A") -> Y | F81: =IF(E81="Y",1,IF(E81="n",0,"N/A")) -> 1 | G81: N/A | H81: N/A | I81: Only relevant for actual spend | K81: N/A
O82: =IF(ISERROR('Calc - Spinecharts'!J79),"", IF(AND('Calc - Spinecharts'!G79>='Calc - Spinecharts'!I79,'Calc - Spinecharts'!G79<='Calc - Spinecharts'!K79),"Yes","No")) -> Yes
B84: Meeting commitment to increase mental health funding | D84: Local CCG spend on mental health (£m) | E84: NHSE Specialised Commissioning spend on mental health (£m) | F84: Total NHS spend on mental health (£m) | G84: CCG spend on MH as a % of CCG base allocations | H84: MH Investment Standard met?^^ | I84: No. CCGs meeting MHIS ^^ | K84: % CCGs meeting MHIS ^^
B85: Total actual spend - 2016/17 | D85: 9722.8 | E85: 1879.1 | F85: 11601.9 | G85: 0.136 | H85: Y | I85: 177 out of 209 | K85: 0.85
B86: Total actual spend - 2017/18 | D86: 10079.6 | E86: =F86-D86 -> 1896.4 | F86: 11976 | G86: 0.137 | H86: Y | I86: 186 out of 207 | K86: 0.9
B87: Total actual spend - 2018/19 ^ | D87: 10558.99845 | E87: 1954.2 | F87: =D87+E87 -> 12513.19845 | G87: 0.138 | H87: Y | I87: 179 out of 195 | K87: 0.91795
B88: Total actual spend - 2019/20 ^ | D88: =11267778340.445/1000000 -> 11267.77834 | E88: 2057 | F88: =D88+E88 -> 13324.77834 | G88: 0.14 | H88: Y | I88: 181 out of 191 | K88: =181/191 -> 0.9476439791
B89: Total actual spend - 2020/21 ^ | D89: =12092830602.347/1000000 -> 12092.8306 | E89: 2221 | F89: =D89+E89 -> 14313.8306 | G89: 0.1476546243 | H89: Y | I89: 135 out of 135 | K89: =135/135 -> 1
B90: Total planned spend - 2021/22 ^ | D90: =12550109000.2806/1000000 -> 12550.109 | E90: Not yet available | F90: =IFERROR(D90+E90,D90) -> 12550.109 | G90: 0.1475515508 | H90: Y | I90: 106 out of 106 | K90: =106/106 -> 1
B92: * | C92: The indicators within this dashboard should be interpreted with caution, some data are experimental and improvements or decreases could be due to data quality fluctuations. Please see Metadata tab for further details.
B93: ** | C93: Where fewer than three time periods are available trendlines are not shown. This may apply to data that has only been collected for a short period, or where an individual organisation has data in some periods that are suppressed due to small numbers. If the most recent period is suppressed no trendline will be shown.
B94: *** | C94: The spine chart shows the relative performance of the organisation against the relevant comparator group (either all CCGs or all STPs) for the latest period. A position towards the left of the scale indicates a lower value and to the right indicates a higher value, please refer to the "Better is..." column to interpret if the organisation is performing better or worse than the comparator group. Not all indicators presented with spine charts have been normalised, so interpretation needs to be undertaken with caution. Please use the trend lines to add context where available.
B95: **** | C95: There are two new columns for 12 Month % Change and 24 Month % Change to aid interpretation of the data. These will be shown where there is data available for the relevant period and organisation, otherwise the cells appear grey. Green figures indicate a positive change for the indicator (which may be higher or lower depending on the indicator - please use the "Better is" column for reference). Where the indicator is a %, the percentage point change will be shown.
B96: CCG Changes | C96: In April 2021 the total number of CCGs decreased from 135 to 106. All data (where possible) from 2019/20 onwards has been adjusted to reflect this, we therefore advise caution in viewing historical data for the newly merged CCGs. For full details please refer to: https://digital.nhs.uk/services/organisation-data-service/change-summary-reconfiguration-2021-ccg-mergers.
B97: ⱡ ⱡ | C97: In Q4 2020/21, all previous quarters of data for the financial year have been refreshed. There are figures reported for Unknown CCGs, these are included in the England totals, however could not be assigned to a CCG/STP/Region. The England totals therefore differ slightly to the aggregate of CCGs. Number of Unknowns for each Quarter 2020/21 are as follows: CYP (iii.a): Q1: 0, Q2: 10, Q3: 92, Q4: 158, Q1 2021/22: 234 CYP (iii.b): Q1: 0, Q2: 1, Q3: 0, Q4: 2, Q1 2021/22: 5
B98: + | C98: Data on CYP eating disorder service waiting times at national and regional level is presented for the most recent quarter. Due to low numbers CCG and STP percentages are calculated using data from the last 12 months.
B99: <> | C99: It has been identified that there are issues with the data on CYP bed days on adult wards published by NHS Digital from Q1 2019/20 - Q1 2020/21 so those periods have been removed from this version of the dashboard. NHS Digital are investigating this and will be reissuing the data, which will be included in future versions of this dashboard.
B100: <><> | C100: Please see metadata for the CYP Crisis Long Term Plan ambition metric for further information on the methodology and data quality and completeness.
B101: ++ | C101: Indicator IAPT (i.a) was previously reported as a rate of access to services, this is now reported as the number of people entering treatment. Terminology for IAPT is currently under review. Patient-level data was unavailable for IAPT indicators in Q1 2021-22, and for Q3 and Q4 2020-21, therefore published rounded figures have been used for these measures . Region-level data has not been published and has therefore been calculated from rounded STP figures. Q2 2020-21 has not been published by NHSD as the dataset version changed during the quarter.
B102: +++ | C102: From Quarter 3 2019/20 performance against the EIP two week wait standard is measured through the Mental Health Services Dataset (MHSDS). Prior to this a temporary, manual aggregate collection was in place while data coverage and completeness for the patient level MHSDS improved. The data quality of the MHSDS data collection is now considered robust and therefore the temporary aggregate collection has been retired. Q4 2019/20 has not yet been published by NHSD due to data issues so that period isn't included in the trend line.
B103: ++++ | C103: From Q1 2021/22, this indicator is the number of people on the General Practice (GP) SMI register receiving a full physical health check in any setting in the preceding 12 months rather than a %. All CCGs submitted data for Q1 2021/22.
B104: ³ | C104: These indicators have been updated in this re-published version of the Q1 2021/22 Mental Health dashboard to reflect the proportion of only those STPs that responded.
B105: ++ | C105: Figures amended due to error 12/11/21. If the value is * this indicates no value is reported by the organisation.
B106: ^^^ | C106: Due to the coronavirus illness (COVID-19), a different survey was conducted which wasn't comparable to previous periods so these indicators have not been updated in the Q2 20/21 dashboard. New data is expected to be available in Q2 2021/22.
B107: # | C107: For all health and justice metrics Q4 2019/20 data is not available due to COVID-19. Q1- Q3 figures dropped compared to previous periods due to a drop in submissions therefore these have been refreshed.
B108: ## | C108: The new measure on adult mental health inpatients receiving a follow up within 72hrs of discharge has replaced the 7 day follow up measure. Data is not currently available for Q2 2020/21 - see NHSD monthly publication pages for more information - https://digital.nhs.uk/data-and-information/publications/statistical/mental-health-services-monthly-statistics.
B109: ^ | C109: Total actual mental health spend reported here includes spending on learning disabilities and dementia, which is not included in the MHIS or the baseline spend for the commitment in the NHS Long Term Plan to increase mental health spending by at least £2.3bn a year by 2023/24.. Those differences mean that some CCGs, which are increasing investment in mental health services as required by the MHIS, will have a total mental health spend shown in this dashboard that is increasing more slowly or even decreasing. In 2020/21 spend on learning disabilities and dementia was £2.64bn. Plan data for NHSE Specialised Commissioning spend on mental health (£m), is expected in Q2 2021/22.
B110: ^^ | C110: The MHIS calculation does not include spend on learning disabilities and dementia, which is included in the total mental health spend presented here. As planned spend does not include any in-year funding allocations these are also excluded from the outturn spend it’s compared to. It also does not include Specialised commissioning spend in the mental health investment standard compliance calculation. Excluding spend on learning disabilities and dementia, and the in-year allocation, as per the MHIS calculation, nationally spend on mental health increased 4.5%. In 2019, CCGs were required to commission an independent review by reporting accountants of their achievement of the Mental Health Investment Standard in 2018/19. In 2020 CCGs commissioned an independent review for 2019/20 spend; changes to individual CCG accomplishment of the MHIS as a result of the review are now reflected in this dashboard (final out turn figures have not been updated). Where serious problems were identified the National Director for Mental Health and the Chief Financial Officer have used their powers under the NHS Act to follow up directly with CCGs to ensure that these are addressed. MHF (iii) Number of CCGs meeting the MH investment standard, has been updated in Q4 2020/21.
B111: ^^^ | C111: Data will be updated next quarter due to delayed publication by Home Office.

Sheet Calc - Sparklines (hidden)
A1: Selected CCG | C1: =Selected_Org_Name -> England
A2: Selected Org Code | C2: =Selected_Org_Code -> EN | E2: =IFERROR(IF(ISNUMBER( INDEX(INDIRECT(#REF!), MATCH('Calc - Sparklines'!$C$1,INDIRECT(#REF!),0), MATCH('Calc - Sparklines'!#REF!,INDIRECT(#REF!),0)-11))=FALSE,NA(), INDEX(INDIRECT(#REF!), MATCH('Calc - Sparklines'!$C$1,INDIRECT(#REF!),0), MATCH('Calc - Sparklines'!#REF!,INDIRECT(#REF!),0)-11)),NA()) ->  | F2: =ISNUMBER(#REF!) -> FALSE | G2: =ISNUMBER(#REF!) -> FALSE | H2: =ISNUMBER(#REF!) -> FALSE | I2: =ISNUMBER(#REF!) -> FALSE | J2: =ISNUMBER(#REF!) -> FALSE | K2: =ISNUMBER(#REF!) -> FALSE | L2: =ISNUMBER(#REF!) -> FALSE | M2: =ISNUMBER(#REF!) -> FALSE | N2: =ISNUMBER(#REF!) -> FALSE | O2: =ISNUMBER(#REF!) -> FALSE
E3: 11 | F3: 10 | G3: 9 | H3: 8 | I3: 7 | J3: 6 | K3: 5 | L3: 4 | M3: 3 | N3: 2 | O3: 1 | P3: 0 | Q3: Other measures | V3: =IFERROR(IF(ISNUMBER( INDEX(INDIRECT($Z38), MATCH('Calc - Sparklines'!$C$1,INDIRECT($AA38),0), MATCH('Calc - Sparklines'!$D38,INDIRECT($AB38),0)-N$3))=FALSE,NA(), INDEX(INDIRECT($Z38), MATCH('Calc - Sparklines'!$C$1,INDIRECT($AA38),0), MATCH('Calc - Sparklines'!$D38,INDIRECT($AB38),0)-N$3)),NA())
E4: 10 | F4: 10 | G4: 10 | H4: 10 | I4: 10 | J4: 10 | K4: 10 | L4: 8 | M4: 6 | N4: 4 | O4: 2 | P4: 0 | Q4: Finance measures
Q6: p | R6: p
I7: =OFFSET('Calc - Sparklines'!$P$14,,-'Calc - Sparklines'!$S$14,,-'Calc - Sparklines'!$R$14) -> 
AH8: Finance metrics, only include for Q4 actuals
AH9: Yearly metrics, compare against the previous period or the previous but one period
C10: Indicator | D10: Latest Period | E10: Period 1 | F10: Period 2 | G10: Period 3 | H10: Period 4 | I10: Period 5 | J10: Period 6 | K10: Period 7 | L10: Period 8 | M10: Period 9 | N10: Period 10 | O10: Period 11 | P10: Period 12 | R10: Available data points | S10: Periods out of date | T10: Latest value | U10: Previous Value | V10: Change | W10: Sparkline Named range | X10: Include sparkline? | Z10: Data Range | AA10: Organisation Range | AB10: Period Range
A11: Children and Young people Mental Health | B11: Children and Young people Mental Health | E11: =IFERROR(IF(ISNUMBER( INDEX(INDIRECT($Z11), MATCH('Calc - Sparklines'!$C$2,INDIRECT($AA11),0), MATCH('Calc - Sparklines'!$D11,INDIRECT($AB11),0)-E$3))=FALSE,NA(), INDEX(INDIRECT($Z11), MATCH('Calc - Sparklines'!$C$2,INDIRECT($AA11),0), MATCH('Calc - Sparklines'!$D11,INDIRECT($AB11),0)-E$3)),NA()) ->  | F11: =IFERROR(IF(ISNUMBER( INDEX(INDIRECT($Z11), MATCH('Calc - Sparklines'!$C$2,INDIRECT($AA11),0), MATCH('Calc - Sparklines'!$D11,INDIRECT($AB11),0)-F$3))=FALSE,NA(), INDEX(INDIRECT($Z11), MATCH('Calc - Sparklines'!$C$2,INDIRECT($AA11),0), MATCH('Calc - Sparklines'!$D11,INDIRECT($AB11),0)-F$3)),NA()) ->  | R11: =IF(COUNTA(K11:P11)-COUNTIF(K11:P11,"#N/A")<3, 0, COUNTA(K11:P11)) -> 0 | S11: =IF(P11="N/A",IF(O11="N/A",2,1),0) -> 0 | T11: =OFFSET(P11,,-S11) -> 0 | U11: =IF(ISERROR(O11),IF(ISERROR(N11),IF(ISERROR(M11),IF(ISERROR(L11),IF(ISERROR(K11),IF(ISERROR(J11),IF(ISERROR(I11),IF(ISERROR(H11),IF(ISERROR(G11),IF(ISERROR(F11),IF(ISERROR(E11), NA(), E11),F11),G11),H11),I11),J11),K11),L11),M11),N11),O11) -> 0 | V11: =IF(D11="","",IFERROR(IF(T11>U11,"▲", IF(T11<U11,"▼","◄►")),"N/A")) ->  | X11: =IF(ISNA(T11),"N/A",IF(R11<=2,"N/A","")) -> N/A | AD11: Heading
A12: CYP_i_a | B12: CYP(i.a) | C12: No of CYP accessing treatment by NHS funded community services (at least one contact) | D12: ='CYP(i_a)_FINAL CALC'!B6 -> Q1 2021/22 | E12: =IF('Calc - Sparklines'!$C$2="EN",IFERROR(IF(ISNUMBER( INDEX(INDIRECT($Z12), MATCH('Calc - Sparklines'!$AF12,INDIRECT($AA12),0), MATCH('Calc - Sparklines'!$D12,INDIRECT($AB12),0)-E$3))=FALSE,NA(), INDEX(INDIRECT($Z12), MATCH('Calc - Sparklines'!$AF12,INDIRECT($AA12),0), MATCH('Calc - Sparklines'!$D12,INDIRECT($AB12),0)-E$3)),NA()),IFERROR(IF(ISNUMBER( INDEX(INDIRECT($Z12), MATCH('Calc - Sparklines'!$C$2,INDIRECT($AA12),0), MATCH('Calc - Sparklines'!$D12,INDIRECT($AB12),0)-E$3))=FALSE,NA(), INDEX(INDIRECT($Z12), MATCH('Calc - Sparklines'!$C$2,INDIRECT($AA12),0), MATCH('Calc - Sparklines'!$D12,INDIRECT($AB12),0)-E$3)),NA())) ->  | F12: =IF('Calc - Sparklines'!$C$2="EN",IFERROR(IF(ISNUMBER( INDEX(INDIRECT($Z12), MATCH('Calc - Sparklines'!$AF12,INDIRECT($AA12),0), MATCH('Calc - Sparklines'!$D12,INDIRECT($AB12),0)-F$3))=FALSE,NA(), INDEX(INDIRECT($Z12), MATCH('Calc - Sparklines'!$AF12,INDIRECT($AA12),0), MATCH('Calc - Sparklines'!$D12,INDIRECT($AB12),0)-F$3)),NA()),IFERROR(IF(ISNUMBER( INDEX(INDIRECT($Z12), MATCH('Calc - Sparklines'!$C$2,INDIRECT($AA12),0), MATCH('Calc - Sparklines'!$D12,INDIRECT($AB12),0)-F$3))=FALSE,NA(), INDEX(INDIRECT($Z12), MATCH('Calc - Sparklines'!$C$2,INDIRECT($AA12),0), MATCH('Calc - Sparklines'!$D12,INDIRECT($AB12),0)-F$3)),NA())) ->  | G12: =IF('Calc - Sparklines'!$C$2="EN",IFERROR(IF(ISNUMBER( INDEX(INDIRECT($Z12), MATCH('Calc - Sparklines'!$AF12,INDIRECT($AA12),0), MATCH('Calc - Sparklines'!$D12,INDIRECT($AB12),0)-G$3))=FALSE,NA(), INDEX(INDIRECT($Z12), MATCH('Calc - Sparklines'!$AF12,INDIRECT($AA12),0), MATCH('Calc - Sparklines'!$D12,INDIRECT($AB12),0)-G$3)),NA()),IFERROR(IF(ISNUMBER( INDEX(INDIRECT($Z12), MATCH('Calc - Sparklines'!$C$2,INDIRECT($AA12),0), MATCH('Calc - Sparklines'!$D12,INDIRECT($AB12),0)-G$3))=FALSE,NA(), INDEX(INDIRECT($Z12), MATCH('Calc - Sparklines'!$C$2,INDIRECT($AA12),0), MATCH('Calc - Sparklines'!$D12,INDIRECT($AB12),0)-G$3)),NA())) ->  | H12: =IF('Calc - Sparklines'!$C$2="EN",IFERROR(IF(ISNUMBER( INDEX(INDIRECT($Z12), MATCH('Calc - Sparklines'!$AF12,INDIRECT($AA12),0), MATCH('Calc - Sparklines'!$D12,INDIRECT($AB12),0)-H$3))=FALSE,NA(), INDEX(INDIRECT($Z12), MATCH('Calc - Sparklines'!$AF12,INDIRECT($AA12),0), MATCH('Calc - Sparklines'!$D12,INDIRECT($AB12),0)-H$3)),NA()),IFERROR(IF(ISNUMBER( INDEX(INDIRECT($Z12), MATCH('Calc - Sparklines'!$C$2,INDIRECT($AA12),0), MATCH('Calc - Sparklines'!$D12,INDIRECT($AB12),0)-H$3))=FALSE,NA(), INDEX(INDIRECT($Z12), MATCH('Calc - Sparklines'!$C$2,INDIRECT($AA12),0), MATCH('Calc - Sparklines'!$D12,INDIRECT($AB12),0)-H$3)),NA())) ->  | I12: =IF('Calc - Sparklines'!$C$2="EN",IFERROR(IF(ISNUMBER( INDEX(INDIRECT($Z12), MATCH('Calc - Sparklines'!$AF12,INDIRECT($AA12),0), MATCH('Calc - Sparklines'!$D12,INDIRECT($AB12),0)-I$3))=FALSE,NA(), INDEX(INDIRECT($Z12), MATCH('Calc - Sparklines'!$AF12,INDIRECT($AA12),0), MATCH('Calc - Sparklines'!$D12,INDIRECT($AB12),0)-I$3)),NA()),IFERROR(IF(ISNUMBER( INDEX(INDIRECT($Z12), MATCH('Calc - Sparklines'!$C$2,INDIRECT($AA12),0), MATCH('Calc - Sparklines'!$D12,INDIRECT($AB12),0)-I$3))=FALSE,NA(), INDEX(INDIRECT($Z12), MATCH('Calc - Sparklines'!$C$2,INDIRECT($AA12),0), MATCH('Calc - Sparklines'!$D12,INDIRECT($AB12),0)-I$3)),NA())) ->  | J12: =IF('Calc - Sparklines'!$C$2="EN",IFERROR(IF(ISNUMBER( INDEX(INDIRECT($Z12), MATCH('Calc - Sparklines'!$AF12,INDIRECT($AA12),0), MATCH('Calc - Sparklines'!$D12,INDIRECT($AB12),0)-J$3))=FALSE,NA(), INDEX(INDIRECT($Z12), MATCH('Calc - Sparklines'!$AF12,INDIRECT($AA12),0), MATCH('Calc - Sparklines'!$D12,INDIRECT($AB12),0)-J$3)),NA()),IFERROR(IF(ISNUMBER( INDEX(INDIRECT($Z12), MATCH('Calc - Sparklines'!$C$2,INDIRECT($AA12),0), MATCH('Calc - Sparklines'!$D12,INDIRECT($AB12),0)-J$3))=FALSE,NA(), INDEX(INDIRECT($Z12), MATCH('Calc - Sparklines'!$C$2,INDIRECT($AA12),0), MATCH('Calc - Sparklines'!$D12,INDIRECT($AB12),0)-J$3)),NA())) ->  | K12: =IF('Calc - Sparklines'!$C$2="EN",IFERROR(IF(ISNUMBER( INDEX(INDIRECT($Z12), MATCH('Calc - Sparklines'!$AF12,INDIRECT($AA12),0), MATCH('Calc - Sparklines'!$D12,INDIRECT($AB12),0)-K$3))=FALSE,NA(), INDEX(INDIRECT($Z12), MATCH('Calc - Sparklines'!$AF12,INDIRECT($AA12),0), MATCH('Calc - Sparklines'!$D12,INDIRECT($AB12),0)-K$3)),NA()),IFERROR(IF(ISNUMBER( INDEX(INDIRECT($Z12), MATCH('Calc - Sparklines'!$C$2,INDIRECT($AA12),0), MATCH('Calc - Sparklines'!$D12,INDIRECT($AB12),0)-K$3))=FALSE,NA(), INDEX(INDIRECT($Z12), MATCH('Calc - Sparklines'!$C$2,INDIRECT($AA12),0), MATCH('Calc - Sparklines'!$D12,INDIRECT($AB12),0)-K$3)),NA())) -> 548565 | L12: =IF('Calc - Sparklines'!$C$2="EN",IFERROR(IF(ISNUMBER( INDEX(INDIRECT($Z12), MATCH('Calc - Sparklines'!$AF12,INDIRECT($AA12),0), MATCH('Calc - Sparklines'!$D12,INDIRECT($AB12),0)-L$3))=FALSE,NA(), INDEX(INDIRECT($Z12), MATCH('Calc - Sparklines'!$AF12,INDIRECT($AA12),0), MATCH('Calc - Sparklines'!$D12,INDIRECT($AB12),0)-L$3)),NA()),IFERROR(IF(ISNUMBER( INDEX(INDIRECT($Z12), MATCH('Calc - Sparklines'!$C$2,INDIRECT($AA12),0), MATCH('Calc - Sparklines'!$D12,INDIRECT($AB12),0)-L$3))=FALSE,NA(), INDEX(INDIRECT($Z12), MATCH('Calc - Sparklines'!$C$2,INDIRECT($AA12),0), MATCH('Calc - Sparklines'!$D12,INDIRECT($AB12),0)-L$3)),NA())) ->  | M12: =IF('Calc - Sparklines'!$C$2="EN",IFERROR(IF(ISNUMBER( INDEX(INDIRECT($Z12), MATCH('Calc - Sparklines'!$AF12,INDIRECT($AA12),0), MATCH('Calc - Sparklines'!$D12,INDIRECT($AB12),0)-M$3))=FALSE,NA(), INDEX(INDIRECT($Z12), MATCH('Calc - Sparklines'!$AF12,INDIRECT($AA12),0), MATCH('Calc - Sparklines'!$D12,INDIRECT($AB12),0)-M$3)),NA()),IFERROR(IF(ISNUMBER( INDEX(INDIRECT($Z12), MATCH('Calc - Sparklines'!$C$2,INDIRECT($AA12),0), MATCH('Calc - Sparklines'!$D12,INDIRECT($AB12),0)-M$3))=FALSE,NA(), INDEX(INDIRECT($Z12), MATCH('Calc - Sparklines'!$C$2,INDIRECT($AA12),0), MATCH('Calc - Sparklines'!$D12,INDIRECT($AB12),0)-M$3)),NA())) ->  | N12: =IF('Calc - Sparklines'!$C$2="EN",IFERROR(IF(ISNUMBER( INDEX(INDIRECT($Z12), MATCH('Calc - Sparklines'!$AF12,INDIRECT($AA12),0), MATCH('Calc - Sparklines'!$D12,INDIRECT($AB12),0)-N$3))=FALSE,NA(), INDEX(INDIRECT($Z12), MATCH('Calc - Sparklines'!$AF12,INDIRECT($AA12),0), MATCH('Calc - Sparklines'!$D12,INDIRECT($AB12),0)-N$3)),NA()),IFERROR(IF(ISNUMBER( INDEX(INDIRECT($Z12), MATCH('Calc - Sparklines'!$C$2,INDIRECT($AA12),0), MATCH('Calc - Sparklines'!$D12,INDIRECT($AB12),0)-N$3))=FALSE,NA(), INDEX(INDIRECT($Z12), MATCH('Calc - Sparklines'!$C$2,INDIRECT($AA12),0), MATCH('Calc - Sparklines'!$D12,INDIRECT($AB12),0)-N$3)),NA())) ->  | O12: =IF('Calc - Sparklines'!$C$2="EN",IFERROR(IF(ISNUMBER( INDEX(INDIRECT($Z12), MATCH('Calc - Sparklines'!$AF12,INDIRECT($AA12),0), MATCH('Calc - Sparklines'!$D12,INDIRECT($AB12),0)-O$3))=FALSE,NA(), INDEX(INDIRECT($Z12), MATCH('Calc - Sparklines'!$AF12,INDIRECT($AA12),0), MATCH('Calc - Sparklines'!$D12,INDIRECT($AB12),0)-O$3)),NA()),IFERROR(IF(ISNUMBER( INDEX(INDIRECT($Z12), MATCH('Calc - Sparklines'!$C$2,INDIRECT($AA12),0), MATCH('Calc - Sparklines'!$D12,INDIRECT($AB12),0)-O$3))=FALSE,NA(), INDEX(INDIRECT($Z12), MATCH('Calc - Sparklines'!$C$2,INDIRECT($AA12),0), MATCH('Calc - Sparklines'!$D12,INDIRECT($AB12),0)-O$3)),NA())) -> 589705 | P12: =IF('Calc - Sparklines'!$C$2="EN",IFERROR(IF(ISNUMBER( INDEX(INDIRECT($Z12), MATCH('Calc - Sparklines'!$AF12,INDIRECT($AA12),0), MATCH('Calc - Sparklines'!$D12,INDIRECT($AB12),0)-P$3))=FALSE,NA(), INDEX(INDIRECT($Z12), MATCH('Calc - Sparklines'!$AF12,INDIRECT($AA12),0), MATCH('Calc - Sparklines'!$D12,INDIRECT($AB12),0)-P$3)),NA()),IFERROR(IF(ISNUMBER( INDEX(INDIRECT($Z12), MATCH('Calc - Sparklines'!$C$2,INDIRECT($AA12),0), MATCH('Calc - Sparklines'!$D12,INDIRECT($AB12),0)-P$3))=FALSE,NA(), INDEX(INDIRECT($Z12), MATCH('Calc - Sparklines'!$C$2,INDIRECT($AA12),0), MATCH('Calc - Sparklines'!$D12,INDIRECT($AB12),0)-P$3)),NA())) -> 605012 | R12: =IF(COUNTA(K12:P12)-COUNTIF(K12:P12,"#N/A")<3, 0, COUNTA(K12:P12)) -> 6 | S12: =IF(P12="N/A",IF(O12="N/A",2,1),0) -> 0 | T12: =OFFSET(P12,,-S12) -> 605012 | U12: =IF(ISERROR(O12),IF(ISERROR(N12),IF(ISERROR(M12),IF(ISERROR(L12),IF(ISERROR(K12),IF(ISERROR(J12),IF(ISERROR(I12),IF(ISERROR(H12),IF(ISERROR(G12),IF(ISERROR(F12),IF(ISERROR(E12), NA(), E12),F12),G12),H12),I12),J12),K12),L12),M12),N12),O12) -> 589705 | V12: =IF(D12="","",IFERROR(IF(T12>U12,"▲", IF(T12<U12,"▼","◄►")),"N/A")) -> ▲ | W12: Sparkline65 | X12: N/A | Z12: Data_Table_CYP_i_a | AA12: Data_Orgs_CYP_i_a | AB12: Data_Dates_CYP_i_a | AF12: =IF('Calc - Sparklines'!$C$2="EN",IF(ISNUMBER(MATCH('Calc - Sparklines'!$C$2,INDIRECT($AA12),0)),"EN","England"),0) -> England | AG12: =(MATCH('Calc - Sparklines'!$C$2,INDIRECT($AA12),0)) ->  | AH12: =IFERROR(P12/L12-1,"") ->  | AI12: =IFERROR(P12/H12-1,"") -> 
A13: CYP_ii_a | B13: CYP(ii.a) | C13: % of CYP with eating disorders seen within 1 week (urgent) | D13: ='CYP(ii_a)_FINAL CALC'!B6 -> Q1 2021/22 | E13: =IF('Calc - Sparklines'!$C$2="EN",IFERROR(IF(ISNUMBER( INDEX(INDIRECT($Z13), MATCH('Calc - Sparklines'!$AF13,INDIRECT($AA13),0), MATCH('Calc - Sparklines'!$D13,INDIRECT($AB13),0)-E$3))=FALSE,NA(), INDEX(INDIRECT($Z13), MATCH('Calc - Sparklines'!$AF13,INDIRECT($AA13),0), MATCH('Calc - Sparklines'!$D13,INDIRECT($AB13),0)-E$3)),NA()),IFERROR(IF(ISNUMBER( INDEX(INDIRECT($Z13), MATCH('Calc - Sparklines'!$C$2,INDIRECT($AA13),0), MATCH('Calc - Sparklines'!$D13,INDIRECT($AB13),0)-E$3))=FALSE,NA(), INDEX(INDIRECT($Z13), MATCH('Calc - Sparklines'!$C$2,INDIRECT($AA13),0), MATCH('Calc - Sparklines'!$D13,INDIRECT($AB13),0)-E$3)),NA())) -> 0.8130081301 | F13: =IF('Calc - Sparklines'!$C$2="EN",IFERROR(IF(ISNUMBER( INDEX(INDIRECT($Z13), MATCH('Calc - Sparklines'!$AF13,INDIRECT($AA13),0), MATCH('Calc - Sparklines'!$D13,INDIRECT($AB13),0)-F$3))=FALSE,NA(), INDEX(INDIRECT($Z13), MATCH('Calc - Sparklines'!$AF13,INDIRECT($AA13),0), MATCH('Calc - Sparklines'!$D13,INDIRECT($AB13),0)-F$3)),NA()),IFERROR(IF(ISNUMBER( INDEX(INDIRECT($Z13), MATCH('Calc - Sparklines'!$C$2,INDIRECT($AA13),0), MATCH('Calc - Sparklines'!$D13,INDIRECT($AB13),0)-F$3))=FALSE,NA(), INDEX(INDIRECT($Z13), MATCH('Calc - Sparklines'!$C$2,INDIRECT($AA13),0), MATCH('Calc - Sparklines'!$D13,INDIRECT($AB13),0)-F$3)),NA())) -> 0.807 | G13: =IF('Calc - Sparklines'!$C$2="EN",IFERROR(IF(ISNUMBER( INDEX(INDIRECT($Z13), MATCH('Calc - Sparklines'!$AF13,INDIRECT($AA13),0), MATCH('Calc - Sparklines'!$D13,INDIRECT($AB13),0)-G$3))=FALSE,NA(), INDEX(INDIRECT($Z13), MATCH('Calc - Sparklines'!$AF13,INDIRECT($AA13),0), MATCH('Calc - Sparklines'!$D13,INDIRECT($AB13),0)-G$3)),NA()),IFERROR(IF(ISNUMBER( INDEX(INDIRECT($Z13), MATCH('Calc - Sparklines'!$C$2,INDIRECT($AA13),0), MATCH('Calc - Sparklines'!$D13,INDIRECT($AB13),0)-G$3))=FALSE,NA(), INDEX(INDIRECT($Z13), MATCH('Calc - Sparklines'!$C$2,INDIRECT($AA13),0), MATCH('Calc - Sparklines'!$D13,INDIRECT($AB13),0)-G$3)),NA())) -> 0.8062678063 | H13: =IF('Calc - Sparklines'!$C$2="EN",IFERROR(IF(ISNUMBER( INDEX(INDIRECT($Z13), MATCH('Calc - Sparklines'!$AF13,INDIRECT($AA13),0), MATCH('Calc - Sparklines'!$D13,INDIRECT($AB13),0)-H$3))=FALSE,NA(), INDEX(INDIRECT($Z13), MATCH('Calc - Sparklines'!$AF13,INDIRECT($AA13),0), MATCH('Calc - Sparklines'!$D13,INDIRECT($AB13),0)-H$3)),NA()),IFERROR(IF(ISNUMBER( INDEX(INDIRECT($Z13), MATCH('Calc - Sparklines'!$C$2,INDIRECT($AA13),0), MATCH('Calc - Sparklines'!$D13,INDIRECT($AB13),0)-H$3))=FALSE,NA(), INDEX(INDIRECT($Z13), MATCH('Calc - Sparklines'!$C$2,INDIRECT($AA13),0), MATCH('Calc - Sparklines'!$D13,INDIRECT($AB13),0)-H$3)),NA())) -> 0.7767295597 | I13: =IF('Calc - Sparklines'!$C$2="EN",IFERROR(IF(ISNUMBER( INDEX(INDIRECT($Z13), MATCH('Calc - Sparklines'!$AF13,INDIRECT($AA13),0), MATCH('Calc - Sparklines'!$D13,INDIRECT($AB13),0)-I$3))=FALSE,NA(), INDEX(INDIRECT($Z13), MATCH('Calc - Sparklines'!$AF13,INDIRECT($AA13),0), MATCH('Calc - Sparklines'!$D13,INDIRECT($AB13),0)-I$3)),NA()),IFERROR(IF(ISNUMBER( INDEX(INDIRECT($Z13), MATCH('Calc - Sparklines'!$C$2,INDIRECT($AA13),0), MATCH('Calc - Sparklines'!$D13,INDIRECT($AB13),0)-I$3))=FALSE,NA(), INDEX(INDIRECT($Z13), MATCH('Calc - Sparklines'!$C$2,INDIRECT($AA13),0), MATCH('Calc - Sparklines'!$D13,INDIRECT($AB13),0)-I$3)),NA())) -> 0.7507692308 | J13: =IF('Calc - Sparklines'!$C$2="EN",IFERROR(IF(ISNUMBER( INDEX(INDIRECT($Z13), MATCH('Calc - Sparklines'!$AF13,INDIRECT($AA13),0), MATCH('Calc - Sparklines'!$D13,INDIRECT($AB13),0)-J$3))=FALSE,NA(), INDEX(INDIRECT($Z13), MATCH('Calc - Sparklines'!$AF13,INDIRECT($AA13),0), MATCH('Calc - Sparklines'!$D13,INDIRECT($AB13),0)-J$3)),NA()),IFERROR(IF(ISNUMBER( INDEX(INDIRECT($Z13), MATCH('Calc - Sparklines'!$C$2,INDIRECT($AA13),0), MATCH('Calc - Sparklines'!$D13,INDIRECT($AB13),0)-J$3))=FALSE,NA(), INDEX(INDIRECT($Z13), MATCH('Calc - Sparklines'!$C$2,INDIRECT($AA13),0), MATCH('Calc - Sparklines'!$D13,INDIRECT($AB13),0)-J$3)),NA())) -> 0.7347480106 | K13: =IF('Calc - Sparklines'!$C$2="EN",IFERROR(IF(ISNUMBER( INDEX(INDIRECT($Z13), MATCH('Calc - Sparklines'!$AF13,INDIRECT($AA13),0), MATCH('Calc - Sparklines'!$D13,INDIRECT($AB13),0)-K$3))=FALSE,NA(), INDEX(INDIRECT($Z13), MATCH('Calc - Sparklines'!$AF13,INDIRECT($AA13),0), MATCH('Calc - Sparklines'!$D13,INDIRECT($AB13),0)-K$3)),NA()),IFERROR(IF(ISNUMBER( INDEX(INDIRECT($Z13), MATCH('Calc - Sparklines'!$C$2,INDIRECT($AA13),0), MATCH('Calc - Sparklines'!$D13,INDIRECT($AB13),0)-K$3))=FALSE,NA(), INDEX(INDIRECT($Z13), MATCH('Calc - Sparklines'!$C$2,INDIRECT($AA13),0), MATCH('Calc - Sparklines'!$D13,INDIRECT($AB13),0)-K$3)),NA())) -> 0.8045325779 | L13: =IF('Calc - Sparklines'!$C$2="EN",IFERROR(IF(ISNUMBER( INDEX(INDIRECT($Z13), MATCH('Calc - Sparklines'!$AF13,INDIRECT($AA13),0), MATCH('Calc - Sparklines'!$D13,INDIRECT($AB13),0)-L$3))=FALSE,NA(), INDEX(INDIRECT($Z13), MATCH('Calc - Sparklines'!$AF13,INDIRECT($AA13),0), MATCH('Calc - Sparklines'!$D13,INDIRECT($AB13),0)-L$3)),NA()),IFERROR(IF(ISNUMBER( INDEX(INDIRECT($Z13), MATCH('Calc - Sparklines'!$C$2,INDIRECT($AA13),0), MATCH('Calc - Sparklines'!$D13,INDIRECT($AB13),0)-L$3))=FALSE,NA(), INDEX(INDIRECT($Z13), MATCH('Calc - Sparklines'!$C$2,INDIRECT($AA13),0), MATCH('Calc - Sparklines'!$D13,INDIRECT($AB13),0)-L$3)),NA())) -> 0.8780487805 | M13: =IF('Calc - Sparklines'!$C$2="EN",IFERROR(IF(ISNUMBER( INDEX(INDIRECT($Z13), MATCH('Calc - Sparklines'!$AF13,INDIRECT($AA13),0), MATCH('Calc - Sparklines'!$D13,INDIRECT($AB13),0)-M$3))=FALSE,NA(), INDEX(INDIRECT($Z13), MATCH('Calc - Sparklines'!$AF13,INDIRECT($AA13),0), MATCH('Calc - Sparklines'!$D13,INDIRECT($AB13),0)-M$3)),NA()),IFERROR(IF(ISNUMBER( INDEX(INDIRECT($Z13), MATCH('Calc - Sparklines'!$C$2,INDIRECT($AA13),0), MATCH('Calc - Sparklines'!$D13,INDIRECT($AB13),0)-M$3))=FALSE,NA(), INDEX(INDIRECT($Z13), MATCH('Calc - Sparklines'!$C$2,INDIRECT($AA13),0), MATCH('Calc - Sparklines'!$D13,INDIRECT($AB13),0)-M$3)),NA())) -> 0.8528 | N13: =IF('Calc - Sparklines'!$C$2="EN",IFERROR(IF(ISNUMBER( INDEX(INDIRECT($Z13), MATCH('Calc - Sparklines'!$AF13,INDIRECT($AA13),0), MATCH('Calc - Sparklines'!$D13,INDIRECT($AB13),0)-N$3))=FALSE,NA(), INDEX(INDIRECT($Z13), MATCH('Calc - Sparklines'!$AF13,INDIRECT($AA13),0), MATCH('Calc - Sparklines'!$D13,INDIRECT($AB13),0)-N$3)),NA()),IFERROR(IF(ISNUMBER( INDEX(INDIRECT($Z13), MATCH('Calc - Sparklines'!$C$2,INDIRECT($AA13),0), MATCH('Calc - Sparklines'!$D13,INDIRECT($AB13),0)-N$3))=FALSE,NA(), INDEX(INDIRECT($Z13), MATCH('Calc - Sparklines'!$C$2,INDIRECT($AA13),0), MATCH('Calc - Sparklines'!$D13,INDIRECT($AB13),0)-N$3)),NA())) -> 0.7271428571 | O13: =IF('Calc - Sparklines'!$C$2="EN",IFERROR(IF(ISNUMBER( INDEX(INDIRECT($Z13), MATCH('Calc - Sparklines'!$AF13,INDIRECT($AA13),0), MATCH('Calc - Sparklines'!$D13,INDIRECT($AB13),0)-O$3))=FALSE,NA(), INDEX(INDIRECT($Z13), MATCH('Calc - Sparklines'!$AF13,INDIRECT($AA13),0), MATCH('Calc - Sparklines'!$D13,INDIRECT($AB13),0)-O$3)),NA()),IFERROR(IF(ISNUMBER( INDEX(INDIRECT($Z13), MATCH('Calc - Sparklines'!$C$2,INDIRECT($AA13),0), MATCH('Calc - Sparklines'!$D13,INDIRECT($AB13),0)-O$3))=FALSE,NA(), INDEX(INDIRECT($Z13), MATCH('Calc - Sparklines'!$C$2,INDIRECT($AA13),0), MATCH('Calc - Sparklines'!$D13,INDIRECT($AB13),0)-O$3)),NA())) -> 0.7051 | P13: =IF('Calc - Sparklines'!$C$2="EN",IFERROR(IF(ISNUMBER( INDEX(INDIRECT($Z13), MATCH('Calc - Sparklines'!$AF13,INDIRECT($AA13),0), MATCH('Calc - Sparklines'!$D13,INDIRECT($AB13),0)-P$3))=FALSE,NA(), INDEX(INDIRECT($Z13), MATCH('Calc - Sparklines'!$AF13,INDIRECT($AA13),0), MATCH('Calc - Sparklines'!$D13,INDIRECT($AB13),0)-P$3)),NA()),IFERROR(IF(ISNUMBER( INDEX(INDIRECT($Z13), MATCH('Calc - Sparklines'!$C$2,INDIRECT($AA13),0), MATCH('Calc - Sparklines'!$D13,INDIRECT($AB13),0)-P$3))=FALSE,NA(), INDEX(INDIRECT($Z13), MATCH('Calc - Sparklines'!$C$2,INDIRECT($AA13),0), MATCH('Calc - Sparklines'!$D13,INDIRECT($AB13),0)-P$3)),NA())) -> 0.6103 | R13: 6 | S13: =IF(P13="N/A",IF(O13="N/A",2,1),0) -> 0 | T13: 0.6103 | U13: 0.7051 | V13: ▼ | W13: Sparkline54 | Z13: Data_Table_CYP_ii_a | AA13: Data_Orgs_CYP_ii_a | AB13: Data_Dates_CYP_ii_a | AD13: National and regional measure only | AE13: National and regional measure only | AF13: =IF('Calc - Sparklines'!$C$2="EN",IF(ISNUMBER(MATCH('Calc - Sparklines'!$C$2,INDIRECT($AA13),0)),"EN","ENG"),0) -> ENG | AG13: =(MATCH('Calc - Sparklines'!$C$2,INDIRECT($AA13),0)) ->  | AH13: =IFERROR(P13-L13,"") -> -0.2677487805 | AI13: =IFERROR(P13-H13,"") -> -0.1664295597
A14: CYP_ii_b | B14: CYP(ii.b) | C14: % of CYP with eating disorders seen within 4 weeks (routine) | D14: ='CYP(ii_b)_FINAL CALC'!B6 -> Q1 2021/22 | E14: =IF('Calc - Sparklines'!$C$2="EN",IFERROR(IF(ISNUMBER( INDEX(INDIRECT($Z14), MATCH('Calc - Sparklines'!$AF14,INDIRECT($AA14),0), MATCH('Calc - Sparklines'!$D14,INDIRECT($AB14),0)-E$3))=FALSE,NA(), INDEX(INDIRECT($Z14), MATCH('Calc - Sparklines'!$AF14,INDIRECT($AA14),0), MATCH('Calc - Sparklines'!$D14,INDIRECT($AB14),0)-E$3)),NA()),IFERROR(IF(ISNUMBER( INDEX(INDIRECT($Z14), MATCH('Calc - Sparklines'!$C$2,INDIRECT($AA14),0), MATCH('Calc - Sparklines'!$D14,INDIRECT($AB14),0)-E$3))=FALSE,NA(), INDEX(INDIRECT($Z14), MATCH('Calc - Sparklines'!$C$2,INDIRECT($AA14),0), MATCH('Calc - Sparklines'!$D14,INDIRECT($AB14),0)-E$3)),NA())) -> 0.8017894012 | F14: =IF('Calc - Sparklines'!$C$2="EN",IFERROR(IF(ISNUMBER( INDEX(INDIRECT($Z14), MATCH('Calc - Sparklines'!$AF14,INDIRECT($AA14),0), MATCH('Calc - Sparklines'!$D14,INDIRECT($AB14),0)-F$3))=FALSE,NA(), INDEX(INDIRECT($Z14), MATCH('Calc - Sparklines'!$AF14,INDIRECT($AA14),0), MATCH('Calc - Sparklines'!$D14,INDIRECT($AB14),0)-F$3)),NA()),IFERROR(IF(ISNUMBER( INDEX(INDIRECT($Z14), MATCH('Calc - Sparklines'!$C$2,INDIRECT($AA14),0), MATCH('Calc - Sparklines'!$D14,INDIRECT($AB14),0)-F$3))=FALSE,NA(), INDEX(INDIRECT($Z14), MATCH('Calc - Sparklines'!$C$2,INDIRECT($AA14),0), MATCH('Calc - Sparklines'!$D14,INDIRECT($AB14),0)-F$3)),NA())) -> 0.8681388013 | G14: =IF('Calc - Sparklines'!$C$2="EN",IFERROR(IF(ISNUMBER( INDEX(INDIRECT($Z14), MATCH('Calc - Sparklines'!$AF14,INDIRECT($AA14),0), MATCH('Calc - Sparklines'!$D14,INDIRECT($AB14),0)-G$3))=FALSE,NA(), INDEX(INDIRECT($Z14), MATCH('Calc - Sparklines'!$AF14,INDIRECT($AA14),0), MATCH('Calc - Sparklines'!$D14,INDIRECT($AB14),0)-G$3)),NA()),IFERROR(IF(ISNUMBER( INDEX(INDIRECT($Z14), MATCH('Calc - Sparklines'!$C$2,INDIRECT($AA14),0), MATCH('Calc - Sparklines'!$D14,INDIRECT($AB14),0)-G$3))=FALSE,NA(), INDEX(INDIRECT($Z14), MATCH('Calc - Sparklines'!$C$2,INDIRECT($AA14),0), MATCH('Calc - Sparklines'!$D14,INDIRECT($AB14),0)-G$3)),NA())) -> 0.8242560359 | H14: =IF('Calc - Sparklines'!$C$2="EN",IFERROR(IF(ISNUMBER( INDEX(INDIRECT($Z14), MATCH('Calc - Sparklines'!$AF14,INDIRECT($AA14),0), MATCH('Calc - Sparklines'!$D14,INDIRECT($AB14),0)-H$3))=FALSE,NA(), INDEX(INDIRECT($Z14), MATCH('Calc - Sparklines'!$AF14,INDIRECT($AA14),0), MATCH('Calc - Sparklines'!$D14,INDIRECT($AB14),0)-H$3)),NA()),IFERROR(IF(ISNUMBER( INDEX(INDIRECT($Z14), MATCH('Calc - Sparklines'!$C$2,INDIRECT($AA14),0), MATCH('Calc - Sparklines'!$D14,INDIRECT($AB14),0)-H$3))=FALSE,NA(), INDEX(INDIRECT($Z14), MATCH('Calc - Sparklines'!$C$2,INDIRECT($AA14),0), MATCH('Calc - Sparklines'!$D14,INDIRECT($AB14),0)-H$3)),NA())) -> 0.8343004513 | I14: =IF('Calc - Sparklines'!$C$2="EN",IFERROR(IF(ISNUMBER( INDEX(INDIRECT($Z14), MATCH('Calc - Sparklines'!$AF14,INDIRECT($AA14),0), MATCH('Calc - Sparklines'!$D14,INDIRECT($AB14),0)-I$3))=FALSE,NA(), INDEX(INDIRECT($Z14), MATCH('Calc - Sparklines'!$AF14,INDIRECT($AA14),0), MATCH('Calc - Sparklines'!$D14,INDIRECT($AB14),0)-I$3)),NA()),IFERROR(IF(ISNUMBER( INDEX(INDIRECT($Z14), MATCH('Calc - Sparklines'!$C$2,INDIRECT($AA14),0), MATCH('Calc - Sparklines'!$D14,INDIRECT($AB14),0)-I$3))=FALSE,NA(), INDEX(INDIRECT($Z14), MATCH('Calc - Sparklines'!$C$2,INDIRECT($AA14),0), MATCH('Calc - Sparklines'!$D14,INDIRECT($AB14),0)-I$3)),NA())) -> 0.8598066298 | J14: =IF('Calc - Sparklines'!$C$2="EN",IFERROR(IF(ISNUMBER( INDEX(INDIRECT($Z14), MATCH('Calc - Sparklines'!$AF14,INDIRECT($AA14),0), MATCH('Calc - Sparklines'!$D14,INDIRECT($AB14),0)-J$3))=FALSE,NA(), INDEX(INDIRECT($Z14), MATCH('Calc - Sparklines'!$AF14,INDIRECT($AA14),0), MATCH('Calc - Sparklines'!$D14,INDIRECT($AB14),0)-J$3)),NA()),IFERROR(IF(ISNUMBER( INDEX(INDIRECT($Z14), MATCH('Calc - Sparklines'!$C$2,INDIRECT($AA14),0), MATCH('Calc - Sparklines'!$D14,INDIRECT($AB14),0)-J$3))=FALSE,NA(), INDEX(INDIRECT($Z14), MATCH('Calc - Sparklines'!$C$2,INDIRECT($AA14),0), MATCH('Calc - Sparklines'!$D14,INDIRECT($AB14),0)-J$3)),NA())) -> 0.8685808945 | K14: =IF('Calc - Sparklines'!$C$2="EN",IFERROR(IF(ISNUMBER( INDEX(INDIRECT($Z14), MATCH('Calc - Sparklines'!$AF14,INDIRECT($AA14),0), MATCH('Calc - Sparklines'!$D14,INDIRECT($AB14),0)-K$3))=FALSE,NA(), INDEX(INDIRECT($Z14), MATCH('Calc - Sparklines'!$AF14,INDIRECT($AA14),0), MATCH('Calc - Sparklines'!$D14,INDIRECT($AB14),0)-K$3)),NA()),IFERROR(IF(ISNUMBER( INDEX(INDIRECT($Z14), MATCH('Calc - Sparklines'!$C$2,INDIRECT($AA14),0), MATCH('Calc - Sparklines'!$D14,INDIRECT($AB14),0)-K$3))=FALSE,NA(), INDEX(INDIRECT($Z14), MATCH('Calc - Sparklines'!$C$2,INDIRECT($AA14),0), MATCH('Calc - Sparklines'!$D14,INDIRECT($AB14),0)-K$3)),NA())) -> 0.8443243243 | L14: =IF('Calc - Sparklines'!$C$2="EN",IFERROR(IF(ISNUMBER( INDEX(INDIRECT($Z14), MATCH('Calc - Sparklines'!$AF14,INDIRECT($AA14),0), MATCH('Calc - Sparklines'!$D14,INDIRECT($AB14),0)-L$3))=FALSE,NA(), INDEX(INDIRECT($Z14), MATCH('Calc - Sparklines'!$AF14,INDIRECT($AA14),0), MATCH('Calc - Sparklines'!$D14,INDIRECT($AB14),0)-L$3)),NA()),IFERROR(IF(ISNUMBER( INDEX(INDIRECT($Z14), MATCH('Calc - Sparklines'!$C$2,INDIRECT($AA14),0), MATCH('Calc - Sparklines'!$D14,INDIRECT($AB14),0)-L$3))=FALSE,NA(), INDEX(INDIRECT($Z14), MATCH('Calc - Sparklines'!$C$2,INDIRECT($AA14),0), MATCH('Calc - Sparklines'!$D14,INDIRECT($AB14),0)-L$3)),NA())) -> 0.8678544915 | M14: =IF('Calc - Sparklines'!$C$2="EN",IFERROR(IF(ISNUMBER( INDEX(INDIRECT($Z14), MATCH('Calc - Sparklines'!$AF14,INDIRECT($AA14),0), MATCH('Calc - Sparklines'!$D14,INDIRECT($AB14),0)-M$3))=FALSE,NA(), INDEX(INDIRECT($Z14), MATCH('Calc - Sparklines'!$AF14,INDIRECT($AA14),0), MATCH('Calc - Sparklines'!$D14,INDIRECT($AB14),0)-M$3)),NA()),IFERROR(IF(ISNUMBER( INDEX(INDIRECT($Z14), MATCH('Calc - Sparklines'!$C$2,INDIRECT($AA14),0), MATCH('Calc - Sparklines'!$D14,INDIRECT($AB14),0)-M$3))=FALSE,NA(), INDEX(INDIRECT($Z14), MATCH('Calc - Sparklines'!$C$2,INDIRECT($AA14),0), MATCH('Calc - Sparklines'!$D14,INDIRECT($AB14),0)-M$3)),NA())) -> 0.8955522239 | N14: =IF('Calc - Sparklines'!$C$2="EN",IFERROR(IF(ISNUMBER( INDEX(INDIRECT($Z14), MATCH('Calc - Sparklines'!$AF14,INDIRECT($AA14),0), MATCH('Calc - Sparklines'!$D14,INDIRECT($AB14),0)-N$3))=FALSE,NA(), INDEX(INDIRECT($Z14), MATCH('Calc - Sparklines'!$AF14,INDIRECT($AA14),0), MATCH('Calc - Sparklines'!$D14,INDIRECT($AB14),0)-N$3)),NA()),IFERROR(IF(ISNUMBER( INDEX(INDIRECT($Z14), MATCH('Calc - Sparklines'!$C$2,INDIRECT($AA14),0), MATCH('Calc - Sparklines'!$D14,INDIRECT($AB14),0)-N$3))=FALSE,NA(), INDEX(INDIRECT($Z14), MATCH('Calc - Sparklines'!$C$2,INDIRECT($AA14),0), MATCH('Calc - Sparklines'!$D14,INDIRECT($AB14),0)-N$3)),NA())) -> 0.8265465936 | O14: =IF('Calc - Sparklines'!$C$2="EN",IFERROR(IF(ISNUMBER( INDEX(INDIRECT($Z14), MATCH('Calc - Sparklines'!$AF14,INDIRECT($AA14),0), MATCH('Calc - Sparklines'!$D14,INDIRECT($AB14),0)-O$3))=FALSE,NA(), INDEX(INDIRECT($Z14), MATCH('Calc - Sparklines'!$AF14,INDIRECT($AA14),0), MATCH('Calc - Sparklines'!$D14,INDIRECT($AB14),0)-O$3)),NA()),IFERROR(IF(ISNUMBER( INDEX(INDIRECT($Z14), MATCH('Calc - Sparklines'!$C$2,INDIRECT($AA14),0), MATCH('Calc - Sparklines'!$D14,INDIRECT($AB14),0)-O$3))=FALSE,NA(), INDEX(INDIRECT($Z14), MATCH('Calc - Sparklines'!$C$2,INDIRECT($AA14),0), MATCH('Calc - Sparklines'!$D14,INDIRECT($AB14),0)-O$3)),NA())) -> 0.7266 | P14: =IF('Calc - Sparklines'!$C$2="EN",IFERROR(IF(ISNUMBER( INDEX(INDIRECT($Z14), MATCH('Calc - Sparklines'!$AF14,INDIRECT($AA14),0), MATCH('Calc - Sparklines'!$D14,INDIRECT($AB14),0)-P$3))=FALSE,NA(), INDEX(INDIRECT($Z14), MATCH('Calc - Sparklines'!$AF14,INDIRECT($AA14),0), MATCH('Calc - Sparklines'!$D14,INDIRECT($AB14),0)-P$3)),NA()),IFERROR(IF(ISNUMBER( INDEX(INDIRECT($Z14), MATCH('Calc - Sparklines'!$C$2,INDIRECT($AA14),0), MATCH('Calc - Sparklines'!$D14,INDIRECT($AB14),0)-P$3))=FALSE,NA(), INDEX(INDIRECT($Z14), MATCH('Calc - Sparklines'!$C$2,INDIRECT($AA14),0), MATCH('Calc - Sparklines'!$D14,INDIRECT($AB14),0)-P$3)),NA())) -> 0.7265 | R14: 6 | S14: 0 | T14: 0.7265 | U14: 0.7266 | V14: =IF(D14="","",IFERROR(IF(T14>U14,"▲", IF(T14<U14,"▼","◄►")),"N/A")) -> ▼ | W14: Sparkline05 | Z14: Data_Table_CYP_ii_b | AA14: Data_Orgs_CYP_ii_b | AB14: Data_Dates_CYP_ii_b | AD14: Chart available at CCG & STP level only | AE14: =IF(OR(Dashboard!$O$3=1,Dashboard!$O$3=2),"Chart available at CCG & STP level only","") -> Chart available at CCG & STP level only | AF14: =IF('Calc - Sparklines'!$C$2="EN",IF(ISNUMBER(MATCH('Calc - Sparklines'!$C$2,INDIRECT($AA14),0)),"EN","England"),0) -> EN | AG14: =(MATCH('Calc - Sparklines'!$C$2,INDIRECT($AA14),0)) -> 2 | AH14: =IFERROR(P14-L14,"") -> -0.1413544915 | AI14: =IFERROR(P14-H14,"") -> -0.1078004513
A15: CYP_iii_a | B15: CYP(iii.a) | C15: Number of bed days for CYP under 18 in CAMHS tier 4 wards | D15: ='CYP(iii_a)_FINAL CALC'!B6 -> Q1 2021/22 | E15: =IF('Calc - Sparklines'!$C$2="EN",IFERROR(IF(ISNUMBER( INDEX(INDIRECT($Z15), MATCH('Calc - Sparklines'!$AF15,INDIRECT($AA15),0), MATCH('Calc - Sparklines'!$D15,INDIRECT($AB15),0)-E$3))=FALSE,NA(), INDEX(INDIRECT($Z15), MATCH('Calc - Sparklines'!$AF15,INDIRECT($AA15),0), MATCH('Calc - Sparklines'!$D15,INDIRECT($AB15),0)-E$3)),NA()),IFERROR(IF(ISNUMBER( INDEX(INDIRECT($Z15), MATCH('Calc - Sparklines'!$C$2,INDIRECT($AA15),0), MATCH('Calc - Sparklines'!$D15,INDIRECT($AB15),0)-E$3))=FALSE,NA(), INDEX(INDIRECT($Z15), MATCH('Calc - Sparklines'!$C$2,INDIRECT($AA15),0), MATCH('Calc - Sparklines'!$D15,INDIRECT($AB15),0)-E$3)),NA())) -> 103200 | F15: =IF('Calc - Sparklines'!$C$2="EN",IFERROR(IF(ISNUMBER( INDEX(INDIRECT($Z15), MATCH('Calc - Sparklines'!$AF15,INDIRECT($AA15),0), MATCH('Calc - Sparklines'!$D15,INDIRECT($AB15),0)-F$3))=FALSE,NA(), INDEX(INDIRECT($Z15), MATCH('Calc - Sparklines'!$AF15,INDIRECT($AA15),0), MATCH('Calc - Sparklines'!$D15,INDIRECT($AB15),0)-F$3)),NA()),IFERROR(IF(ISNUMBER( INDEX(INDIRECT($Z15), MATCH('Calc - Sparklines'!$C$2,INDIRECT($AA15),0), MATCH('Calc - Sparklines'!$D15,INDIRECT($AB15),0)-F$3))=FALSE,NA(), INDEX(INDIRECT($Z15), MATCH('Calc - Sparklines'!$C$2,INDIRECT($AA15),0), MATCH('Calc - Sparklines'!$D15,INDIRECT($AB15),0)-F$3)),NA())) -> 107808 | G15: =IF('Calc - Sparklines'!$C$2="EN",IFERROR(IF(ISNUMBER( INDEX(INDIRECT($Z15), MATCH('Calc - Sparklines'!$AF15,INDIRECT($AA15),0), MATCH('Calc - Sparklines'!$D15,INDIRECT($AB15),0)-G$3))=FALSE,NA(), INDEX(INDIRECT($Z15), MATCH('Calc - Sparklines'!$AF15,INDIRECT($AA15),0), MATCH('Calc - Sparklines'!$D15,INDIRECT($AB15),0)-G$3)),NA()),IFERROR(IF(ISNUMBER( INDEX(INDIRECT($Z15), MATCH('Calc - Sparklines'!$C$2,INDIRECT($AA15),0), MATCH('Calc - Sparklines'!$D15,INDIRECT($AB15),0)-G$3))=FALSE,NA(), INDEX(INDIRECT($Z15), MATCH('Calc - Sparklines'!$C$2,INDIRECT($AA15),0), MATCH('Calc - Sparklines'!$D15,INDIRECT($AB15),0)-G$3)),NA())) -> 110782 | H15: =IF('Calc - Sparklines'!$C$2="EN",IFERROR(IF(ISNUMBER( INDEX(INDIRECT($Z15), MATCH('Calc - Sparklines'!$AF15,INDIRECT($AA15),0), MATCH('Calc - Sparklines'!$D15,INDIRECT($AB15),0)-H$3))=FALSE,NA(), INDEX(INDIRECT($Z15), MATCH('Calc - Sparklines'!$AF15,INDIRECT($AA15),0), MATCH('Calc - Sparklines'!$D15,INDIRECT($AB15),0)-H$3)),NA()),IFERROR(IF(ISNUMBER( INDEX(INDIRECT($Z15), MATCH('Calc - Sparklines'!$C$2,INDIRECT($AA15),0), MATCH('Calc - Sparklines'!$D15,INDIRECT($AB15),0)-H$3))=FALSE,NA(), INDEX(INDIRECT($Z15), MATCH('Calc - Sparklines'!$C$2,INDIRECT($AA15),0), MATCH('Calc - Sparklines'!$D15,INDIRECT($AB15),0)-H$3)),NA())) -> 115995 | I15: =IF('Calc - Sparklines'!$C$2="EN",IFERROR(IF(ISNUMBER( INDEX(INDIRECT($Z15), MATCH('Calc - Sparklines'!$AF15,INDIRECT($AA15),0), MATCH('Calc - Sparklines'!$D15,INDIRECT($AB15),0)-I$3))=FALSE,NA(), INDEX(INDIRECT($Z15), MATCH('Calc - Sparklines'!$AF15,INDIRECT($AA15),0), MATCH('Calc - Sparklines'!$D15,INDIRECT($AB15),0)-I$3)),NA()),IFERROR(IF(ISNUMBER( INDEX(INDIRECT($Z15), MATCH('Calc - Sparklines'!$C$2,INDIRECT($AA15),0), MATCH('Calc - Sparklines'!$D15,INDIRECT($AB15),0)-I$3))=FALSE,NA(), INDEX(INDIRECT($Z15), MATCH('Calc - Sparklines'!$C$2,INDIRECT($AA15),0), MATCH('Calc - Sparklines'!$D15,INDIRECT($AB15),0)-I$3)),NA())) -> 106076 | J15: =IF('Calc - Sparklines'!$C$2="EN",IFERROR(IF(ISNUMBER( INDEX(INDIRECT($Z15), MATCH('Calc - Sparklines'!$AF15,INDIRECT($AA15),0), MATCH('Calc - Sparklines'!$D15,INDIRECT($AB15),0)-J$3))=FALSE,NA(), INDEX(INDIRECT($Z15), MATCH('Calc - Sparklines'!$AF15,INDIRECT($AA15),0), MATCH('Calc - Sparklines'!$D15,INDIRECT($AB15),0)-J$3)),NA()),IFERROR(IF(ISNUMBER( INDEX(INDIRECT($Z15), MATCH('Calc - Sparklines'!$C$2,INDIRECT($AA15),0), MATCH('Calc - Sparklines'!$D15,INDIRECT($AB15),0)-J$3))=FALSE,NA(), INDEX(INDIRECT($Z15), MATCH('Calc - Sparklines'!$C$2,INDIRECT($AA15),0), MATCH('Calc - Sparklines'!$D15,INDIRECT($AB15),0)-J$3)),NA())) -> 104512 | K15: =IF('Calc - Sparklines'!$C$2="EN",IFERROR(IF(ISNUMBER( INDEX(INDIRECT($Z15), MATCH('Calc - Sparklines'!$AF15,INDIRECT($AA15),0), MATCH('Calc - Sparklines'!$D15,INDIRECT($AB15),0)-K$3))=FALSE,NA(), INDEX(INDIRECT($Z15), MATCH('Calc - Sparklines'!$AF15,INDIRECT($AA15),0), MATCH('Calc - Sparklines'!$D15,INDIRECT($AB15),0)-K$3)),NA()),IFERROR(IF(ISNUMBER( INDEX(INDIRECT($Z15), MATCH('Calc - Sparklines'!$C$2,INDIRECT($AA15),0), MATCH('Calc - Sparklines'!$D15,INDIRECT($AB15),0)-K$3))=FALSE,NA(), INDEX(INDIRECT($Z15), MATCH('Calc - Sparklines'!$C$2,INDIRECT($AA15),0), MATCH('Calc - Sparklines'!$D15,INDIRECT($AB15),0)-K$3)),NA())) -> 100975 | L15: =IF('Calc - Sparklines'!$C$2="EN",IFERROR(IF(ISNUMBER( INDEX(INDIRECT($Z15), MATCH('Calc - Sparklines'!$AF15,INDIRECT($AA15),0), MATCH('Calc - Sparklines'!$D15,INDIRECT($AB15),0)-L$3))=FALSE,NA(), INDEX(INDIRECT($Z15), MATCH('Calc - Sparklines'!$AF15,INDIRECT($AA15),0), MATCH('Calc - Sparklines'!$D15,INDIRECT($AB15),0)-L$3)),NA()),IFERROR(IF(ISNUMBER( INDEX(INDIRECT($Z15), MATCH('Calc - Sparklines'!$C$2,INDIRECT($AA15),0), MATCH('Calc - Sparklines'!$D15,INDIRECT($AB15),0)-L$3))=FALSE,NA(), INDEX(INDIRECT($Z15), MATCH('Calc - Sparklines'!$C$2,INDIRECT($AA15),0), MATCH('Calc - Sparklines'!$D15,INDIRECT($AB15),0)-L$3)),NA())) -> 83308 | M15: =IF('Calc - Sparklines'!$C$2="EN",IFERROR(IF(ISNUMBER( INDEX(INDIRECT($Z15), MATCH('Calc - Sparklines'!$AF15,INDIRECT($AA15),0), MATCH('Calc - Sparklines'!$D15,INDIRECT($AB15),0)-M$3))=FALSE,NA(), INDEX(INDIRECT($Z15), MATCH('Calc - Sparklines'!$AF15,INDIRECT($AA15),0), MATCH('Calc - Sparklines'!$D15,INDIRECT($AB15),0)-M$3)),NA()),IFERROR(IF(ISNUMBER( INDEX(INDIRECT($Z15), MATCH('Calc - Sparklines'!$C$2,INDIRECT($AA15),0), MATCH('Calc - Sparklines'!$D15,INDIRECT($AB15),0)-M$3))=FALSE,NA(), INDEX(INDIRECT($Z15), MATCH('Calc - Sparklines'!$C$2,INDIRECT($AA15),0), MATCH('Calc - Sparklines'!$D15,INDIRECT($AB15),0)-M$3)),NA())) -> 89135 | N15: =IF('Calc - Sparklines'!$C$2="EN",IFERROR(IF(ISNUMBER( INDEX(INDIRECT($Z15), MATCH('Calc - Sparklines'!$AF15,INDIRECT($AA15),0), MATCH('Calc - Sparklines'!$D15,INDIRECT($AB15),0)-N$3))=FALSE,NA(), INDEX(INDIRECT($Z15), MATCH('Calc - Sparklines'!$AF15,INDIRECT($AA15),0), MATCH('Calc - Sparklines'!$D15,INDIRECT($AB15),0)-N$3)),NA()),IFERROR(IF(ISNUMBER( INDEX(INDIRECT($Z15), MATCH('Calc - Sparklines'!$C$2,INDIRECT($AA15),0), MATCH('Calc - Sparklines'!$D15,INDIRECT($AB15),0)-N$3))=FALSE,NA(), INDEX(INDIRECT($Z15), MATCH('Calc - Sparklines'!$C$2,INDIRECT($AA15),0), MATCH('Calc - Sparklines'!$D15,INDIRECT($AB15),0)-N$3)),NA())) -> 88367 | O15: =IF('Calc - Sparklines'!$C$2="EN",IFERROR(IF(ISNUMBER( INDEX(INDIRECT($Z15), MATCH('Calc - Sparklines'!$AF15,INDIRECT($AA15),0), MATCH('Calc - Sparklines'!$D15,INDIRECT($AB15),0)-O$3))=FALSE,NA(), INDEX(INDIRECT($Z15), MATCH('Calc - Sparklines'!$AF15,INDIRECT($AA15),0), MATCH('Calc - Sparklines'!$D15,INDIRECT($AB15),0)-O$3)),NA()),IFERROR(IF(ISNUMBER( INDEX(INDIRECT($Z15), MATCH('Calc - Sparklines'!$C$2,INDIRECT($AA15),0), MATCH('Calc - Sparklines'!$D15,INDIRECT($AB15),0)-O$3))=FALSE,NA(), INDEX(INDIRECT($Z15), MATCH('Calc - Sparklines'!$C$2,INDIRECT($AA15),0), MATCH('Calc - Sparklines'!$D15,INDIRECT($AB15),0)-O$3)),NA())) -> 85836 | P15: =IF('Calc - Sparklines'!$C$2="EN",IFERROR(IF(ISNUMBER( INDEX(INDIRECT($Z15), MATCH('Calc - Sparklines'!$AF15,INDIRECT($AA15),0), MATCH('Calc - Sparklines'!$D15,INDIRECT($AB15),0)-P$3))=FALSE,NA(), INDEX(INDIRECT($Z15), MATCH('Calc - Sparklines'!$AF15,INDIRECT($AA15),0), MATCH('Calc - Sparklines'!$D15,INDIRECT($AB15),0)-P$3)),NA()),IFERROR(IF(ISNUMBER( INDEX(INDIRECT($Z15), MATCH('Calc - Sparklines'!$C$2,INDIRECT($AA15),0), MATCH('Calc - Sparklines'!$D15,INDIRECT($AB15),0)-P$3))=FALSE,NA(), INDEX(INDIRECT($Z15), MATCH('Calc - Sparklines'!$C$2,INDIRECT($AA15),0), MATCH('Calc - Sparklines'!$D15,INDIRECT($AB15),0)-P$3)),NA())) -> 84426 | R15: 6 | S15: 0 | T15: 84426 | U15: 85836 | V15: ▼ | W15: Sparkline06 | Z15: Data_Table_CYP_iii_a | AA15: Data_Orgs_CYP_iii_a | AB15: Data_Dates_CYP_iii_a | AD15: Chart available at CCG & STP level only | AE15: =IF(OR(Dashboard!$O$3=1,Dashboard!$O$3=2),"Chart available at CCG & STP level only","") -> Chart available at CCG & STP level only | AF15: =IF('Calc - Sparklines'!$C$2="EN",IF(ISNUMBER(MATCH('Calc - Sparklines'!$C$2,INDIRECT($AA15),0)),"EN","England"),0) -> EN | AG15: =(MATCH('Calc - Sparklines'!$C$2,INDIRECT($AA15),0)) -> 2 | AH15: =IFERROR(P15/L15-1,"") -> 0.0134200797 | AI15: =IFERROR(P15/H15-1,"") -> -0.2721582827
A16: CYP_iii_b | B16: CYP(iii.b) | C16: Number of admissions of CYP under 18 in CAMHS tier 4 wards | D16: ='CYP(iii_b)_FINAL CALC'!B6 -> Q1 2021/22 | E16: =IF('Calc - Sparklines'!$C$2="EN",IFERROR(IF(ISNUMBER( INDEX(INDIRECT($Z16), MATCH('Calc - Sparklines'!$AF16,INDIRECT($AA16),0), MATCH('Calc - Sparklines'!$D16,INDIRECT($AB16),0)-E$3))=FALSE,NA(), INDEX(INDIRECT($Z16), MATCH('Calc - Sparklines'!$AF16,INDIRECT($AA16),0), MATCH('Calc - Sparklines'!$D16,INDIRECT($AB16),0)-E$3)),NA()),IFERROR(IF(ISNUMBER( INDEX(INDIRECT($Z16), MATCH('Calc - Sparklines'!$C$2,INDIRECT($AA16),0), MATCH('Calc - Sparklines'!$D16,INDIRECT($AB16),0)-E$3))=FALSE,NA(), INDEX(INDIRECT($Z16), MATCH('Calc - Sparklines'!$C$2,INDIRECT($AA16),0), MATCH('Calc - Sparklines'!$D16,INDIRECT($AB16),0)-E$3)),NA())) -> 1090 | F16: =IF('Calc - Sparklines'!$C$2="EN",IFERROR(IF(ISNUMBER( INDEX(INDIRECT($Z16), MATCH('Calc - Sparklines'!$AF16,INDIRECT($AA16),0), MATCH('Calc - Sparklines'!$D16,INDIRECT($AB16),0)-F$3))=FALSE,NA(), INDEX(INDIRECT($Z16), MATCH('Calc - Sparklines'!$AF16,INDIRECT($AA16),0), MATCH('Calc - Sparklines'!$D16,INDIRECT($AB16),0)-F$3)),NA()),IFERROR(IF(ISNUMBER( INDEX(INDIRECT($Z16), MATCH('Calc - Sparklines'!$C$2,INDIRECT($AA16),0), MATCH('Calc - Sparklines'!$D16,INDIRECT($AB16),0)-F$3))=FALSE,NA(), INDEX(INDIRECT($Z16), MATCH('Calc - Sparklines'!$C$2,INDIRECT($AA16),0), MATCH('Calc - Sparklines'!$D16,INDIRECT($AB16),0)-F$3)),NA())) -> 1179 | G16: =IF('Calc - Sparklines'!$C$2="EN",IFERROR(IF(ISNUMBER( INDEX(INDIRECT($Z16), MATCH('Calc - Sparklines'!$AF16,INDIRECT($AA16),0), MATCH('Calc - Sparklines'!$D16,INDIRECT($AB16),0)-G$3))=FALSE,NA(), INDEX(INDIRECT($Z16), MATCH('Calc - Sparklines'!$AF16,INDIRECT($AA16),0), MATCH('Calc - Sparklines'!$D16,INDIRECT($AB16),0)-G$3)),NA()),IFERROR(IF(ISNUMBER( INDEX(INDIRECT($Z16), MATCH('Calc - Sparklines'!$C$2,INDIRECT($AA16),0), MATCH('Calc - Sparklines'!$D16,INDIRECT($AB16),0)-G$3))=FALSE,NA(), INDEX(INDIRECT($Z16), MATCH('Calc - Sparklines'!$C$2,INDIRECT($AA16),0), MATCH('Calc - Sparklines'!$D16,INDIRECT($AB16),0)-G$3)),NA())) -> 1158 | H16: =IF('Calc - Sparklines'!$C$2="EN",IFERROR(IF(ISNUMBER( INDEX(INDIRECT($Z16), MATCH('Calc - Sparklines'!$AF16,INDIRECT($AA16),0), MATCH('Calc - Sparklines'!$D16,INDIRECT($AB16),0)-H$3))=FALSE,NA(), INDEX(INDIRECT($Z16), MATCH('Calc - Sparklines'!$AF16,INDIRECT($AA16),0), MATCH('Calc - Sparklines'!$D16,INDIRECT($AB16),0)-H$3)),NA()),IFERROR(IF(ISNUMBER( INDEX(INDIRECT($Z16), MATCH('Calc - Sparklines'!$C$2,INDIRECT($AA16),0), MATCH('Calc - Sparklines'!$D16,INDIRECT($AB16),0)-H$3))=FALSE,NA(), INDEX(INDIRECT($Z16), MATCH('Calc - Sparklines'!$C$2,INDIRECT($AA16),0), MATCH('Calc - Sparklines'!$D16,INDIRECT($AB16),0)-H$3)),NA())) -> 1088 | I16: =IF('Calc - Sparklines'!$C$2="EN",IFERROR(IF(ISNUMBER( INDEX(INDIRECT($Z16), MATCH('Calc - Sparklines'!$AF16,INDIRECT($AA16),0), MATCH('Calc - Sparklines'!$D16,INDIRECT($AB16),0)-I$3))=FALSE,NA(), INDEX(INDIRECT($Z16), MATCH('Calc - Sparklines'!$AF16,INDIRECT($AA16),0), MATCH('Calc - Sparklines'!$D16,INDIRECT($AB16),0)-I$3)),NA()),IFERROR(IF(ISNUMBER( INDEX(INDIRECT($Z16), MATCH('Calc - Sparklines'!$C$2,INDIRECT($AA16),0), MATCH('Calc - Sparklines'!$D16,INDIRECT($AB16),0)-I$3))=FALSE,NA(), INDEX(INDIRECT($Z16), MATCH('Calc - Sparklines'!$C$2,INDIRECT($AA16),0), MATCH('Calc - Sparklines'!$D16,INDIRECT($AB16),0)-I$3)),NA())) -> 986 | J16: =IF('Calc - Sparklines'!$C$2="EN",IFERROR(IF(ISNUMBER( INDEX(INDIRECT($Z16), MATCH('Calc - Sparklines'!$AF16,INDIRECT($AA16),0), MATCH('Calc - Sparklines'!$D16,INDIRECT($AB16),0)-J$3))=FALSE,NA(), INDEX(INDIRECT($Z16), MATCH('Calc - Sparklines'!$AF16,INDIRECT($AA16),0), MATCH('Calc - Sparklines'!$D16,INDIRECT($AB16),0)-J$3)),NA()),IFERROR(IF(ISNUMBER( INDEX(INDIRECT($Z16), MATCH('Calc - Sparklines'!$C$2,INDIRECT($AA16),0), MATCH('Calc - Sparklines'!$D16,INDIRECT($AB16),0)-J$3))=FALSE,NA(), INDEX(INDIRECT($Z16), MATCH('Calc - Sparklines'!$C$2,INDIRECT($AA16),0), MATCH('Calc - Sparklines'!$D16,INDIRECT($AB16),0)-J$3)),NA())) -> 1009 | K16: =IF('Calc - Sparklines'!$C$2="EN",IFERROR(IF(ISNUMBER( INDEX(INDIRECT($Z16), MATCH('Calc - Sparklines'!$AF16,INDIRECT($AA16),0), MATCH('Calc - Sparklines'!$D16,INDIRECT($AB16),0)-K$3))=FALSE,NA(), INDEX(INDIRECT($Z16), MATCH('Calc - Sparklines'!$AF16,INDIRECT($AA16),0), MATCH('Calc - Sparklines'!$D16,INDIRECT($AB16),0)-K$3)),NA()),IFERROR(IF(ISNUMBER( INDEX(INDIRECT($Z16), MATCH('Calc - Sparklines'!$C$2,INDIRECT($AA16),0), MATCH('Calc - Sparklines'!$D16,INDIRECT($AB16),0)-K$3))=FALSE,NA(), INDEX(INDIRECT($Z16), MATCH('Calc - Sparklines'!$C$2,INDIRECT($AA16),0), MATCH('Calc - Sparklines'!$D16,INDIRECT($AB16),0)-K$3)),NA())) -> 1016 | L16: =IF('Calc - Sparklines'!$C$2="EN",IFERROR(IF(ISNUMBER( INDEX(INDIRECT($Z16), MATCH('Calc - Sparklines'!$AF16,INDIRECT($AA16),0), MATCH('Calc - Sparklines'!$D16,INDIRECT($AB16),0)-L$3))=FALSE,NA(), INDEX(INDIRECT($Z16), MATCH('Calc - Sparklines'!$AF16,INDIRECT($AA16),0), MATCH('Calc - Sparklines'!$D16,INDIRECT($AB16),0)-L$3)),NA()),IFERROR(IF(ISNUMBER( INDEX(INDIRECT($Z16), MATCH('Calc - Sparklines'!$C$2,INDIRECT($AA16),0), MATCH('Calc - Sparklines'!$D16,INDIRECT($AB16),0)-L$3))=FALSE,NA(), INDEX(INDIRECT($Z16), MATCH('Calc - Sparklines'!$C$2,INDIRECT($AA16),0), MATCH('Calc - Sparklines'!$D16,INDIRECT($AB16),0)-L$3)),NA())) -> 865 | M16: =IF('Calc - Sparklines'!$C$2="EN",IFERROR(IF(ISNUMBER( INDEX(INDIRECT($Z16), MATCH('Calc - Sparklines'!$AF16,INDIRECT($AA16),0), MATCH('Calc - Sparklines'!$D16,INDIRECT($AB16),0)-M$3))=FALSE,NA(), INDEX(INDIRECT($Z16), MATCH('Calc - Sparklines'!$AF16,INDIRECT($AA16),0), MATCH('Calc - Sparklines'!$D16,INDIRECT($AB16),0)-M$3)),NA()),IFERROR(IF(ISNUMBER( INDEX(INDIRECT($Z16), MATCH('Calc - Sparklines'!$C$2,INDIRECT($AA16),0), MATCH('Calc - Sparklines'!$D16,INDIRECT($AB16),0)-M$3))=FALSE,NA(), INDEX(INDIRECT($Z16), MATCH('Calc - Sparklines'!$C$2,INDIRECT($AA16),0), MATCH('Calc - Sparklines'!$D16,INDIRECT($AB16),0)-M$3)),NA())) -> 906 | N16: =IF('Calc - Sparklines'!$C$2="EN",IFERROR(IF(ISNUMBER( INDEX(INDIRECT($Z16), MATCH('Calc - Sparklines'!$AF16,INDIRECT($AA16),0), MATCH('Calc - Sparklines'!$D16,INDIRECT($AB16),0)-N$3))=FALSE,NA(), INDEX(INDIRECT($Z16), MATCH('Calc - Sparklines'!$AF16,INDIRECT($AA16),0), MATCH('Calc - Sparklines'!$D16,INDIRECT($AB16),0)-N$3)),NA()),IFERROR(IF(ISNUMBER( INDEX(INDIRECT($Z16), MATCH('Calc - Sparklines'!$C$2,INDIRECT($AA16),0), MATCH('Calc - Sparklines'!$D16,INDIRECT($AB16),0)-N$3))=FALSE,NA(), INDEX(INDIRECT($Z16), MATCH('Calc - Sparklines'!$C$2,INDIRECT($AA16),0), MATCH('Calc - Sparklines'!$D16,INDIRECT($AB16),0)-N$3)),NA())) -> 845 | O16: =IF('Calc - Sparklines'!$C$2="EN",IFERROR(IF(ISNUMBER( INDEX(INDIRECT($Z16), MATCH('Calc - Sparklines'!$AF16,INDIRECT($AA16),0), MATCH('Calc - Sparklines'!$D16,INDIRECT($AB16),0)-O$3))=FALSE,NA(), INDEX(INDIRECT($Z16), MATCH('Calc - Sparklines'!$AF16,INDIRECT($AA16),0), MATCH('Calc - Sparklines'!$D16,INDIRECT($AB16),0)-O$3)),NA()),IFERROR(IF(ISNUMBER( INDEX(INDIRECT($Z16), MATCH('Calc - Sparklines'!$C$2,INDIRECT($AA16),0), MATCH('Calc - Sparklines'!$D16,INDIRECT($AB16),0)-O$3))=FALSE,NA(), INDEX(INDIRECT($Z16), MATCH('Calc - Sparklines'!$C$2,INDIRECT($AA16),0), MATCH('Calc - Sparklines'!$D16,INDIRECT($AB16),0)-O$3)),NA())) -> 802 | P16: =IF('Calc - Sparklines'!$C$2="EN",IFERROR(IF(ISNUMBER( INDEX(INDIRECT($Z16), MATCH('Calc - Sparklines'!$AF16,INDIRECT($AA16),0), MATCH('Calc - Sparklines'!$D16,INDIRECT($AB16),0)-P$3))=FALSE,NA(), INDEX(INDIRECT($Z16), MATCH('Calc - Sparklines'!$AF16,INDIRECT($AA16),0), MATCH('Calc - Sparklines'!$D16,INDIRECT($AB16),0)-P$3)),NA()),IFERROR(IF(ISNUMBER( INDEX(INDIRECT($Z16), MATCH('Calc - Sparklines'!$C$2,INDIRECT($AA16),0), MATCH('Calc - Sparklines'!$D16,INDIRECT($AB16),0)-P$3))=FALSE,NA(), INDEX(INDIRECT($Z16), MATCH('Calc - Sparklines'!$C$2,INDIRECT($AA16),0), MATCH('Calc - Sparklines'!$D16,INDIRECT($AB16),0)-P$3)),NA())) -> 758 | R16: 6 | S16: =IF(P16="N/A",IF(O16="N/A",2,1),0) -> 0 | T16: =OFFSET(P16,,-S16) -> 758 | U16: 802 | V16: ▼ | W16: Sparkline07 | Z16: Data_Table_CYP_iii_b | AA16: Data_Orgs_CYP_iii_b | AB16: Data_Dates_CYP_iii_b | AD16: National and regional measure only | AE16: National and regional measure only | AF16: =IF('Calc - Sparklines'!$C$2="EN",IF(ISNUMBER(MATCH('Calc - Sparklines'!$C$2,INDIRECT($AA16),0)),"EN","England"),0) -> EN | AG16: =(MATCH('Calc - Sparklines'!$C$2,INDIRECT($AA16),0)) -> 2 | AH16: =IFERROR(P16/L16-1,"") -> -0.123699422 | AI16: =IFERROR(P16/H16-1,"") -> -0.3033088235
A17: CYP_iv_a | B17: CYP(iv.a) | C17: Bed days of CYP under 18 in adult in-patient wards | D17: ='CYP(iv_a)_FINAL CALC'!B6 -> Q1 2021/22 | E17: =IF('Calc - Sparklines'!$C$2="EN",IFERROR(IF(ISNUMBER( INDEX(INDIRECT($Z17), MATCH('Calc - Sparklines'!$AF17,INDIRECT($AA17),0), MATCH('Calc - Sparklines'!$D17,INDIRECT($AB17),0)-E$3))=FALSE,NA(), INDEX(INDIRECT($Z17), MATCH('Calc - Sparklines'!$AF17,INDIRECT($AA17),0), MATCH('Calc - Sparklines'!$D17,INDIRECT($AB17),0)-E$3)),NA()),IFERROR(IF(ISNUMBER( INDEX(INDIRECT($Z17), MATCH('Calc - Sparklines'!$C$2,INDIRECT($AA17),0), MATCH('Calc - Sparklines'!$D17,INDIRECT($AB17),0)-E$3))=FALSE,NA(), INDEX(INDIRECT($Z17), MATCH('Calc - Sparklines'!$C$2,INDIRECT($AA17),0), MATCH('Calc - Sparklines'!$D17,INDIRECT($AB17),0)-E$3)),NA())) -> 388 | F17: =IF('Calc - Sparklines'!$C$2="EN",IFERROR(IF(ISNUMBER( INDEX(INDIRECT($Z17), MATCH('Calc - Sparklines'!$AF17,INDIRECT($AA17),0), MATCH('Calc - Sparklines'!$D17,INDIRECT($AB17),0)-F$3))=FALSE,NA(), INDEX(INDIRECT($Z17), MATCH('Calc - Sparklines'!$AF17,INDIRECT($AA17),0), MATCH('Calc - Sparklines'!$D17,INDIRECT($AB17),0)-F$3)),NA()),IFERROR(IF(ISNUMBER( INDEX(INDIRECT($Z17), MATCH('Calc - Sparklines'!$C$2,INDIRECT($AA17),0), MATCH('Calc - Sparklines'!$D17,INDIRECT($AB17),0)-F$3))=FALSE,NA(), INDEX(INDIRECT($Z17), MATCH('Calc - Sparklines'!$C$2,INDIRECT($AA17),0), MATCH('Calc - Sparklines'!$D17,INDIRECT($AB17),0)-F$3)),NA())) -> 282 | G17: =IF('Calc - Sparklines'!$C$2="EN",IFERROR(IF(ISNUMBER( INDEX(INDIRECT($Z17), MATCH('Calc - Sparklines'!$AF17,INDIRECT($AA17),0), MATCH('Calc - Sparklines'!$D17,INDIRECT($AB17),0)-G$3))=FALSE,NA(), INDEX(INDIRECT($Z17), MATCH('Calc - Sparklines'!$AF17,INDIRECT($AA17),0), MATCH('Calc - Sparklines'!$D17,INDIRECT($AB17),0)-G$3)),NA()),IFERROR(IF(ISNUMBER( INDEX(INDIRECT($Z17), MATCH('Calc - Sparklines'!$C$2,INDIRECT($AA17),0), MATCH('Calc - Sparklines'!$D17,INDIRECT($AB17),0)-G$3))=FALSE,NA(), INDEX(INDIRECT($Z17), MATCH('Calc - Sparklines'!$C$2,INDIRECT($AA17),0), MATCH('Calc - Sparklines'!$D17,INDIRECT($AB17),0)-G$3)),NA())) -> 505 | H17: =IF('Calc - Sparklines'!$C$2="EN",IFERROR(IF(ISNUMBER( INDEX(INDIRECT($Z17), MATCH('Calc - Sparklines'!$AF17,INDIRECT($AA17),0), MATCH('Calc - Sparklines'!$D17,INDIRECT($AB17),0)-H$3))=FALSE,NA(), INDEX(INDIRECT($Z17), MATCH('Calc - Sparklines'!$AF17,INDIRECT($AA17),0), MATCH('Calc - Sparklines'!$D17,INDIRECT($AB17),0)-H$3)),NA()),IFERROR(IF(ISNUMBER( INDEX(INDIRECT($Z17), MATCH('Calc - Sparklines'!$C$2,INDIRECT($AA17),0), MATCH('Calc - Sparklines'!$D17,INDIRECT($AB17),0)-H$3))=FALSE,NA(), INDEX(INDIRECT($Z17), MATCH('Calc - Sparklines'!$C$2,INDIRECT($AA17),0), MATCH('Calc - Sparklines'!$D17,INDIRECT($AB17),0)-H$3)),NA())) ->  | I17: =IF('Calc - Sparklines'!$C$2="EN",IFERROR(IF(ISNUMBER( INDEX(INDIRECT($Z17), MATCH('Calc - Sparklines'!$AF17,INDIRECT($AA17),0), MATCH('Calc - Sparklines'!$D17,INDIRECT($AB17),0)-I$3))=FALSE,NA(), INDEX(INDIRECT($Z17), MATCH('Calc - Sparklines'!$AF17,INDIRECT($AA17),0), MATCH('Calc - Sparklines'!$D17,INDIRECT($AB17),0)-I$3)),NA()),IFERROR(IF(ISNUMBER( INDEX(INDIRECT($Z17), MATCH('Calc - Sparklines'!$C$2,INDIRECT($AA17),0), MATCH('Calc - Sparklines'!$D17,INDIRECT($AB17),0)-I$3))=FALSE,NA(), INDEX(INDIRECT($Z17), MATCH('Calc - Sparklines'!$C$2,INDIRECT($AA17),0), MATCH('Calc - Sparklines'!$D17,INDIRECT($AB17),0)-I$3)),NA())) ->  | J17: =IF('Calc - Sparklines'!$C$2="EN",IFERROR(IF(ISNUMBER( INDEX(INDIRECT($Z17), MATCH('Calc - Sparklines'!$AF17,INDIRECT($AA17),0), MATCH('Calc - Sparklines'!$D17,INDIRECT($AB17),0)-J$3))=FALSE,NA(), INDEX(INDIRECT($Z17), MATCH('Calc - Sparklines'!$AF17,INDIRECT($AA17),0), MATCH('Calc - Sparklines'!$D17,INDIRECT($AB17),0)-J$3)),NA()),IFERROR(IF(ISNUMBER( INDEX(INDIRECT($Z17), MATCH('Calc - Sparklines'!$C$2,INDIRECT($AA17),0), MATCH('Calc - Sparklines'!$D17,INDIRECT($AB17),0)-J$3))=FALSE,NA(), INDEX(INDIRECT($Z17), MATCH('Calc - Sparklines'!$C$2,INDIRECT($AA17),0), MATCH('Calc - Sparklines'!$D17,INDIRECT($AB17),0)-J$3)),NA())) ->  | K17: =IF('Calc - Sparklines'!$C$2="EN",IFERROR(IF(ISNUMBER( INDEX(INDIRECT($Z17), MATCH('Calc - Sparklines'!$AF17,INDIRECT($AA17),0), MATCH('Calc - Sparklines'!$D17,INDIRECT($AB17),0)-K$3))=FALSE,NA(), INDEX(INDIRECT($Z17), MATCH('Calc - Sparklines'!$AF17,INDIRECT($AA17),0), MATCH('Calc - Sparklines'!$D17,INDIRECT($AB17),0)-K$3)),NA()),IFERROR(IF(ISNUMBER( INDEX(INDIRECT($Z17), MATCH('Calc - Sparklines'!$C$2,INDIRECT($AA17),0), MATCH('Calc - Sparklines'!$D17,INDIRECT($AB17),0)-K$3))=FALSE,NA(), INDEX(INDIRECT($Z17), MATCH('Calc - Sparklines'!$C$2,INDIRECT($AA17),0), MATCH('Calc - Sparklines'!$D17,INDIRECT($AB17),0)-K$3)),NA())) ->  | L17: =IF('Calc - Sparklines'!$C$2="EN",IFERROR(IF(ISNUMBER( INDEX(INDIRECT($Z17), MATCH('Calc - Sparklines'!$AF17,INDIRECT($AA17),0), MATCH('Calc - Sparklines'!$D17,INDIRECT($AB17),0)-L$3))=FALSE,NA(), INDEX(INDIRECT($Z17), MATCH('Calc - Sparklines'!$AF17,INDIRECT($AA17),0), MATCH('Calc - Sparklines'!$D17,INDIRECT($AB17),0)-L$3)),NA()),IFERROR(IF(ISNUMBER( INDEX(INDIRECT($Z17), MATCH('Calc - Sparklines'!$C$2,INDIRECT($AA17),0), MATCH('Calc - Sparklines'!$D17,INDIRECT($AB17),0)-L$3))=FALSE,NA(), INDEX(INDIRECT($Z17), MATCH('Calc - Sparklines'!$C$2,INDIRECT($AA17),0), MATCH('Calc - Sparklines'!$D17,INDIRECT($AB17),0)-L$3)),NA())) ->  | M17: =IF('Calc - Sparklines'!$C$2="EN",IFERROR(IF(ISNUMBER( INDEX(INDIRECT($Z17), MATCH('Calc - Sparklines'!$AF17,INDIRECT($AA17),0), MATCH('Calc - Sparklines'!$D17,INDIRECT($AB17),0)-M$3))=FALSE,NA(), INDEX(INDIRECT($Z17), MATCH('Calc - Sparklines'!$AF17,INDIRECT($AA17),0), MATCH('Calc - Sparklines'!$D17,INDIRECT($AB17),0)-M$3)),NA()),IFERROR(IF(ISNUMBER( INDEX(INDIRECT($Z17), MATCH('Calc - Sparklines'!$C$2,INDIRECT($AA17),0), MATCH('Calc - Sparklines'!$D17,INDIRECT($AB17),0)-M$3))=FALSE,NA(), INDEX(INDIRECT($Z17), MATCH('Calc - Sparklines'!$C$2,INDIRECT($AA17),0), MATCH('Calc - Sparklines'!$D17,INDIRECT($AB17),0)-M$3)),NA())) -> 1517 | N17: =IF('Calc - Sparklines'!$C$2="EN",IFERROR(IF(ISNUMBER( INDEX(INDIRECT($Z17), MATCH('Calc - Sparklines'!$AF17,INDIRECT($AA17),0), MATCH('Calc - Sparklines'!$D17,INDIRECT($AB17),0)-N$3))=FALSE,NA(), INDEX(INDIRECT($Z17), MATCH('Calc - Sparklines'!$AF17,INDIRECT($AA17),0), MATCH('Calc - Sparklines'!$D17,INDIRECT($AB17),0)-N$3)),NA()),IFERROR(IF(ISNUMBER( INDEX(INDIRECT($Z17), MATCH('Calc - Sparklines'!$C$2,INDIRECT($AA17),0), MATCH('Calc - Sparklines'!$D17,INDIRECT($AB17),0)-N$3))=FALSE,NA(), INDEX(INDIRECT($Z17), MATCH('Calc - Sparklines'!$C$2,INDIRECT($AA17),0), MATCH('Calc - Sparklines'!$D17,INDIRECT($AB17),0)-N$3)),NA())) -> 673 | O17: =IF('Calc - Sparklines'!$C$2="EN",IFERROR(IF(ISNUMBER( INDEX(INDIRECT($Z17), MATCH('Calc - Sparklines'!$AF17,INDIRECT($AA17),0), MATCH('Calc - Sparklines'!$D17,INDIRECT($AB17),0)-O$3))=FALSE,NA(), INDEX(INDIRECT($Z17), MATCH('Calc - Sparklines'!$AF17,INDIRECT($AA17),0), MATCH('Calc - Sparklines'!$D17,INDIRECT($AB17),0)-O$3)),NA()),IFERROR(IF(ISNUMBER( INDEX(INDIRECT($Z17), MATCH('Calc - Sparklines'!$C$2,INDIRECT($AA17),0), MATCH('Calc - Sparklines'!$D17,INDIRECT($AB17),0)-O$3))=FALSE,NA(), INDEX(INDIRECT($Z17), MATCH('Calc - Sparklines'!$C$2,INDIRECT($AA17),0), MATCH('Calc - Sparklines'!$D17,INDIRECT($AB17),0)-O$3)),NA())) -> 1391 | P17: =IF('Calc - Sparklines'!$C$2="EN",IFERROR(IF(ISNUMBER( INDEX(INDIRECT($Z17), MATCH('Calc - Sparklines'!$AF17,INDIRECT($AA17),0), MATCH('Calc - Sparklines'!$D17,INDIRECT($AB17),0)-P$3))=FALSE,NA(), INDEX(INDIRECT($Z17), MATCH('Calc - Sparklines'!$AF17,INDIRECT($AA17),0), MATCH('Calc - Sparklines'!$D17,INDIRECT($AB17),0)-P$3)),NA()),IFERROR(IF(ISNUMBER( INDEX(INDIRECT($Z17), MATCH('Calc - Sparklines'!$C$2,INDIRECT($AA17),0), MATCH('Calc - Sparklines'!$D17,INDIRECT($AB17),0)-P$3))=FALSE,NA(), INDEX(INDIRECT($Z17), MATCH('Calc - Sparklines'!$C$2,INDIRECT($AA17),0), MATCH('Calc - Sparklines'!$D17,INDIRECT($AB17),0)-P$3)),NA())) -> 1826 | R17: 6 | S17: =IF(P17="N/A",IF(O17="N/A",2,1),0) -> 0 | T17: =OFFSET(P17,,-S17) -> 1826 | U17: =IF(ISERROR(O17),IF(ISERROR(N17),IF(ISERROR(M17),IF(ISERROR(L17),IF(ISERROR(K17),IF(ISERROR(J17),IF(ISERROR(I17),IF(ISERROR(H17),IF(ISERROR(G17),IF(ISERROR(F17),IF(ISERROR(E17), NA(), E17),F17),G17),H17),I17),J17),K17),L17),M17),N17),O17) -> 1391 | V17: =IF(D17="","",IFERROR(IF(T17>U17,"▲", IF(T17<U17,"▼","◄►")),"N/A")) -> ▲ | W17: Sparkline08 | Z17: Data_Table_CYP_iv_a | AA17: Data_Orgs_CYP_iv_a | AB17: Data_Dates_CYP_iv_a | AF17: =IF('Calc - Sparklines'!$C$2="EN",IF(ISNUMBER(MATCH('Calc - Sparklines'!$C$2,INDIRECT($AA17),0)),"EN","England"),0) -> EN | AG17: =(MATCH('Calc - Sparklines'!$C$2,INDIRECT($AA17),0)) -> 2 | AH17: =IFERROR(P17/L17-1,"") ->  | AI17: =IFERROR(P17/H17-1,"") -> 
A18: CYP_iv_b | B18: CYP(iv.b) | C18: Number of CYP under 18 in adult in-patient wards | D18: ='CYP(iv_b)_FINAL CALC'!B6 -> Q1 2021/22 | E18: =IF('Calc - Sparklines'!$C$2="EN",IFERROR(IF(ISNUMBER( INDEX(INDIRECT($Z18), MATCH('Calc - Sparklines'!$AF18,INDIRECT($AA18),0), MATCH('Calc - Sparklines'!$D18,INDIRECT($AB18),0)-E$3))=FALSE,NA(), INDEX(INDIRECT($Z18), MATCH('Calc - Sparklines'!$AF18,INDIRECT($AA18),0), MATCH('Calc - Sparklines'!$D18,INDIRECT($AB18),0)-E$3)),NA()),IFERROR(IF(ISNUMBER( INDEX(INDIRECT($Z18), MATCH('Calc - Sparklines'!$C$2,INDIRECT($AA18),0), MATCH('Calc - Sparklines'!$D18,INDIRECT($AB18),0)-E$3))=FALSE,NA(), INDEX(INDIRECT($Z18), MATCH('Calc - Sparklines'!$C$2,INDIRECT($AA18),0), MATCH('Calc - Sparklines'!$D18,INDIRECT($AB18),0)-E$3)),NA())) -> 37 | F18: =IF('Calc - Sparklines'!$C$2="EN",IFERROR(IF(ISNUMBER( INDEX(INDIRECT($Z18), MATCH('Calc - Sparklines'!$AF18,INDIRECT($AA18),0), MATCH('Calc - Sparklines'!$D18,INDIRECT($AB18),0)-F$3))=FALSE,NA(), INDEX(INDIRECT($Z18), MATCH('Calc - Sparklines'!$AF18,INDIRECT($AA18),0), MATCH('Calc - Sparklines'!$D18,INDIRECT($AB18),0)-F$3)),NA()),IFERROR(IF(ISNUMBER( INDEX(INDIRECT($Z18), MATCH('Calc - Sparklines'!$C$2,INDIRECT($AA18),0), MATCH('Calc - Sparklines'!$D18,INDIRECT($AB18),0)-F$3))=FALSE,NA(), INDEX(INDIRECT($Z18), MATCH('Calc - Sparklines'!$C$2,INDIRECT($AA18),0), MATCH('Calc - Sparklines'!$D18,INDIRECT($AB18),0)-F$3)),NA())) -> 37 | G18: =IF('Calc - Sparklines'!$C$2="EN",IFERROR(IF(ISNUMBER( INDEX(INDIRECT($Z18), MATCH('Calc - Sparklines'!$AF18,INDIRECT($AA18),0), MATCH('Calc - Sparklines'!$D18,INDIRECT($AB18),0)-G$3))=FALSE,NA(), INDEX(INDIRECT($Z18), MATCH('Calc - Sparklines'!$AF18,INDIRECT($AA18),0), MATCH('Calc - Sparklines'!$D18,INDIRECT($AB18),0)-G$3)),NA()),IFERROR(IF(ISNUMBER( INDEX(INDIRECT($Z18), MATCH('Calc - Sparklines'!$C$2,INDIRECT($AA18),0), MATCH('Calc - Sparklines'!$D18,INDIRECT($AB18),0)-G$3))=FALSE,NA(), INDEX(INDIRECT($Z18), MATCH('Calc - Sparklines'!$C$2,INDIRECT($AA18),0), MATCH('Calc - Sparklines'!$D18,INDIRECT($AB18),0)-G$3)),NA())) -> 74 | H18: =IF('Calc - Sparklines'!$C$2="EN",IFERROR(IF(ISNUMBER( INDEX(INDIRECT($Z18), MATCH('Calc - Sparklines'!$AF18,INDIRECT($AA18),0), MATCH('Calc - Sparklines'!$D18,INDIRECT($AB18),0)-H$3))=FALSE,NA(), INDEX(INDIRECT($Z18), MATCH('Calc - Sparklines'!$AF18,INDIRECT($AA18),0), MATCH('Calc - Sparklines'!$D18,INDIRECT($AB18),0)-H$3)),NA()),IFERROR(IF(ISNUMBER( INDEX(INDIRECT($Z18), MATCH('Calc - Sparklines'!$C$2,INDIRECT($AA18),0), MATCH('Calc - Sparklines'!$D18,INDIRECT($AB18),0)-H$3))=FALSE,NA(), INDEX(INDIRECT($Z18), MATCH('Calc - Sparklines'!$C$2,INDIRECT($AA18),0), MATCH('Calc - Sparklines'!$D18,INDIRECT($AB18),0)-H$3)),NA())) ->  | I18: =IF('Calc - Sparklines'!$C$2="EN",IFERROR(IF(ISNUMBER( INDEX(INDIRECT($Z18), MATCH('Calc - Sparklines'!$AF18,INDIRECT($AA18),0), MATCH('Calc - Sparklines'!$D18,INDIRECT($AB18),0)-I$3))=FALSE,NA(), INDEX(INDIRECT($Z18), MATCH('Calc - Sparklines'!$AF18,INDIRECT($AA18),0), MATCH('Calc - Sparklines'!$D18,INDIRECT($AB18),0)-I$3)),NA()),IFERROR(IF(ISNUMBER( INDEX(INDIRECT($Z18), MATCH('Calc - Sparklines'!$C$2,INDIRECT($AA18),0), MATCH('Calc - Sparklines'!$D18,INDIRECT($AB18),0)-I$3))=FALSE,NA(), INDEX(INDIRECT($Z18), MATCH('Calc - Sparklines'!$C$2,INDIRECT($AA18),0), MATCH('Calc - Sparklines'!$D18,INDIRECT($AB18),0)-I$3)),NA())) ->  | J18: =IF('Calc - Sparklines'!$C$2="EN",IFERROR(IF(ISNUMBER( INDEX(INDIRECT($Z18), MATCH('Calc - Sparklines'!$AF18,INDIRECT($AA18),0), MATCH('Calc - Sparklines'!$D18,INDIRECT($AB18),0)-J$3))=FALSE,NA(), INDEX(INDIRECT($Z18), MATCH('Calc - Sparklines'!$AF18,INDIRECT($AA18),0), MATCH('Calc - Sparklines'!$D18,INDIRECT($AB18),0)-J$3)),NA()),IFERROR(IF(ISNUMBER( INDEX(INDIRECT($Z18), MATCH('Calc - Sparklines'!$C$2,INDIRECT($AA18),0), MATCH('Calc - Sparklines'!$D18,INDIRECT($AB18),0)-J$3))=FALSE,NA(), INDEX(INDIRECT($Z18), MATCH('Calc - Sparklines'!$C$2,INDIRECT($AA18),0), MATCH('Calc - Sparklines'!$D18,INDIRECT($AB18),0)-J$3)),NA())) ->  | K18: =IF('Calc - Sparklines'!$C$2="EN",IFERROR(IF(ISNUMBER( INDEX(INDIRECT($Z18), MATCH('Calc - Sparklines'!$AF18,INDIRECT($AA18),0), MATCH('Calc - Sparklines'!$D18,INDIRECT($AB18),0)-K$3))=FALSE,NA(), INDEX(INDIRECT($Z18), MATCH('Calc - Sparklines'!$AF18,INDIRECT($AA18),0), MATCH('Calc - Sparklines'!$D18,INDIRECT($AB18),0)-K$3)),NA()),IFERROR(IF(ISNUMBER( INDEX(INDIRECT($Z18), MATCH('Calc - Sparklines'!$C$2,INDIRECT($AA18),0), MATCH('Calc - Sparklines'!$D18,INDIRECT($AB18),0)-K$3))=FALSE,NA(), INDEX(INDIRECT($Z18), MATCH('Calc - Sparklines'!$C$2,INDIRECT($AA18),0), MATCH('Calc - Sparklines'!$D18,INDIRECT($AB18),0)-K$3)),NA())) ->  | L18: =IF('Calc - Sparklines'!$C$2="EN",IFERROR(IF(ISNUMBER( INDEX(INDIRECT($Z18), MATCH('Calc - Sparklines'!$AF18,INDIRECT($AA18),0), MATCH('Calc - Sparklines'!$D18,INDIRECT($AB18),0)-L$3))=FALSE,NA(), INDEX(INDIRECT($Z18), MATCH('Calc - Sparklines'!$AF18,INDIRECT($AA18),0), MATCH('Calc - Sparklines'!$D18,INDIRECT($AB18),0)-L$3)),NA()),IFERROR(IF(ISNUMBER( INDEX(INDIRECT($Z18), MATCH('Calc - Sparklines'!$C$2,INDIRECT($AA18),0), MATCH('Calc - Sparklines'!$D18,INDIRECT($AB18),0)-L$3))=FALSE,NA(), INDEX(INDIRECT($Z18), MATCH('Calc - Sparklines'!$C$2,INDIRECT($AA18),0), MATCH('Calc - Sparklines'!$D18,INDIRECT($AB18),0)-L$3)),NA())) ->  | M18: =IF('Calc - Sparklines'!$C$2="EN",IFERROR(IF(ISNUMBER( INDEX(INDIRECT($Z18), MATCH('Calc - Sparklines'!$AF18,INDIRECT($AA18),0), MATCH('Calc - Sparklines'!$D18,INDIRECT($AB18),0)-M$3))=FALSE,NA(), INDEX(INDIRECT($Z18), MATCH('Calc - Sparklines'!$AF18,INDIRECT($AA18),0), MATCH('Calc - Sparklines'!$D18,INDIRECT($AB18),0)-M$3)),NA()),IFERROR(IF(ISNUMBER( INDEX(INDIRECT($Z18), MATCH('Calc - Sparklines'!$C$2,INDIRECT($AA18),0), MATCH('Calc - Sparklines'!$D18,INDIRECT($AB18),0)-M$3))=FALSE,NA(), INDEX(INDIRECT($Z18), MATCH('Calc - Sparklines'!$C$2,INDIRECT($AA18),0), MATCH('Calc - Sparklines'!$D18,INDIRECT($AB18),0)-M$3)),NA())) -> 72 | N18: =IF('Calc - Sparklines'!$C$2="EN",IFERROR(IF(ISNUMBER( INDEX(INDIRECT($Z18), MATCH('Calc - Sparklines'!$AF18,INDIRECT($AA18),0), MATCH('Calc - Sparklines'!$D18,INDIRECT($AB18),0)-N$3))=FALSE,NA(), INDEX(INDIRECT($Z18), MATCH('Calc - Sparklines'!$AF18,INDIRECT($AA18),0), MATCH('Calc - Sparklines'!$D18,INDIRECT($AB18),0)-N$3)),NA()),IFERROR(IF(ISNUMBER( INDEX(INDIRECT($Z18), MATCH('Calc - Sparklines'!$C$2,INDIRECT($AA18),0), MATCH('Calc - Sparklines'!$D18,INDIRECT($AB18),0)-N$3))=FALSE,NA(), INDEX(INDIRECT($Z18), MATCH('Calc - Sparklines'!$C$2,INDIRECT($AA18),0), MATCH('Calc - Sparklines'!$D18,INDIRECT($AB18),0)-N$3)),NA())) -> 67 | O18: =IF('Calc - Sparklines'!$C$2="EN",IFERROR(IF(ISNUMBER( INDEX(INDIRECT($Z18), MATCH('Calc - Sparklines'!$AF18,INDIRECT($AA18),0), MATCH('Calc - Sparklines'!$D18,INDIRECT($AB18),0)-O$3))=FALSE,NA(), INDEX(INDIRECT($Z18), MATCH('Calc - Sparklines'!$AF18,INDIRECT($AA18),0), MATCH('Calc - Sparklines'!$D18,INDIRECT($AB18),0)-O$3)),NA()),IFERROR(IF(ISNUMBER( INDEX(INDIRECT($Z18), MATCH('Calc - Sparklines'!$C$2,INDIRECT($AA18),0), MATCH('Calc - Sparklines'!$D18,INDIRECT($AB18),0)-O$3))=FALSE,NA(), INDEX(INDIRECT($Z18), MATCH('Calc - Sparklines'!$C$2,INDIRECT($AA18),0), MATCH('Calc - Sparklines'!$D18,INDIRECT($AB18),0)-O$3)),NA())) -> 83 | P18: =IF('Calc - Sparklines'!$C$2="EN",IFERROR(IF(ISNUMBER( INDEX(INDIRECT($Z18), MATCH('Calc - Sparklines'!$AF18,INDIRECT($AA18),0), MATCH('Calc - Sparklines'!$D18,INDIRECT($AB18),0)-P$3))=FALSE,NA(), INDEX(INDIRECT($Z18), MATCH('Calc - Sparklines'!$AF18,INDIRECT($AA18),0), MATCH('Calc - Sparklines'!$D18,INDIRECT($AB18),0)-P$3)),NA()),IFERROR(IF(ISNUMBER( INDEX(INDIRECT($Z18), MATCH('Calc - Sparklines'!$C$2,INDIRECT($AA18),0), MATCH('Calc - Sparklines'!$D18,INDIRECT($AB18),0)-P$3))=FALSE,NA(), INDEX(INDIRECT($Z18), MATCH('Calc - Sparklines'!$C$2,INDIRECT($AA18),0), MATCH('Calc - Sparklines'!$D18,INDIRECT($AB18),0)-P$3)),NA())) -> 96 | R18: 6 | S18: =IF(P18="N/A",IF(O18="N/A",2,1),0) -> 0 | T18: 96 | U18: 83 | V18: ▲ | W18: Sparkline09 | Z18: Data_Table_CYP_iv_b | AA18: Data_Orgs_CYP_iv_b | AB18: Data_Dates_CYP_iv_b | AF18: =IF('Calc - Sparklines'!$C$2="EN",IF(ISNUMBER(MATCH('Calc - Sparklines'!$C$2,INDIRECT($AA18),0)),"EN","England"),0) -> EN | AG18: =(MATCH('Calc - Sparklines'!$C$2,INDIRECT($AA18),0)) -> 2 | AH18: =IFERROR(P18/L18-1,"") ->  | AI18: =IFERROR(P18/H18-1,"") -> 
A19: CYP_vii | B19: CYP(vii) | C19: CYP Crisis | D19: ='CYP(vii)_FINAL CALC'!$B$6 -> 2020/21 | E19: =IF('Calc - Sparklines'!$C$2="EN",IFERROR(IF(ISNUMBER( INDEX(INDIRECT($Z19), MATCH('Calc - Sparklines'!$AF19,INDIRECT($AA19),0), MATCH('Calc - Sparklines'!$D19,INDIRECT($AB19),0)-E$3))=FALSE,NA(), INDEX(INDIRECT($Z19), MATCH('Calc - Sparklines'!$AF19,INDIRECT($AA19),0), MATCH('Calc - Sparklines'!$D19,INDIRECT($AB19),0)-E$3)),NA()),IFERROR(IF(ISNUMBER( INDEX(INDIRECT($Z19), MATCH('Calc - Sparklines'!$C$2,INDIRECT($AA19),0), MATCH('Calc - Sparklines'!$D19,INDIRECT($AB19),0)-E$3))=FALSE,NA(), INDEX(INDIRECT($Z19), MATCH('Calc - Sparklines'!$C$2,INDIRECT($AA19),0), MATCH('Calc - Sparklines'!$D19,INDIRECT($AB19),0)-E$3)),NA())) ->  | F19: =IF('Calc - Sparklines'!$C$2="EN",IFERROR(IF(ISNUMBER( INDEX(INDIRECT($Z19), MATCH('Calc - Sparklines'!$AF19,INDIRECT($AA19),0), MATCH('Calc - Sparklines'!$D19,INDIRECT($AB19),0)-F$3))=FALSE,NA(), INDEX(INDIRECT($Z19), MATCH('Calc - Sparklines'!$AF19,INDIRECT($AA19),0), MATCH('Calc - Sparklines'!$D19,INDIRECT($AB19),0)-F$3)),NA()),IFERROR(IF(ISNUMBER( INDEX(INDIRECT($Z19), MATCH('Calc - Sparklines'!$C$2,INDIRECT($AA19),0), MATCH('Calc - Sparklines'!$D19,INDIRECT($AB19),0)-F$3))=FALSE,NA(), INDEX(INDIRECT($Z19), MATCH('Calc - Sparklines'!$C$2,INDIRECT($AA19),0), MATCH('Calc - Sparklines'!$D19,INDIRECT($AB19),0)-F$3)),NA())) ->  | G19: =IF('Calc - Sparklines'!$C$2="EN",IFERROR(IF(ISNUMBER( INDEX(INDIRECT($Z19), MATCH('Calc - Sparklines'!$AF19,INDIRECT($AA19),0), MATCH('Calc - Sparklines'!$D19,INDIRECT($AB19),0)-G$3))=FALSE,NA(), INDEX(INDIRECT($Z19), MATCH('Calc - Sparklines'!$AF19,INDIRECT($AA19),0), MATCH('Calc - Sparklines'!$D19,INDIRECT($AB19),0)-G$3)),NA()),IFERROR(IF(ISNUMBER( INDEX(INDIRECT($Z19), MATCH('Calc - Sparklines'!$C$2,INDIRECT($AA19),0), MATCH('Calc - Sparklines'!$D19,INDIRECT($AB19),0)-G$3))=FALSE,NA(), INDEX(INDIRECT($Z19), MATCH('Calc - Sparklines'!$C$2,INDIRECT($AA19),0), MATCH('Calc - Sparklines'!$D19,INDIRECT($AB19),0)-G$3)),NA())) ->  | H19: =IF('Calc - Sparklines'!$C$2="EN",IFERROR(IF(ISNUMBER( INDEX(INDIRECT($Z19), MATCH('Calc - Sparklines'!$AF19,INDIRECT($AA19),0), MATCH('Calc - Sparklines'!$D19,INDIRECT($AB19),0)-H$3))=FALSE,NA(), INDEX(INDIRECT($Z19), MATCH('Calc - Sparklines'!$AF19,INDIRECT($AA19),0), MATCH('Calc - Sparklines'!$D19,INDIRECT($AB19),0)-H$3)),NA()),IFERROR(IF(ISNUMBER( INDEX(INDIRECT($Z19), MATCH('Calc - Sparklines'!$C$2,INDIRECT($AA19),0), MATCH('Calc - Sparklines'!$D19,INDIRECT($AB19),0)-H$3))=FALSE,NA(), INDEX(INDIRECT($Z19), MATCH('Calc - Sparklines'!$C$2,INDIRECT($AA19),0), MATCH('Calc - Sparklines'!$D19,INDIRECT($AB19),0)-H$3)),NA())) ->  | I19: =IF('Calc - Sparklines'!$C$2="EN",IFERROR(IF(ISNUMBER( INDEX(INDIRECT($Z19), MATCH('Calc - Sparklines'!$AF19,INDIRECT($AA19),0), MATCH('Calc - Sparklines'!$D19,INDIRECT($AB19),0)-I$3))=FALSE,NA(), INDEX(INDIRECT($Z19), MATCH('Calc - Sparklines'!$AF19,INDIRECT($AA19),0), MATCH('Calc - Sparklines'!$D19,INDIRECT($AB19),0)-I$3)),NA()),IFERROR(IF(ISNUMBER( INDEX(INDIRECT($Z19), MATCH('Calc - Sparklines'!$C$2,INDIRECT($AA19),0), MATCH('Calc - Sparklines'!$D19,INDIRECT($AB19),0)-I$3))=FALSE,NA(), INDEX(INDIRECT($Z19), MATCH('Calc - Sparklines'!$C$2,INDIRECT($AA19),0), MATCH('Calc - Sparklines'!$D19,INDIRECT($AB19),0)-I$3)),NA())) ->  | J19: =IF('Calc - Sparklines'!$C$2="EN",IFERROR(IF(ISNUMBER( INDEX(INDIRECT($Z19), MATCH('Calc - Sparklines'!$AF19,INDIRECT($AA19),0), MATCH('Calc - Sparklines'!$D19,INDIRECT($AB19),0)-J$3))=FALSE,NA(), INDEX(INDIRECT($Z19), MATCH('Calc - Sparklines'!$AF19,INDIRECT($AA19),0), MATCH('Calc - Sparklines'!$D19,INDIRECT($AB19),0)-J$3)),NA()),IFERROR(IF(ISNUMBER( INDEX(INDIRECT($Z19), MATCH('Calc - Sparklines'!$C$2,INDIRECT($AA19),0), MATCH('Calc - Sparklines'!$D19,INDIRECT($AB19),0)-J$3))=FALSE,NA(), INDEX(INDIRECT($Z19), MATCH('Calc - Sparklines'!$C$2,INDIRECT($AA19),0), MATCH('Calc - Sparklines'!$D19,INDIRECT($AB19),0)-J$3)),NA())) ->  | K19: =IF('Calc - Sparklines'!$C$2="EN",IFERROR(IF(ISNUMBER( INDEX(INDIRECT($Z19), MATCH('Calc - Sparklines'!$AF19,INDIRECT($AA19),0), MATCH('Calc - Sparklines'!$D19,INDIRECT($AB19),0)-K$3))=FALSE,NA(), INDEX(INDIRECT($Z19), MATCH('Calc - Sparklines'!$AF19,INDIRECT($AA19),0), MATCH('Calc - Sparklines'!$D19,INDIRECT($AB19),0)-K$3)),NA()),IFERROR(IF(ISNUMBER( INDEX(INDIRECT($Z19), MATCH('Calc - Sparklines'!$C$2,INDIRECT($AA19),0), MATCH('Calc - Sparklines'!$D19,INDIRECT($AB19),0)-K$3))=FALSE,NA(), INDEX(INDIRECT($Z19), MATCH('Calc - Sparklines'!$C$2,INDIRECT($AA19),0), MATCH('Calc - Sparklines'!$D19,INDIRECT($AB19),0)-K$3)),NA())) ->  | L19: =IF('Calc - Sparklines'!$C$2="EN",IFERROR(IF(ISNUMBER( INDEX(INDIRECT($Z19), MATCH('Calc - Sparklines'!$AF19,INDIRECT($AA19),0), MATCH('Calc - Sparklines'!$D19,INDIRECT($AB19),0)-L$3))=FALSE,NA(), INDEX(INDIRECT($Z19), MATCH('Calc - Sparklines'!$AF19,INDIRECT($AA19),0), MATCH('Calc - Sparklines'!$D19,INDIRECT($AB19),0)-L$3)),NA()),IFERROR(IF(ISNUMBER( INDEX(INDIRECT($Z19), MATCH('Calc - Sparklines'!$C$2,INDIRECT($AA19),0), MATCH('Calc - Sparklines'!$D19,INDIRECT($AB19),0)-L$3))=FALSE,NA(), INDEX(INDIRECT($Z19), MATCH('Calc - Sparklines'!$C$2,INDIRECT($AA19),0), MATCH('Calc - Sparklines'!$D19,INDIRECT($AB19),0)-L$3)),NA())) ->  | M19: =IF('Calc - Sparklines'!$C$2="EN",IFERROR(IF(ISNUMBER( INDEX(INDIRECT($Z19), MATCH('Calc - Sparklines'!$AF19,INDIRECT($AA19),0), MATCH('Calc - Sparklines'!$D19,INDIRECT($AB19),0)-M$3))=FALSE,NA(), INDEX(INDIRECT($Z19), MATCH('Calc - Sparklines'!$AF19,INDIRECT($AA19),0), MATCH('Calc - Sparklines'!$D19,INDIRECT($AB19),0)-M$3)),NA()),IFERROR(IF(ISNUMBER( INDEX(INDIRECT($Z19), MATCH('Calc - Sparklines'!$C$2,INDIRECT($AA19),0), MATCH('Calc - Sparklines'!$D19,INDIRECT($AB19),0)-M$3))=FALSE,NA(), INDEX(INDIRECT($Z19), MATCH('Calc - Sparklines'!$C$2,INDIRECT($AA19),0), MATCH('Calc - Sparklines'!$D19,INDIRECT($AB19),0)-M$3)),NA())) ->  | N19: =IF('Calc - Sparklines'!$C$2="EN",IFERROR(IF(ISNUMBER( INDEX(INDIRECT($Z19), MATCH('Calc - Sparklines'!$AF19,INDIRECT($AA19),0), MATCH('Calc - Sparklines'!$D19,INDIRECT($AB19),0)-N$3))=FALSE,NA(), INDEX(INDIRECT($Z19), MATCH('Calc - Sparklines'!$AF19,INDIRECT($AA19),0), MATCH('Calc - Sparklines'!$D19,INDIRECT($AB19),0)-N$3)),NA()),IFERROR(IF(ISNUMBER( INDEX(INDIRECT($Z19), MATCH('Calc - Sparklines'!$C$2,INDIRECT($AA19),0), MATCH('Calc - Sparklines'!$D19,INDIRECT($AB19),0)-N$3))=FALSE,NA(), INDEX(INDIRECT($Z19), MATCH('Calc - Sparklines'!$C$2,INDIRECT($AA19),0), MATCH('Calc - Sparklines'!$D19,INDIRECT($AB19),0)-N$3)),NA())) ->  | O19: =IF('Calc - Sparklines'!$C$2="EN",IFERROR(IF(ISNUMBER( INDEX(INDIRECT($Z19), MATCH('Calc - Sparklines'!$AF19,INDIRECT($AA19),0), MATCH('Calc - Sparklines'!$D19,INDIRECT($AB19),0)-O$3))=FALSE,NA(), INDEX(INDIRECT($Z19), MATCH('Calc - Sparklines'!$AF19,INDIRECT($AA19),0), MATCH('Calc - Sparklines'!$D19,INDIRECT($AB19),0)-O$3)),NA()),IFERROR(IF(ISNUMBER( INDEX(INDIRECT($Z19), MATCH('Calc - Sparklines'!$C$2,INDIRECT($AA19),0), MATCH('Calc - Sparklines'!$D19,INDIRECT($AB19),0)-O$3))=FALSE,NA(), INDEX(INDIRECT($Z19), MATCH('Calc - Sparklines'!$C$2,INDIRECT($AA19),0), MATCH('Calc - Sparklines'!$D19,INDIRECT($AB19),0)-O$3)),NA())) -> 0.26 | P19: =IF('Calc - Sparklines'!$C$2="EN",IFERROR(IF(ISNUMBER( INDEX(INDIRECT($Z19), MATCH('Calc - Sparklines'!$AF19,INDIRECT($AA19),0), MATCH('Calc - Sparklines'!$D19,INDIRECT($AB19),0)-P$3))=FALSE,NA(), INDEX(INDIRECT($Z19), MATCH('Calc - Sparklines'!$AF19,INDIRECT($AA19),0), MATCH('Calc - Sparklines'!$D19,INDIRECT($AB19),0)-P$3)),NA()),IFERROR(IF(ISNUMBER( INDEX(INDIRECT($Z19), MATCH('Calc - Sparklines'!$C$2,INDIRECT($AA19),0), MATCH('Calc - Sparklines'!$D19,INDIRECT($AB19),0)-P$3))=FALSE,NA(), INDEX(INDIRECT($Z19), MATCH('Calc - Sparklines'!$C$2,INDIRECT($AA19),0), MATCH('Calc - Sparklines'!$D19,INDIRECT($AB19),0)-P$3)),NA())) -> 0.67 | R19: =IF(COUNTA(K19:P19)-COUNTIF(K19:P19,"#N/A")<3, 0, COUNTA(K19:P19)) -> 0 | S19: =IF(P19="N/A",IF(O19="N/A",2,1),0) -> 0 | T19: =OFFSET(P19,,-S19) -> 0.67 | U19: =IF(ISERROR(O19),IF(ISERROR(N19),IF(ISERROR(M19),IF(ISERROR(L19),IF(ISERROR(K19),IF(ISERROR(J19),IF(ISERROR(I19),IF(ISERROR(H19),IF(ISERROR(G19),IF(ISERROR(F19),IF(ISERROR(E19), NA(), E19),F19),G19),H19),I19),J19),K19),L19),M19),N19),O19) -> 0.26 | V19: =IF(D19="","",IFERROR(IF(T19>U19,"▲", IF(T19<U19,"▼","◄►")),"N/A")) -> ▲ | W19: Sparkline66 | X19: =IF(ISNA(T19),"N/A",IF(R19<=2,"N/A","")) -> N/A | Z19: Data_Table_CYP_vii | AA19: Data_Orgs_CYP_vii | AB19: Data_Dates_CYP_vii | AF19: =IF('Calc - Sparklines'!$C$2="EN",IF(ISNUMBER(MATCH('Calc - Sparklines'!$C$2,INDIRECT($AA19),0)),"EN","England"),0) -> EN | AG19: =(MATCH('Calc - Sparklines'!$C$2,INDIRECT($AA19),0)) -> 2 | AH19: =IFERROR(P19/L19-1,"") ->  | AI19: =IFERROR(P19/H19-1,"") -> 
A20: CYP_v | B20: CYP(v) | C20: CYP MH forecast outturn (£k) - excluding learning disabilities and eating disorders | D20: ='CYP(v)_FINAL CALC'!$B$6 -> 2021/22 planned | E20: =IF('Calc - Sparklines'!$C$2="EN",IFERROR(IF(ISNUMBER( INDEX(INDIRECT($Z20), MATCH('Calc - Sparklines'!$AF20,INDIRECT($AA20),0), MATCH('Calc - Sparklines'!$D20,INDIRECT($AB20),0)-E$4))=FALSE,NA(), INDEX(INDIRECT($Z20), MATCH('Calc - Sparklines'!$AF20,INDIRECT($AA20),0), MATCH('Calc - Sparklines'!$D20,INDIRECT($AB20),0)-E$4)),NA()),IFERROR(IF(ISNUMBER( INDEX(INDIRECT($Z20), MATCH('Calc - Sparklines'!$C$2,INDIRECT($AA20),0), MATCH('Calc - Sparklines'!$D20,INDIRECT($AB20),0)-E$4))=FALSE,NA(), INDEX(INDIRECT($Z20), MATCH('Calc - Sparklines'!$C$2,INDIRECT($AA20),0), MATCH('Calc - Sparklines'!$D20,INDIRECT($AB20),0)-E$4)),NA())) ->  | F20: =IF('Calc - Sparklines'!$C$2="EN",IFERROR(IF(ISNUMBER( INDEX(INDIRECT($Z20), MATCH('Calc - Sparklines'!$AF20,INDIRECT($AA20),0), MATCH('Calc - Sparklines'!$D20,INDIRECT($AB20),0)-F$4))=FALSE,NA(), INDEX(INDIRECT($Z20), MATCH('Calc - Sparklines'!$AF20,INDIRECT($AA20),0), MATCH('Calc - Sparklines'!$D20,INDIRECT($AB20),0)-F$4)),NA()),IFERROR(IF(ISNUMBER( INDEX(INDIRECT($Z20), MATCH('Calc - Sparklines'!$C$2,INDIRECT($AA20),0), MATCH('Calc - Sparklines'!$D20,INDIRECT($AB20),0)-F$4))=FALSE,NA(), INDEX(INDIRECT($Z20), MATCH('Calc - Sparklines'!$C$2,INDIRECT($AA20),0), MATCH('Calc - Sparklines'!$D20,INDIRECT($AB20),0)-F$4)),NA())) ->  | G20: =IF('Calc - Sparklines'!$C$2="EN",IFERROR(IF(ISNUMBER( INDEX(INDIRECT($Z20), MATCH('Calc - Sparklines'!$AF20,INDIRECT($AA20),0), MATCH('Calc - Sparklines'!$D20,INDIRECT($AB20),0)-G$4))=FALSE,NA(), INDEX(INDIRECT($Z20), MATCH('Calc - Sparklines'!$AF20,INDIRECT($AA20),0), MATCH('Calc - Sparklines'!$D20,INDIRECT($AB20),0)-G$4)),NA()),IFERROR(IF(ISNUMBER( INDEX(INDIRECT($Z20), MATCH('Calc - Sparklines'!$C$2,INDIRECT($AA20),0), MATCH('Calc - Sparklines'!$D20,INDIRECT($AB20),0)-G$4))=FALSE,NA(), INDEX(INDIRECT($Z20), MATCH('Calc - Sparklines'!$C$2,INDIRECT($AA20),0), MATCH('Calc - Sparklines'!$D20,INDIRECT($AB20),0)-G$4)),NA())) ->  | H20: =IF('Calc - Sparklines'!$C$2="EN",IFERROR(IF(ISNUMBER( INDEX(INDIRECT($Z20), MATCH('Calc - Sparklines'!$AF20,INDIRECT($AA20),0), MATCH('Calc - Sparklines'!$D20,INDIRECT($AB20),0)-H$4))=FALSE,NA(), INDEX(INDIRECT($Z20), MATCH('Calc - Sparklines'!$AF20,INDIRECT($AA20),0), MATCH('Calc - Sparklines'!$D20,INDIRECT($AB20),0)-H$4)),NA()),IFERROR(IF(ISNUMBER( INDEX(INDIRECT($Z20), MATCH('Calc - Sparklines'!$C$2,INDIRECT($AA20),0), MATCH('Calc - Sparklines'!$D20,INDIRECT($AB20),0)-H$4))=FALSE,NA(), INDEX(INDIRECT($Z20), MATCH('Calc - Sparklines'!$C$2,INDIRECT($AA20),0), MATCH('Calc - Sparklines'!$D20,INDIRECT($AB20),0)-H$4)),NA())) ->  | I20: =IF('Calc - Sparklines'!$C$2="EN",IFERROR(IF(ISNUMBER( INDEX(INDIRECT($Z20), MATCH('Calc - Sparklines'!$AF20,INDIRECT($AA20),0), MATCH('Calc - Sparklines'!$D20,INDIRECT($AB20),0)-I$4))=FALSE,NA(), INDEX(INDIRECT($Z20), MATCH('Calc - Sparklines'!$AF20,INDIRECT($AA20),0), MATCH('Calc - Sparklines'!$D20,INDIRECT($AB20),0)-I$4)),NA()),IFERROR(IF(ISNUMBER( INDEX(INDIRECT($Z20), MATCH('Calc - Sparklines'!$C$2,INDIRECT($AA20),0), MATCH('Calc - Sparklines'!$D20,INDIRECT($AB20),0)-I$4))=FALSE,NA(), INDEX(INDIRECT($Z20), MATCH('Calc - Sparklines'!$C$2,INDIRECT($AA20),0), MATCH('Calc - Sparklines'!$D20,INDIRECT($AB20),0)-I$4)),NA())) ->  | J20: =IF('Calc - Sparklines'!$C$2="EN",IFERROR(IF(ISNUMBER( INDEX(INDIRECT($Z20), MATCH('Calc - Sparklines'!$AF20,INDIRECT($AA20),0), MATCH('Calc - Sparklines'!$D20,INDIRECT($AB20),0)-J$4))=FALSE,NA(), INDEX(INDIRECT($Z20), MATCH('Calc - Sparklines'!$AF20,INDIRECT($AA20),0), MATCH('Calc - Sparklines'!$D20,INDIRECT($AB20),0)-J$4)),NA()),IFERROR(IF(ISNUMBER( INDEX(INDIRECT($Z20), MATCH('Calc - Sparklines'!$C$2,INDIRECT($AA20),0), MATCH('Calc - Sparklines'!$D20,INDIRECT($AB20),0)-J$4))=FALSE,NA(), INDEX(INDIRECT($Z20), MATCH('Calc - Sparklines'!$C$2,INDIRECT($AA20),0), MATCH('Calc - Sparklines'!$D20,INDIRECT($AB20),0)-J$4)),NA())) ->  | K20: =IF('Calc - Sparklines'!$C$2="EN",IFERROR(IF(ISNUMBER( INDEX(INDIRECT($Z20), MATCH('Calc - Sparklines'!$AF20,INDIRECT($AA20),0), MATCH('Calc - Sparklines'!$D20,INDIRECT($AB20),0)-K$4))=FALSE,NA(), INDEX(INDIRECT($Z20), MATCH('Calc - Sparklines'!$AF20,INDIRECT($AA20),0), MATCH('Calc - Sparklines'!$D20,INDIRECT($AB20),0)-K$4)),NA()),IFERROR(IF(ISNUMBER( INDEX(INDIRECT($Z20), MATCH('Calc - Sparklines'!$C$2,INDIRECT($AA20),0), MATCH('Calc - Sparklines'!$D20,INDIRECT($AB20),0)-K$4))=FALSE,NA(), INDEX(INDIRECT($Z20), MATCH('Calc - Sparklines'!$C$2,INDIRECT($AA20),0), MATCH('Calc - Sparklines'!$D20,INDIRECT($AB20),0)-K$4)),NA())) ->  | L20: =IF('Calc - Sparklines'!$C$2="EN",IFERROR(IF(ISNUMBER( INDEX(INDIRECT($Z20), MATCH('Calc - Sparklines'!$AF20,INDIRECT($AA20),0), MATCH('Calc - Sparklines'!$D20,INDIRECT($AB20),0)-L$4))=FALSE,NA(), INDEX(INDIRECT($Z20), MATCH('Calc - Sparklines'!$AF20,INDIRECT($AA20),0), MATCH('Calc - Sparklines'!$D20,INDIRECT($AB20),0)-L$4)),NA()),IFERROR(IF(ISNUMBER( INDEX(INDIRECT($Z20), MATCH('Calc - Sparklines'!$C$2,INDIRECT($AA20),0), MATCH('Calc - Sparklines'!$D20,INDIRECT($AB20),0)-L$4))=FALSE,NA(), INDEX(INDIRECT($Z20), MATCH('Calc - Sparklines'!$C$2,INDIRECT($AA20),0), MATCH('Calc - Sparklines'!$D20,INDIRECT($AB20),0)-L$4)),NA())) -> 614127742.6 | M20: =IF('Calc - Sparklines'!$C$2="EN",IFERROR(IF(ISNUMBER( INDEX(INDIRECT($Z20), MATCH('Calc - Sparklines'!$AF20,INDIRECT($AA20),0), MATCH('Calc - Sparklines'!$D20,INDIRECT($AB20),0)-M$4))=FALSE,NA(), INDEX(INDIRECT($Z20), MATCH('Calc - Sparklines'!$AF20,INDIRECT($AA20),0), MATCH('Calc - Sparklines'!$D20,INDIRECT($AB20),0)-M$4)),NA()),IFERROR(IF(ISNUMBER( INDEX(INDIRECT($Z20), MATCH('Calc - Sparklines'!$C$2,INDIRECT($AA20),0), MATCH('Calc - Sparklines'!$D20,INDIRECT($AB20),0)-M$4))=FALSE,NA(), INDEX(INDIRECT($Z20), MATCH('Calc - Sparklines'!$C$2,INDIRECT($AA20),0), MATCH('Calc - Sparklines'!$D20,INDIRECT($AB20),0)-M$4)),NA())) -> 676604727.4 | N20: =IF('Calc - Sparklines'!$C$2="EN",IFERROR(IF(ISNUMBER( INDEX(INDIRECT($Z20), MATCH('Calc - Sparklines'!$AF20,INDIRECT($AA20),0), MATCH('Calc - Sparklines'!$D20,INDIRECT($AB20),0)-N$4))=FALSE,NA(), INDEX(INDIRECT($Z20), MATCH('Calc - Sparklines'!$AF20,INDIRECT($AA20),0), MATCH('Calc - Sparklines'!$D20,INDIRECT($AB20),0)-N$4)),NA()),IFERROR(IF(ISNUMBER( INDEX(INDIRECT($Z20), MATCH('Calc - Sparklines'!$C$2,INDIRECT($AA20),0), MATCH('Calc - Sparklines'!$D20,INDIRECT($AB20),0)-N$4))=FALSE,NA(), INDEX(INDIRECT($Z20), MATCH('Calc - Sparklines'!$C$2,INDIRECT($AA20),0), MATCH('Calc - Sparklines'!$D20,INDIRECT($AB20),0)-N$4)),NA())) -> 773647172.9 | O20: =IF('Calc - Sparklines'!$C$2="EN",IFERROR(IF(ISNUMBER( INDEX(INDIRECT($Z20), MATCH('Calc - Sparklines'!$AF20,INDIRECT($AA20),0), MATCH('Calc - Sparklines'!$D20,INDIRECT($AB20),0)-O$4))=FALSE,NA(), INDEX(INDIRECT($Z20), MATCH('Calc - Sparklines'!$AF20,INDIRECT($AA20),0), MATCH('Calc - Sparklines'!$D20,INDIRECT($AB20),0)-O$4)),NA()),IFERROR(IF(ISNUMBER( INDEX(INDIRECT($Z20), MATCH('Calc - Sparklines'!$C$2,INDIRECT($AA20),0), MATCH('Calc - Sparklines'!$D20,INDIRECT($AB20),0)-O$4))=FALSE,NA(), INDEX(INDIRECT($Z20), MATCH('Calc - Sparklines'!$C$2,INDIRECT($AA20),0), MATCH('Calc - Sparklines'!$D20,INDIRECT($AB20),0)-O$4)),NA())) -> 872263413.5 | P20: =IF('Calc - Sparklines'!$C$2="EN",IFERROR(IF(ISNUMBER( INDEX(INDIRECT($Z20), MATCH('Calc - Sparklines'!$AF20,INDIRECT($AA20),0), MATCH('Calc - Sparklines'!$D20,INDIRECT($AB20),0)-P$4))=FALSE,NA(), INDEX(INDIRECT($Z20), MATCH('Calc - Sparklines'!$AF20,INDIRECT($AA20),0), MATCH('Calc - Sparklines'!$D20,INDIRECT($AB20),0)-P$4)),NA()),IFERROR(IF(ISNUMBER( INDEX(INDIRECT($Z20), MATCH('Calc - Sparklines'!$C$2,INDIRECT($AA20),0), MATCH('Calc - Sparklines'!$D20,INDIRECT($AB20),0)-P$4))=FALSE,NA(), INDEX(INDIRECT($Z20), MATCH('Calc - Sparklines'!$C$2,INDIRECT($AA20),0), MATCH('Calc - Sparklines'!$D20,INDIRECT($AB20),0)-P$4)),NA())) -> 929248180.3 | R20: 6 | S20: 0 | T20: 929248180.3 | U20: 872263413.5 | V20: ▲ | W20: Sparkline10 | X20: N/A | Z20: Data_Table_CYP_v | AA20: Data_Orgs_CYP_v | AB20: Data_Dates_CYP_v | AD20: Not Applicable | AE20: Not Applicable | AF20: =IF('Calc - Sparklines'!$C$2="EN",IF(ISNUMBER(MATCH('Calc - Sparklines'!$C$2,INDIRECT($AA20),0)),"EN","England"),0) -> EN | AG20: =(MATCH('Calc - Sparklines'!$C$2,INDIRECT($AA20),0)) -> 2 | AH20: ="" ->  | AI20: ="" -> 
A21: CYP_vi | B21: CYP(vi) | C21: CYP MH forecast outturn (£k) - eating disorders | D21: ='CYP(vi)_FINAL CALC'!$B$6 -> 2021/22 planned | E21: =IF('Calc - Sparklines'!$C$2="EN",IFERROR(IF(ISNUMBER( INDEX(INDIRECT($Z21), MATCH('Calc - Sparklines'!$AF21,INDIRECT($AA21),0), MATCH('Calc - Sparklines'!$D21,INDIRECT($AB21),0)-E$4))=FALSE,NA(), INDEX(INDIRECT($Z21), MATCH('Calc - Sparklines'!$AF21,INDIRECT($AA21),0), MATCH('Calc - Sparklines'!$D21,INDIRECT($AB21),0)-E$4)),NA()),IFERROR(IF(ISNUMBER( INDEX(INDIRECT($Z21), MATCH('Calc - Sparklines'!$C$2,INDIRECT($AA21),0), MATCH('Calc - Sparklines'!$D21,INDIRECT($AB21),0)-E$4))=FALSE,NA(), INDEX(INDIRECT($Z21), MATCH('Calc - Sparklines'!$C$2,INDIRECT($AA21),0), MATCH('Calc - Sparklines'!$D21,INDIRECT($AB21),0)-E$4)),NA())) ->  | F21: =IF('Calc - Sparklines'!$C$2="EN",IFERROR(IF(ISNUMBER( INDEX(INDIRECT($Z21), MATCH('Calc - Sparklines'!$AF21,INDIRECT($AA21),0), MATCH('Calc - Sparklines'!$D21,INDIRECT($AB21),0)-F$4))=FALSE,NA(), INDEX(INDIRECT($Z21), MATCH('Calc - Sparklines'!$AF21,INDIRECT($AA21),0), MATCH('Calc - Sparklines'!$D21,INDIRECT($AB21),0)-F$4)),NA()),IFERROR(IF(ISNUMBER( INDEX(INDIRECT($Z21), MATCH('Calc - Sparklines'!$C$2,INDIRECT($AA21),0), MATCH('Calc - Sparklines'!$D21,INDIRECT($AB21),0)-F$4))=FALSE,NA(), INDEX(INDIRECT($Z21), MATCH('Calc - Sparklines'!$C$2,INDIRECT($AA21),0), MATCH('Calc - Sparklines'!$D21,INDIRECT($AB21),0)-F$4)),NA())) ->  | G21: =IF('Calc - Sparklines'!$C$2="EN",IFERROR(IF(ISNUMBER( INDEX(INDIRECT($Z21), MATCH('Calc - Sparklines'!$AF21,INDIRECT($AA21),0), MATCH('Calc - Sparklines'!$D21,INDIRECT($AB21),0)-G$4))=FALSE,NA(), INDEX(INDIRECT($Z21), MATCH('Calc - Sparklines'!$AF21,INDIRECT($AA21),0), MATCH('Calc - Sparklines'!$D21,INDIRECT($AB21),0)-G$4)),NA()),IFERROR(IF(ISNUMBER( INDEX(INDIRECT($Z21), MATCH('Calc - Sparklines'!$C$2,INDIRECT($AA21),0), MATCH('Calc - Sparklines'!$D21,INDIRECT($AB21),0)-G$4))=FALSE,NA(), INDEX(INDIRECT($Z21), MATCH('Calc - Sparklines'!$C$2,INDIRECT($AA21),0), MATCH('Calc - Sparklines'!$D21,INDIRECT($AB21),0)-G$4)),NA())) ->  | H21: =IF('Calc - Sparklines'!$C$2="EN",IFERROR(IF(ISNUMBER( INDEX(INDIRECT($Z21), MATCH('Calc - Sparklines'!$AF21,INDIRECT($AA21),0), MATCH('Calc - Sparklines'!$D21,INDIRECT($AB21),0)-H$4))=FALSE,NA(), INDEX(INDIRECT($Z21), MATCH('Calc - Sparklines'!$AF21,INDIRECT($AA21),0), MATCH('Calc - Sparklines'!$D21,INDIRECT($AB21),0)-H$4)),NA()),IFERROR(IF(ISNUMBER( INDEX(INDIRECT($Z21), MATCH('Calc - Sparklines'!$C$2,INDIRECT($AA21),0), MATCH('Calc - Sparklines'!$D21,INDIRECT($AB21),0)-H$4))=FALSE,NA(), INDEX(INDIRECT($Z21), MATCH('Calc - Sparklines'!$C$2,INDIRECT($AA21),0), MATCH('Calc - Sparklines'!$D21,INDIRECT($AB21),0)-H$4)),NA())) ->  | I21: =IF('Calc - Sparklines'!$C$2="EN",IFERROR(IF(ISNUMBER( INDEX(INDIRECT($Z21), MATCH('Calc - Sparklines'!$AF21,INDIRECT($AA21),0), MATCH('Calc - Sparklines'!$D21,INDIRECT($AB21),0)-I$4))=FALSE,NA(), INDEX(INDIRECT($Z21), MATCH('Calc - Sparklines'!$AF21,INDIRECT($AA21),0), MATCH('Calc - Sparklines'!$D21,INDIRECT($AB21),0)-I$4)),NA()),IFERROR(IF(ISNUMBER( INDEX(INDIRECT($Z21), MATCH('Calc - Sparklines'!$C$2,INDIRECT($AA21),0), MATCH('Calc - Sparklines'!$D21,INDIRECT($AB21),0)-I$4))=FALSE,NA(), INDEX(INDIRECT($Z21), MATCH('Calc - Sparklines'!$C$2,INDIRECT($AA21),0), MATCH('Calc - Sparklines'!$D21,INDIRECT($AB21),0)-I$4)),NA())) ->  | J21: =IF('Calc - Sparklines'!$C$2="EN",IFERROR(IF(ISNUMBER( INDEX(INDIRECT($Z21), MATCH('Calc - Sparklines'!$AF21,INDIRECT($AA21),0), MATCH('Calc - Sparklines'!$D21,INDIRECT($AB21),0)-J$4))=FALSE,NA(), INDEX(INDIRECT($Z21), MATCH('Calc - Sparklines'!$AF21,INDIRECT($AA21),0), MATCH('Calc - Sparklines'!$D21,INDIRECT($AB21),0)-J$4)),NA()),IFERROR(IF(ISNUMBER( INDEX(INDIRECT($Z21), MATCH('Calc - Sparklines'!$C$2,INDIRECT($AA21),0), MATCH('Calc - Sparklines'!$D21,INDIRECT($AB21),0)-J$4))=FALSE,NA(), INDEX(INDIRECT($Z21), MATCH('Calc - Sparklines'!$C$2,INDIRECT($AA21),0), MATCH('Calc - Sparklines'!$D21,INDIRECT($AB21),0)-J$4)),NA())) ->  | K21: =IF('Calc - Sparklines'!$C$2="EN",IFERROR(IF(ISNUMBER( INDEX(INDIRECT($Z21), MATCH('Calc - Sparklines'!$AF21,INDIRECT($AA21),0), MATCH('Calc - Sparklines'!$D21,INDIRECT($AB21),0)-K$4))=FALSE,NA(), INDEX(INDIRECT($Z21), MATCH('Calc - Sparklines'!$AF21,INDIRECT($AA21),0), MATCH('Calc - Sparklines'!$D21,INDIRECT($AB21),0)-K$4)),NA()),IFERROR(IF(ISNUMBER( INDEX(INDIRECT($Z21), MATCH('Calc - Sparklines'!$C$2,INDIRECT($AA21),0), MATCH('Calc - Sparklines'!$D21,INDIRECT($AB21),0)-K$4))=FALSE,NA(), INDEX(INDIRECT($Z21), MATCH('Calc - Sparklines'!$C$2,INDIRECT($AA21),0), MATCH('Calc - Sparklines'!$D21,INDIRECT($AB21),0)-K$4)),NA())) ->  | L21: =IF('Calc - Sparklines'!$C$2="EN",IFERROR(IF(ISNUMBER( INDEX(INDIRECT($Z21), MATCH('Calc - Sparklines'!$AF21,INDIRECT($AA21),0), MATCH('Calc - Sparklines'!$D21,INDIRECT($AB21),0)-L$4))=FALSE,NA(), INDEX(INDIRECT($Z21), MATCH('Calc - Sparklines'!$AF21,INDIRECT($AA21),0), MATCH('Calc - Sparklines'!$D21,INDIRECT($AB21),0)-L$4)),NA()),IFERROR(IF(ISNUMBER( INDEX(INDIRECT($Z21), MATCH('Calc - Sparklines'!$C$2,INDIRECT($AA21),0), MATCH('Calc - Sparklines'!$D21,INDIRECT($AB21),0)-L$4))=FALSE,NA(), INDEX(INDIRECT($Z21), MATCH('Calc - Sparklines'!$C$2,INDIRECT($AA21),0), MATCH('Calc - Sparklines'!$D21,INDIRECT($AB21),0)-L$4)),NA())) -> 46716934.23 | M21: =IF('Calc - Sparklines'!$C$2="EN",IFERROR(IF(ISNUMBER( INDEX(INDIRECT($Z21), MATCH('Calc - Sparklines'!$AF21,INDIRECT($AA21),0), MATCH('Calc - Sparklines'!$D21,INDIRECT($AB21),0)-M$4))=FALSE,NA(), INDEX(INDIRECT($Z21), MATCH('Calc - Sparklines'!$AF21,INDIRECT($AA21),0), MATCH('Calc - Sparklines'!$D21,INDIRECT($AB21),0)-M$4)),NA()),IFERROR(IF(ISNUMBER( INDEX(INDIRECT($Z21), MATCH('Calc - Sparklines'!$C$2,INDIRECT($AA21),0), MATCH('Calc - Sparklines'!$D21,INDIRECT($AB21),0)-M$4))=FALSE,NA(), INDEX(INDIRECT($Z21), MATCH('Calc - Sparklines'!$C$2,INDIRECT($AA21),0), MATCH('Calc - Sparklines'!$D21,INDIRECT($AB21),0)-M$4)),NA())) -> 50720650.11 | N21: =IF('Calc - Sparklines'!$C$2="EN",IFERROR(IF(ISNUMBER( INDEX(INDIRECT($Z21), MATCH('Calc - Sparklines'!$AF21,INDIRECT($AA21),0), MATCH('Calc - Sparklines'!$D21,INDIRECT($AB21),0)-N$4))=FALSE,NA(), INDEX(INDIRECT($Z21), MATCH('Calc - Sparklines'!$AF21,INDIRECT($AA21),0), MATCH('Calc - Sparklines'!$D21,INDIRECT($AB21),0)-N$4)),NA()),IFERROR(IF(ISNUMBER( INDEX(INDIRECT($Z21), MATCH('Calc - Sparklines'!$C$2,INDIRECT($AA21),0), MATCH('Calc - Sparklines'!$D21,INDIRECT($AB21),0)-N$4))=FALSE,NA(), INDEX(INDIRECT($Z21), MATCH('Calc - Sparklines'!$C$2,INDIRECT($AA21),0), MATCH('Calc - Sparklines'!$D21,INDIRECT($AB21),0)-N$4)),NA())) -> 52087100.46 | O21: =IF('Calc - Sparklines'!$C$2="EN",IFERROR(IF(ISNUMBER( INDEX(INDIRECT($Z21), MATCH('Calc - Sparklines'!$AF21,INDIRECT($AA21),0), MATCH('Calc - Sparklines'!$D21,INDIRECT($AB21),0)-O$4))=FALSE,NA(), INDEX(INDIRECT($Z21), MATCH('Calc - Sparklines'!$AF21,INDIRECT($AA21),0), MATCH('Calc - Sparklines'!$D21,INDIRECT($AB21),0)-O$4)),NA()),IFERROR(IF(ISNUMBER( INDEX(INDIRECT($Z21), MATCH('Calc - Sparklines'!$C$2,INDIRECT($AA21),0), MATCH('Calc - Sparklines'!$D21,INDIRECT($AB21),0)-O$4))=FALSE,NA(), INDEX(INDIRECT($Z21), MATCH('Calc - Sparklines'!$C$2,INDIRECT($AA21),0), MATCH('Calc - Sparklines'!$D21,INDIRECT($AB21),0)-O$4)),NA())) -> 61610858.12 | P21: =IF('Calc - Sparklines'!$C$2="EN",IFERROR(IF(ISNUMBER( INDEX(INDIRECT($Z21), MATCH('Calc - Sparklines'!$AF21,INDIRECT($AA21),0), MATCH('Calc - Sparklines'!$D21,INDIRECT($AB21),0)-P$4))=FALSE,NA(), INDEX(INDIRECT($Z21), MATCH('Calc - Sparklines'!$AF21,INDIRECT($AA21),0), MATCH('Calc - Sparklines'!$D21,INDIRECT($AB21),0)-P$4)),NA()),IFERROR(IF(ISNUMBER( INDEX(INDIRECT($Z21), MATCH('Calc - Sparklines'!$C$2,INDIRECT($AA21),0), MATCH('Calc - Sparklines'!$D21,INDIRECT($AB21),0)-P$4))=FALSE,NA(), INDEX(INDIRECT($Z21), MATCH('Calc - Sparklines'!$C$2,INDIRECT($AA21),0), MATCH('Calc - Sparklines'!$D21,INDIRECT($AB21),0)-P$4)),NA())) -> 67806015.93 | R21: 6 | S21: 0 | T21: 67806015.93 | U21: 61610858.12 | V21: ▲ | W21: Sparkline11 | X21: N/A | Z21: Data_Table_CYP_vi | AA21: Data_Orgs_CYP_vi | AB21: Data_Dates_CYP_vi | AF21: =IF('Calc - Sparklines'!$C$2="EN",IF(ISNUMBER(MATCH('Calc - Sparklines'!$C$2,INDIRECT($AA21),0)),"EN","England"),0) -> EN | AG21: =(MATCH('Calc - Sparklines'!$C$2,INDIRECT($AA21),0)) -> 2 | AH21: ="" ->  | AI21: ="" -> 
B22: Perinatal Mental Health | AG22: =(MATCH('Calc - Sparklines'!$C$2,INDIRECT($AA22),0)) ->  | AH22: =IFERROR(P22/L22-1,"") ->  | AI22: =IFERROR(P22/H22-1,"") -> 
A23: PMH_i_a | B23: PMH(i.a) | C23: Number of women accessing specialis perinatal mental health services | D23: ='PMH(i_a)'!$B$6 -> Q1 2021/22 | E23: =IF('Calc - Sparklines'!$C$2="EN",IFERROR(IF(ISNUMBER( INDEX(INDIRECT($Z23), MATCH('Calc - Sparklines'!$AF23,INDIRECT($AA23),0), MATCH('Calc - Sparklines'!$D23,INDIRECT($AB23),0)-E$3))=FALSE,NA(), INDEX(INDIRECT($Z23), MATCH('Calc - Sparklines'!$AF23,INDIRECT($AA23),0), MATCH('Calc - Sparklines'!$D23,INDIRECT($AB23),0)-E$3)),NA()),IFERROR(IF(ISNUMBER( INDEX(INDIRECT($Z23), MATCH('Calc - Sparklines'!$C$2,INDIRECT($AA23),0), MATCH('Calc - Sparklines'!$D23,INDIRECT($AB23),0)-E$3))=FALSE,NA(), INDEX(INDIRECT($Z23), MATCH('Calc - Sparklines'!$C$2,INDIRECT($AA23),0), MATCH('Calc - Sparklines'!$D23,INDIRECT($AB23),0)-E$3)),NA())) ->  | F23: =IF('Calc - Sparklines'!$C$2="EN",IFERROR(IF(ISNUMBER( INDEX(INDIRECT($Z23), MATCH('Calc - Sparklines'!$AF23,INDIRECT($AA23),0), MATCH('Calc - Sparklines'!$D23,INDIRECT($AB23),0)-F$3))=FALSE,NA(), INDEX(INDIRECT($Z23), MATCH('Calc - Sparklines'!$AF23,INDIRECT($AA23),0), MATCH('Calc - Sparklines'!$D23,INDIRECT($AB23),0)-F$3)),NA()),IFERROR(IF(ISNUMBER( INDEX(INDIRECT($Z23), MATCH('Calc - Sparklines'!$C$2,INDIRECT($AA23),0), MATCH('Calc - Sparklines'!$D23,INDIRECT($AB23),0)-F$3))=FALSE,NA(), INDEX(INDIRECT($Z23), MATCH('Calc - Sparklines'!$C$2,INDIRECT($AA23),0), MATCH('Calc - Sparklines'!$D23,INDIRECT($AB23),0)-F$3)),NA())) ->  | G23: =IF('Calc - Sparklines'!$C$2="EN",IFERROR(IF(ISNUMBER( INDEX(INDIRECT($Z23), MATCH('Calc - Sparklines'!$AF23,INDIRECT($AA23),0), MATCH('Calc - Sparklines'!$D23,INDIRECT($AB23),0)-G$3))=FALSE,NA(), INDEX(INDIRECT($Z23), MATCH('Calc - Sparklines'!$AF23,INDIRECT($AA23),0), MATCH('Calc - Sparklines'!$D23,INDIRECT($AB23),0)-G$3)),NA()),IFERROR(IF(ISNUMBER( INDEX(INDIRECT($Z23), MATCH('Calc - Sparklines'!$C$2,INDIRECT($AA23),0), MATCH('Calc - Sparklines'!$D23,INDIRECT($AB23),0)-G$3))=FALSE,NA(), INDEX(INDIRECT($Z23), MATCH('Calc - Sparklines'!$C$2,INDIRECT($AA23),0), MATCH('Calc - Sparklines'!$D23,INDIRECT($AB23),0)-G$3)),NA())) ->  | H23: =IF('Calc - Sparklines'!$C$2="EN",IFERROR(IF(ISNUMBER( INDEX(INDIRECT($Z23), MATCH('Calc - Sparklines'!$AF23,INDIRECT($AA23),0), MATCH('Calc - Sparklines'!$D23,INDIRECT($AB23),0)-H$3))=FALSE,NA(), INDEX(INDIRECT($Z23), MATCH('Calc - Sparklines'!$AF23,INDIRECT($AA23),0), MATCH('Calc - Sparklines'!$D23,INDIRECT($AB23),0)-H$3)),NA()),IFERROR(IF(ISNUMBER( INDEX(INDIRECT($Z23), MATCH('Calc - Sparklines'!$C$2,INDIRECT($AA23),0), MATCH('Calc - Sparklines'!$D23,INDIRECT($AB23),0)-H$3))=FALSE,NA(), INDEX(INDIRECT($Z23), MATCH('Calc - Sparklines'!$C$2,INDIRECT($AA23),0), MATCH('Calc - Sparklines'!$D23,INDIRECT($AB23),0)-H$3)),NA())) ->  | I23: =IF('Calc - Sparklines'!$C$2="EN",IFERROR(IF(ISNUMBER( INDEX(INDIRECT($Z23), MATCH('Calc - Sparklines'!$AF23,INDIRECT($AA23),0), MATCH('Calc - Sparklines'!$D23,INDIRECT($AB23),0)-I$3))=FALSE,NA(), INDEX(INDIRECT($Z23), MATCH('Calc - Sparklines'!$AF23,INDIRECT($AA23),0), MATCH('Calc - Sparklines'!$D23,INDIRECT($AB23),0)-I$3)),NA()),IFERROR(IF(ISNUMBER( INDEX(INDIRECT($Z23), MATCH('Calc - Sparklines'!$C$2,INDIRECT($AA23),0), MATCH('Calc - Sparklines'!$D23,INDIRECT($AB23),0)-I$3))=FALSE,NA(), INDEX(INDIRECT($Z23), MATCH('Calc - Sparklines'!$C$2,INDIRECT($AA23),0), MATCH('Calc - Sparklines'!$D23,INDIRECT($AB23),0)-I$3)),NA())) ->  | J23: =IF('Calc - Sparklines'!$C$2="EN",IFERROR(IF(ISNUMBER( INDEX(INDIRECT($Z23), MATCH('Calc - Sparklines'!$AF23,INDIRECT($AA23),0), MATCH('Calc - Sparklines'!$D23,INDIRECT($AB23),0)-J$3))=FALSE,NA(), INDEX(INDIRECT($Z23), MATCH('Calc - Sparklines'!$AF23,INDIRECT($AA23),0), MATCH('Calc - Sparklines'!$D23,INDIRECT($AB23),0)-J$3)),NA()),IFERROR(IF(ISNUMBER( INDEX(INDIRECT($Z23), MATCH('Calc - Sparklines'!$C$2,INDIRECT($AA23),0), MATCH('Calc - Sparklines'!$D23,INDIRECT($AB23),0)-J$3))=FALSE,NA(), INDEX(INDIRECT($Z23), MATCH('Calc - Sparklines'!$C$2,INDIRECT($AA23),0), MATCH('Calc - Sparklines'!$D23,INDIRECT($AB23),0)-J$3)),NA())) -> 28565 | K23: =IF('Calc - Sparklines'!$C$2="EN",IFERROR(IF(ISNUMBER( INDEX(INDIRECT($Z23), MATCH('Calc - Sparklines'!$AF23,INDIRECT($AA23),0), MATCH('Calc - Sparklines'!$D23,INDIRECT($AB23),0)-K$3))=FALSE,NA(), INDEX(INDIRECT($Z23), MATCH('Calc - Sparklines'!$AF23,INDIRECT($AA23),0), MATCH('Calc - Sparklines'!$D23,INDIRECT($AB23),0)-K$3)),NA()),IFERROR(IF(ISNUMBER( INDEX(INDIRECT($Z23), MATCH('Calc - Sparklines'!$C$2,INDIRECT($AA23),0), MATCH('Calc - Sparklines'!$D23,INDIRECT($AB23),0)-K$3))=FALSE,NA(), INDEX(INDIRECT($Z23), MATCH('Calc - Sparklines'!$C$2,INDIRECT($AA23),0), MATCH('Calc - Sparklines'!$D23,INDIRECT($AB23),0)-K$3)),NA())) -> 30625 | L23: =IF('Calc - Sparklines'!$C$2="EN",IFERROR(IF(ISNUMBER( INDEX(INDIRECT($Z23), MATCH('Calc - Sparklines'!$AF23,INDIRECT($AA23),0), MATCH('Calc - Sparklines'!$D23,INDIRECT($AB23),0)-L$3))=FALSE,NA(), INDEX(INDIRECT($Z23), MATCH('Calc - Sparklines'!$AF23,INDIRECT($AA23),0), MATCH('Calc - Sparklines'!$D23,INDIRECT($AB23),0)-L$3)),NA()),IFERROR(IF(ISNUMBER( INDEX(INDIRECT($Z23), MATCH('Calc - Sparklines'!$C$2,INDIRECT($AA23),0), MATCH('Calc - Sparklines'!$D23,INDIRECT($AB23),0)-L$3))=FALSE,NA(), INDEX(INDIRECT($Z23), MATCH('Calc - Sparklines'!$C$2,INDIRECT($AA23),0), MATCH('Calc - Sparklines'!$D23,INDIRECT($AB23),0)-L$3)),NA())) -> 29909 | M23: =IF('Calc - Sparklines'!$C$2="EN",IFERROR(IF(ISNUMBER( INDEX(INDIRECT($Z23), MATCH('Calc - Sparklines'!$AF23,INDIRECT($AA23),0), MATCH('Calc - Sparklines'!$D23,INDIRECT($AB23),0)-M$3))=FALSE,NA(), INDEX(INDIRECT($Z23), MATCH('Calc - Sparklines'!$AF23,INDIRECT($AA23),0), MATCH('Calc - Sparklines'!$D23,INDIRECT($AB23),0)-M$3)),NA()),IFERROR(IF(ISNUMBER( INDEX(INDIRECT($Z23), MATCH('Calc - Sparklines'!$C$2,INDIRECT($AA23),0), MATCH('Calc - Sparklines'!$D23,INDIRECT($AB23),0)-M$3))=FALSE,NA(), INDEX(INDIRECT($Z23), MATCH('Calc - Sparklines'!$C$2,INDIRECT($AA23),0), MATCH('Calc - Sparklines'!$D23,INDIRECT($AB23),0)-M$3)),NA())) -> 30425 | N23: =IF('Calc - Sparklines'!$C$2="EN",IFERROR(IF(ISNUMBER( INDEX(INDIRECT($Z23), MATCH('Calc - Sparklines'!$AF23,INDIRECT($AA23),0), MATCH('Calc - Sparklines'!$D23,INDIRECT($AB23),0)-N$3))=FALSE,NA(), INDEX(INDIRECT($Z23), MATCH('Calc - Sparklines'!$AF23,INDIRECT($AA23),0), MATCH('Calc - Sparklines'!$D23,INDIRECT($AB23),0)-N$3)),NA()),IFERROR(IF(ISNUMBER( INDEX(INDIRECT($Z23), MATCH('Calc - Sparklines'!$C$2,INDIRECT($AA23),0), MATCH('Calc - Sparklines'!$D23,INDIRECT($AB23),0)-N$3))=FALSE,NA(), INDEX(INDIRECT($Z23), MATCH('Calc - Sparklines'!$C$2,INDIRECT($AA23),0), MATCH('Calc - Sparklines'!$D23,INDIRECT($AB23),0)-N$3)),NA())) -> 31261 | O23: =IF('Calc - Sparklines'!$C$2="EN",IFERROR(IF(ISNUMBER( INDEX(INDIRECT($Z23), MATCH('Calc - Sparklines'!$AF23,INDIRECT($AA23),0), MATCH('Calc - Sparklines'!$D23,INDIRECT($AB23),0)-O$3))=FALSE,NA(), INDEX(INDIRECT($Z23), MATCH('Calc - Sparklines'!$AF23,INDIRECT($AA23),0), MATCH('Calc - Sparklines'!$D23,INDIRECT($AB23),0)-O$3)),NA()),IFERROR(IF(ISNUMBER( INDEX(INDIRECT($Z23), MATCH('Calc - Sparklines'!$C$2,INDIRECT($AA23),0), MATCH('Calc - Sparklines'!$D23,INDIRECT($AB23),0)-O$3))=FALSE,NA(), INDEX(INDIRECT($Z23), MATCH('Calc - Sparklines'!$C$2,INDIRECT($AA23),0), MATCH('Calc - Sparklines'!$D23,INDIRECT($AB23),0)-O$3)),NA())) -> 31550 | P23: =IF('Calc - Sparklines'!$C$2="EN",IFERROR(IF(ISNUMBER( INDEX(INDIRECT($Z23), MATCH('Calc - Sparklines'!$AF23,INDIRECT($AA23),0), MATCH('Calc - Sparklines'!$D23,INDIRECT($AB23),0)-P$3))=FALSE,NA(), INDEX(INDIRECT($Z23), MATCH('Calc - Sparklines'!$AF23,INDIRECT($AA23),0), MATCH('Calc - Sparklines'!$D23,INDIRECT($AB23),0)-P$3)),NA()),IFERROR(IF(ISNUMBER( INDEX(INDIRECT($Z23), MATCH('Calc - Sparklines'!$C$2,INDIRECT($AA23),0), MATCH('Calc - Sparklines'!$D23,INDIRECT($AB23),0)-P$3))=FALSE,NA(), INDEX(INDIRECT($Z23), MATCH('Calc - Sparklines'!$C$2,INDIRECT($AA23),0), MATCH('Calc - Sparklines'!$D23,INDIRECT($AB23),0)-P$3)),NA())) -> 35997 | R23: =IF(COUNTA(K23:P23)-COUNTIF(K23:P23,"#N/A")<3, 0, COUNTA(K23:P23)) -> 6 | S23: =IF(P23="N/A",IF(O23="N/A",2,1),0) -> 0 | T23: =OFFSET(P23,,-S23) -> 35997 | U23: =IF(ISERROR(O23),IF(ISERROR(N23),IF(ISERROR(M23),IF(ISERROR(L23),IF(ISERROR(K23),IF(ISERROR(J23),IF(ISERROR(I23),IF(ISERROR(H23),IF(ISERROR(G23),IF(ISERROR(F23),IF(ISERROR(E23), NA(), E23),F23),G23),H23),I23),J23),K23),L23),M23),N23),O23) -> 31550 | V23: ▲ | W23: Sparkline56 | X23: =IF(ISNA(T23),"N/A",IF(R23<=2,"N/A","")) ->  | Z23: Data_Table_PMH_i_a | AA23: Data_Orgs_PMH_i_a | AB23: Data_Dates_PMH_i_a | AF23: =IF('Calc - Sparklines'!$C$2="EN",IF(ISNUMBER(MATCH('Calc - Sparklines'!$C$2,INDIRECT($AA23),0)),"EN","ENG"),0) -> ENG | AG23: =(MATCH('Calc - Sparklines'!$C$2,INDIRECT($AA23),0)) ->  | AH23: =IFERROR(P23/L23-1,"") -> 0.2035507707 | AI23: =IFERROR(P23/H23-1,"") -> 
A24: PMH_i_b | B24: PMH(i.b) | C24: % Number of women accessing specialist perinatal mental health services as a proportion of live births | D24: ='PMH(i_b)'!$B$6 -> Q1 2021/22 | E24: =IF('Calc - Sparklines'!$C$2="EN",IFERROR(IF(ISNUMBER( INDEX(INDIRECT($Z24), MATCH('Calc - Sparklines'!$AF24,INDIRECT($AA24),0), MATCH('Calc - Sparklines'!$D24,INDIRECT($AB24),0)-E$3))=FALSE,NA(), INDEX(INDIRECT($Z24), MATCH('Calc - Sparklines'!$AF24,INDIRECT($AA24),0), MATCH('Calc - Sparklines'!$D24,INDIRECT($AB24),0)-E$3)),NA()),IFERROR(IF(ISNUMBER( INDEX(INDIRECT($Z24), MATCH('Calc - Sparklines'!$C$2,INDIRECT($AA24),0), MATCH('Calc - Sparklines'!$D24,INDIRECT($AB24),0)-E$3))=FALSE,NA(), INDEX(INDIRECT($Z24), MATCH('Calc - Sparklines'!$C$2,INDIRECT($AA24),0), MATCH('Calc - Sparklines'!$D24,INDIRECT($AB24),0)-E$3)),NA())) ->  | F24: =IF('Calc - Sparklines'!$C$2="EN",IFERROR(IF(ISNUMBER( INDEX(INDIRECT($Z24), MATCH('Calc - Sparklines'!$AF24,INDIRECT($AA24),0), MATCH('Calc - Sparklines'!$D24,INDIRECT($AB24),0)-F$3))=FALSE,NA(), INDEX(INDIRECT($Z24), MATCH('Calc - Sparklines'!$AF24,INDIRECT($AA24),0), MATCH('Calc - Sparklines'!$D24,INDIRECT($AB24),0)-F$3)),NA()),IFERROR(IF(ISNUMBER( INDEX(INDIRECT($Z24), MATCH('Calc - Sparklines'!$C$2,INDIRECT($AA24),0), MATCH('Calc - Sparklines'!$D24,INDIRECT($AB24),0)-F$3))=FALSE,NA(), INDEX(INDIRECT($Z24), MATCH('Calc - Sparklines'!$C$2,INDIRECT($AA24),0), MATCH('Calc - Sparklines'!$D24,INDIRECT($AB24),0)-F$3)),NA())) ->  | G24: =IF('Calc - Sparklines'!$C$2="EN",IFERROR(IF(ISNUMBER( INDEX(INDIRECT($Z24), MATCH('Calc - Sparklines'!$AF24,INDIRECT($AA24),0), MATCH('Calc - Sparklines'!$D24,INDIRECT($AB24),0)-G$3))=FALSE,NA(), INDEX(INDIRECT($Z24), MATCH('Calc - Sparklines'!$AF24,INDIRECT($AA24),0), MATCH('Calc - Sparklines'!$D24,INDIRECT($AB24),0)-G$3)),NA()),IFERROR(IF(ISNUMBER( INDEX(INDIRECT($Z24), MATCH('Calc - Sparklines'!$C$2,INDIRECT($AA24),0), MATCH('Calc - Sparklines'!$D24,INDIRECT($AB24),0)-G$3))=FALSE,NA(), INDEX(INDIRECT($Z24), MATCH('Calc - Sparklines'!$C$2,INDIRECT($AA24),0), MATCH('Calc - Sparklines'!$D24,INDIRECT($AB24),0)-G$3)),NA())) ->  | H24: =IF('Calc - Sparklines'!$C$2="EN",IFERROR(IF(ISNUMBER( INDEX(INDIRECT($Z24), MATCH('Calc - Sparklines'!$AF24,INDIRECT($AA24),0), MATCH('Calc - Sparklines'!$D24,INDIRECT($AB24),0)-H$3))=FALSE,NA(), INDEX(INDIRECT($Z24), MATCH('Calc - Sparklines'!$AF24,INDIRECT($AA24),0), MATCH('Calc - Sparklines'!$D24,INDIRECT($AB24),0)-H$3)),NA()),IFERROR(IF(ISNUMBER( INDEX(INDIRECT($Z24), MATCH('Calc - Sparklines'!$C$2,INDIRECT($AA24),0), MATCH('Calc - Sparklines'!$D24,INDIRECT($AB24),0)-H$3))=FALSE,NA(), INDEX(INDIRECT($Z24), MATCH('Calc - Sparklines'!$C$2,INDIRECT($AA24),0), MATCH('Calc - Sparklines'!$D24,INDIRECT($AB24),0)-H$3)),NA())) ->  | I24: =IF('Calc - Sparklines'!$C$2="EN",IFERROR(IF(ISNUMBER( INDEX(INDIRECT($Z24), MATCH('Calc - Sparklines'!$AF24,INDIRECT($AA24),0), MATCH('Calc - Sparklines'!$D24,INDIRECT($AB24),0)-I$3))=FALSE,NA(), INDEX(INDIRECT($Z24), MATCH('Calc - Sparklines'!$AF24,INDIRECT($AA24),0), MATCH('Calc - Sparklines'!$D24,INDIRECT($AB24),0)-I$3)),NA()),IFERROR(IF(ISNUMBER( INDEX(INDIRECT($Z24), MATCH('Calc - Sparklines'!$C$2,INDIRECT($AA24),0), MATCH('Calc - Sparklines'!$D24,INDIRECT($AB24),0)-I$3))=FALSE,NA(), INDEX(INDIRECT($Z24), MATCH('Calc - Sparklines'!$C$2,INDIRECT($AA24),0), MATCH('Calc - Sparklines'!$D24,INDIRECT($AB24),0)-I$3)),NA())) ->  | J24: =IF('Calc - Sparklines'!$C$2="EN",IFERROR(IF(ISNUMBER( INDEX(INDIRECT($Z24), MATCH('Calc - Sparklines'!$AF24,INDIRECT($AA24),0), MATCH('Calc - Sparklines'!$D24,INDIRECT($AB24),0)-J$3))=FALSE,NA(), INDEX(INDIRECT($Z24), MATCH('Calc - Sparklines'!$AF24,INDIRECT($AA24),0), MATCH('Calc - Sparklines'!$D24,INDIRECT($AB24),0)-J$3)),NA()),IFERROR(IF(ISNUMBER( INDEX(INDIRECT($Z24), MATCH('Calc - Sparklines'!$C$2,INDIRECT($AA24),0), MATCH('Calc - Sparklines'!$D24,INDIRECT($AB24),0)-J$3))=FALSE,NA(), INDEX(INDIRECT($Z24), MATCH('Calc - Sparklines'!$C$2,INDIRECT($AA24),0), MATCH('Calc - Sparklines'!$D24,INDIRECT($AB24),0)-J$3)),NA())) -> 0.043 | K24: =IF('Calc - Sparklines'!$C$2="EN",IFERROR(IF(ISNUMBER( INDEX(INDIRECT($Z24), MATCH('Calc - Sparklines'!$AF24,INDIRECT($AA24),0), MATCH('Calc - Sparklines'!$D24,INDIRECT($AB24),0)-K$3))=FALSE,NA(), INDEX(INDIRECT($Z24), MATCH('Calc - Sparklines'!$AF24,INDIRECT($AA24),0), MATCH('Calc - Sparklines'!$D24,INDIRECT($AB24),0)-K$3)),NA()),IFERROR(IF(ISNUMBER( INDEX(INDIRECT($Z24), MATCH('Calc - Sparklines'!$C$2,INDIRECT($AA24),0), MATCH('Calc - Sparklines'!$D24,INDIRECT($AB24),0)-K$3))=FALSE,NA(), INDEX(INDIRECT($Z24), MATCH('Calc - Sparklines'!$C$2,INDIRECT($AA24),0), MATCH('Calc - Sparklines'!$D24,INDIRECT($AB24),0)-K$3)),NA())) -> 0.046 | L24: =IF('Calc - Sparklines'!$C$2="EN",IFERROR(IF(ISNUMBER( INDEX(INDIRECT($Z24), MATCH('Calc - Sparklines'!$AF24,INDIRECT($AA24),0), MATCH('Calc - Sparklines'!$D24,INDIRECT($AB24),0)-L$3))=FALSE,NA(), INDEX(INDIRECT($Z24), MATCH('Calc - Sparklines'!$AF24,INDIRECT($AA24),0), MATCH('Calc - Sparklines'!$D24,INDIRECT($AB24),0)-L$3)),NA()),IFERROR(IF(ISNUMBER( INDEX(INDIRECT($Z24), MATCH('Calc - Sparklines'!$C$2,INDIRECT($AA24),0), MATCH('Calc - Sparklines'!$D24,INDIRECT($AB24),0)-L$3))=FALSE,NA(), INDEX(INDIRECT($Z24), MATCH('Calc - Sparklines'!$C$2,INDIRECT($AA24),0), MATCH('Calc - Sparklines'!$D24,INDIRECT($AB24),0)-L$3)),NA())) -> 0.045 | M24: =IF('Calc - Sparklines'!$C$2="EN",IFERROR(IF(ISNUMBER( INDEX(INDIRECT($Z24), MATCH('Calc - Sparklines'!$AF24,INDIRECT($AA24),0), MATCH('Calc - Sparklines'!$D24,INDIRECT($AB24),0)-M$3))=FALSE,NA(), INDEX(INDIRECT($Z24), MATCH('Calc - Sparklines'!$AF24,INDIRECT($AA24),0), MATCH('Calc - Sparklines'!$D24,INDIRECT($AB24),0)-M$3)),NA()),IFERROR(IF(ISNUMBER( INDEX(INDIRECT($Z24), MATCH('Calc - Sparklines'!$C$2,INDIRECT($AA24),0), MATCH('Calc - Sparklines'!$D24,INDIRECT($AB24),0)-M$3))=FALSE,NA(), INDEX(INDIRECT($Z24), MATCH('Calc - Sparklines'!$C$2,INDIRECT($AA24),0), MATCH('Calc - Sparklines'!$D24,INDIRECT($AB24),0)-M$3)),NA())) -> 0.046 | N24: =IF('Calc - Sparklines'!$C$2="EN",IFERROR(IF(ISNUMBER( INDEX(INDIRECT($Z24), MATCH('Calc - Sparklines'!$AF24,INDIRECT($AA24),0), MATCH('Calc - Sparklines'!$D24,INDIRECT($AB24),0)-N$3))=FALSE,NA(), INDEX(INDIRECT($Z24), MATCH('Calc - Sparklines'!$AF24,INDIRECT($AA24),0), MATCH('Calc - Sparklines'!$D24,INDIRECT($AB24),0)-N$3)),NA()),IFERROR(IF(ISNUMBER( INDEX(INDIRECT($Z24), MATCH('Calc - Sparklines'!$C$2,INDIRECT($AA24),0), MATCH('Calc - Sparklines'!$D24,INDIRECT($AB24),0)-N$3))=FALSE,NA(), INDEX(INDIRECT($Z24), MATCH('Calc - Sparklines'!$C$2,INDIRECT($AA24),0), MATCH('Calc - Sparklines'!$D24,INDIRECT($AB24),0)-N$3)),NA())) -> 0.047 | O24: =IF('Calc - Sparklines'!$C$2="EN",IFERROR(IF(ISNUMBER( INDEX(INDIRECT($Z24), MATCH('Calc - Sparklines'!$AF24,INDIRECT($AA24),0), MATCH('Calc - Sparklines'!$D24,INDIRECT($AB24),0)-O$3))=FALSE,NA(), INDEX(INDIRECT($Z24), MATCH('Calc - Sparklines'!$AF24,INDIRECT($AA24),0), MATCH('Calc - Sparklines'!$D24,INDIRECT($AB24),0)-O$3)),NA()),IFERROR(IF(ISNUMBER( INDEX(INDIRECT($Z24), MATCH('Calc - Sparklines'!$C$2,INDIRECT($AA24),0), MATCH('Calc - Sparklines'!$D24,INDIRECT($AB24),0)-O$3))=FALSE,NA(), INDEX(INDIRECT($Z24), MATCH('Calc - Sparklines'!$C$2,INDIRECT($AA24),0), MATCH('Calc - Sparklines'!$D24,INDIRECT($AB24),0)-O$3)),NA())) -> 0.048 | P24: =IF('Calc - Sparklines'!$C$2="EN",IFERROR(IF(ISNUMBER( INDEX(INDIRECT($Z24), MATCH('Calc - Sparklines'!$AF24,INDIRECT($AA24),0), MATCH('Calc - Sparklines'!$D24,INDIRECT($AB24),0)-P$3))=FALSE,NA(), INDEX(INDIRECT($Z24), MATCH('Calc - Sparklines'!$AF24,INDIRECT($AA24),0), MATCH('Calc - Sparklines'!$D24,INDIRECT($AB24),0)-P$3)),NA()),IFERROR(IF(ISNUMBER( INDEX(INDIRECT($Z24), MATCH('Calc - Sparklines'!$C$2,INDIRECT($AA24),0), MATCH('Calc - Sparklines'!$D24,INDIRECT($AB24),0)-P$3))=FALSE,NA(), INDEX(INDIRECT($Z24), MATCH('Calc - Sparklines'!$C$2,INDIRECT($AA24),0), MATCH('Calc - Sparklines'!$D24,INDIRECT($AB24),0)-P$3)),NA())) -> 0.054 | R24: =IF(COUNTA(K24:P24)-COUNTIF(K24:P24,"#N/A")<3, 0, COUNTA(K24:P24)) -> 6 | S24: =IF(P24="N/A",IF(O24="N/A",2,1),0) -> 0 | T24: =OFFSET(P24,,-S24) -> 0.054 | U24: =IF(ISERROR(O24),IF(ISERROR(N24),IF(ISERROR(M24),IF(ISERROR(L24),IF(ISERROR(K24),IF(ISERROR(J24),IF(ISERROR(I24),IF(ISERROR(H24),IF(ISERROR(G24),IF(ISERROR(F24),IF(ISERROR(E24), NA(), E24),F24),G24),H24),I24),J24),K24),L24),M24),N24),O24) -> 0.048 | V24: ▲ | W24: Sparkline57 | X24: =IF(ISNA(T24),"N/A",IF(R24<=2,"N/A","")) ->  | Z24: Data_Table_PMH_i_b | AA24: Data_Orgs_PMH_i_b | AB24: Data_Dates_PMH_i_b | AF24: =IF('Calc - Sparklines'!$C$2="EN",IF(ISNUMBER(MATCH('Calc - Sparklines'!$C$2,INDIRECT($AA24),0)),"EN","ENG"),0) -> ENG | AG24: =(MATCH('Calc - Sparklines'!$C$2,INDIRECT($AA24),0)) ->  | AH24: =IFERROR(P24-L24,"") -> 0.009 | AI24: =IFERROR(P24-H24,"") -> 
A25: PMH_ii | B25: PMH(ii) | C25: Perinatal Mental Health CCG spend | D25: ='PMH(ii)'!$B$6 -> 2021/22 planned | E25: =IF('Calc - Sparklines'!$C$2="EN",IFERROR(IF(ISNUMBER( INDEX(INDIRECT($Z25), MATCH('Calc - Sparklines'!$AF25,INDIRECT($AA25),0), MATCH('Calc - Sparklines'!$D25,INDIRECT($AB25),0)-E$4))=FALSE,NA(), INDEX(INDIRECT($Z25), MATCH('Calc - Sparklines'!$AF25,INDIRECT($AA25),0), MATCH('Calc - Sparklines'!$D25,INDIRECT($AB25),0)-E$4)),NA()),IFERROR(IF(ISNUMBER( INDEX(INDIRECT($Z25), MATCH('Calc - Sparklines'!$C$2,INDIRECT($AA25),0), MATCH('Calc - Sparklines'!$D25,INDIRECT($AB25),0)-E$4))=FALSE,NA(), INDEX(INDIRECT($Z25), MATCH('Calc - Sparklines'!$C$2,INDIRECT($AA25),0), MATCH('Calc - Sparklines'!$D25,INDIRECT($AB25),0)-E$4)),NA())) ->  | F25: =IF('Calc - Sparklines'!$C$2="EN",IFERROR(IF(ISNUMBER( INDEX(INDIRECT($Z25), MATCH('Calc - Sparklines'!$AF25,INDIRECT($AA25),0), MATCH('Calc - Sparklines'!$D25,INDIRECT($AB25),0)-F$4))=FALSE,NA(), INDEX(INDIRECT($Z25), MATCH('Calc - Sparklines'!$AF25,INDIRECT($AA25),0), MATCH('Calc - Sparklines'!$D25,INDIRECT($AB25),0)-F$4)),NA()),IFERROR(IF(ISNUMBER( INDEX(INDIRECT($Z25), MATCH('Calc - Sparklines'!$C$2,INDIRECT($AA25),0), MATCH('Calc - Sparklines'!$D25,INDIRECT($AB25),0)-F$4))=FALSE,NA(), INDEX(INDIRECT($Z25), MATCH('Calc - Sparklines'!$C$2,INDIRECT($AA25),0), MATCH('Calc - Sparklines'!$D25,INDIRECT($AB25),0)-F$4)),NA())) ->  | G25: =IF('Calc - Sparklines'!$C$2="EN",IFERROR(IF(ISNUMBER( INDEX(INDIRECT($Z25), MATCH('Calc - Sparklines'!$AF25,INDIRECT($AA25),0), MATCH('Calc - Sparklines'!$D25,INDIRECT($AB25),0)-G$4))=FALSE,NA(), INDEX(INDIRECT($Z25), MATCH('Calc - Sparklines'!$AF25,INDIRECT($AA25),0), MATCH('Calc - Sparklines'!$D25,INDIRECT($AB25),0)-G$4)),NA()),IFERROR(IF(ISNUMBER( INDEX(INDIRECT($Z25), MATCH('Calc - Sparklines'!$C$2,INDIRECT($AA25),0), MATCH('Calc - Sparklines'!$D25,INDIRECT($AB25),0)-G$4))=FALSE,NA(), INDEX(INDIRECT($Z25), MATCH('Calc - Sparklines'!$C$2,INDIRECT($AA25),0), MATCH('Calc - Sparklines'!$D25,INDIRECT($AB25),0)-G$4)),NA())) ->  | H25: =IF('Calc - Sparklines'!$C$2="EN",IFERROR(IF(ISNUMBER( INDEX(INDIRECT($Z25), MATCH('Calc - Sparklines'!$AF25,INDIRECT($AA25),0), MATCH('Calc - Sparklines'!$D25,INDIRECT($AB25),0)-H$4))=FALSE,NA(), INDEX(INDIRECT($Z25), MATCH('Calc - Sparklines'!$AF25,INDIRECT($AA25),0), MATCH('Calc - Sparklines'!$D25,INDIRECT($AB25),0)-H$4)),NA()),IFERROR(IF(ISNUMBER( INDEX(INDIRECT($Z25), MATCH('Calc - Sparklines'!$C$2,INDIRECT($AA25),0), MATCH('Calc - Sparklines'!$D25,INDIRECT($AB25),0)-H$4))=FALSE,NA(), INDEX(INDIRECT($Z25), MATCH('Calc - Sparklines'!$C$2,INDIRECT($AA25),0), MATCH('Calc - Sparklines'!$D25,INDIRECT($AB25),0)-H$4)),NA())) ->  | I25: =IF('Calc - Sparklines'!$C$2="EN",IFERROR(IF(ISNUMBER( INDEX(INDIRECT($Z25), MATCH('Calc - Sparklines'!$AF25,INDIRECT($AA25),0), MATCH('Calc - Sparklines'!$D25,INDIRECT($AB25),0)-I$4))=FALSE,NA(), INDEX(INDIRECT($Z25), MATCH('Calc - Sparklines'!$AF25,INDIRECT($AA25),0), MATCH('Calc - Sparklines'!$D25,INDIRECT($AB25),0)-I$4)),NA()),IFERROR(IF(ISNUMBER( INDEX(INDIRECT($Z25), MATCH('Calc - Sparklines'!$C$2,INDIRECT($AA25),0), MATCH('Calc - Sparklines'!$D25,INDIRECT($AB25),0)-I$4))=FALSE,NA(), INDEX(INDIRECT($Z25), MATCH('Calc - Sparklines'!$C$2,INDIRECT($AA25),0), MATCH('Calc - Sparklines'!$D25,INDIRECT($AB25),0)-I$4)),NA())) ->  | J25: =IF('Calc - Sparklines'!$C$2="EN",IFERROR(IF(ISNUMBER( INDEX(INDIRECT($Z25), MATCH('Calc - Sparklines'!$AF25,INDIRECT($AA25),0), MATCH('Calc - Sparklines'!$D25,INDIRECT($AB25),0)-J$4))=FALSE,NA(), INDEX(INDIRECT($Z25), MATCH('Calc - Sparklines'!$AF25,INDIRECT($AA25),0), MATCH('Calc - Sparklines'!$D25,INDIRECT($AB25),0)-J$4)),NA()),IFERROR(IF(ISNUMBER( INDEX(INDIRECT($Z25), MATCH('Calc - Sparklines'!$C$2,INDIRECT($AA25),0), MATCH('Calc - Sparklines'!$D25,INDIRECT($AB25),0)-J$4))=FALSE,NA(), INDEX(INDIRECT($Z25), MATCH('Calc - Sparklines'!$C$2,INDIRECT($AA25),0), MATCH('Calc - Sparklines'!$D25,INDIRECT($AB25),0)-J$4)),NA())) ->  | K25: =IF('Calc - Sparklines'!$C$2="EN",IFERROR(IF(ISNUMBER( INDEX(INDIRECT($Z25), MATCH('Calc - Sparklines'!$AF25,INDIRECT($AA25),0), MATCH('Calc - Sparklines'!$D25,INDIRECT($AB25),0)-K$4))=FALSE,NA(), INDEX(INDIRECT($Z25), MATCH('Calc - Sparklines'!$AF25,INDIRECT($AA25),0), MATCH('Calc - Sparklines'!$D25,INDIRECT($AB25),0)-K$4)),NA()),IFERROR(IF(ISNUMBER( INDEX(INDIRECT($Z25), MATCH('Calc - Sparklines'!$C$2,INDIRECT($AA25),0), MATCH('Calc - Sparklines'!$D25,INDIRECT($AB25),0)-K$4))=FALSE,NA(), INDEX(INDIRECT($Z25), MATCH('Calc - Sparklines'!$C$2,INDIRECT($AA25),0), MATCH('Calc - Sparklines'!$D25,INDIRECT($AB25),0)-K$4)),NA())) ->  | L25: =IF('Calc - Sparklines'!$C$2="EN",IFERROR(IF(ISNUMBER( INDEX(INDIRECT($Z25), MATCH('Calc - Sparklines'!$AF25,INDIRECT($AA25),0), MATCH('Calc - Sparklines'!$D25,INDIRECT($AB25),0)-L$4))=FALSE,NA(), INDEX(INDIRECT($Z25), MATCH('Calc - Sparklines'!$AF25,INDIRECT($AA25),0), MATCH('Calc - Sparklines'!$D25,INDIRECT($AB25),0)-L$4)),NA()),IFERROR(IF(ISNUMBER( INDEX(INDIRECT($Z25), MATCH('Calc - Sparklines'!$C$2,INDIRECT($AA25),0), MATCH('Calc - Sparklines'!$D25,INDIRECT($AB25),0)-L$4))=FALSE,NA(), INDEX(INDIRECT($Z25), MATCH('Calc - Sparklines'!$C$2,INDIRECT($AA25),0), MATCH('Calc - Sparklines'!$D25,INDIRECT($AB25),0)-L$4)),NA())) ->  | M25: =IF('Calc - Sparklines'!$C$2="EN",IFERROR(IF(ISNUMBER( INDEX(INDIRECT($Z25), MATCH('Calc - Sparklines'!$AF25,INDIRECT($AA25),0), MATCH('Calc - Sparklines'!$D25,INDIRECT($AB25),0)-M$4))=FALSE,NA(), INDEX(INDIRECT($Z25), MATCH('Calc - Sparklines'!$AF25,INDIRECT($AA25),0), MATCH('Calc - Sparklines'!$D25,INDIRECT($AB25),0)-M$4)),NA()),IFERROR(IF(ISNUMBER( INDEX(INDIRECT($Z25), MATCH('Calc - Sparklines'!$C$2,INDIRECT($AA25),0), MATCH('Calc - Sparklines'!$D25,INDIRECT($AB25),0)-M$4))=FALSE,NA(), INDEX(INDIRECT($Z25), MATCH('Calc - Sparklines'!$C$2,INDIRECT($AA25),0), MATCH('Calc - Sparklines'!$D25,INDIRECT($AB25),0)-M$4)),NA())) ->  | N25: =IF('Calc - Sparklines'!$C$2="EN",IFERROR(IF(ISNUMBER( INDEX(INDIRECT($Z25), MATCH('Calc - Sparklines'!$AF25,INDIRECT($AA25),0), MATCH('Calc - Sparklines'!$D25,INDIRECT($AB25),0)-N$4))=FALSE,NA(), INDEX(INDIRECT($Z25), MATCH('Calc - Sparklines'!$AF25,INDIRECT($AA25),0), MATCH('Calc - Sparklines'!$D25,INDIRECT($AB25),0)-N$4)),NA()),IFERROR(IF(ISNUMBER( INDEX(INDIRECT($Z25), MATCH('Calc - Sparklines'!$C$2,INDIRECT($AA25),0), MATCH('Calc - Sparklines'!$D25,INDIRECT($AB25),0)-N$4))=FALSE,NA(), INDEX(INDIRECT($Z25), MATCH('Calc - Sparklines'!$C$2,INDIRECT($AA25),0), MATCH('Calc - Sparklines'!$D25,INDIRECT($AB25),0)-N$4)),NA())) ->  | O25: =IF('Calc - Sparklines'!$C$2="EN",IFERROR(IF(ISNUMBER( INDEX(INDIRECT($Z25), MATCH('Calc - Sparklines'!$AF25,INDIRECT($AA25),0), MATCH('Calc - Sparklines'!$D25,INDIRECT($AB25),0)-O$4))=FALSE,NA(), INDEX(INDIRECT($Z25), MATCH('Calc - Sparklines'!$AF25,INDIRECT($AA25),0), MATCH('Calc - Sparklines'!$D25,INDIRECT($AB25),0)-O$4)),NA()),IFERROR(IF(ISNUMBER( INDEX(INDIRECT($Z25), MATCH('Calc - Sparklines'!$C$2,INDIRECT($AA25),0), MATCH('Calc - Sparklines'!$D25,INDIRECT($AB25),0)-O$4))=FALSE,NA(), INDEX(INDIRECT($Z25), MATCH('Calc - Sparklines'!$C$2,INDIRECT($AA25),0), MATCH('Calc - Sparklines'!$D25,INDIRECT($AB25),0)-O$4)),NA())) -> 105815815.4 | P25: =IF('Calc - Sparklines'!$C$2="EN",IFERROR(IF(ISNUMBER( INDEX(INDIRECT($Z25), MATCH('Calc - Sparklines'!$AF25,INDIRECT($AA25),0), MATCH('Calc - Sparklines'!$D25,INDIRECT($AB25),0)-P$4))=FALSE,NA(), INDEX(INDIRECT($Z25), MATCH('Calc - Sparklines'!$AF25,INDIRECT($AA25),0), MATCH('Calc - Sparklines'!$D25,INDIRECT($AB25),0)-P$4)),NA()),IFERROR(IF(ISNUMBER( INDEX(INDIRECT($Z25), MATCH('Calc - Sparklines'!$C$2,INDIRECT($AA25),0), MATCH('Calc - Sparklines'!$D25,INDIRECT($AB25),0)-P$4))=FALSE,NA(), INDEX(INDIRECT($Z25), MATCH('Calc - Sparklines'!$C$2,INDIRECT($AA25),0), MATCH('Calc - Sparklines'!$D25,INDIRECT($AB25),0)-P$4)),NA())) -> 124878246.9 | R25: =IF(COUNTA(K25:P25)-COUNTIF(K25:P25,"#N/A")<3, 0, COUNTA(K25:P25)) -> 0 | S25: =IF(P25="N/A",IF(O25="N/A",2,1),0) -> 0 | T25: =OFFSET(P25,,-S25) -> 124878246.9 | U25: =IF(ISERROR(O25),IF(ISERROR(N25),IF(ISERROR(M25),IF(ISERROR(L25),IF(ISERROR(K25),IF(ISERROR(J25),IF(ISERROR(I25),IF(ISERROR(H25),IF(ISERROR(G25),IF(ISERROR(F25),IF(ISERROR(E25), NA(), E25),F25),G25),H25),I25),J25),K25),L25),M25),N25),O25) -> 105815815.4 | V25: =IF(D25="","",IFERROR(IF(T25>U25,"▲", IF(T25<U25,"▼","◄►")),"N/A")) -> ▲ | W25: Sparkline58 | X25: =IF(ISNA(T25),"N/A",IF(R25<=2,"N/A","")) -> N/A | Z25: Data_Table_PMH_ii | AA25: Data_Orgs_PMH_ii | AB25: Data_Dates_PMH_ii | AF25: =IF('Calc - Sparklines'!$C$2="EN",IF(ISNUMBER(MATCH('Calc - Sparklines'!$C$2,INDIRECT($AA25),0)),"EN","ENG"),0) -> EN | AG25: =(MATCH('Calc - Sparklines'!$C$2,INDIRECT($AA25),0)) -> 2 | AH25: ="" ->  | AI25: ="" -> 
A26: Adult mental health: common mental health problems | B26: Adult mental health: common mental health problems | E26: =IF('Calc - Sparklines'!$C$2="EN",IFERROR(IF(ISNUMBER( INDEX(INDIRECT($Z26), MATCH('Calc - Sparklines'!$AF26,INDIRECT($AA26),0), MATCH('Calc - Sparklines'!$D26,INDIRECT($AB26),0)-E$3))=FALSE,NA(), INDEX(INDIRECT($Z26), MATCH('Calc - Sparklines'!$AF26,INDIRECT($AA26),0), MATCH('Calc - Sparklines'!$D26,INDIRECT($AB26),0)-E$3)),NA()),IFERROR(IF(ISNUMBER( INDEX(INDIRECT($Z26), MATCH('Calc - Sparklines'!$C$2,INDIRECT($AA26),0), MATCH('Calc - Sparklines'!$D26,INDIRECT($AB26),0)-E$3))=FALSE,NA(), INDEX(INDIRECT($Z26), MATCH('Calc - Sparklines'!$C$2,INDIRECT($AA26),0), MATCH('Calc - Sparklines'!$D26,INDIRECT($AB26),0)-E$3)),NA())) ->  | F26: =IF('Calc - Sparklines'!$C$2="EN",IFERROR(IF(ISNUMBER( INDEX(INDIRECT($Z26), MATCH('Calc - Sparklines'!$AF26,INDIRECT($AA26),0), MATCH('Calc - Sparklines'!$D26,INDIRECT($AB26),0)-F$3))=FALSE,NA(), INDEX(INDIRECT($Z26), MATCH('Calc - Sparklines'!$AF26,INDIRECT($AA26),0), MATCH('Calc - Sparklines'!$D26,INDIRECT($AB26),0)-F$3)),NA()),IFERROR(IF(ISNUMBER( INDEX(INDIRECT($Z26), MATCH('Calc - Sparklines'!$C$2,INDIRECT($AA26),0), MATCH('Calc - Sparklines'!$D26,INDIRECT($AB26),0)-F$3))=FALSE,NA(), INDEX(INDIRECT($Z26), MATCH('Calc - Sparklines'!$C$2,INDIRECT($AA26),0), MATCH('Calc - Sparklines'!$D26,INDIRECT($AB26),0)-F$3)),NA())) ->  | G26: =IF('Calc - Sparklines'!$C$2="EN",IFERROR(IF(ISNUMBER( INDEX(INDIRECT($Z26), MATCH('Calc - Sparklines'!$AF26,INDIRECT($AA26),0), MATCH('Calc - Sparklines'!$D26,INDIRECT($AB26),0)-G$3))=FALSE,NA(), INDEX(INDIRECT($Z26), MATCH('Calc - Sparklines'!$AF26,INDIRECT($AA26),0), MATCH('Calc - Sparklines'!$D26,INDIRECT($AB26),0)-G$3)),NA()),IFERROR(IF(ISNUMBER( INDEX(INDIRECT($Z26), MATCH('Calc - Sparklines'!$C$2,INDIRECT($AA26),0), MATCH('Calc - Sparklines'!$D26,INDIRECT($AB26),0)-G$3))=FALSE,NA(), INDEX(INDIRECT($Z26), MATCH('Calc - Sparklines'!$C$2,INDIRECT($AA26),0), MATCH('Calc - Sparklines'!$D26,INDIRECT($AB26),0)-G$3)),NA())) ->  | H26: =IF('Calc - Sparklines'!$C$2="EN",IFERROR(IF(ISNUMBER( INDEX(INDIRECT($Z26), MATCH('Calc - Sparklines'!$AF26,INDIRECT($AA26),0), MATCH('Calc - Sparklines'!$D26,INDIRECT($AB26),0)-H$3))=FALSE,NA(), INDEX(INDIRECT($Z26), MATCH('Calc - Sparklines'!$AF26,INDIRECT($AA26),0), MATCH('Calc - Sparklines'!$D26,INDIRECT($AB26),0)-H$3)),NA()),IFERROR(IF(ISNUMBER( INDEX(INDIRECT($Z26), MATCH('Calc - Sparklines'!$C$2,INDIRECT($AA26),0), MATCH('Calc - Sparklines'!$D26,INDIRECT($AB26),0)-H$3))=FALSE,NA(), INDEX(INDIRECT($Z26), MATCH('Calc - Sparklines'!$C$2,INDIRECT($AA26),0), MATCH('Calc - Sparklines'!$D26,INDIRECT($AB26),0)-H$3)),NA())) ->  | I26: =IF('Calc - Sparklines'!$C$2="EN",IFERROR(IF(ISNUMBER( INDEX(INDIRECT($Z26), MATCH('Calc - Sparklines'!$AF26,INDIRECT($AA26),0), MATCH('Calc - Sparklines'!$D26,INDIRECT($AB26),0)-I$3))=FALSE,NA(), INDEX(INDIRECT($Z26), MATCH('Calc - Sparklines'!$AF26,INDIRECT($AA26),0), MATCH('Calc - Sparklines'!$D26,INDIRECT($AB26),0)-I$3)),NA()),IFERROR(IF(ISNUMBER( INDEX(INDIRECT($Z26), MATCH('Calc - Sparklines'!$C$2,INDIRECT($AA26),0), MATCH('Calc - Sparklines'!$D26,INDIRECT($AB26),0)-I$3))=FALSE,NA(), INDEX(INDIRECT($Z26), MATCH('Calc - Sparklines'!$C$2,INDIRECT($AA26),0), MATCH('Calc - Sparklines'!$D26,INDIRECT($AB26),0)-I$3)),NA())) ->  | J26: =IF('Calc - Sparklines'!$C$2="EN",IFERROR(IF(ISNUMBER( INDEX(INDIRECT($Z26), MATCH('Calc - Sparklines'!$AF26,INDIRECT($AA26),0), MATCH('Calc - Sparklines'!$D26,INDIRECT($AB26),0)-J$3))=FALSE,NA(), INDEX(INDIRECT($Z26), MATCH('Calc - Sparklines'!$AF26,INDIRECT($AA26),0), MATCH('Calc - Sparklines'!$D26,INDIRECT($AB26),0)-J$3)),NA()),IFERROR(IF(ISNUMBER( INDEX(INDIRECT($Z26), MATCH('Calc - Sparklines'!$C$2,INDIRECT($AA26),0), MATCH('Calc - Sparklines'!$D26,INDIRECT($AB26),0)-J$3))=FALSE,NA(), INDEX(INDIRECT($Z26), MATCH('Calc - Sparklines'!$C$2,INDIRECT($AA26),0), MATCH('Calc - Sparklines'!$D26,INDIRECT($AB26),0)-J$3)),NA())) ->  | K26: =IF('Calc - Sparklines'!$C$2="EN",IFERROR(IF(ISNUMBER( INDEX(INDIRECT($Z26), MATCH('Calc - Sparklines'!$AF26,INDIRECT($AA26),0), MATCH('Calc - Sparklines'!$D26,INDIRECT($AB26),0)-K$3))=FALSE,NA(), INDEX(INDIRECT($Z26), MATCH('Calc - Sparklines'!$AF26,INDIRECT($AA26),0), MATCH('Calc - Sparklines'!$D26,INDIRECT($AB26),0)-K$3)),NA()),IFERROR(IF(ISNUMBER( INDEX(INDIRECT($Z26), MATCH('Calc - Sparklines'!$C$2,INDIRECT($AA26),0), MATCH('Calc - Sparklines'!$D26,INDIRECT($AB26),0)-K$3))=FALSE,NA(), INDEX(INDIRECT($Z26), MATCH('Calc - Sparklines'!$C$2,INDIRECT($AA26),0), MATCH('Calc - Sparklines'!$D26,INDIRECT($AB26),0)-K$3)),NA())) ->  | L26: =IF('Calc - Sparklines'!$C$2="EN",IFERROR(IF(ISNUMBER( INDEX(INDIRECT($Z26), MATCH('Calc - Sparklines'!$AF26,INDIRECT($AA26),0), MATCH('Calc - Sparklines'!$D26,INDIRECT($AB26),0)-L$3))=FALSE,NA(), INDEX(INDIRECT($Z26), MATCH('Calc - Sparklines'!$AF26,INDIRECT($AA26),0), MATCH('Calc - Sparklines'!$D26,INDIRECT($AB26),0)-L$3)),NA()),IFERROR(IF(ISNUMBER( INDEX(INDIRECT($Z26), MATCH('Calc - Sparklines'!$C$2,INDIRECT($AA26),0), MATCH('Calc - Sparklines'!$D26,INDIRECT($AB26),0)-L$3))=FALSE,NA(), INDEX(INDIRECT($Z26), MATCH('Calc - Sparklines'!$C$2,INDIRECT($AA26),0), MATCH('Calc - Sparklines'!$D26,INDIRECT($AB26),0)-L$3)),NA())) ->  | M26: =IF('Calc - Sparklines'!$C$2="EN",IFERROR(IF(ISNUMBER( INDEX(INDIRECT($Z26), MATCH('Calc - Sparklines'!$AF26,INDIRECT($AA26),0), MATCH('Calc - Sparklines'!$D26,INDIRECT($AB26),0)-M$3))=FALSE,NA(), INDEX(INDIRECT($Z26), MATCH('Calc - Sparklines'!$AF26,INDIRECT($AA26),0), MATCH('Calc - Sparklines'!$D26,INDIRECT($AB26),0)-M$3)),NA()),IFERROR(IF(ISNUMBER( INDEX(INDIRECT($Z26), MATCH('Calc - Sparklines'!$C$2,INDIRECT($AA26),0), MATCH('Calc - Sparklines'!$D26,INDIRECT($AB26),0)-M$3))=FALSE,NA(), INDEX(INDIRECT($Z26), MATCH('Calc - Sparklines'!$C$2,INDIRECT($AA26),0), MATCH('Calc - Sparklines'!$D26,INDIRECT($AB26),0)-M$3)),NA())) ->  | N26: =IF('Calc - Sparklines'!$C$2="EN",IFERROR(IF(ISNUMBER( INDEX(INDIRECT($Z26), MATCH('Calc - Sparklines'!$AF26,INDIRECT($AA26),0), MATCH('Calc - Sparklines'!$D26,INDIRECT($AB26),0)-N$3))=FALSE,NA(), INDEX(INDIRECT($Z26), MATCH('Calc - Sparklines'!$AF26,INDIRECT($AA26),0), MATCH('Calc - Sparklines'!$D26,INDIRECT($AB26),0)-N$3)),NA()),IFERROR(IF(ISNUMBER( INDEX(INDIRECT($Z26), MATCH('Calc - Sparklines'!$C$2,INDIRECT($AA26),0), MATCH('Calc - Sparklines'!$D26,INDIRECT($AB26),0)-N$3))=FALSE,NA(), INDEX(INDIRECT($Z26), MATCH('Calc - Sparklines'!$C$2,INDIRECT($AA26),0), MATCH('Calc - Sparklines'!$D26,INDIRECT($AB26),0)-N$3)),NA())) ->  | O26: =IF('Calc - Sparklines'!$C$2="EN",IFERROR(IF(ISNUMBER( INDEX(INDIRECT($Z26), MATCH('Calc - Sparklines'!$AF26,INDIRECT($AA26),0), MATCH('Calc - Sparklines'!$D26,INDIRECT($AB26),0)-O$3))=FALSE,NA(), INDEX(INDIRECT($Z26), MATCH('Calc - Sparklines'!$AF26,INDIRECT($AA26),0), MATCH('Calc - Sparklines'!$D26,INDIRECT($AB26),0)-O$3)),NA()),IFERROR(IF(ISNUMBER( INDEX(INDIRECT($Z26), MATCH('Calc - Sparklines'!$C$2,INDIRECT($AA26),0), MATCH('Calc - Sparklines'!$D26,INDIRECT($AB26),0)-O$3))=FALSE,NA(), INDEX(INDIRECT($Z26), MATCH('Calc - Sparklines'!$C$2,INDIRECT($AA26),0), MATCH('Calc - Sparklines'!$D26,INDIRECT($AB26),0)-O$3)),NA())) ->  | P26: =IF('Calc - Sparklines'!$C$2="EN",IFERROR(IF(ISNUMBER( INDEX(INDIRECT($Z26), MATCH('Calc - Sparklines'!$AF26,INDIRECT($AA26),0), MATCH('Calc - Sparklines'!$D26,INDIRECT($AB26),0)-P$3))=FALSE,NA(), INDEX(INDIRECT($Z26), MATCH('Calc - Sparklines'!$AF26,INDIRECT($AA26),0), MATCH('Calc - Sparklines'!$D26,INDIRECT($AB26),0)-P$3)),NA()),IFERROR(IF(ISNUMBER( INDEX(INDIRECT($Z26), MATCH('Calc - Sparklines'!$C$2,INDIRECT($AA26),0), MATCH('Calc - Sparklines'!$D26,INDIRECT($AB26),0)-P$3))=FALSE,NA(), INDEX(INDIRECT($Z26), MATCH('Calc - Sparklines'!$C$2,INDIRECT($AA26),0), MATCH('Calc - Sparklines'!$D26,INDIRECT($AB26),0)-P$3)),NA())) ->  | R26: 0 | X26: =IF(ISNA(T26),"N/A",IF(R26<=2,"N/A","")) -> N/A | AD26: Heading | AG26: =(MATCH('Calc - Sparklines'!$C$2,INDIRECT($AA26),0)) ->  | AH26: =IFERROR(P26/L26-1,"") ->  | AI26: =IFERROR(P26/H26-1,"") -> 
A27: IAPT_i_a | B27: IAPT(i.a) | C27: IAPT access to treatment rate | D27: ='IAPT(i_a)_FINAL CALC'!B6 -> Q1 2021/22 | E27: =IF('Calc - Sparklines'!$C$2="EN",IFERROR(IF(ISNUMBER( INDEX(INDIRECT($Z27), MATCH('Calc - Sparklines'!$AF27,INDIRECT($AA27),0), MATCH('Calc - Sparklines'!$D27,INDIRECT($AB27),0)-E$3))=FALSE,NA(), INDEX(INDIRECT($Z27), MATCH('Calc - Sparklines'!$AF27,INDIRECT($AA27),0), MATCH('Calc - Sparklines'!$D27,INDIRECT($AB27),0)-E$3)),NA()),IFERROR(IF(ISNUMBER( INDEX(INDIRECT($Z27), MATCH('Calc - Sparklines'!$C$2,INDIRECT($AA27),0), MATCH('Calc - Sparklines'!$D27,INDIRECT($AB27),0)-E$3))=FALSE,NA(), INDEX(INDIRECT($Z27), MATCH('Calc - Sparklines'!$C$2,INDIRECT($AA27),0), MATCH('Calc - Sparklines'!$D27,INDIRECT($AB27),0)-E$3)),NA())) -> 0.04239202189 | F27: =IF('Calc - Sparklines'!$C$2="EN",IFERROR(IF(ISNUMBER( INDEX(INDIRECT($Z27), MATCH('Calc - Sparklines'!$AF27,INDIRECT($AA27),0), MATCH('Calc - Sparklines'!$D27,INDIRECT($AB27),0)-F$3))=FALSE,NA(), INDEX(INDIRECT($Z27), MATCH('Calc - Sparklines'!$AF27,INDIRECT($AA27),0), MATCH('Calc - Sparklines'!$D27,INDIRECT($AB27),0)-F$3)),NA()),IFERROR(IF(ISNUMBER( INDEX(INDIRECT($Z27), MATCH('Calc - Sparklines'!$C$2,INDIRECT($AA27),0), MATCH('Calc - Sparklines'!$D27,INDIRECT($AB27),0)-F$3))=FALSE,NA(), INDEX(INDIRECT($Z27), MATCH('Calc - Sparklines'!$C$2,INDIRECT($AA27),0), MATCH('Calc - Sparklines'!$D27,INDIRECT($AB27),0)-F$3)),NA())) -> 0.04482094146 | G27: =IF('Calc - Sparklines'!$C$2="EN",IFERROR(IF(ISNUMBER( INDEX(INDIRECT($Z27), MATCH('Calc - Sparklines'!$AF27,INDIRECT($AA27),0), MATCH('Calc - Sparklines'!$D27,INDIRECT($AB27),0)-G$3))=FALSE,NA(), INDEX(INDIRECT($Z27), MATCH('Calc - Sparklines'!$AF27,INDIRECT($AA27),0), MATCH('Calc - Sparklines'!$D27,INDIRECT($AB27),0)-G$3)),NA()),IFERROR(IF(ISNUMBER( INDEX(INDIRECT($Z27), MATCH('Calc - Sparklines'!$C$2,INDIRECT($AA27),0), MATCH('Calc - Sparklines'!$D27,INDIRECT($AB27),0)-G$3))=FALSE,NA(), INDEX(INDIRECT($Z27), MATCH('Calc - Sparklines'!$C$2,INDIRECT($AA27),0), MATCH('Calc - Sparklines'!$D27,INDIRECT($AB27),0)-G$3)),NA())) -> 0.04764161283 | H27: =IF('Calc - Sparklines'!$C$2="EN",IFERROR(IF(ISNUMBER( INDEX(INDIRECT($Z27), MATCH('Calc - Sparklines'!$AF27,INDIRECT($AA27),0), MATCH('Calc - Sparklines'!$D27,INDIRECT($AB27),0)-H$3))=FALSE,NA(), INDEX(INDIRECT($Z27), MATCH('Calc - Sparklines'!$AF27,INDIRECT($AA27),0), MATCH('Calc - Sparklines'!$D27,INDIRECT($AB27),0)-H$3)),NA()),IFERROR(IF(ISNUMBER( INDEX(INDIRECT($Z27), MATCH('Calc - Sparklines'!$C$2,INDIRECT($AA27),0), MATCH('Calc - Sparklines'!$D27,INDIRECT($AB27),0)-H$3))=FALSE,NA(), INDEX(INDIRECT($Z27), MATCH('Calc - Sparklines'!$C$2,INDIRECT($AA27),0), MATCH('Calc - Sparklines'!$D27,INDIRECT($AB27),0)-H$3)),NA())) -> 289582 | I27: =IF('Calc - Sparklines'!$C$2="EN",IFERROR(IF(ISNUMBER( INDEX(INDIRECT($Z27), MATCH('Calc - Sparklines'!$AF27,INDIRECT($AA27),0), MATCH('Calc - Sparklines'!$D27,INDIRECT($AB27),0)-I$3))=FALSE,NA(), INDEX(INDIRECT($Z27), MATCH('Calc - Sparklines'!$AF27,INDIRECT($AA27),0), MATCH('Calc - Sparklines'!$D27,INDIRECT($AB27),0)-I$3)),NA()),IFERROR(IF(ISNUMBER( INDEX(INDIRECT($Z27), MATCH('Calc - Sparklines'!$C$2,INDIRECT($AA27),0), MATCH('Calc - Sparklines'!$D27,INDIRECT($AB27),0)-I$3))=FALSE,NA(), INDEX(INDIRECT($Z27), MATCH('Calc - Sparklines'!$C$2,INDIRECT($AA27),0), MATCH('Calc - Sparklines'!$D27,INDIRECT($AB27),0)-I$3)),NA())) -> 290166 | J27: =IF('Calc - Sparklines'!$C$2="EN",IFERROR(IF(ISNUMBER( INDEX(INDIRECT($Z27), MATCH('Calc - Sparklines'!$AF27,INDIRECT($AA27),0), MATCH('Calc - Sparklines'!$D27,INDIRECT($AB27),0)-J$3))=FALSE,NA(), INDEX(INDIRECT($Z27), MATCH('Calc - Sparklines'!$AF27,INDIRECT($AA27),0), MATCH('Calc - Sparklines'!$D27,INDIRECT($AB27),0)-J$3)),NA()),IFERROR(IF(ISNUMBER( INDEX(INDIRECT($Z27), MATCH('Calc - Sparklines'!$C$2,INDIRECT($AA27),0), MATCH('Calc - Sparklines'!$D27,INDIRECT($AB27),0)-J$3))=FALSE,NA(), INDEX(INDIRECT($Z27), MATCH('Calc - Sparklines'!$C$2,INDIRECT($AA27),0), MATCH('Calc - Sparklines'!$D27,INDIRECT($AB27),0)-J$3)),NA())) -> 285194 | K27: =IF('Calc - Sparklines'!$C$2="EN",IFERROR(IF(ISNUMBER( INDEX(INDIRECT($Z27), MATCH('Calc - Sparklines'!$AF27,INDIRECT($AA27),0), MATCH('Calc - Sparklines'!$D27,INDIRECT($AB27),0)-K$3))=FALSE,NA(), INDEX(INDIRECT($Z27), MATCH('Calc - Sparklines'!$AF27,INDIRECT($AA27),0), MATCH('Calc - Sparklines'!$D27,INDIRECT($AB27),0)-K$3)),NA()),IFERROR(IF(ISNUMBER( INDEX(INDIRECT($Z27), MATCH('Calc - Sparklines'!$C$2,INDIRECT($AA27),0), MATCH('Calc - Sparklines'!$D27,INDIRECT($AB27),0)-K$3))=FALSE,NA(), INDEX(INDIRECT($Z27), MATCH('Calc - Sparklines'!$C$2,INDIRECT($AA27),0), MATCH('Calc - Sparklines'!$D27,INDIRECT($AB27),0)-K$3)),NA())) -> 300805 | L27: =IF('Calc - Sparklines'!$C$2="EN",IFERROR(IF(ISNUMBER( INDEX(INDIRECT($Z27), MATCH('Calc - Sparklines'!$AF27,INDIRECT($AA27),0), MATCH('Calc - Sparklines'!$D27,INDIRECT($AB27),0)-L$3))=FALSE,NA(), INDEX(INDIRECT($Z27), MATCH('Calc - Sparklines'!$AF27,INDIRECT($AA27),0), MATCH('Calc - Sparklines'!$D27,INDIRECT($AB27),0)-L$3)),NA()),IFERROR(IF(ISNUMBER( INDEX(INDIRECT($Z27), MATCH('Calc - Sparklines'!$C$2,INDIRECT($AA27),0), MATCH('Calc - Sparklines'!$D27,INDIRECT($AB27),0)-L$3))=FALSE,NA(), INDEX(INDIRECT($Z27), MATCH('Calc - Sparklines'!$C$2,INDIRECT($AA27),0), MATCH('Calc - Sparklines'!$D27,INDIRECT($AB27),0)-L$3)),NA())) -> 198072 | M27: =IF('Calc - Sparklines'!$C$2="EN",IFERROR(IF(ISNUMBER( INDEX(INDIRECT($Z27), MATCH('Calc - Sparklines'!$AF27,INDIRECT($AA27),0), MATCH('Calc - Sparklines'!$D27,INDIRECT($AB27),0)-M$3))=FALSE,NA(), INDEX(INDIRECT($Z27), MATCH('Calc - Sparklines'!$AF27,INDIRECT($AA27),0), MATCH('Calc - Sparklines'!$D27,INDIRECT($AB27),0)-M$3)),NA()),IFERROR(IF(ISNUMBER( INDEX(INDIRECT($Z27), MATCH('Calc - Sparklines'!$C$2,INDIRECT($AA27),0), MATCH('Calc - Sparklines'!$D27,INDIRECT($AB27),0)-M$3))=FALSE,NA(), INDEX(INDIRECT($Z27), MATCH('Calc - Sparklines'!$C$2,INDIRECT($AA27),0), MATCH('Calc - Sparklines'!$D27,INDIRECT($AB27),0)-M$3)),NA())) -> 254900 | N27: =IF('Calc - Sparklines'!$C$2="EN",IFERROR(IF(ISNUMBER( INDEX(INDIRECT($Z27), MATCH('Calc - Sparklines'!$AF27,INDIRECT($AA27),0), MATCH('Calc - Sparklines'!$D27,INDIRECT($AB27),0)-N$3))=FALSE,NA(), INDEX(INDIRECT($Z27), MATCH('Calc - Sparklines'!$AF27,INDIRECT($AA27),0), MATCH('Calc - Sparklines'!$D27,INDIRECT($AB27),0)-N$3)),NA()),IFERROR(IF(ISNUMBER( INDEX(INDIRECT($Z27), MATCH('Calc - Sparklines'!$C$2,INDIRECT($AA27),0), MATCH('Calc - Sparklines'!$D27,INDIRECT($AB27),0)-N$3))=FALSE,NA(), INDEX(INDIRECT($Z27), MATCH('Calc - Sparklines'!$C$2,INDIRECT($AA27),0), MATCH('Calc - Sparklines'!$D27,INDIRECT($AB27),0)-N$3)),NA())) -> 270883 | O27: =IF('Calc - Sparklines'!$C$2="EN",IFERROR(IF(ISNUMBER( INDEX(INDIRECT($Z27), MATCH('Calc - Sparklines'!$AF27,INDIRECT($AA27),0), MATCH('Calc - Sparklines'!$D27,INDIRECT($AB27),0)-O$3))=FALSE,NA(), INDEX(INDIRECT($Z27), MATCH('Calc - Sparklines'!$AF27,INDIRECT($AA27),0), MATCH('Calc - Sparklines'!$D27,INDIRECT($AB27),0)-O$3)),NA()),IFERROR(IF(ISNUMBER( INDEX(INDIRECT($Z27), MATCH('Calc - Sparklines'!$C$2,INDIRECT($AA27),0), MATCH('Calc - Sparklines'!$D27,INDIRECT($AB27),0)-O$3))=FALSE,NA(), INDEX(INDIRECT($Z27), MATCH('Calc - Sparklines'!$C$2,INDIRECT($AA27),0), MATCH('Calc - Sparklines'!$D27,INDIRECT($AB27),0)-O$3)),NA())) -> 289128 | P27: =IF('Calc - Sparklines'!$C$2="EN",IFERROR(IF(ISNUMBER( INDEX(INDIRECT($Z27), MATCH('Calc - Sparklines'!$AF27,INDIRECT($AA27),0), MATCH('Calc - Sparklines'!$D27,INDIRECT($AB27),0)-P$3))=FALSE,NA(), INDEX(INDIRECT($Z27), MATCH('Calc - Sparklines'!$AF27,INDIRECT($AA27),0), MATCH('Calc - Sparklines'!$D27,INDIRECT($AB27),0)-P$3)),NA()),IFERROR(IF(ISNUMBER( INDEX(INDIRECT($Z27), MATCH('Calc - Sparklines'!$C$2,INDIRECT($AA27),0), MATCH('Calc - Sparklines'!$D27,INDIRECT($AB27),0)-P$3))=FALSE,NA(), INDEX(INDIRECT($Z27), MATCH('Calc - Sparklines'!$C$2,INDIRECT($AA27),0), MATCH('Calc - Sparklines'!$D27,INDIRECT($AB27),0)-P$3)),NA())) -> 316573 | R27: 6 | S27: 0 | T27: 316573 | U27: 289128 | V27: ▲ | W27: Sparkline12 | Z27: Data_Table_IAPT_i_a | AA27: Data_Orgs_IAPT_i_a | AB27: Data_Dates_IAPT_i_a | AD27: Chart available at CCG & STP level only | AE27: =IF(OR(Dashboard!$O$3=1,Dashboard!$O$3=2),"Chart available at CCG & STP level only","") -> Chart available at CCG & STP level only | AF27: =IF('Calc - Sparklines'!$C$2="EN",IF(ISNUMBER(MATCH('Calc - Sparklines'!$C$2,INDIRECT($AA27),0)),"EN","England"),0) -> EN | AG27: =(MATCH('Calc - Sparklines'!$C$2,INDIRECT($AA27),0)) -> 2 | AH27: =IFERROR(P27/L27-1,"") -> 0.5982723454 | AI27: =IFERROR(P27/H27-1,"") -> 0.09320676009
A28: IAPT_i_b | B28: IAPT(i.b) | C28: IAPT % of all referrals that are for older people 65+ | D28: ='IAPT(i_b)_FINAL CALC'!B6 -> Q1 2021/22 | E28: =IF('Calc - Sparklines'!$C$2="EN",IFERROR(IF(ISNUMBER( INDEX(INDIRECT($Z28), MATCH('Calc - Sparklines'!$AF28,INDIRECT($AA28),0), MATCH('Calc - Sparklines'!$D28,INDIRECT($AB28),0)-E$3))=FALSE,NA(), INDEX(INDIRECT($Z28), MATCH('Calc - Sparklines'!$AF28,INDIRECT($AA28),0), MATCH('Calc - Sparklines'!$D28,INDIRECT($AB28),0)-E$3)),NA()),IFERROR(IF(ISNUMBER( INDEX(INDIRECT($Z28), MATCH('Calc - Sparklines'!$C$2,INDIRECT($AA28),0), MATCH('Calc - Sparklines'!$D28,INDIRECT($AB28),0)-E$3))=FALSE,NA(), INDEX(INDIRECT($Z28), MATCH('Calc - Sparklines'!$C$2,INDIRECT($AA28),0), MATCH('Calc - Sparklines'!$D28,INDIRECT($AB28),0)-E$3)),NA())) -> 0.06626504439 | F28: =IF('Calc - Sparklines'!$C$2="EN",IFERROR(IF(ISNUMBER( INDEX(INDIRECT($Z28), MATCH('Calc - Sparklines'!$AF28,INDIRECT($AA28),0), MATCH('Calc - Sparklines'!$D28,INDIRECT($AB28),0)-F$3))=FALSE,NA(), INDEX(INDIRECT($Z28), MATCH('Calc - Sparklines'!$AF28,INDIRECT($AA28),0), MATCH('Calc - Sparklines'!$D28,INDIRECT($AB28),0)-F$3)),NA()),IFERROR(IF(ISNUMBER( INDEX(INDIRECT($Z28), MATCH('Calc - Sparklines'!$C$2,INDIRECT($AA28),0), MATCH('Calc - Sparklines'!$D28,INDIRECT($AB28),0)-F$3))=FALSE,NA(), INDEX(INDIRECT($Z28), MATCH('Calc - Sparklines'!$C$2,INDIRECT($AA28),0), MATCH('Calc - Sparklines'!$D28,INDIRECT($AB28),0)-F$3)),NA())) -> 0.06149580671 | G28: =IF('Calc - Sparklines'!$C$2="EN",IFERROR(IF(ISNUMBER( INDEX(INDIRECT($Z28), MATCH('Calc - Sparklines'!$AF28,INDIRECT($AA28),0), MATCH('Calc - Sparklines'!$D28,INDIRECT($AB28),0)-G$3))=FALSE,NA(), INDEX(INDIRECT($Z28), MATCH('Calc - Sparklines'!$AF28,INDIRECT($AA28),0), MATCH('Calc - Sparklines'!$D28,INDIRECT($AB28),0)-G$3)),NA()),IFERROR(IF(ISNUMBER( INDEX(INDIRECT($Z28), MATCH('Calc - Sparklines'!$C$2,INDIRECT($AA28),0), MATCH('Calc - Sparklines'!$D28,INDIRECT($AB28),0)-G$3))=FALSE,NA(), INDEX(INDIRECT($Z28), MATCH('Calc - Sparklines'!$C$2,INDIRECT($AA28),0), MATCH('Calc - Sparklines'!$D28,INDIRECT($AB28),0)-G$3)),NA())) -> 0.06152307964 | H28: =IF('Calc - Sparklines'!$C$2="EN",IFERROR(IF(ISNUMBER( INDEX(INDIRECT($Z28), MATCH('Calc - Sparklines'!$AF28,INDIRECT($AA28),0), MATCH('Calc - Sparklines'!$D28,INDIRECT($AB28),0)-H$3))=FALSE,NA(), INDEX(INDIRECT($Z28), MATCH('Calc - Sparklines'!$AF28,INDIRECT($AA28),0), MATCH('Calc - Sparklines'!$D28,INDIRECT($AB28),0)-H$3)),NA()),IFERROR(IF(ISNUMBER( INDEX(INDIRECT($Z28), MATCH('Calc - Sparklines'!$C$2,INDIRECT($AA28),0), MATCH('Calc - Sparklines'!$D28,INDIRECT($AB28),0)-H$3))=FALSE,NA(), INDEX(INDIRECT($Z28), MATCH('Calc - Sparklines'!$C$2,INDIRECT($AA28),0), MATCH('Calc - Sparklines'!$D28,INDIRECT($AB28),0)-H$3)),NA())) -> 0.06392641509 | I28: =IF('Calc - Sparklines'!$C$2="EN",IFERROR(IF(ISNUMBER( INDEX(INDIRECT($Z28), MATCH('Calc - Sparklines'!$AF28,INDIRECT($AA28),0), MATCH('Calc - Sparklines'!$D28,INDIRECT($AB28),0)-I$3))=FALSE,NA(), INDEX(INDIRECT($Z28), MATCH('Calc - Sparklines'!$AF28,INDIRECT($AA28),0), MATCH('Calc - Sparklines'!$D28,INDIRECT($AB28),0)-I$3)),NA()),IFERROR(IF(ISNUMBER( INDEX(INDIRECT($Z28), MATCH('Calc - Sparklines'!$C$2,INDIRECT($AA28),0), MATCH('Calc - Sparklines'!$D28,INDIRECT($AB28),0)-I$3))=FALSE,NA(), INDEX(INDIRECT($Z28), MATCH('Calc - Sparklines'!$C$2,INDIRECT($AA28),0), MATCH('Calc - Sparklines'!$D28,INDIRECT($AB28),0)-I$3)),NA())) -> 0.06498323159 | J28: =IF('Calc - Sparklines'!$C$2="EN",IFERROR(IF(ISNUMBER( INDEX(INDIRECT($Z28), MATCH('Calc - Sparklines'!$AF28,INDIRECT($AA28),0), MATCH('Calc - Sparklines'!$D28,INDIRECT($AB28),0)-J$3))=FALSE,NA(), INDEX(INDIRECT($Z28), MATCH('Calc - Sparklines'!$AF28,INDIRECT($AA28),0), MATCH('Calc - Sparklines'!$D28,INDIRECT($AB28),0)-J$3)),NA()),IFERROR(IF(ISNUMBER( INDEX(INDIRECT($Z28), MATCH('Calc - Sparklines'!$C$2,INDIRECT($AA28),0), MATCH('Calc - Sparklines'!$D28,INDIRECT($AB28),0)-J$3))=FALSE,NA(), INDEX(INDIRECT($Z28), MATCH('Calc - Sparklines'!$C$2,INDIRECT($AA28),0), MATCH('Calc - Sparklines'!$D28,INDIRECT($AB28),0)-J$3)),NA())) -> 0.05957186927 | K28: =IF('Calc - Sparklines'!$C$2="EN",IFERROR(IF(ISNUMBER( INDEX(INDIRECT($Z28), MATCH('Calc - Sparklines'!$AF28,INDIRECT($AA28),0), MATCH('Calc - Sparklines'!$D28,INDIRECT($AB28),0)-K$3))=FALSE,NA(), INDEX(INDIRECT($Z28), MATCH('Calc - Sparklines'!$AF28,INDIRECT($AA28),0), MATCH('Calc - Sparklines'!$D28,INDIRECT($AB28),0)-K$3)),NA()),IFERROR(IF(ISNUMBER( INDEX(INDIRECT($Z28), MATCH('Calc - Sparklines'!$C$2,INDIRECT($AA28),0), MATCH('Calc - Sparklines'!$D28,INDIRECT($AB28),0)-K$3))=FALSE,NA(), INDEX(INDIRECT($Z28), MATCH('Calc - Sparklines'!$C$2,INDIRECT($AA28),0), MATCH('Calc - Sparklines'!$D28,INDIRECT($AB28),0)-K$3)),NA())) -> 0.05731879398 | L28: =IF('Calc - Sparklines'!$C$2="EN",IFERROR(IF(ISNUMBER( INDEX(INDIRECT($Z28), MATCH('Calc - Sparklines'!$AF28,INDIRECT($AA28),0), MATCH('Calc - Sparklines'!$D28,INDIRECT($AB28),0)-L$3))=FALSE,NA(), INDEX(INDIRECT($Z28), MATCH('Calc - Sparklines'!$AF28,INDIRECT($AA28),0), MATCH('Calc - Sparklines'!$D28,INDIRECT($AB28),0)-L$3)),NA()),IFERROR(IF(ISNUMBER( INDEX(INDIRECT($Z28), MATCH('Calc - Sparklines'!$C$2,INDIRECT($AA28),0), MATCH('Calc - Sparklines'!$D28,INDIRECT($AB28),0)-L$3))=FALSE,NA(), INDEX(INDIRECT($Z28), MATCH('Calc - Sparklines'!$C$2,INDIRECT($AA28),0), MATCH('Calc - Sparklines'!$D28,INDIRECT($AB28),0)-L$3)),NA())) -> 0.05135248606 | M28: =IF('Calc - Sparklines'!$C$2="EN",IFERROR(IF(ISNUMBER( INDEX(INDIRECT($Z28), MATCH('Calc - Sparklines'!$AF28,INDIRECT($AA28),0), MATCH('Calc - Sparklines'!$D28,INDIRECT($AB28),0)-M$3))=FALSE,NA(), INDEX(INDIRECT($Z28), MATCH('Calc - Sparklines'!$AF28,INDIRECT($AA28),0), MATCH('Calc - Sparklines'!$D28,INDIRECT($AB28),0)-M$3)),NA()),IFERROR(IF(ISNUMBER( INDEX(INDIRECT($Z28), MATCH('Calc - Sparklines'!$C$2,INDIRECT($AA28),0), MATCH('Calc - Sparklines'!$D28,INDIRECT($AB28),0)-M$3))=FALSE,NA(), INDEX(INDIRECT($Z28), MATCH('Calc - Sparklines'!$C$2,INDIRECT($AA28),0), MATCH('Calc - Sparklines'!$D28,INDIRECT($AB28),0)-M$3)),NA())) ->  | N28: =IF('Calc - Sparklines'!$C$2="EN",IFERROR(IF(ISNUMBER( INDEX(INDIRECT($Z28), MATCH('Calc - Sparklines'!$AF28,INDIRECT($AA28),0), MATCH('Calc - Sparklines'!$D28,INDIRECT($AB28),0)-N$3))=FALSE,NA(), INDEX(INDIRECT($Z28), MATCH('Calc - Sparklines'!$AF28,INDIRECT($AA28),0), MATCH('Calc - Sparklines'!$D28,INDIRECT($AB28),0)-N$3)),NA()),IFERROR(IF(ISNUMBER( INDEX(INDIRECT($Z28), MATCH('Calc - Sparklines'!$C$2,INDIRECT($AA28),0), MATCH('Calc - Sparklines'!$D28,INDIRECT($AB28),0)-N$3))=FALSE,NA(), INDEX(INDIRECT($Z28), MATCH('Calc - Sparklines'!$C$2,INDIRECT($AA28),0), MATCH('Calc - Sparklines'!$D28,INDIRECT($AB28),0)-N$3)),NA())) -> 0.05079082549 | O28: =IF('Calc - Sparklines'!$C$2="EN",IFERROR(IF(ISNUMBER( INDEX(INDIRECT($Z28), MATCH('Calc - Sparklines'!$AF28,INDIRECT($AA28),0), MATCH('Calc - Sparklines'!$D28,INDIRECT($AB28),0)-O$3))=FALSE,NA(), INDEX(INDIRECT($Z28), MATCH('Calc - Sparklines'!$AF28,INDIRECT($AA28),0), MATCH('Calc - Sparklines'!$D28,INDIRECT($AB28),0)-O$3)),NA()),IFERROR(IF(ISNUMBER( INDEX(INDIRECT($Z28), MATCH('Calc - Sparklines'!$C$2,INDIRECT($AA28),0), MATCH('Calc - Sparklines'!$D28,INDIRECT($AB28),0)-O$3))=FALSE,NA(), INDEX(INDIRECT($Z28), MATCH('Calc - Sparklines'!$C$2,INDIRECT($AA28),0), MATCH('Calc - Sparklines'!$D28,INDIRECT($AB28),0)-O$3)),NA())) -> 0.0465332691 | P28: =IF('Calc - Sparklines'!$C$2="EN",IFERROR(IF(ISNUMBER( INDEX(INDIRECT($Z28), MATCH('Calc - Sparklines'!$AF28,INDIRECT($AA28),0), MATCH('Calc - Sparklines'!$D28,INDIRECT($AB28),0)-P$3))=FALSE,NA(), INDEX(INDIRECT($Z28), MATCH('Calc - Sparklines'!$AF28,INDIRECT($AA28),0), MATCH('Calc - Sparklines'!$D28,INDIRECT($AB28),0)-P$3)),NA()),IFERROR(IF(ISNUMBER( INDEX(INDIRECT($Z28), MATCH('Calc - Sparklines'!$C$2,INDIRECT($AA28),0), MATCH('Calc - Sparklines'!$D28,INDIRECT($AB28),0)-P$3))=FALSE,NA(), INDEX(INDIRECT($Z28), MATCH('Calc - Sparklines'!$C$2,INDIRECT($AA28),0), MATCH('Calc - Sparklines'!$D28,INDIRECT($AB28),0)-P$3)),NA())) -> 0.05198046979 | R28: 6 | S28: 0 | T28: 0.05198046979 | U28: 0.0465332691 | V28: ▲ | W28: Sparkline13 | Z28: Data_Table_IAPT_i_b | AA28: Data_Orgs_IAPT_i_b | AB28: Data_Dates_IAPT_i_b | AD28: Chart available at CCG & STP level only | AE28: =IF(OR(Dashboard!$O$3=1,Dashboard!$O$3=2),"Chart available at CCG & STP level only","") -> Chart available at CCG & STP level only | AF28: =IF('Calc - Sparklines'!$C$2="EN",IF(ISNUMBER(MATCH('Calc - Sparklines'!$C$2,INDIRECT($AA28),0)),"EN","Eng"),0) -> Eng | AG28: =(MATCH('Calc - Sparklines'!$C$2,INDIRECT($AA28),0)) ->  | AH28: =IFERROR(P28-L28,"") -> 0.0006279837363 | AI28: =IFERROR(P28-H28,"") -> -0.01194594529
A29: IAPT_ii_a | B29: IAPT(ii.a) | C29: IAPT recovery rate: % of people that attended at least 2 treatment contacts and are moving to recovery | D29: ='IAPT(ii_a)_FINAL CALC'!B6 -> Q1 2021/22 | E29: =IF('Calc - Sparklines'!$C$2="EN",IFERROR(IF(ISNUMBER( INDEX(INDIRECT($Z29), MATCH('Calc - Sparklines'!$AF29,INDIRECT($AA29),0), MATCH('Calc - Sparklines'!$D29,INDIRECT($AB29),0)-E$3))=FALSE,NA(), INDEX(INDIRECT($Z29), MATCH('Calc - Sparklines'!$AF29,INDIRECT($AA29),0), MATCH('Calc - Sparklines'!$D29,INDIRECT($AB29),0)-E$3)),NA()),IFERROR(IF(ISNUMBER( INDEX(INDIRECT($Z29), MATCH('Calc - Sparklines'!$C$2,INDIRECT($AA29),0), MATCH('Calc - Sparklines'!$D29,INDIRECT($AB29),0)-E$3))=FALSE,NA(), INDEX(INDIRECT($Z29), MATCH('Calc - Sparklines'!$C$2,INDIRECT($AA29),0), MATCH('Calc - Sparklines'!$D29,INDIRECT($AB29),0)-E$3)),NA())) -> 0.513 | F29: =IF('Calc - Sparklines'!$C$2="EN",IFERROR(IF(ISNUMBER( INDEX(INDIRECT($Z29), MATCH('Calc - Sparklines'!$AF29,INDIRECT($AA29),0), MATCH('Calc - Sparklines'!$D29,INDIRECT($AB29),0)-F$3))=FALSE,NA(), INDEX(INDIRECT($Z29), MATCH('Calc - Sparklines'!$AF29,INDIRECT($AA29),0), MATCH('Calc - Sparklines'!$D29,INDIRECT($AB29),0)-F$3)),NA()),IFERROR(IF(ISNUMBER( INDEX(INDIRECT($Z29), MATCH('Calc - Sparklines'!$C$2,INDIRECT($AA29),0), MATCH('Calc - Sparklines'!$D29,INDIRECT($AB29),0)-F$3))=FALSE,NA(), INDEX(INDIRECT($Z29), MATCH('Calc - Sparklines'!$C$2,INDIRECT($AA29),0), MATCH('Calc - Sparklines'!$D29,INDIRECT($AB29),0)-F$3)),NA())) -> 0.518 | G29: =IF('Calc - Sparklines'!$C$2="EN",IFERROR(IF(ISNUMBER( INDEX(INDIRECT($Z29), MATCH('Calc - Sparklines'!$AF29,INDIRECT($AA29),0), MATCH('Calc - Sparklines'!$D29,INDIRECT($AB29),0)-G$3))=FALSE,NA(), INDEX(INDIRECT($Z29), MATCH('Calc - Sparklines'!$AF29,INDIRECT($AA29),0), MATCH('Calc - Sparklines'!$D29,INDIRECT($AB29),0)-G$3)),NA()),IFERROR(IF(ISNUMBER( INDEX(INDIRECT($Z29), MATCH('Calc - Sparklines'!$C$2,INDIRECT($AA29),0), MATCH('Calc - Sparklines'!$D29,INDIRECT($AB29),0)-G$3))=FALSE,NA(), INDEX(INDIRECT($Z29), MATCH('Calc - Sparklines'!$C$2,INDIRECT($AA29),0), MATCH('Calc - Sparklines'!$D29,INDIRECT($AB29),0)-G$3)),NA())) -> 0.53 | H29: =IF('Calc - Sparklines'!$C$2="EN",IFERROR(IF(ISNUMBER( INDEX(INDIRECT($Z29), MATCH('Calc - Sparklines'!$AF29,INDIRECT($AA29),0), MATCH('Calc - Sparklines'!$D29,INDIRECT($AB29),0)-H$3))=FALSE,NA(), INDEX(INDIRECT($Z29), MATCH('Calc - Sparklines'!$AF29,INDIRECT($AA29),0), MATCH('Calc - Sparklines'!$D29,INDIRECT($AB29),0)-H$3)),NA()),IFERROR(IF(ISNUMBER( INDEX(INDIRECT($Z29), MATCH('Calc - Sparklines'!$C$2,INDIRECT($AA29),0), MATCH('Calc - Sparklines'!$D29,INDIRECT($AB29),0)-H$3))=FALSE,NA(), INDEX(INDIRECT($Z29), MATCH('Calc - Sparklines'!$C$2,INDIRECT($AA29),0), MATCH('Calc - Sparklines'!$D29,INDIRECT($AB29),0)-H$3)),NA())) -> 0.5215365982 | I29: =IF('Calc - Sparklines'!$C$2="EN",IFERROR(IF(ISNUMBER( INDEX(INDIRECT($Z29), MATCH('Calc - Sparklines'!$AF29,INDIRECT($AA29),0), MATCH('Calc - Sparklines'!$D29,INDIRECT($AB29),0)-I$3))=FALSE,NA(), INDEX(INDIRECT($Z29), MATCH('Calc - Sparklines'!$AF29,INDIRECT($AA29),0), MATCH('Calc - Sparklines'!$D29,INDIRECT($AB29),0)-I$3)),NA()),IFERROR(IF(ISNUMBER( INDEX(INDIRECT($Z29), MATCH('Calc - Sparklines'!$C$2,INDIRECT($AA29),0), MATCH('Calc - Sparklines'!$D29,INDIRECT($AB29),0)-I$3))=FALSE,NA(), INDEX(INDIRECT($Z29), MATCH('Calc - Sparklines'!$C$2,INDIRECT($AA29),0), MATCH('Calc - Sparklines'!$D29,INDIRECT($AB29),0)-I$3)),NA())) -> 0.5180112839 | J29: =IF('Calc - Sparklines'!$C$2="EN",IFERROR(IF(ISNUMBER( INDEX(INDIRECT($Z29), MATCH('Calc - Sparklines'!$AF29,INDIRECT($AA29),0), MATCH('Calc - Sparklines'!$D29,INDIRECT($AB29),0)-J$3))=FALSE,NA(), INDEX(INDIRECT($Z29), MATCH('Calc - Sparklines'!$AF29,INDIRECT($AA29),0), MATCH('Calc - Sparklines'!$D29,INDIRECT($AB29),0)-J$3)),NA()),IFERROR(IF(ISNUMBER( INDEX(INDIRECT($Z29), MATCH('Calc - Sparklines'!$C$2,INDIRECT($AA29),0), MATCH('Calc - Sparklines'!$D29,INDIRECT($AB29),0)-J$3))=FALSE,NA(), INDEX(INDIRECT($Z29), MATCH('Calc - Sparklines'!$C$2,INDIRECT($AA29),0), MATCH('Calc - Sparklines'!$D29,INDIRECT($AB29),0)-J$3)),NA())) -> 0.5088919449 | K29: =IF('Calc - Sparklines'!$C$2="EN",IFERROR(IF(ISNUMBER( INDEX(INDIRECT($Z29), MATCH('Calc - Sparklines'!$AF29,INDIRECT($AA29),0), MATCH('Calc - Sparklines'!$D29,INDIRECT($AB29),0)-K$3))=FALSE,NA(), INDEX(INDIRECT($Z29), MATCH('Calc - Sparklines'!$AF29,INDIRECT($AA29),0), MATCH('Calc - Sparklines'!$D29,INDIRECT($AB29),0)-K$3)),NA()),IFERROR(IF(ISNUMBER( INDEX(INDIRECT($Z29), MATCH('Calc - Sparklines'!$C$2,INDIRECT($AA29),0), MATCH('Calc - Sparklines'!$D29,INDIRECT($AB29),0)-K$3))=FALSE,NA(), INDEX(INDIRECT($Z29), MATCH('Calc - Sparklines'!$C$2,INDIRECT($AA29),0), MATCH('Calc - Sparklines'!$D29,INDIRECT($AB29),0)-K$3)),NA())) -> 0.4977205658 | L29: =IF('Calc - Sparklines'!$C$2="EN",IFERROR(IF(ISNUMBER( INDEX(INDIRECT($Z29), MATCH('Calc - Sparklines'!$AF29,INDIRECT($AA29),0), MATCH('Calc - Sparklines'!$D29,INDIRECT($AB29),0)-L$3))=FALSE,NA(), INDEX(INDIRECT($Z29), MATCH('Calc - Sparklines'!$AF29,INDIRECT($AA29),0), MATCH('Calc - Sparklines'!$D29,INDIRECT($AB29),0)-L$3)),NA()),IFERROR(IF(ISNUMBER( INDEX(INDIRECT($Z29), MATCH('Calc - Sparklines'!$C$2,INDIRECT($AA29),0), MATCH('Calc - Sparklines'!$D29,INDIRECT($AB29),0)-L$3))=FALSE,NA(), INDEX(INDIRECT($Z29), MATCH('Calc - Sparklines'!$C$2,INDIRECT($AA29),0), MATCH('Calc - Sparklines'!$D29,INDIRECT($AB29),0)-L$3)),NA())) -> 0.4957746124 | M29: =IF('Calc - Sparklines'!$C$2="EN",IFERROR(IF(ISNUMBER( INDEX(INDIRECT($Z29), MATCH('Calc - Sparklines'!$AF29,INDIRECT($AA29),0), MATCH('Calc - Sparklines'!$D29,INDIRECT($AB29),0)-M$3))=FALSE,NA(), INDEX(INDIRECT($Z29), MATCH('Calc - Sparklines'!$AF29,INDIRECT($AA29),0), MATCH('Calc - Sparklines'!$D29,INDIRECT($AB29),0)-M$3)),NA()),IFERROR(IF(ISNUMBER( INDEX(INDIRECT($Z29), MATCH('Calc - Sparklines'!$C$2,INDIRECT($AA29),0), MATCH('Calc - Sparklines'!$D29,INDIRECT($AB29),0)-M$3))=FALSE,NA(), INDEX(INDIRECT($Z29), MATCH('Calc - Sparklines'!$C$2,INDIRECT($AA29),0), MATCH('Calc - Sparklines'!$D29,INDIRECT($AB29),0)-M$3)),NA())) ->  | N29: =IF('Calc - Sparklines'!$C$2="EN",IFERROR(IF(ISNUMBER( INDEX(INDIRECT($Z29), MATCH('Calc - Sparklines'!$AF29,INDIRECT($AA29),0), MATCH('Calc - Sparklines'!$D29,INDIRECT($AB29),0)-N$3))=FALSE,NA(), INDEX(INDIRECT($Z29), MATCH('Calc - Sparklines'!$AF29,INDIRECT($AA29),0), MATCH('Calc - Sparklines'!$D29,INDIRECT($AB29),0)-N$3)),NA()),IFERROR(IF(ISNUMBER( INDEX(INDIRECT($Z29), MATCH('Calc - Sparklines'!$C$2,INDIRECT($AA29),0), MATCH('Calc - Sparklines'!$D29,INDIRECT($AB29),0)-N$3))=FALSE,NA(), INDEX(INDIRECT($Z29), MATCH('Calc - Sparklines'!$C$2,INDIRECT($AA29),0), MATCH('Calc - Sparklines'!$D29,INDIRECT($AB29),0)-N$3)),NA())) -> 0.497 | O29: =IF('Calc - Sparklines'!$C$2="EN",IFERROR(IF(ISNUMBER( INDEX(INDIRECT($Z29), MATCH('Calc - Sparklines'!$AF29,INDIRECT($AA29),0), MATCH('Calc - Sparklines'!$D29,INDIRECT($AB29),0)-O$3))=FALSE,NA(), INDEX(INDIRECT($Z29), MATCH('Calc - Sparklines'!$AF29,INDIRECT($AA29),0), MATCH('Calc - Sparklines'!$D29,INDIRECT($AB29),0)-O$3)),NA()),IFERROR(IF(ISNUMBER( INDEX(INDIRECT($Z29), MATCH('Calc - Sparklines'!$C$2,INDIRECT($AA29),0), MATCH('Calc - Sparklines'!$D29,INDIRECT($AB29),0)-O$3))=FALSE,NA(), INDEX(INDIRECT($Z29), MATCH('Calc - Sparklines'!$C$2,INDIRECT($AA29),0), MATCH('Calc - Sparklines'!$D29,INDIRECT($AB29),0)-O$3)),NA())) -> 0.515 | P29: =IF('Calc - Sparklines'!$C$2="EN",IFERROR(IF(ISNUMBER( INDEX(INDIRECT($Z29), MATCH('Calc - Sparklines'!$AF29,INDIRECT($AA29),0), MATCH('Calc - Sparklines'!$D29,INDIRECT($AB29),0)-P$3))=FALSE,NA(), INDEX(INDIRECT($Z29), MATCH('Calc - Sparklines'!$AF29,INDIRECT($AA29),0), MATCH('Calc - Sparklines'!$D29,INDIRECT($AB29),0)-P$3)),NA()),IFERROR(IF(ISNUMBER( INDEX(INDIRECT($Z29), MATCH('Calc - Sparklines'!$C$2,INDIRECT($AA29),0), MATCH('Calc - Sparklines'!$D29,INDIRECT($AB29),0)-P$3))=FALSE,NA(), INDEX(INDIRECT($Z29), MATCH('Calc - Sparklines'!$C$2,INDIRECT($AA29),0), MATCH('Calc - Sparklines'!$D29,INDIRECT($AB29),0)-P$3)),NA())) -> 0.507 | R29: 6 | S29: 0 | T29: 0.507 | U29: 0.515 | V29: ▼ | W29: Sparkline14 | Z29: Data_Table_IAPT_ii_a | AA29: Data_Orgs_IAPT_ii_a | AB29: Data_Dates_IAPT_ii_a | AD29: Chart available at CCG & STP level only | AE29: =IF(OR(Dashboard!$O$3=1,Dashboard!$O$3=2),"Chart available at CCG & STP level only","") -> Chart available at CCG & STP level only | AF29: =IF('Calc - Sparklines'!$C$2="EN",IF(ISNUMBER(MATCH('Calc - Sparklines'!$C$2,INDIRECT($AA29),0)),"EN","Eng"),0) -> Eng | AG29: =(MATCH('Calc - Sparklines'!$C$2,INDIRECT($AA29),0)) ->  | AH29: 0.01122538757 | AI29: -0.01453659821
A30: IAPT_ii_b | B30: IAPT(ii.b) | C30: IAPT recovery rate for black or minority ethnic (BME) groups | D30: ='IAPT(ii_b)_FINAL CALC'!B6 -> Q1 2021/22 | E30: =IF('Calc - Sparklines'!$C$2="EN",IFERROR(IF(ISNUMBER( INDEX(INDIRECT($Z30), MATCH('Calc - Sparklines'!$AF30,INDIRECT($AA30),0), MATCH('Calc - Sparklines'!$D30,INDIRECT($AB30),0)-E$3))=FALSE,NA(), INDEX(INDIRECT($Z30), MATCH('Calc - Sparklines'!$AF30,INDIRECT($AA30),0), MATCH('Calc - Sparklines'!$D30,INDIRECT($AB30),0)-E$3)),NA()),IFERROR(IF(ISNUMBER( INDEX(INDIRECT($Z30), MATCH('Calc - Sparklines'!$C$2,INDIRECT($AA30),0), MATCH('Calc - Sparklines'!$D30,INDIRECT($AB30),0)-E$3))=FALSE,NA(), INDEX(INDIRECT($Z30), MATCH('Calc - Sparklines'!$C$2,INDIRECT($AA30),0), MATCH('Calc - Sparklines'!$D30,INDIRECT($AB30),0)-E$3)),NA())) -> 0.479 | F30: =IF('Calc - Sparklines'!$C$2="EN",IFERROR(IF(ISNUMBER( INDEX(INDIRECT($Z30), MATCH('Calc - Sparklines'!$AF30,INDIRECT($AA30),0), MATCH('Calc - Sparklines'!$D30,INDIRECT($AB30),0)-F$3))=FALSE,NA(), INDEX(INDIRECT($Z30), MATCH('Calc - Sparklines'!$AF30,INDIRECT($AA30),0), MATCH('Calc - Sparklines'!$D30,INDIRECT($AB30),0)-F$3)),NA()),IFERROR(IF(ISNUMBER( INDEX(INDIRECT($Z30), MATCH('Calc - Sparklines'!$C$2,INDIRECT($AA30),0), MATCH('Calc - Sparklines'!$D30,INDIRECT($AB30),0)-F$3))=FALSE,NA(), INDEX(INDIRECT($Z30), MATCH('Calc - Sparklines'!$C$2,INDIRECT($AA30),0), MATCH('Calc - Sparklines'!$D30,INDIRECT($AB30),0)-F$3)),NA())) -> 0.492 | G30: =IF('Calc - Sparklines'!$C$2="EN",IFERROR(IF(ISNUMBER( INDEX(INDIRECT($Z30), MATCH('Calc - Sparklines'!$AF30,INDIRECT($AA30),0), MATCH('Calc - Sparklines'!$D30,INDIRECT($AB30),0)-G$3))=FALSE,NA(), INDEX(INDIRECT($Z30), MATCH('Calc - Sparklines'!$AF30,INDIRECT($AA30),0), MATCH('Calc - Sparklines'!$D30,INDIRECT($AB30),0)-G$3)),NA()),IFERROR(IF(ISNUMBER( INDEX(INDIRECT($Z30), MATCH('Calc - Sparklines'!$C$2,INDIRECT($AA30),0), MATCH('Calc - Sparklines'!$D30,INDIRECT($AB30),0)-G$3))=FALSE,NA(), INDEX(INDIRECT($Z30), MATCH('Calc - Sparklines'!$C$2,INDIRECT($AA30),0), MATCH('Calc - Sparklines'!$D30,INDIRECT($AB30),0)-G$3)),NA())) -> 0.499 | H30: =IF('Calc - Sparklines'!$C$2="EN",IFERROR(IF(ISNUMBER( INDEX(INDIRECT($Z30), MATCH('Calc - Sparklines'!$AF30,INDIRECT($AA30),0), MATCH('Calc - Sparklines'!$D30,INDIRECT($AB30),0)-H$3))=FALSE,NA(), INDEX(INDIRECT($Z30), MATCH('Calc - Sparklines'!$AF30,INDIRECT($AA30),0), MATCH('Calc - Sparklines'!$D30,INDIRECT($AB30),0)-H$3)),NA()),IFERROR(IF(ISNUMBER( INDEX(INDIRECT($Z30), MATCH('Calc - Sparklines'!$C$2,INDIRECT($AA30),0), MATCH('Calc - Sparklines'!$D30,INDIRECT($AB30),0)-H$3))=FALSE,NA(), INDEX(INDIRECT($Z30), MATCH('Calc - Sparklines'!$C$2,INDIRECT($AA30),0), MATCH('Calc - Sparklines'!$D30,INDIRECT($AB30),0)-H$3)),NA())) -> 0.495 | I30: =IF('Calc - Sparklines'!$C$2="EN",IFERROR(IF(ISNUMBER( INDEX(INDIRECT($Z30), MATCH('Calc - Sparklines'!$AF30,INDIRECT($AA30),0), MATCH('Calc - Sparklines'!$D30,INDIRECT($AB30),0)-I$3))=FALSE,NA(), INDEX(INDIRECT($Z30), MATCH('Calc - Sparklines'!$AF30,INDIRECT($AA30),0), MATCH('Calc - Sparklines'!$D30,INDIRECT($AB30),0)-I$3)),NA()),IFERROR(IF(ISNUMBER( INDEX(INDIRECT($Z30), MATCH('Calc - Sparklines'!$C$2,INDIRECT($AA30),0), MATCH('Calc - Sparklines'!$D30,INDIRECT($AB30),0)-I$3))=FALSE,NA(), INDEX(INDIRECT($Z30), MATCH('Calc - Sparklines'!$C$2,INDIRECT($AA30),0), MATCH('Calc - Sparklines'!$D30,INDIRECT($AB30),0)-I$3)),NA())) -> 0.494 | J30: =IF('Calc - Sparklines'!$C$2="EN",IFERROR(IF(ISNUMBER( INDEX(INDIRECT($Z30), MATCH('Calc - Sparklines'!$AF30,INDIRECT($AA30),0), MATCH('Calc - Sparklines'!$D30,INDIRECT($AB30),0)-J$3))=FALSE,NA(), INDEX(INDIRECT($Z30), MATCH('Calc - Sparklines'!$AF30,INDIRECT($AA30),0), MATCH('Calc - Sparklines'!$D30,INDIRECT($AB30),0)-J$3)),NA()),IFERROR(IF(ISNUMBER( INDEX(INDIRECT($Z30), MATCH('Calc - Sparklines'!$C$2,INDIRECT($AA30),0), MATCH('Calc - Sparklines'!$D30,INDIRECT($AB30),0)-J$3))=FALSE,NA(), INDEX(INDIRECT($Z30), MATCH('Calc - Sparklines'!$C$2,INDIRECT($AA30),0), MATCH('Calc - Sparklines'!$D30,INDIRECT($AB30),0)-J$3)),NA())) -> 0.486 | K30: =IF('Calc - Sparklines'!$C$2="EN",IFERROR(IF(ISNUMBER( INDEX(INDIRECT($Z30), MATCH('Calc - Sparklines'!$AF30,INDIRECT($AA30),0), MATCH('Calc - Sparklines'!$D30,INDIRECT($AB30),0)-K$3))=FALSE,NA(), INDEX(INDIRECT($Z30), MATCH('Calc - Sparklines'!$AF30,INDIRECT($AA30),0), MATCH('Calc - Sparklines'!$D30,INDIRECT($AB30),0)-K$3)),NA()),IFERROR(IF(ISNUMBER( INDEX(INDIRECT($Z30), MATCH('Calc - Sparklines'!$C$2,INDIRECT($AA30),0), MATCH('Calc - Sparklines'!$D30,INDIRECT($AB30),0)-K$3))=FALSE,NA(), INDEX(INDIRECT($Z30), MATCH('Calc - Sparklines'!$C$2,INDIRECT($AA30),0), MATCH('Calc - Sparklines'!$D30,INDIRECT($AB30),0)-K$3)),NA())) -> 0.473 | L30: =IF('Calc - Sparklines'!$C$2="EN",IFERROR(IF(ISNUMBER( INDEX(INDIRECT($Z30), MATCH('Calc - Sparklines'!$AF30,INDIRECT($AA30),0), MATCH('Calc - Sparklines'!$D30,INDIRECT($AB30),0)-L$3))=FALSE,NA(), INDEX(INDIRECT($Z30), MATCH('Calc - Sparklines'!$AF30,INDIRECT($AA30),0), MATCH('Calc - Sparklines'!$D30,INDIRECT($AB30),0)-L$3)),NA()),IFERROR(IF(ISNUMBER( INDEX(INDIRECT($Z30), MATCH('Calc - Sparklines'!$C$2,INDIRECT($AA30),0), MATCH('Calc - Sparklines'!$D30,INDIRECT($AB30),0)-L$3))=FALSE,NA(), INDEX(INDIRECT($Z30), MATCH('Calc - Sparklines'!$C$2,INDIRECT($AA30),0), MATCH('Calc - Sparklines'!$D30,INDIRECT($AB30),0)-L$3)),NA())) -> 0.475 | M30: =IF('Calc - Sparklines'!$C$2="EN",IFERROR(IF(ISNUMBER( INDEX(INDIRECT($Z30), MATCH('Calc - Sparklines'!$AF30,INDIRECT($AA30),0), MATCH('Calc - Sparklines'!$D30,INDIRECT($AB30),0)-M$3))=FALSE,NA(), INDEX(INDIRECT($Z30), MATCH('Calc - Sparklines'!$AF30,INDIRECT($AA30),0), MATCH('Calc - Sparklines'!$D30,INDIRECT($AB30),0)-M$3)),NA()),IFERROR(IF(ISNUMBER( INDEX(INDIRECT($Z30), MATCH('Calc - Sparklines'!$C$2,INDIRECT($AA30),0), MATCH('Calc - Sparklines'!$D30,INDIRECT($AB30),0)-M$3))=FALSE,NA(), INDEX(INDIRECT($Z30), MATCH('Calc - Sparklines'!$C$2,INDIRECT($AA30),0), MATCH('Calc - Sparklines'!$D30,INDIRECT($AB30),0)-M$3)),NA())) ->  | N30: =IF('Calc - Sparklines'!$C$2="EN",IFERROR(IF(ISNUMBER( INDEX(INDIRECT($Z30), MATCH('Calc - Sparklines'!$AF30,INDIRECT($AA30),0), MATCH('Calc - Sparklines'!$D30,INDIRECT($AB30),0)-N$3))=FALSE,NA(), INDEX(INDIRECT($Z30), MATCH('Calc - Sparklines'!$AF30,INDIRECT($AA30),0), MATCH('Calc - Sparklines'!$D30,INDIRECT($AB30),0)-N$3)),NA()),IFERROR(IF(ISNUMBER( INDEX(INDIRECT($Z30), MATCH('Calc - Sparklines'!$C$2,INDIRECT($AA30),0), MATCH('Calc - Sparklines'!$D30,INDIRECT($AB30),0)-N$3))=FALSE,NA(), INDEX(INDIRECT($Z30), MATCH('Calc - Sparklines'!$C$2,INDIRECT($AA30),0), MATCH('Calc - Sparklines'!$D30,INDIRECT($AB30),0)-N$3)),NA())) -> 0.479 | O30: =IF('Calc - Sparklines'!$C$2="EN",IFERROR(IF(ISNUMBER( INDEX(INDIRECT($Z30), MATCH('Calc - Sparklines'!$AF30,INDIRECT($AA30),0), MATCH('Calc - Sparklines'!$D30,INDIRECT($AB30),0)-O$3))=FALSE,NA(), INDEX(INDIRECT($Z30), MATCH('Calc - Sparklines'!$AF30,INDIRECT($AA30),0), MATCH('Calc - Sparklines'!$D30,INDIRECT($AB30),0)-O$3)),NA()),IFERROR(IF(ISNUMBER( INDEX(INDIRECT($Z30), MATCH('Calc - Sparklines'!$C$2,INDIRECT($AA30),0), MATCH('Calc - Sparklines'!$D30,INDIRECT($AB30),0)-O$3))=FALSE,NA(), INDEX(INDIRECT($Z30), MATCH('Calc - Sparklines'!$C$2,INDIRECT($AA30),0), MATCH('Calc - Sparklines'!$D30,INDIRECT($AB30),0)-O$3)),NA())) -> 0.496 | P30: =IF('Calc - Sparklines'!$C$2="EN",IFERROR(IF(ISNUMBER( INDEX(INDIRECT($Z30), MATCH('Calc - Sparklines'!$AF30,INDIRECT($AA30),0), MATCH('Calc - Sparklines'!$D30,INDIRECT($AB30),0)-P$3))=FALSE,NA(), INDEX(INDIRECT($Z30), MATCH('Calc - Sparklines'!$AF30,INDIRECT($AA30),0), MATCH('Calc - Sparklines'!$D30,INDIRECT($AB30),0)-P$3)),NA()),IFERROR(IF(ISNUMBER( INDEX(INDIRECT($Z30), MATCH('Calc - Sparklines'!$C$2,INDIRECT($AA30),0), MATCH('Calc - Sparklines'!$D30,INDIRECT($AB30),0)-P$3))=FALSE,NA(), INDEX(INDIRECT($Z30), MATCH('Calc - Sparklines'!$C$2,INDIRECT($AA30),0), MATCH('Calc - Sparklines'!$D30,INDIRECT($AB30),0)-P$3)),NA())) -> 0.5 | R30: 6 | S30: 0 | T30: 0.5 | U30: 0.496 | V30: ▲ | W30: Sparkline15 | Z30: Data_Table_IAPT_ii_b | AA30: Data_Orgs_IAPT_ii_b | AB30: Data_Dates_IAPT_ii_b | AD30: Chart available at CCG & STP level only | AE30: =IF(OR(Dashboard!$O$3=1,Dashboard!$O$3=2),"Chart available at CCG & STP level only","") -> Chart available at CCG & STP level only | AF30: =IF('Calc - Sparklines'!$C$2="EN",IF(ISNUMBER(MATCH('Calc - Sparklines'!$C$2,INDIRECT($AA30),0)),"EN","ENG"),0) -> ENG | AG30: =(MATCH('Calc - Sparklines'!$C$2,INDIRECT($AA30),0)) ->  | AH30: 0.025 | AI30: 0.005
A31: IAPT_iii_a | B31: IAPT(iii.a) | C31: IAPT: % of people receiving first treatment appointment within 6 weeks of referral | D31: ='IAPT(iii_a)_FINAL CALC'!B6 -> Q1 2021/22 | E31: =IF('Calc - Sparklines'!$C$2="EN",IFERROR(IF(ISNUMBER( INDEX(INDIRECT($Z31), MATCH('Calc - Sparklines'!$AF31,INDIRECT($AA31),0), MATCH('Calc - Sparklines'!$D31,INDIRECT($AB31),0)-E$3))=FALSE,NA(), INDEX(INDIRECT($Z31), MATCH('Calc - Sparklines'!$AF31,INDIRECT($AA31),0), MATCH('Calc - Sparklines'!$D31,INDIRECT($AB31),0)-E$3)),NA()),IFERROR(IF(ISNUMBER( INDEX(INDIRECT($Z31), MATCH('Calc - Sparklines'!$C$2,INDIRECT($AA31),0), MATCH('Calc - Sparklines'!$D31,INDIRECT($AB31),0)-E$3))=FALSE,NA(), INDEX(INDIRECT($Z31), MATCH('Calc - Sparklines'!$C$2,INDIRECT($AA31),0), MATCH('Calc - Sparklines'!$D31,INDIRECT($AB31),0)-E$3)),NA())) -> 0.895 | F31: =IF('Calc - Sparklines'!$C$2="EN",IFERROR(IF(ISNUMBER( INDEX(INDIRECT($Z31), MATCH('Calc - Sparklines'!$AF31,INDIRECT($AA31),0), MATCH('Calc - Sparklines'!$D31,INDIRECT($AB31),0)-F$3))=FALSE,NA(), INDEX(INDIRECT($Z31), MATCH('Calc - Sparklines'!$AF31,INDIRECT($AA31),0), MATCH('Calc - Sparklines'!$D31,INDIRECT($AB31),0)-F$3)),NA()),IFERROR(IF(ISNUMBER( INDEX(INDIRECT($Z31), MATCH('Calc - Sparklines'!$C$2,INDIRECT($AA31),0), MATCH('Calc - Sparklines'!$D31,INDIRECT($AB31),0)-F$3))=FALSE,NA(), INDEX(INDIRECT($Z31), MATCH('Calc - Sparklines'!$C$2,INDIRECT($AA31),0), MATCH('Calc - Sparklines'!$D31,INDIRECT($AB31),0)-F$3)),NA())) -> 0.895 | G31: =IF('Calc - Sparklines'!$C$2="EN",IFERROR(IF(ISNUMBER( INDEX(INDIRECT($Z31), MATCH('Calc - Sparklines'!$AF31,INDIRECT($AA31),0), MATCH('Calc - Sparklines'!$D31,INDIRECT($AB31),0)-G$3))=FALSE,NA(), INDEX(INDIRECT($Z31), MATCH('Calc - Sparklines'!$AF31,INDIRECT($AA31),0), MATCH('Calc - Sparklines'!$D31,INDIRECT($AB31),0)-G$3)),NA()),IFERROR(IF(ISNUMBER( INDEX(INDIRECT($Z31), MATCH('Calc - Sparklines'!$C$2,INDIRECT($AA31),0), MATCH('Calc - Sparklines'!$D31,INDIRECT($AB31),0)-G$3))=FALSE,NA(), INDEX(INDIRECT($Z31), MATCH('Calc - Sparklines'!$C$2,INDIRECT($AA31),0), MATCH('Calc - Sparklines'!$D31,INDIRECT($AB31),0)-G$3)),NA())) -> 0.89 | H31: =IF('Calc - Sparklines'!$C$2="EN",IFERROR(IF(ISNUMBER( INDEX(INDIRECT($Z31), MATCH('Calc - Sparklines'!$AF31,INDIRECT($AA31),0), MATCH('Calc - Sparklines'!$D31,INDIRECT($AB31),0)-H$3))=FALSE,NA(), INDEX(INDIRECT($Z31), MATCH('Calc - Sparklines'!$AF31,INDIRECT($AA31),0), MATCH('Calc - Sparklines'!$D31,INDIRECT($AB31),0)-H$3)),NA()),IFERROR(IF(ISNUMBER( INDEX(INDIRECT($Z31), MATCH('Calc - Sparklines'!$C$2,INDIRECT($AA31),0), MATCH('Calc - Sparklines'!$D31,INDIRECT($AB31),0)-H$3))=FALSE,NA(), INDEX(INDIRECT($Z31), MATCH('Calc - Sparklines'!$C$2,INDIRECT($AA31),0), MATCH('Calc - Sparklines'!$D31,INDIRECT($AB31),0)-H$3)),NA())) -> 0.8757049561 | I31: =IF('Calc - Sparklines'!$C$2="EN",IFERROR(IF(ISNUMBER( INDEX(INDIRECT($Z31), MATCH('Calc - Sparklines'!$AF31,INDIRECT($AA31),0), MATCH('Calc - Sparklines'!$D31,INDIRECT($AB31),0)-I$3))=FALSE,NA(), INDEX(INDIRECT($Z31), MATCH('Calc - Sparklines'!$AF31,INDIRECT($AA31),0), MATCH('Calc - Sparklines'!$D31,INDIRECT($AB31),0)-I$3)),NA()),IFERROR(IF(ISNUMBER( INDEX(INDIRECT($Z31), MATCH('Calc - Sparklines'!$C$2,INDIRECT($AA31),0), MATCH('Calc - Sparklines'!$D31,INDIRECT($AB31),0)-I$3))=FALSE,NA(), INDEX(INDIRECT($Z31), MATCH('Calc - Sparklines'!$C$2,INDIRECT($AA31),0), MATCH('Calc - Sparklines'!$D31,INDIRECT($AB31),0)-I$3)),NA())) -> 0.8671833038 | J31: =IF('Calc - Sparklines'!$C$2="EN",IFERROR(IF(ISNUMBER( INDEX(INDIRECT($Z31), MATCH('Calc - Sparklines'!$AF31,INDIRECT($AA31),0), MATCH('Calc - Sparklines'!$D31,INDIRECT($AB31),0)-J$3))=FALSE,NA(), INDEX(INDIRECT($Z31), MATCH('Calc - Sparklines'!$AF31,INDIRECT($AA31),0), MATCH('Calc - Sparklines'!$D31,INDIRECT($AB31),0)-J$3)),NA()),IFERROR(IF(ISNUMBER( INDEX(INDIRECT($Z31), MATCH('Calc - Sparklines'!$C$2,INDIRECT($AA31),0), MATCH('Calc - Sparklines'!$D31,INDIRECT($AB31),0)-J$3))=FALSE,NA(), INDEX(INDIRECT($Z31), MATCH('Calc - Sparklines'!$C$2,INDIRECT($AA31),0), MATCH('Calc - Sparklines'!$D31,INDIRECT($AB31),0)-J$3)),NA())) -> 0.8783854675 | K31: =IF('Calc - Sparklines'!$C$2="EN",IFERROR(IF(ISNUMBER( INDEX(INDIRECT($Z31), MATCH('Calc - Sparklines'!$AF31,INDIRECT($AA31),0), MATCH('Calc - Sparklines'!$D31,INDIRECT($AB31),0)-K$3))=FALSE,NA(), INDEX(INDIRECT($Z31), MATCH('Calc - Sparklines'!$AF31,INDIRECT($AA31),0), MATCH('Calc - Sparklines'!$D31,INDIRECT($AB31),0)-K$3)),NA()),IFERROR(IF(ISNUMBER( INDEX(INDIRECT($Z31), MATCH('Calc - Sparklines'!$C$2,INDIRECT($AA31),0), MATCH('Calc - Sparklines'!$D31,INDIRECT($AB31),0)-K$3))=FALSE,NA(), INDEX(INDIRECT($Z31), MATCH('Calc - Sparklines'!$C$2,INDIRECT($AA31),0), MATCH('Calc - Sparklines'!$D31,INDIRECT($AB31),0)-K$3)),NA())) -> 0.8761521912 | L31: =IF('Calc - Sparklines'!$C$2="EN",IFERROR(IF(ISNUMBER( INDEX(INDIRECT($Z31), MATCH('Calc - Sparklines'!$AF31,INDIRECT($AA31),0), MATCH('Calc - Sparklines'!$D31,INDIRECT($AB31),0)-L$3))=FALSE,NA(), INDEX(INDIRECT($Z31), MATCH('Calc - Sparklines'!$AF31,INDIRECT($AA31),0), MATCH('Calc - Sparklines'!$D31,INDIRECT($AB31),0)-L$3)),NA()),IFERROR(IF(ISNUMBER( INDEX(INDIRECT($Z31), MATCH('Calc - Sparklines'!$C$2,INDIRECT($AA31),0), MATCH('Calc - Sparklines'!$D31,INDIRECT($AB31),0)-L$3))=FALSE,NA(), INDEX(INDIRECT($Z31), MATCH('Calc - Sparklines'!$C$2,INDIRECT($AA31),0), MATCH('Calc - Sparklines'!$D31,INDIRECT($AB31),0)-L$3)),NA())) -> 0.8657302094 | M31: =IF('Calc - Sparklines'!$C$2="EN",IFERROR(IF(ISNUMBER( INDEX(INDIRECT($Z31), MATCH('Calc - Sparklines'!$AF31,INDIRECT($AA31),0), MATCH('Calc - Sparklines'!$D31,INDIRECT($AB31),0)-M$3))=FALSE,NA(), INDEX(INDIRECT($Z31), MATCH('Calc - Sparklines'!$AF31,INDIRECT($AA31),0), MATCH('Calc - Sparklines'!$D31,INDIRECT($AB31),0)-M$3)),NA()),IFERROR(IF(ISNUMBER( INDEX(INDIRECT($Z31), MATCH('Calc - Sparklines'!$C$2,INDIRECT($AA31),0), MATCH('Calc - Sparklines'!$D31,INDIRECT($AB31),0)-M$3))=FALSE,NA(), INDEX(INDIRECT($Z31), MATCH('Calc - Sparklines'!$C$2,INDIRECT($AA31),0), MATCH('Calc - Sparklines'!$D31,INDIRECT($AB31),0)-M$3)),NA())) ->  | N31: =IF('Calc - Sparklines'!$C$2="EN",IFERROR(IF(ISNUMBER( INDEX(INDIRECT($Z31), MATCH('Calc - Sparklines'!$AF31,INDIRECT($AA31),0), MATCH('Calc - Sparklines'!$D31,INDIRECT($AB31),0)-N$3))=FALSE,NA(), INDEX(INDIRECT($Z31), MATCH('Calc - Sparklines'!$AF31,INDIRECT($AA31),0), MATCH('Calc - Sparklines'!$D31,INDIRECT($AB31),0)-N$3)),NA()),IFERROR(IF(ISNUMBER( INDEX(INDIRECT($Z31), MATCH('Calc - Sparklines'!$C$2,INDIRECT($AA31),0), MATCH('Calc - Sparklines'!$D31,INDIRECT($AB31),0)-N$3))=FALSE,NA(), INDEX(INDIRECT($Z31), MATCH('Calc - Sparklines'!$C$2,INDIRECT($AA31),0), MATCH('Calc - Sparklines'!$D31,INDIRECT($AB31),0)-N$3)),NA())) -> 0.918 | O31: =IF('Calc - Sparklines'!$C$2="EN",IFERROR(IF(ISNUMBER( INDEX(INDIRECT($Z31), MATCH('Calc - Sparklines'!$AF31,INDIRECT($AA31),0), MATCH('Calc - Sparklines'!$D31,INDIRECT($AB31),0)-O$3))=FALSE,NA(), INDEX(INDIRECT($Z31), MATCH('Calc - Sparklines'!$AF31,INDIRECT($AA31),0), MATCH('Calc - Sparklines'!$D31,INDIRECT($AB31),0)-O$3)),NA()),IFERROR(IF(ISNUMBER( INDEX(INDIRECT($Z31), MATCH('Calc - Sparklines'!$C$2,INDIRECT($AA31),0), MATCH('Calc - Sparklines'!$D31,INDIRECT($AB31),0)-O$3))=FALSE,NA(), INDEX(INDIRECT($Z31), MATCH('Calc - Sparklines'!$C$2,INDIRECT($AA31),0), MATCH('Calc - Sparklines'!$D31,INDIRECT($AB31),0)-O$3)),NA())) -> 0.925 | P31: =IF('Calc - Sparklines'!$C$2="EN",IFERROR(IF(ISNUMBER( INDEX(INDIRECT($Z31), MATCH('Calc - Sparklines'!$AF31,INDIRECT($AA31),0), MATCH('Calc - Sparklines'!$D31,INDIRECT($AB31),0)-P$3))=FALSE,NA(), INDEX(INDIRECT($Z31), MATCH('Calc - Sparklines'!$AF31,INDIRECT($AA31),0), MATCH('Calc - Sparklines'!$D31,INDIRECT($AB31),0)-P$3)),NA()),IFERROR(IF(ISNUMBER( INDEX(INDIRECT($Z31), MATCH('Calc - Sparklines'!$C$2,INDIRECT($AA31),0), MATCH('Calc - Sparklines'!$D31,INDIRECT($AB31),0)-P$3))=FALSE,NA(), INDEX(INDIRECT($Z31), MATCH('Calc - Sparklines'!$C$2,INDIRECT($AA31),0), MATCH('Calc - Sparklines'!$D31,INDIRECT($AB31),0)-P$3)),NA())) -> 0.926 | R31: 6 | S31: 0 | T31: 0.926 | U31: 0.925 | V31: ▲ | W31: Sparkline16 | Z31: Data_Table_IAPT_iii_a | AA31: Data_Orgs_IAPT_iii_a | AB31: Data_Dates_IAPT_iii_a | AD31: Chart available at CCG & STP level only | AE31: =IF(OR(Dashboard!$O$3=1,Dashboard!$O$3=2),"Chart available at CCG & STP level only","") -> Chart available at CCG & STP level only | AF31: =IF('Calc - Sparklines'!$C$2="EN",IF(ISNUMBER(MATCH('Calc - Sparklines'!$C$2,INDIRECT($AA31),0)),"EN","ENG"),0) -> ENG | AG31: =(MATCH('Calc - Sparklines'!$C$2,INDIRECT($AA31),0)) ->  | AH31: 0.06026979065 | AI31: 0.05029504395
A32: IAPT_iii_b | B32: IAPT(iii.b) | C32: IAPT: % of people receiving first treatment appointment within 18 weeks of referral | D32: ='IAPT(iii_b)_FINAL CALC'!B6 -> Q1 2021/22 | E32: =IF('Calc - Sparklines'!$C$2="EN",IFERROR(IF(ISNUMBER( INDEX(INDIRECT($Z32), MATCH('Calc - Sparklines'!$AF32,INDIRECT($AA32),0), MATCH('Calc - Sparklines'!$D32,INDIRECT($AB32),0)-E$3))=FALSE,NA(), INDEX(INDIRECT($Z32), MATCH('Calc - Sparklines'!$AF32,INDIRECT($AA32),0), MATCH('Calc - Sparklines'!$D32,INDIRECT($AB32),0)-E$3)),NA()),IFERROR(IF(ISNUMBER( INDEX(INDIRECT($Z32), MATCH('Calc - Sparklines'!$C$2,INDIRECT($AA32),0), MATCH('Calc - Sparklines'!$D32,INDIRECT($AB32),0)-E$3))=FALSE,NA(), INDEX(INDIRECT($Z32), MATCH('Calc - Sparklines'!$C$2,INDIRECT($AA32),0), MATCH('Calc - Sparklines'!$D32,INDIRECT($AB32),0)-E$3)),NA())) -> 0.991 | F32: =IF('Calc - Sparklines'!$C$2="EN",IFERROR(IF(ISNUMBER( INDEX(INDIRECT($Z32), MATCH('Calc - Sparklines'!$AF32,INDIRECT($AA32),0), MATCH('Calc - Sparklines'!$D32,INDIRECT($AB32),0)-F$3))=FALSE,NA(), INDEX(INDIRECT($Z32), MATCH('Calc - Sparklines'!$AF32,INDIRECT($AA32),0), MATCH('Calc - Sparklines'!$D32,INDIRECT($AB32),0)-F$3)),NA()),IFERROR(IF(ISNUMBER( INDEX(INDIRECT($Z32), MATCH('Calc - Sparklines'!$C$2,INDIRECT($AA32),0), MATCH('Calc - Sparklines'!$D32,INDIRECT($AB32),0)-F$3))=FALSE,NA(), INDEX(INDIRECT($Z32), MATCH('Calc - Sparklines'!$C$2,INDIRECT($AA32),0), MATCH('Calc - Sparklines'!$D32,INDIRECT($AB32),0)-F$3)),NA())) -> 0.99 | G32: =IF('Calc - Sparklines'!$C$2="EN",IFERROR(IF(ISNUMBER( INDEX(INDIRECT($Z32), MATCH('Calc - Sparklines'!$AF32,INDIRECT($AA32),0), MATCH('Calc - Sparklines'!$D32,INDIRECT($AB32),0)-G$3))=FALSE,NA(), INDEX(INDIRECT($Z32), MATCH('Calc - Sparklines'!$AF32,INDIRECT($AA32),0), MATCH('Calc - Sparklines'!$D32,INDIRECT($AB32),0)-G$3)),NA()),IFERROR(IF(ISNUMBER( INDEX(INDIRECT($Z32), MATCH('Calc - Sparklines'!$C$2,INDIRECT($AA32),0), MATCH('Calc - Sparklines'!$D32,INDIRECT($AB32),0)-G$3))=FALSE,NA(), INDEX(INDIRECT($Z32), MATCH('Calc - Sparklines'!$C$2,INDIRECT($AA32),0), MATCH('Calc - Sparklines'!$D32,INDIRECT($AB32),0)-G$3)),NA())) -> 0.99 | H32: =IF('Calc - Sparklines'!$C$2="EN",IFERROR(IF(ISNUMBER( INDEX(INDIRECT($Z32), MATCH('Calc - Sparklines'!$AF32,INDIRECT($AA32),0), MATCH('Calc - Sparklines'!$D32,INDIRECT($AB32),0)-H$3))=FALSE,NA(), INDEX(INDIRECT($Z32), MATCH('Calc - Sparklines'!$AF32,INDIRECT($AA32),0), MATCH('Calc - Sparklines'!$D32,INDIRECT($AB32),0)-H$3)),NA()),IFERROR(IF(ISNUMBER( INDEX(INDIRECT($Z32), MATCH('Calc - Sparklines'!$C$2,INDIRECT($AA32),0), MATCH('Calc - Sparklines'!$D32,INDIRECT($AB32),0)-H$3))=FALSE,NA(), INDEX(INDIRECT($Z32), MATCH('Calc - Sparklines'!$C$2,INDIRECT($AA32),0), MATCH('Calc - Sparklines'!$D32,INDIRECT($AB32),0)-H$3)),NA())) -> 0.9862611389 | I32: =IF('Calc - Sparklines'!$C$2="EN",IFERROR(IF(ISNUMBER( INDEX(INDIRECT($Z32), MATCH('Calc - Sparklines'!$AF32,INDIRECT($AA32),0), MATCH('Calc - Sparklines'!$D32,INDIRECT($AB32),0)-I$3))=FALSE,NA(), INDEX(INDIRECT($Z32), MATCH('Calc - Sparklines'!$AF32,INDIRECT($AA32),0), MATCH('Calc - Sparklines'!$D32,INDIRECT($AB32),0)-I$3)),NA()),IFERROR(IF(ISNUMBER( INDEX(INDIRECT($Z32), MATCH('Calc - Sparklines'!$C$2,INDIRECT($AA32),0), MATCH('Calc - Sparklines'!$D32,INDIRECT($AB32),0)-I$3))=FALSE,NA(), INDEX(INDIRECT($Z32), MATCH('Calc - Sparklines'!$C$2,INDIRECT($AA32),0), MATCH('Calc - Sparklines'!$D32,INDIRECT($AB32),0)-I$3)),NA())) -> 0.9872305298 | J32: =IF('Calc - Sparklines'!$C$2="EN",IFERROR(IF(ISNUMBER( INDEX(INDIRECT($Z32), MATCH('Calc - Sparklines'!$AF32,INDIRECT($AA32),0), MATCH('Calc - Sparklines'!$D32,INDIRECT($AB32),0)-J$3))=FALSE,NA(), INDEX(INDIRECT($Z32), MATCH('Calc - Sparklines'!$AF32,INDIRECT($AA32),0), MATCH('Calc - Sparklines'!$D32,INDIRECT($AB32),0)-J$3)),NA()),IFERROR(IF(ISNUMBER( INDEX(INDIRECT($Z32), MATCH('Calc - Sparklines'!$C$2,INDIRECT($AA32),0), MATCH('Calc - Sparklines'!$D32,INDIRECT($AB32),0)-J$3))=FALSE,NA(), INDEX(INDIRECT($Z32), MATCH('Calc - Sparklines'!$C$2,INDIRECT($AA32),0), MATCH('Calc - Sparklines'!$D32,INDIRECT($AB32),0)-J$3)),NA())) -> 0.9836657715 | K32: =IF('Calc - Sparklines'!$C$2="EN",IFERROR(IF(ISNUMBER( INDEX(INDIRECT($Z32), MATCH('Calc - Sparklines'!$AF32,INDIRECT($AA32),0), MATCH('Calc - Sparklines'!$D32,INDIRECT($AB32),0)-K$3))=FALSE,NA(), INDEX(INDIRECT($Z32), MATCH('Calc - Sparklines'!$AF32,INDIRECT($AA32),0), MATCH('Calc - Sparklines'!$D32,INDIRECT($AB32),0)-K$3)),NA()),IFERROR(IF(ISNUMBER( INDEX(INDIRECT($Z32), MATCH('Calc - Sparklines'!$C$2,INDIRECT($AA32),0), MATCH('Calc - Sparklines'!$D32,INDIRECT($AB32),0)-K$3))=FALSE,NA(), INDEX(INDIRECT($Z32), MATCH('Calc - Sparklines'!$C$2,INDIRECT($AA32),0), MATCH('Calc - Sparklines'!$D32,INDIRECT($AB32),0)-K$3)),NA())) -> 0.9778042603 | L32: =IF('Calc - Sparklines'!$C$2="EN",IFERROR(IF(ISNUMBER( INDEX(INDIRECT($Z32), MATCH('Calc - Sparklines'!$AF32,INDIRECT($AA32),0), MATCH('Calc - Sparklines'!$D32,INDIRECT($AB32),0)-L$3))=FALSE,NA(), INDEX(INDIRECT($Z32), MATCH('Calc - Sparklines'!$AF32,INDIRECT($AA32),0), MATCH('Calc - Sparklines'!$D32,INDIRECT($AB32),0)-L$3)),NA()),IFERROR(IF(ISNUMBER( INDEX(INDIRECT($Z32), MATCH('Calc - Sparklines'!$C$2,INDIRECT($AA32),0), MATCH('Calc - Sparklines'!$D32,INDIRECT($AB32),0)-L$3))=FALSE,NA(), INDEX(INDIRECT($Z32), MATCH('Calc - Sparklines'!$C$2,INDIRECT($AA32),0), MATCH('Calc - Sparklines'!$D32,INDIRECT($AB32),0)-L$3)),NA())) -> 0.9743580627 | M32: =IF('Calc - Sparklines'!$C$2="EN",IFERROR(IF(ISNUMBER( INDEX(INDIRECT($Z32), MATCH('Calc - Sparklines'!$AF32,INDIRECT($AA32),0), MATCH('Calc - Sparklines'!$D32,INDIRECT($AB32),0)-M$3))=FALSE,NA(), INDEX(INDIRECT($Z32), MATCH('Calc - Sparklines'!$AF32,INDIRECT($AA32),0), MATCH('Calc - Sparklines'!$D32,INDIRECT($AB32),0)-M$3)),NA()),IFERROR(IF(ISNUMBER( INDEX(INDIRECT($Z32), MATCH('Calc - Sparklines'!$C$2,INDIRECT($AA32),0), MATCH('Calc - Sparklines'!$D32,INDIRECT($AB32),0)-M$3))=FALSE,NA(), INDEX(INDIRECT($Z32), MATCH('Calc - Sparklines'!$C$2,INDIRECT($AA32),0), MATCH('Calc - Sparklines'!$D32,INDIRECT($AB32),0)-M$3)),NA())) ->  | N32: =IF('Calc - Sparklines'!$C$2="EN",IFERROR(IF(ISNUMBER( INDEX(INDIRECT($Z32), MATCH('Calc - Sparklines'!$AF32,INDIRECT($AA32),0), MATCH('Calc - Sparklines'!$D32,INDIRECT($AB32),0)-N$3))=FALSE,NA(), INDEX(INDIRECT($Z32), MATCH('Calc - Sparklines'!$AF32,INDIRECT($AA32),0), MATCH('Calc - Sparklines'!$D32,INDIRECT($AB32),0)-N$3)),NA()),IFERROR(IF(ISNUMBER( INDEX(INDIRECT($Z32), MATCH('Calc - Sparklines'!$C$2,INDIRECT($AA32),0), MATCH('Calc - Sparklines'!$D32,INDIRECT($AB32),0)-N$3))=FALSE,NA(), INDEX(INDIRECT($Z32), MATCH('Calc - Sparklines'!$C$2,INDIRECT($AA32),0), MATCH('Calc - Sparklines'!$D32,INDIRECT($AB32),0)-N$3)),NA())) -> 0.982 | O32: =IF('Calc - Sparklines'!$C$2="EN",IFERROR(IF(ISNUMBER( INDEX(INDIRECT($Z32), MATCH('Calc - Sparklines'!$AF32,INDIRECT($AA32),0), MATCH('Calc - Sparklines'!$D32,INDIRECT($AB32),0)-O$3))=FALSE,NA(), INDEX(INDIRECT($Z32), MATCH('Calc - Sparklines'!$AF32,INDIRECT($AA32),0), MATCH('Calc - Sparklines'!$D32,INDIRECT($AB32),0)-O$3)),NA()),IFERROR(IF(ISNUMBER( INDEX(INDIRECT($Z32), MATCH('Calc - Sparklines'!$C$2,INDIRECT($AA32),0), MATCH('Calc - Sparklines'!$D32,INDIRECT($AB32),0)-O$3))=FALSE,NA(), INDEX(INDIRECT($Z32), MATCH('Calc - Sparklines'!$C$2,INDIRECT($AA32),0), MATCH('Calc - Sparklines'!$D32,INDIRECT($AB32),0)-O$3)),NA())) -> 0.987 | P32: =IF('Calc - Sparklines'!$C$2="EN",IFERROR(IF(ISNUMBER( INDEX(INDIRECT($Z32), MATCH('Calc - Sparklines'!$AF32,INDIRECT($AA32),0), MATCH('Calc - Sparklines'!$D32,INDIRECT($AB32),0)-P$3))=FALSE,NA(), INDEX(INDIRECT($Z32), MATCH('Calc - Sparklines'!$AF32,INDIRECT($AA32),0), MATCH('Calc - Sparklines'!$D32,INDIRECT($AB32),0)-P$3)),NA()),IFERROR(IF(ISNUMBER( INDEX(INDIRECT($Z32), MATCH('Calc - Sparklines'!$C$2,INDIRECT($AA32),0), MATCH('Calc - Sparklines'!$D32,INDIRECT($AB32),0)-P$3))=FALSE,NA(), INDEX(INDIRECT($Z32), MATCH('Calc - Sparklines'!$C$2,INDIRECT($AA32),0), MATCH('Calc - Sparklines'!$D32,INDIRECT($AB32),0)-P$3)),NA())) -> 0.988 | R32: 6 | S32: 0 | T32: 0.988 | U32: 0.987 | V32: ▲ | W32: Sparkline17 | Z32: Data_Table_IAPT_iii_b | AA32: Data_Orgs_IAPT_iii_b | AB32: Data_Dates_IAPT_iii_b | AD32: Not Applicable | AE32: Not Applicable | AF32: =IF('Calc - Sparklines'!$C$2="EN",IF(ISNUMBER(MATCH('Calc - Sparklines'!$C$2,INDIRECT($AA32),0)),"EN","ENG"),0) -> ENG | AG32: =(MATCH('Calc - Sparklines'!$C$2,INDIRECT($AA32),0)) ->  | AH32: 0.01364193726 | AI32: 0.001738861084
A33: IAPT_iii_c | B33: IAPT(iii.c) | C33: IAPT % of people that waited more than 90 days from their first treatment appointment to their second treatment appointment | D33: ='IAPT(iii_c)_FINAL CALC'!B6 -> Q1 2021/22 | E33: =IF('Calc - Sparklines'!$C$2="EN",IFERROR(IF(ISNUMBER( INDEX(INDIRECT($Z33), MATCH('Calc - Sparklines'!$AF33,INDIRECT($AA33),0), MATCH('Calc - Sparklines'!$D33,INDIRECT($AB33),0)-E$3))=FALSE,NA(), INDEX(INDIRECT($Z33), MATCH('Calc - Sparklines'!$AF33,INDIRECT($AA33),0), MATCH('Calc - Sparklines'!$D33,INDIRECT($AB33),0)-E$3)),NA()),IFERROR(IF(ISNUMBER( INDEX(INDIRECT($Z33), MATCH('Calc - Sparklines'!$C$2,INDIRECT($AA33),0), MATCH('Calc - Sparklines'!$D33,INDIRECT($AB33),0)-E$3))=FALSE,NA(), INDEX(INDIRECT($Z33), MATCH('Calc - Sparklines'!$C$2,INDIRECT($AA33),0), MATCH('Calc - Sparklines'!$D33,INDIRECT($AB33),0)-E$3)),NA())) ->  | F33: =IF('Calc - Sparklines'!$C$2="EN",IFERROR(IF(ISNUMBER( INDEX(INDIRECT($Z33), MATCH('Calc - Sparklines'!$AF33,INDIRECT($AA33),0), MATCH('Calc - Sparklines'!$D33,INDIRECT($AB33),0)-F$3))=FALSE,NA(), INDEX(INDIRECT($Z33), MATCH('Calc - Sparklines'!$AF33,INDIRECT($AA33),0), MATCH('Calc - Sparklines'!$D33,INDIRECT($AB33),0)-F$3)),NA()),IFERROR(IF(ISNUMBER( INDEX(INDIRECT($Z33), MATCH('Calc - Sparklines'!$C$2,INDIRECT($AA33),0), MATCH('Calc - Sparklines'!$D33,INDIRECT($AB33),0)-F$3))=FALSE,NA(), INDEX(INDIRECT($Z33), MATCH('Calc - Sparklines'!$C$2,INDIRECT($AA33),0), MATCH('Calc - Sparklines'!$D33,INDIRECT($AB33),0)-F$3)),NA())) ->  | G33: =IF('Calc - Sparklines'!$C$2="EN",IFERROR(IF(ISNUMBER( INDEX(INDIRECT($Z33), MATCH('Calc - Sparklines'!$AF33,INDIRECT($AA33),0), MATCH('Calc - Sparklines'!$D33,INDIRECT($AB33),0)-G$3))=FALSE,NA(), INDEX(INDIRECT($Z33), MATCH('Calc - Sparklines'!$AF33,INDIRECT($AA33),0), MATCH('Calc - Sparklines'!$D33,INDIRECT($AB33),0)-G$3)),NA()),IFERROR(IF(ISNUMBER( INDEX(INDIRECT($Z33), MATCH('Calc - Sparklines'!$C$2,INDIRECT($AA33),0), MATCH('Calc - Sparklines'!$D33,INDIRECT($AB33),0)-G$3))=FALSE,NA(), INDEX(INDIRECT($Z33), MATCH('Calc - Sparklines'!$C$2,INDIRECT($AA33),0), MATCH('Calc - Sparklines'!$D33,INDIRECT($AB33),0)-G$3)),NA())) ->  | H33: =IF('Calc - Sparklines'!$C$2="EN",IFERROR(IF(ISNUMBER( INDEX(INDIRECT($Z33), MATCH('Calc - Sparklines'!$AF33,INDIRECT($AA33),0), MATCH('Calc - Sparklines'!$D33,INDIRECT($AB33),0)-H$3))=FALSE,NA(), INDEX(INDIRECT($Z33), MATCH('Calc - Sparklines'!$AF33,INDIRECT($AA33),0), MATCH('Calc - Sparklines'!$D33,INDIRECT($AB33),0)-H$3)),NA()),IFERROR(IF(ISNUMBER( INDEX(INDIRECT($Z33), MATCH('Calc - Sparklines'!$C$2,INDIRECT($AA33),0), MATCH('Calc - Sparklines'!$D33,INDIRECT($AB33),0)-H$3))=FALSE,NA(), INDEX(INDIRECT($Z33), MATCH('Calc - Sparklines'!$C$2,INDIRECT($AA33),0), MATCH('Calc - Sparklines'!$D33,INDIRECT($AB33),0)-H$3)),NA())) -> 0.1924454498 | I33: =IF('Calc - Sparklines'!$C$2="EN",IFERROR(IF(ISNUMBER( INDEX(INDIRECT($Z33), MATCH('Calc - Sparklines'!$AF33,INDIRECT($AA33),0), MATCH('Calc - Sparklines'!$D33,INDIRECT($AB33),0)-I$3))=FALSE,NA(), INDEX(INDIRECT($Z33), MATCH('Calc - Sparklines'!$AF33,INDIRECT($AA33),0), MATCH('Calc - Sparklines'!$D33,INDIRECT($AB33),0)-I$3)),NA()),IFERROR(IF(ISNUMBER( INDEX(INDIRECT($Z33), MATCH('Calc - Sparklines'!$C$2,INDIRECT($AA33),0), MATCH('Calc - Sparklines'!$D33,INDIRECT($AB33),0)-I$3))=FALSE,NA(), INDEX(INDIRECT($Z33), MATCH('Calc - Sparklines'!$C$2,INDIRECT($AA33),0), MATCH('Calc - Sparklines'!$D33,INDIRECT($AB33),0)-I$3)),NA())) -> 0.2003196335 | J33: =IF('Calc - Sparklines'!$C$2="EN",IFERROR(IF(ISNUMBER( INDEX(INDIRECT($Z33), MATCH('Calc - Sparklines'!$AF33,INDIRECT($AA33),0), MATCH('Calc - Sparklines'!$D33,INDIRECT($AB33),0)-J$3))=FALSE,NA(), INDEX(INDIRECT($Z33), MATCH('Calc - Sparklines'!$AF33,INDIRECT($AA33),0), MATCH('Calc - Sparklines'!$D33,INDIRECT($AB33),0)-J$3)),NA()),IFERROR(IF(ISNUMBER( INDEX(INDIRECT($Z33), MATCH('Calc - Sparklines'!$C$2,INDIRECT($AA33),0), MATCH('Calc - Sparklines'!$D33,INDIRECT($AB33),0)-J$3))=FALSE,NA(), INDEX(INDIRECT($Z33), MATCH('Calc - Sparklines'!$C$2,INDIRECT($AA33),0), MATCH('Calc - Sparklines'!$D33,INDIRECT($AB33),0)-J$3)),NA())) -> 0.2106718063 | K33: =IF('Calc - Sparklines'!$C$2="EN",IFERROR(IF(ISNUMBER( INDEX(INDIRECT($Z33), MATCH('Calc - Sparklines'!$AF33,INDIRECT($AA33),0), MATCH('Calc - Sparklines'!$D33,INDIRECT($AB33),0)-K$3))=FALSE,NA(), INDEX(INDIRECT($Z33), MATCH('Calc - Sparklines'!$AF33,INDIRECT($AA33),0), MATCH('Calc - Sparklines'!$D33,INDIRECT($AB33),0)-K$3)),NA()),IFERROR(IF(ISNUMBER( INDEX(INDIRECT($Z33), MATCH('Calc - Sparklines'!$C$2,INDIRECT($AA33),0), MATCH('Calc - Sparklines'!$D33,INDIRECT($AB33),0)-K$3))=FALSE,NA(), INDEX(INDIRECT($Z33), MATCH('Calc - Sparklines'!$C$2,INDIRECT($AA33),0), MATCH('Calc - Sparklines'!$D33,INDIRECT($AB33),0)-K$3)),NA())) -> 0.2259969711 | L33: =IF('Calc - Sparklines'!$C$2="EN",IFERROR(IF(ISNUMBER( INDEX(INDIRECT($Z33), MATCH('Calc - Sparklines'!$AF33,INDIRECT($AA33),0), MATCH('Calc - Sparklines'!$D33,INDIRECT($AB33),0)-L$3))=FALSE,NA(), INDEX(INDIRECT($Z33), MATCH('Calc - Sparklines'!$AF33,INDIRECT($AA33),0), MATCH('Calc - Sparklines'!$D33,INDIRECT($AB33),0)-L$3)),NA()),IFERROR(IF(ISNUMBER( INDEX(INDIRECT($Z33), MATCH('Calc - Sparklines'!$C$2,INDIRECT($AA33),0), MATCH('Calc - Sparklines'!$D33,INDIRECT($AB33),0)-L$3))=FALSE,NA(), INDEX(INDIRECT($Z33), MATCH('Calc - Sparklines'!$C$2,INDIRECT($AA33),0), MATCH('Calc - Sparklines'!$D33,INDIRECT($AB33),0)-L$3)),NA())) -> 0.2363152695 | M33: =IF('Calc - Sparklines'!$C$2="EN",IFERROR(IF(ISNUMBER( INDEX(INDIRECT($Z33), MATCH('Calc - Sparklines'!$AF33,INDIRECT($AA33),0), MATCH('Calc - Sparklines'!$D33,INDIRECT($AB33),0)-M$3))=FALSE,NA(), INDEX(INDIRECT($Z33), MATCH('Calc - Sparklines'!$AF33,INDIRECT($AA33),0), MATCH('Calc - Sparklines'!$D33,INDIRECT($AB33),0)-M$3)),NA()),IFERROR(IF(ISNUMBER( INDEX(INDIRECT($Z33), MATCH('Calc - Sparklines'!$C$2,INDIRECT($AA33),0), MATCH('Calc - Sparklines'!$D33,INDIRECT($AB33),0)-M$3))=FALSE,NA(), INDEX(INDIRECT($Z33), MATCH('Calc - Sparklines'!$C$2,INDIRECT($AA33),0), MATCH('Calc - Sparklines'!$D33,INDIRECT($AB33),0)-M$3)),NA())) ->  | N33: =IF('Calc - Sparklines'!$C$2="EN",IFERROR(IF(ISNUMBER( INDEX(INDIRECT($Z33), MATCH('Calc - Sparklines'!$AF33,INDIRECT($AA33),0), MATCH('Calc - Sparklines'!$D33,INDIRECT($AB33),0)-N$3))=FALSE,NA(), INDEX(INDIRECT($Z33), MATCH('Calc - Sparklines'!$AF33,INDIRECT($AA33),0), MATCH('Calc - Sparklines'!$D33,INDIRECT($AB33),0)-N$3)),NA()),IFERROR(IF(ISNUMBER( INDEX(INDIRECT($Z33), MATCH('Calc - Sparklines'!$C$2,INDIRECT($AA33),0), MATCH('Calc - Sparklines'!$D33,INDIRECT($AB33),0)-N$3))=FALSE,NA(), INDEX(INDIRECT($Z33), MATCH('Calc - Sparklines'!$C$2,INDIRECT($AA33),0), MATCH('Calc - Sparklines'!$D33,INDIRECT($AB33),0)-N$3)),NA())) -> 0.1021713027 | O33: =IF('Calc - Sparklines'!$C$2="EN",IFERROR(IF(ISNUMBER( INDEX(INDIRECT($Z33), MATCH('Calc - Sparklines'!$AF33,INDIRECT($AA33),0), MATCH('Calc - Sparklines'!$D33,INDIRECT($AB33),0)-O$3))=FALSE,NA(), INDEX(INDIRECT($Z33), MATCH('Calc - Sparklines'!$AF33,INDIRECT($AA33),0), MATCH('Calc - Sparklines'!$D33,INDIRECT($AB33),0)-O$3)),NA()),IFERROR(IF(ISNUMBER( INDEX(INDIRECT($Z33), MATCH('Calc - Sparklines'!$C$2,INDIRECT($AA33),0), MATCH('Calc - Sparklines'!$D33,INDIRECT($AB33),0)-O$3))=FALSE,NA(), INDEX(INDIRECT($Z33), MATCH('Calc - Sparklines'!$C$2,INDIRECT($AA33),0), MATCH('Calc - Sparklines'!$D33,INDIRECT($AB33),0)-O$3)),NA())) -> 0.1264240488 | P33: =IF('Calc - Sparklines'!$C$2="EN",IFERROR(IF(ISNUMBER( INDEX(INDIRECT($Z33), MATCH('Calc - Sparklines'!$AF33,INDIRECT($AA33),0), MATCH('Calc - Sparklines'!$D33,INDIRECT($AB33),0)-P$3))=FALSE,NA(), INDEX(INDIRECT($Z33), MATCH('Calc - Sparklines'!$AF33,INDIRECT($AA33),0), MATCH('Calc - Sparklines'!$D33,INDIRECT($AB33),0)-P$3)),NA()),IFERROR(IF(ISNUMBER( INDEX(INDIRECT($Z33), MATCH('Calc - Sparklines'!$C$2,INDIRECT($AA33),0), MATCH('Calc - Sparklines'!$D33,INDIRECT($AB33),0)-P$3))=FALSE,NA(), INDEX(INDIRECT($Z33), MATCH('Calc - Sparklines'!$C$2,INDIRECT($AA33),0), MATCH('Calc - Sparklines'!$D33,INDIRECT($AB33),0)-P$3)),NA())) -> 0.1323342396 | R33: =IF(COUNTA(K33:P33)-COUNTIF(K33:P33,"#N/A")<3, 0, COUNTA(K33:P33)) -> 6 | S33: =IF(P33="N/A",IF(O33="N/A",2,1),0) -> 0 | T33: =OFFSET(P33,,-S33) -> 0.1323342396 | U33: =IF(ISERROR(O33),IF(ISERROR(N33),IF(ISERROR(M33),IF(ISERROR(L33),IF(ISERROR(K33),IF(ISERROR(J33),IF(ISERROR(I33),IF(ISERROR(H33),IF(ISERROR(G33),IF(ISERROR(F33),IF(ISERROR(E33), NA(), E33),F33),G33),H33),I33),J33),K33),L33),M33),N33),O33) -> 0.1264240488 | V33: =IF(D33="","",IFERROR(IF(T33>U33,"▲", IF(T33<U33,"▼","◄►")),"N/A")) -> ▲ | W33: Sparkline62 | Z33: Data_Table_IAPT_iii_c | AA33: Data_Orgs_IAPT_iii_c | AB33: Data_Dates_IAPT_iii_c | AF33: =IF('Calc - Sparklines'!$C$2="EN",IF(ISNUMBER(MATCH('Calc - Sparklines'!$C$2,INDIRECT($AA33),0)),"EN","ENG"),0) -> ENG | AG33: =(MATCH('Calc - Sparklines'!$C$2,INDIRECT($AA33),0)) ->  | AH33: -0.1039810299 | AI33: -0.06011121022
A34: IAPT_iv | B34: IAPT(iv) | C34: IAPT forecast outturn (£k) | D34: ='IAPT(iv)_FINAL CALC'!B6 -> 2021/22 planned | E34: =IF('Calc - Sparklines'!$C$2="EN",IFERROR(IF(ISNUMBER( INDEX(INDIRECT($Z34), MATCH('Calc - Sparklines'!$AF34,INDIRECT($AA34),0), MATCH('Calc - Sparklines'!$D34,INDIRECT($AB34),0)-E$4))=FALSE,NA(), INDEX(INDIRECT($Z34), MATCH('Calc - Sparklines'!$AF34,INDIRECT($AA34),0), MATCH('Calc - Sparklines'!$D34,INDIRECT($AB34),0)-E$4)),NA()),IFERROR(IF(ISNUMBER( INDEX(INDIRECT($Z34), MATCH('Calc - Sparklines'!$C$2,INDIRECT($AA34),0), MATCH('Calc - Sparklines'!$D34,INDIRECT($AB34),0)-E$4))=FALSE,NA(), INDEX(INDIRECT($Z34), MATCH('Calc - Sparklines'!$C$2,INDIRECT($AA34),0), MATCH('Calc - Sparklines'!$D34,INDIRECT($AB34),0)-E$4)),NA())) ->  | F34: =IF('Calc - Sparklines'!$C$2="EN",IFERROR(IF(ISNUMBER( INDEX(INDIRECT($Z34), MATCH('Calc - Sparklines'!$AF34,INDIRECT($AA34),0), MATCH('Calc - Sparklines'!$D34,INDIRECT($AB34),0)-F$4))=FALSE,NA(), INDEX(INDIRECT($Z34), MATCH('Calc - Sparklines'!$AF34,INDIRECT($AA34),0), MATCH('Calc - Sparklines'!$D34,INDIRECT($AB34),0)-F$4)),NA()),IFERROR(IF(ISNUMBER( INDEX(INDIRECT($Z34), MATCH('Calc - Sparklines'!$C$2,INDIRECT($AA34),0), MATCH('Calc - Sparklines'!$D34,INDIRECT($AB34),0)-F$4))=FALSE,NA(), INDEX(INDIRECT($Z34), MATCH('Calc - Sparklines'!$C$2,INDIRECT($AA34),0), MATCH('Calc - Sparklines'!$D34,INDIRECT($AB34),0)-F$4)),NA())) ->  | G34: =IF('Calc - Sparklines'!$C$2="EN",IFERROR(IF(ISNUMBER( INDEX(INDIRECT($Z34), MATCH('Calc - Sparklines'!$AF34,INDIRECT($AA34),0), MATCH('Calc - Sparklines'!$D34,INDIRECT($AB34),0)-G$4))=FALSE,NA(), INDEX(INDIRECT($Z34), MATCH('Calc - Sparklines'!$AF34,INDIRECT($AA34),0), MATCH('Calc - Sparklines'!$D34,INDIRECT($AB34),0)-G$4)),NA()),IFERROR(IF(ISNUMBER( INDEX(INDIRECT($Z34), MATCH('Calc - Sparklines'!$C$2,INDIRECT($AA34),0), MATCH('Calc - Sparklines'!$D34,INDIRECT($AB34),0)-G$4))=FALSE,NA(), INDEX(INDIRECT($Z34), MATCH('Calc - Sparklines'!$C$2,INDIRECT($AA34),0), MATCH('Calc - Sparklines'!$D34,INDIRECT($AB34),0)-G$4)),NA())) ->  | H34: =IF('Calc - Sparklines'!$C$2="EN",IFERROR(IF(ISNUMBER( INDEX(INDIRECT($Z34), MATCH('Calc - Sparklines'!$AF34,INDIRECT($AA34),0), MATCH('Calc - Sparklines'!$D34,INDIRECT($AB34),0)-H$4))=FALSE,NA(), INDEX(INDIRECT($Z34), MATCH('Calc - Sparklines'!$AF34,INDIRECT($AA34),0), MATCH('Calc - Sparklines'!$D34,INDIRECT($AB34),0)-H$4)),NA()),IFERROR(IF(ISNUMBER( INDEX(INDIRECT($Z34), MATCH('Calc - Sparklines'!$C$2,INDIRECT($AA34),0), MATCH('Calc - Sparklines'!$D34,INDIRECT($AB34),0)-H$4))=FALSE,NA(), INDEX(INDIRECT($Z34), MATCH('Calc - Sparklines'!$C$2,INDIRECT($AA34),0), MATCH('Calc - Sparklines'!$D34,INDIRECT($AB34),0)-H$4)),NA())) ->  | I34: =IF('Calc - Sparklines'!$C$2="EN",IFERROR(IF(ISNUMBER( INDEX(INDIRECT($Z34), MATCH('Calc - Sparklines'!$AF34,INDIRECT($AA34),0), MATCH('Calc - Sparklines'!$D34,INDIRECT($AB34),0)-I$4))=FALSE,NA(), INDEX(INDIRECT($Z34), MATCH('Calc - Sparklines'!$AF34,INDIRECT($AA34),0), MATCH('Calc - Sparklines'!$D34,INDIRECT($AB34),0)-I$4)),NA()),IFERROR(IF(ISNUMBER( INDEX(INDIRECT($Z34), MATCH('Calc - Sparklines'!$C$2,INDIRECT($AA34),0), MATCH('Calc - Sparklines'!$D34,INDIRECT($AB34),0)-I$4))=FALSE,NA(), INDEX(INDIRECT($Z34), MATCH('Calc - Sparklines'!$C$2,INDIRECT($AA34),0), MATCH('Calc - Sparklines'!$D34,INDIRECT($AB34),0)-I$4)),NA())) ->  | J34: =IF('Calc - Sparklines'!$C$2="EN",IFERROR(IF(ISNUMBER( INDEX(INDIRECT($Z34), MATCH('Calc - Sparklines'!$AF34,INDIRECT($AA34),0), MATCH('Calc - Sparklines'!$D34,INDIRECT($AB34),0)-J$4))=FALSE,NA(), INDEX(INDIRECT($Z34), MATCH('Calc - Sparklines'!$AF34,INDIRECT($AA34),0), MATCH('Calc - Sparklines'!$D34,INDIRECT($AB34),0)-J$4)),NA()),IFERROR(IF(ISNUMBER( INDEX(INDIRECT($Z34), MATCH('Calc - Sparklines'!$C$2,INDIRECT($AA34),0), MATCH('Calc - Sparklines'!$D34,INDIRECT($AB34),0)-J$4))=FALSE,NA(), INDEX(INDIRECT($Z34), MATCH('Calc - Sparklines'!$C$2,INDIRECT($AA34),0), MATCH('Calc - Sparklines'!$D34,INDIRECT($AB34),0)-J$4)),NA())) ->  | K34: =IF('Calc - Sparklines'!$C$2="EN",IFERROR(IF(ISNUMBER( INDEX(INDIRECT($Z34), MATCH('Calc - Sparklines'!$AF34,INDIRECT($AA34),0), MATCH('Calc - Sparklines'!$D34,INDIRECT($AB34),0)-K$4))=FALSE,NA(), INDEX(INDIRECT($Z34), MATCH('Calc - Sparklines'!$AF34,INDIRECT($AA34),0), MATCH('Calc - Sparklines'!$D34,INDIRECT($AB34),0)-K$4)),NA()),IFERROR(IF(ISNUMBER( INDEX(INDIRECT($Z34), MATCH('Calc - Sparklines'!$C$2,INDIRECT($AA34),0), MATCH('Calc - Sparklines'!$D34,INDIRECT($AB34),0)-K$4))=FALSE,NA(), INDEX(INDIRECT($Z34), MATCH('Calc - Sparklines'!$C$2,INDIRECT($AA34),0), MATCH('Calc - Sparklines'!$D34,INDIRECT($AB34),0)-K$4)),NA())) ->  | L34: =IF('Calc - Sparklines'!$C$2="EN",IFERROR(IF(ISNUMBER( INDEX(INDIRECT($Z34), MATCH('Calc - Sparklines'!$AF34,INDIRECT($AA34),0), MATCH('Calc - Sparklines'!$D34,INDIRECT($AB34),0)-L$4))=FALSE,NA(), INDEX(INDIRECT($Z34), MATCH('Calc - Sparklines'!$AF34,INDIRECT($AA34),0), MATCH('Calc - Sparklines'!$D34,INDIRECT($AB34),0)-L$4)),NA()),IFERROR(IF(ISNUMBER( INDEX(INDIRECT($Z34), MATCH('Calc - Sparklines'!$C$2,INDIRECT($AA34),0), MATCH('Calc - Sparklines'!$D34,INDIRECT($AB34),0)-L$4))=FALSE,NA(), INDEX(INDIRECT($Z34), MATCH('Calc - Sparklines'!$C$2,INDIRECT($AA34),0), MATCH('Calc - Sparklines'!$D34,INDIRECT($AB34),0)-L$4)),NA())) -> 428790556.9 | M34: =IF('Calc - Sparklines'!$C$2="EN",IFERROR(IF(ISNUMBER( INDEX(INDIRECT($Z34), MATCH('Calc - Sparklines'!$AF34,INDIRECT($AA34),0), MATCH('Calc - Sparklines'!$D34,INDIRECT($AB34),0)-M$4))=FALSE,NA(), INDEX(INDIRECT($Z34), MATCH('Calc - Sparklines'!$AF34,INDIRECT($AA34),0), MATCH('Calc - Sparklines'!$D34,INDIRECT($AB34),0)-M$4)),NA()),IFERROR(IF(ISNUMBER( INDEX(INDIRECT($Z34), MATCH('Calc - Sparklines'!$C$2,INDIRECT($AA34),0), MATCH('Calc - Sparklines'!$D34,INDIRECT($AB34),0)-M$4))=FALSE,NA(), INDEX(INDIRECT($Z34), MATCH('Calc - Sparklines'!$C$2,INDIRECT($AA34),0), MATCH('Calc - Sparklines'!$D34,INDIRECT($AB34),0)-M$4)),NA())) -> 479857086.7 | N34: =IF('Calc - Sparklines'!$C$2="EN",IFERROR(IF(ISNUMBER( INDEX(INDIRECT($Z34), MATCH('Calc - Sparklines'!$AF34,INDIRECT($AA34),0), MATCH('Calc - Sparklines'!$D34,INDIRECT($AB34),0)-N$4))=FALSE,NA(), INDEX(INDIRECT($Z34), MATCH('Calc - Sparklines'!$AF34,INDIRECT($AA34),0), MATCH('Calc - Sparklines'!$D34,INDIRECT($AB34),0)-N$4)),NA()),IFERROR(IF(ISNUMBER( INDEX(INDIRECT($Z34), MATCH('Calc - Sparklines'!$C$2,INDIRECT($AA34),0), MATCH('Calc - Sparklines'!$D34,INDIRECT($AB34),0)-N$4))=FALSE,NA(), INDEX(INDIRECT($Z34), MATCH('Calc - Sparklines'!$C$2,INDIRECT($AA34),0), MATCH('Calc - Sparklines'!$D34,INDIRECT($AB34),0)-N$4)),NA())) -> 578601188.7 | O34: =IF('Calc - Sparklines'!$C$2="EN",IFERROR(IF(ISNUMBER( INDEX(INDIRECT($Z34), MATCH('Calc - Sparklines'!$AF34,INDIRECT($AA34),0), MATCH('Calc - Sparklines'!$D34,INDIRECT($AB34),0)-O$4))=FALSE,NA(), INDEX(INDIRECT($Z34), MATCH('Calc - Sparklines'!$AF34,INDIRECT($AA34),0), MATCH('Calc - Sparklines'!$D34,INDIRECT($AB34),0)-O$4)),NA()),IFERROR(IF(ISNUMBER( INDEX(INDIRECT($Z34), MATCH('Calc - Sparklines'!$C$2,INDIRECT($AA34),0), MATCH('Calc - Sparklines'!$D34,INDIRECT($AB34),0)-O$4))=FALSE,NA(), INDEX(INDIRECT($Z34), MATCH('Calc - Sparklines'!$C$2,INDIRECT($AA34),0), MATCH('Calc - Sparklines'!$D34,INDIRECT($AB34),0)-O$4)),NA())) -> 667388467.7 | P34: =IF('Calc - Sparklines'!$C$2="EN",IFERROR(IF(ISNUMBER( INDEX(INDIRECT($Z34), MATCH('Calc - Sparklines'!$AF34,INDIRECT($AA34),0), MATCH('Calc - Sparklines'!$D34,INDIRECT($AB34),0)-P$4))=FALSE,NA(), INDEX(INDIRECT($Z34), MATCH('Calc - Sparklines'!$AF34,INDIRECT($AA34),0), MATCH('Calc - Sparklines'!$D34,INDIRECT($AB34),0)-P$4)),NA()),IFERROR(IF(ISNUMBER( INDEX(INDIRECT($Z34), MATCH('Calc - Sparklines'!$C$2,INDIRECT($AA34),0), MATCH('Calc - Sparklines'!$D34,INDIRECT($AB34),0)-P$4))=FALSE,NA(), INDEX(INDIRECT($Z34), MATCH('Calc - Sparklines'!$C$2,INDIRECT($AA34),0), MATCH('Calc - Sparklines'!$D34,INDIRECT($AB34),0)-P$4)),NA())) -> 744117920.7 | R34: 6 | S34: 0 | T34: 744117920.7 | U34: 667388467.7 | V34: ▲ | W34: Sparkline17a | X34: N/A | Z34: Data_Table_IAPT_iv | AA34: Data_Orgs_IAPT_iv | AB34: Data_Dates_IAPT_iv | AF34: =IF('Calc - Sparklines'!$C$2="EN",IF(ISNUMBER(MATCH('Calc - Sparklines'!$C$2,INDIRECT($AA34),0)),"EN","England"),0) -> EN | AG34: =(MATCH('Calc - Sparklines'!$C$2,INDIRECT($AA34),0)) -> 2 | AH34: ="" ->  | AI34: ="" -> 
A35: EIP | B35: EIP | E35: =IFERROR(IF(ISNUMBER( INDEX(INDIRECT($Z35), MATCH('Calc - Sparklines'!$C$2,INDIRECT($AA35),0), MATCH('Calc - Sparklines'!$D35,INDIRECT($AB35),0)-E$3))=FALSE,NA(), INDEX(INDIRECT($Z35), MATCH('Calc - Sparklines'!$C$2,INDIRECT($AA35),0), MATCH('Calc - Sparklines'!$D35,INDIRECT($AB35),0)-E$3)),NA()) ->  | F35: =IFERROR(IF(ISNUMBER( INDEX(INDIRECT($Z35), MATCH('Calc - Sparklines'!$C$2,INDIRECT($AA35),0), MATCH('Calc - Sparklines'!$D35,INDIRECT($AB35),0)-F$3))=FALSE,NA(), INDEX(INDIRECT($Z35), MATCH('Calc - Sparklines'!$C$2,INDIRECT($AA35),0), MATCH('Calc - Sparklines'!$D35,INDIRECT($AB35),0)-F$3)),NA()) ->  | R35: 0 | S35: 0 | T35: 0 | U35: 0 | X35: N/A | AD35: Subheading | AG35: =(MATCH('Calc - Sparklines'!$C$2,INDIRECT($AA35),0)) ->  | AH35: =IFERROR(P35/L35-1,"") ->  | AI35: =IFERROR(P35/H35-1,"") -> 
